Workbook

Sheet Overview

Sheet NOTES
A1: NOTES
B2: Updated Data | C2: Assessment Description | D2: Average Percent Correct
A3: Winter IA | B3: 2012-01-20 | C3: Winter Interim Assessment | D3: All Average % Correct of less than 51 are denoted in red.
A4: Fall IA | B4: 2011-11-11 | C4: Fall Interim Assessment
A5: Baseline | B5: 2011-09-17 | C5: Baseline Assessment

Sheet Select School
B3: =VLOOKUP(C3,SchList!$I$1:$J$499,2,FALSE) -> 9999 | C3: 1

Sheet AUTOMATE (hidden)
A1: AUTOMATE
B3: TAB NAME | C3: Writing | D3: FILEPATH1 | E3: FILENAME1 | F3: FILENAME2 | G3: FILENAME3 | H3: FILENAME4 | I3: FILENAME5
B4: WIABM-SBIO | D4: E:\Work\01 MACROS\Sandbox\Edusoft Files\ | E4: S-bio-bm-schl-all.xls | F4: S-bio-bm-dist-all.xls | G4: S-bio-bm-dtda-all.xls | H4: S-bio-bm-eto-all.xls | I4: S-bio-bm-sipa-all.xls
B5: WIACC-SBIO | D5: E:\Work\01 MACROS\Sandbox\Edusoft Files\ | E5: S-bio-rc-schl-all.xls | F5: S-bio-rc-dist-all.xls | G5: S-bio-rc-dtda-all.xls | H5: S-bio-rc-eto-all.xls | I5: S-bio-rc-sipa-all.xls
B6: WIABM-MALG | D6: E:\Work\01 MACROS\Sandbox\Edusoft Files\ | E6: M-alg-bm-schl-all.xls | F6: M-alg-bm-dist-all.xls | G6: M-alg-bm-dtda-all.xls | H6: M-alg-bm-eto-all.xls | I6: M-alg-bm-sipa-all.xls
B7: WIACC-MALG | D7: E:\Work\01 MACROS\Sandbox\Edusoft Files\ | E7: m-alg-rc-schl-all.xls | F7: m-alg-rc-dist-all.xls | G7: m-alg-rc-dtda-all.xls | H7: m-alg-rc-eto-all.xls | I7: m-alg-rc-sipa-all.xls
B8: WIABM-MGEO | D8: E:\Work\01 MACROS\Sandbox\Edusoft Files\ | E8: m-geo-bm-schl-all.xls | F8: m-geo-bm-dist-all.xls | G8: m-geo-bm-dtda-all.xls | H8: m-geo-bm-eto-all.xls | I8: m-geo-bm-sipa-all.xls
B9: WIACC-MGEO | D9: E:\Work\01 MACROS\Sandbox\Edusoft Files\ | E9: m-geo-rc-schl-all.xls | F9: m-geo-rc-dist-all.xls | G9: m-geo-rc-dtda-all.xls | H9: m-geo-rc-eto-all.xls | I9: m-geo-rc-sipa-all.xls
B10: WIAG9BM-R | D10: E:\Work\01 MACROS\Sandbox\Edusoft Files\ | E10: R-g09-bm-schl-all.xls | F10: R-g09-bm-dist-all.xls | G10: R-g09-bm-dtda-all.xls | H10: R-g09-bm-eto-all.xls | I10: R-g09-bm-sipa-all.xls
B11: WIAG9CC-R | D11: E:\Work\01 MACROS\Sandbox\Edusoft Files\ | E11: R-g09-rc-schl-all.xls | F11: R-g09-rc-dist-all.xls | G11: R-g09-rc-dtda-all.xls | H11: R-g09-rc-eto-all.xls | I11: R-g09-rc-sipa-all.xls
B12: WIAG10BM-R | D12: E:\Work\01 MACROS\Sandbox\Edusoft Files\ | E12: R-G10-bm-schl-all.xls | F12: R-G10-bm-dist-all.xls | G12: R-G10-bm-dtda-all.xls | H12: R-G10-bm-eto-all.xls | I12: R-G10-bm-sipa-all.xls
B13: WIAG10CC-R | D13: E:\Work\01 MACROS\Sandbox\Edusoft Files\ | E13: R-G10-rc-schl-all.xls | F13: R-G10-rc-dist-all.xls | G13: R-G10-rc-dtda-all.xls | H13: R-G10-rc-eto-all.xls | I13: R-G10-rc-sipa-all.xls

Sheet Algebra I Report
A1: Direction: Click on "School Name" below then click on arrow key on the right to select a school. To see benchmark description, move the mouse over the benchmark code.
A2: Click here to return to the school and subject selection sheet
B3: =VALUE('Select School'!B3) -> 9999 | U3: =TEXT(B3,"0000") -> 9999
A4: 2011-12 Algebra I Benchmark Analysis Report
A5: Baseline, Fall Interim Assessment (Fall IA) and Winter Interim Assessment (Winter IA)
A6: =TEXT($B$3,"0000")&"-"&VLOOKUP(B3,SchList!$A$2:$B$499,2,FALSE) -> 9999-District
A7: Reporting Categories | B7: Benchmarks | C7: No. of Items | F7: Average % Correct
C8: Base- line | D8: Fall IA | E8: Winter IA | F8: Base- line | G8: Fall IA | H8: Winter IA
B9: No. of Tested | F9: =IFERROR(VLOOKUP($B$3,'BLCC-MALG'!$A$14:$BZ$500,3,FALSE),"") -> 24587 | G9: =IFERROR(VLOOKUP($B$3,'FIACC-MALG'!$A$14:$BZ$500,3,FALSE),"") -> 27060 | H9: =IFERROR(VLOOKUP($B$3,'WIACC-MALG'!$A$14:$BZ$500,3,FALSE),"") -> 24452
B10: MA.912.A.2.3 | C10: 1 | E10: 4 | F10: =IFERROR(VLOOKUP($B$3,'BLBM-MALG'!$A$14:$DZ$500,9,FALSE),"") -> 0.4468966689 | H10: =IFERROR(VLOOKUP($B$3,'WIABM-MALG'!$A$14:$DZ$500,7,FALSE),"") -> 0.437278137
B11: MA.912.A.2.4 | C11: 2 | E11: 4 | F11: =IFERROR(VLOOKUP($B$3,'BLBM-MALG'!$A$14:$DZ$500,11,FALSE),"") -> 0.3557100572 | H11: =IFERROR(VLOOKUP($B$3,'WIABM-MALG'!$A$14:$DZ$500,9,FALSE),"") -> 0.4622781278
B12: MA.912.A.2.13 | C12: 2 | F12: =IFERROR(VLOOKUP($B$3,'BLBM-MALG'!$A$14:$DZ$500,13,FALSE),"") -> 0.2795496038
B13: MA.912.A.3.1 | C13: 1 | D13: 5 | F13: =IFERROR(VLOOKUP($B$3,'BLBM-MALG'!$A$14:$DZ$500,15,FALSE),"") -> 0.2514412015 | G13: =IFERROR(VLOOKUP($B$3,'FIABM-MALG'!$A$14:$DZ$500,7,FALSE),"") -> 0.4675321483
B14: MA.912.A.3.2 | C14: 2 | D14: 3 | F14: =IFERROR(VLOOKUP($B$3,'BLBM-MALG'!$A$14:$DZ$500,17,FALSE),"") -> 0.2481331355 | G14: =IFERROR(VLOOKUP($B$3,'FIABM-MALG'!$A$14:$DZ$500,9,FALSE),"") -> 0.5021680177
B15: MA.912.A.3.3 | C15: 2 | D15: 5 | F15: =IFERROR(VLOOKUP($B$3,'BLBM-MALG'!$A$14:$DZ$500,19,FALSE),"") -> 0.2145315631 | G15: =IFERROR(VLOOKUP($B$3,'FIABM-MALG'!$A$14:$DZ$500,11,FALSE),"") -> 0.3737546196
B16: MA.912.A.3.4 | C16: 2 | F16: =IFERROR(VLOOKUP($B$3,'BLBM-MALG'!$A$14:$DZ$500,21,FALSE),"") -> 0.2849779099
B17: MA.912.A.3.5 | C17: 2 | E17: 4 | F17: =IFERROR(VLOOKUP($B$3,'BLBM-MALG'!$A$14:$DZ$500,23,FALSE),"") -> 0.3757266811 | H17: =IFERROR(VLOOKUP($B$3,'WIABM-MALG'!$A$14:$DZ$500,11,FALSE),"") -> 0.375
B18: MA.912.A.3.8 | C18: 2 | E18: 4 | F18: =IFERROR(VLOOKUP($B$3,'BLBM-MALG'!$A$14:$DZ$500,25,FALSE),"") -> 0.2566282917 | H18: =IFERROR(VLOOKUP($B$3,'WIABM-MALG'!$A$14:$DZ$500,13,FALSE),"") -> 0.4122781456
B19: MA.912.A.3.9 | C19: 2 | E19: 4 | F19: =IFERROR(VLOOKUP($B$3,'BLBM-MALG'!$A$14:$DZ$500,27,FALSE),"") -> 0.2672943648 | H19: =IFERROR(VLOOKUP($B$3,'WIABM-MALG'!$A$14:$DZ$500,15,FALSE),"") -> 0.474999994
B20: MA.912.A.3.10 | C20: 3 | E20: 4 | F20: =IFERROR(VLOOKUP($B$3,'BLBM-MALG'!$A$14:$DZ$500,29,FALSE),"") -> 0.2566640998 | H20: =IFERROR(VLOOKUP($B$3,'WIABM-MALG'!$A$14:$DZ$500,17,FALSE),"") -> 0.375
B21: MA.912.A.3.11 | C21: 2 | E21: 4 | F21: =IFERROR(VLOOKUP($B$3,'BLBM-MALG'!$A$14:$DZ$500,31,FALSE),"") -> 0.4960777539 | H21: =IFERROR(VLOOKUP($B$3,'WIABM-MALG'!$A$14:$DZ$500,19,FALSE),"") -> 0.4122781456
B22: MA.912.A.3.14 | E22: 4 | H22: =IFERROR(VLOOKUP($B$3,'WIABM-MALG'!$A$14:$DZ$500,21,FALSE),"") -> 0.349999994
B23: MA.912.A.3.15 | C23: 2 | E23: 4 | F23: =IFERROR(VLOOKUP($B$3,'BLBM-MALG'!$A$14:$DZ$500,33,FALSE),"") -> 0.3956338431 | H23: =IFERROR(VLOOKUP($B$3,'WIABM-MALG'!$A$14:$DZ$500,23,FALSE),"") -> 0.375
B24: MA.912.A.10.1 | C24: 2 | F24: =IFERROR(VLOOKUP($B$3,'BLBM-MALG'!$A$14:$DZ$500,53,FALSE),"") -> 0.3347387235
B25: MA.912.G.1.4 | C25: 1 | E25: 4 | F25: =IFERROR(VLOOKUP($B$3,'BLBM-MALG'!$A$14:$DZ$500,59,FALSE),"") -> 0.2236388747 | H25: =IFERROR(VLOOKUP($B$3,'WIABM-MALG'!$A$14:$DZ$500,25,FALSE),"") -> 0.25
B26: MA.912.A.4.1 | C26: 2 | F26: =IFERROR(VLOOKUP($B$3,'BLBM-MALG'!$A$14:$DZ$500,35,FALSE),"") -> 0.2786698881
B27: MA.912.A.4.2 | C27: 2 | D27: 5 | F27: =IFERROR(VLOOKUP($B$3,'BLBM-MALG'!$A$14:$DZ$500,37,FALSE),"") -> 0.2919528184 | G27: =IFERROR(VLOOKUP($B$3,'FIABM-MALG'!$A$14:$DZ$500,13,FALSE),"") -> 0.3846415363
B28: MA.912.A.4.3 | C28: 2 | F28: =IFERROR(VLOOKUP($B$3,'BLBM-MALG'!$A$14:$DZ$500,39,FALSE),"") -> 0.3013966087
B29: MA.912.A.4.4 | C29: 1 | F29: =IFERROR(VLOOKUP($B$3,'BLBM-MALG'!$A$14:$DZ$500,41,FALSE),"") -> 0.1855515496
B30: MA.912.A.1.8 | C30: 3 | F30: =IFERROR(VLOOKUP($B$3,'BLBM-MALG'!$A$14:$DZ$500,7,FALSE),"") -> 0.3306630999
B31: MA.912.A.5.4 | C31: 2 | D31: 5 | F31: =IFERROR(VLOOKUP($B$3,'BLBM-MALG'!$A$14:$DZ$500,43,FALSE),"") -> 0.3489317742 | G31: =IFERROR(VLOOKUP($B$3,'FIABM-MALG'!$A$14:$DZ$500,15,FALSE),"") -> 0.4029127856
B32: MA.912.A.6.1 | C32: 1 | F32: =IFERROR(VLOOKUP($B$3,'BLBM-MALG'!$A$14:$DZ$500,45,FALSE),"") -> 0.2565289736
B33: MA.912.A.6.2 | C33: 1 | F33: =IFERROR(VLOOKUP($B$3,'BLBM-MALG'!$A$14:$DZ$500,47,FALSE),"") -> 0.1783435387
B34: MA.912.A.7.1 | C34: 2 | F34: =IFERROR(VLOOKUP($B$3,'BLBM-MALG'!$A$14:$DZ$500,49,FALSE),"") -> 0.2541391373
B35: MA.912.A.7.2 | C35: 2 | F35: =IFERROR(VLOOKUP($B$3,'BLBM-MALG'!$A$14:$DZ$500,51,FALSE),"") -> 0.4162342399
B36: MA.912.D.7.1 | C36: 1 | D36: 5 | F36: =IFERROR(VLOOKUP($B$3,'BLBM-MALG'!$A$14:$DZ$500,55,FALSE),"") -> 0.2206470226 | G36: =IFERROR(VLOOKUP($B$3,'FIABM-MALG'!$A$14:$DZ$500,17,FALSE),"") -> 0.3973303754
B37: MA.912.D.7.2 | C37: 1 | D37: 6 | F37: =IFERROR(VLOOKUP($B$3,'BLBM-MALG'!$A$14:$DZ$500,57,FALSE),"") -> 0.6071350439 | G37: =IFERROR(VLOOKUP($B$3,'FIABM-MALG'!$A$14:$DZ$500,19,FALSE),"") -> 0.4306460958
A38: All Benchmarks | C38: =SUM(C10:C37) -> 48 | D38: =SUM(D10:D37) -> 34 | E38: =SUM(E10:E37) -> 40 | F38: =IFERROR(VLOOKUP($B$3,'BLCC-MALG'!$A$14:$DZ$500,5,FALSE),"") -> 0.3093544519 | G38: =IFERROR(VLOOKUP($B$3,'FIACC-MALG'!$A$14:$DZ$500,5,FALSE),"") -> 0.4184536554 | H38: =IFERROR(VLOOKUP($B$3,'WIACC-MALG'!$A$14:$DZ$500,5,FALSE),"") -> 0.39241125
A54: Reporting Categories | C54: Number of Items | F54: Average % Correct | I54: % of Students at or above Proficiency Level (70%)
C55: BL | D55: Fall IA | E55: Winter IA | F55: BL | G55: Fall IA | H55: Winter IA | I55: BL | J55: Fall IA | K55: Winter IA
A56: 1 | B56: Functions, Linear Equations, & Inequalities | C56: =SUM(C10:C25) -> 28 | D56: =SUM(D10:D25) -> 13 | E56: 40 | F56: =IFERROR(VLOOKUP($B$3,'BLCC-MALG'!$A$14:$DZ$500,11,FALSE),"") -> 0.3097753466 | G56: =IFERROR(VLOOKUP($B$3,'FIACC-MALG'!$A$14:$DZ$500,13,FALSE),"") -> 0.4394263442 | H56: =IFERROR(VLOOKUP($B$3,'WIACC-MALG'!$A$14:$DZ$500,13,FALSE),"") -> 0.39241125 | K56: =IFERROR(VALUE(VLOOKUP($B$3,'WIACC-MALG'!$A$14:$DZ$500,9,FALSE)),"") -> 0.4426631768
A57: 2 | B57: Polynomials | C57: =SUM(C26:C29) -> 7 | D57: =SUM(D26:D29) -> 5 | E57: 0 | F57: =IFERROR(VLOOKUP($B$3,'BLCC-MALG'!$A$14:$DZ$500,17,FALSE),"") -> 0.2715587191 | G57: =IFERROR(VLOOKUP($B$3,'FIACC-MALG'!$A$14:$DZ$500,17,FALSE),"") -> 0.3846415363
A58: 3 | B58: Rationals, Radicals, Quadratics, & Discrete Mathematics | C58: =SUM(C30:C37) -> 13 | D58: =SUM(D30:D37) -> 16 | E58: 0 | F58: =IFERROR(VLOOKUP($B$3,'BLCC-MALG'!$A$14:$DZ$500,23,FALSE),"") -> 0.3287331316 | G58: =IFERROR(VLOOKUP($B$3,'FIACC-MALG'!$A$14:$DZ$500,21,FALSE),"") -> 0.4117775306

Sheet Algebra I NGSSS
A1: Click here to return to the school and subject selection sheet
A2: Next Generation Sunshine State Standards Algebra I EOC Assessed Benchmarks
A3: Reporting Categories | B3: Benchmarks | C3: Description
A4: Rationals, Radicals, Quadratics, and Discrete Mathematics | B4: MA.912.A.1.8 | C4: Use the zero product property of real numbers in a variety of contexts to identify solutions to equations.
A5: Functions, Linear Eq., & Ineq. | B5: MA.912.A.2.3 | C5: Describe the concept of a function, use function notation, determine whether a given relation is a function, and link equations to functions.
A6: Functions, Linear Eq., & Ineq. | B6: MA.912.A.2.4 | C6: Determine the domain and range of a relation.
A7: Functions, Linear Eq., & Ineq. | B7: MA.912.A.2.13 | C7: Solve real-world problems involving relations and functions.
A8: Functions, Linear Eq., & Ineq. | B8: MA.912.A.3.1 | C8: Solve linear equations in one variable that include simplifying algebraic expressions.
A9: Functions, Linear Eq., & Ineq. | B9: MA.912.A.3.2 | C9: Identify and apply the distributive, associative, and commutative properties of real numbers and the properties of equality.
A10: Functions, Linear Eq., & Ineq. | B10: MA.912.A.3.3 | C10: Solve literal equations for a specified variable.
A11: Functions, Linear Eq., & Ineq. | B11: MA.912.A.3.4 | C11: Solve and graph simple and compound inequalities in one variable and be able to justify each step in a solution.
A12: Functions, Linear Eq., & Ineq. | B12: MA.912.A.3.5 | C12: Symbolically represent and solve multi-step and real-world applications that involve linear equations and inequalities.
A13: Functions, Linear Eq., & Ineq. | B13: MA.912.A.3.8 | C13: Graph a line given any of the following information: a table of values, the x- and y-intercepts, two points, the slope and a point, the equation of the line in slope-intercept form, standard form, or point-slope form .
A14: Functions, Linear Eq., & Ineq. | B14: MA.912.A.3.9 | C14: Determine the slope, x-intercept, and y-intercept of a line given its graph, its equation, or two points on the line.
A15: Functions, Linear Eq., & Ineq. | B15: MA.912.A.3.10 | C15: Write an equation of a line given any of the following information: two points on the line, its slope and one point on the line, or its graph. Also, find an equation of a new line parallel to a given line, or perpendicular to a given line, through a given point on the new line.
A16: Functions, Linear Eq., & Ineq. | B16: MA.912.A.3.11 | C16: Write an equation of a line that models a data set, and use the equation or the graph to make predictions. Describe the slope of the line in terms of the data, recognizing that the slope is the rate of change.
A17: Functions, Linear Eq., & Ineq. | B17: MA.912.A.3.14 | C17: Solve systems of linear equations and inequalities in two and three variables using graphical, substitution, and elimination methods.
A18: Functions, Linear Eq., & Ineq. | B18: MA.912.A.3.15 | C18: Solve real-world problems involving systems of linear equations and inequalities in two and three variables.
A19: Polynomials | B19: MA.912.A.4.1 | C19: Simplify monomials and monomial expressions using the laws of integral exponents.
A20: Polynomials | B20: MA.912.A.4.2 | C20: Add, subtract, and multiply polynomials.
A21: Polynomials | B21: MA.912.A.4.3 | C21: Factor polynomial expressions.
A22: Polynomials | B22: MA.912.A.4.4 | C22: Divide polynomials by monomials and polynomials with various techniques, including synthetic division.
A23: Rationals, Radicals, Quadratics, and Discrete Mathematics | B23: MA.912.A.5.4 | C23: Solve algebraic proportions.
A24: Rationals, Radicals, Quadratics, and Discrete Mathematics | B24: MA.912.A.6.1 | C24: Simplify radical expressions
A25: Rationals, Radicals, Quadratics, and Discrete Mathematics | B25: MA.912.A.6.2 | C25: Add, subtract, multiply, and divide radical expressions (square roots and higher).
A26: Rationals, Radicals, Quadratics, and Discrete Mathematics | B26: MA.912.A.7.1 | C26: Graph quadratic equations with and without graphing technology.
A27: Rationals, Radicals, Quadratics, and Discrete Mathematics | B27: MA.912.A.7.2 | C27: Solve quadratic equations over the real numbers by factoring and by using the quadratic formula.
A28: Functions, Linear Eq., & Ineq. | B28: MA.912.A.10.1 | C28: Use a variety of problem-solving strategies, such as drawing a diagram, making a chart, guessing- and-checking, solving a simpler problem, writing an equation, working backwards, and creating a table.
A29: Rationals, Radicals, Quadratics, and Discrete Mathematics | B29: MA.912.D.7.1 | C29: Perform set Operations such as union and intersection, complement, and cross product.
A30: Rationals, Radicals, Quadratics, and Discrete Mathematics | B30: MA.912.D.7.2 | C30: Use Venn diagrams to explore relationships and pattern and to make arguments about relationships between sets.
A31: Functions, Linear Eq., & Ineq. | B31: MA.912.G.1.4 | C31: Use coordinate geometry to find slopes, parallel lines, perpendicular lines, and equations of lines.

Sheet Grade 9 Reading
A1: Direction: Click on "School Name" below then click on arrow key on the right to select a school. To see benchmark description, move the mouse over the benchmark code.
A2: Click here to return to the school and subject selection sheet
B3: =VALUE('Select School'!B3) -> 9999 | U3: =TEXT(B3,"0000") -> 9999
A4: 2011-12 Grade 9 Reading Benchmark Analysis Report
A5: Baseline, Fall Interim Assessment (Fall IA) and Winter Interim Assessment (Winter IA)
A6: =TEXT($B$3,"0000")&"-"&VLOOKUP(B3,SchList!$A$2:$B$499,2,FALSE) -> 9999-District
A7: Reporting Categories | B7: Benchmarks | C7: No. of Items | F7: Average % Correct
C8: Base- line | D8: Fall IA | E8: Winter IA | F8: Base- line | G8: Fall IA | H8: Winter IA
B9: No. of Tested | F9: =IFERROR(VLOOKUP($B$3,'BLG9CC-R'!$A$14:$BZ$500,3,FALSE),"") -> 24961 | G9: =IFERROR(VLOOKUP($B$3,'FIAG9CC-R'!$A$14:$BZ$500,3,FALSE),"") -> 25889 | H9: =IFERROR(VLOOKUP($B$3,'WIAG9CC-R'!$A$14:$BZ$500,3,FALSE),"") -> 23918
B10: LA.910.1.6.3 | C10: 3 | D10: 5 | E10: 4 | F10: =IFERROR(VLOOKUP($B$3,'BLG9BM-R'!$A$14:$CZ$500,7,FALSE),"") -> 0.62 | G10: =IFERROR(VLOOKUP($B$3,'FIAG9BM-R'!$A$14:$CZ$500,7,FALSE),"") -> 0.59 | H10: =IFERROR(VLOOKUP($B$3,'WIAG9BM-R'!$A$14:$CZ$500,7,FALSE),"") -> 0.68
B11: LA.910.1.6.8 | C11: 2 | D11: 4 | E11: 4 | F11: =IFERROR(VLOOKUP($B$3,'BLG9BM-R'!$A$14:$CZ$500,9,FALSE),"") -> 0.36 | G11: =IFERROR(VLOOKUP($B$3,'FIAG9BM-R'!$A$14:$CZ$500,9,FALSE),"") -> 0.49 | H11: =IFERROR(VLOOKUP($B$3,'WIAG9BM-R'!$A$14:$CZ$500,9,FALSE),"") -> 0.66
B12: LA.910.1.6.9 | C12: 2 | D12: 4 | E12: 4 | F12: =IFERROR(VLOOKUP($B$3,'BLG9BM-R'!$A$14:$CZ$500,11,FALSE),"") -> 0.72 | G12: =IFERROR(VLOOKUP($B$3,'FIAG9BM-R'!$A$14:$CZ$500,11,FALSE),"") -> 0.68 | H12: =IFERROR(VLOOKUP($B$3,'WIAG9BM-R'!$A$14:$CZ$500,11,FALSE),"") -> 0.56
B13: LA.910.1.7.2 | C13: 4 | D13: 4 | E13: 4 | F13: =IFERROR(VLOOKUP($B$3,'BLG9BM-R'!$A$14:$CZ$500,13,FALSE),"") -> 0.51 | G13: =IFERROR(VLOOKUP($B$3,'FIAG9BM-R'!$A$14:$CZ$500,13,FALSE),"") -> 0.57 | H13: =IFERROR(VLOOKUP($B$3,'WIAG9BM-R'!$A$14:$CZ$500,13,FALSE),"") -> 0.73
B14: LA.910.1.7.3 | C14: 8 | D14: 5 | E14: 4 | F14: =IFERROR(VLOOKUP($B$3,'BLG9BM-R'!$A$14:$CZ$500,15,FALSE),"") -> 0.59 | G14: =IFERROR(VLOOKUP($B$3,'FIAG9BM-R'!$A$14:$CZ$500,15,FALSE),"") -> 0.63 | H14: =IFERROR(VLOOKUP($B$3,'WIAG9BM-R'!$A$14:$CZ$500,15,FALSE),"") -> 0.61
B15: LA.910.1.7.4 | C15: 2 | D15: 5 | E15: 3 | F15: =IFERROR(VLOOKUP($B$3,'BLG9BM-R'!$A$14:$CZ$500,17,FALSE),"") -> 0.6 | G15: =IFERROR(VLOOKUP($B$3,'FIAG9BM-R'!$A$14:$CZ$500,17,FALSE),"") -> 0.58 | H15: =IFERROR(VLOOKUP($B$3,'WIAG9BM-R'!$A$14:$CZ$500,17,FALSE),"") -> 0.68
B16: LA.910.1.7.5 | C16: 2 | D16: 4 | E16: 4 | F16: =IFERROR(VLOOKUP($B$3,'BLG9BM-R'!$A$14:$CZ$500,19,FALSE),"") -> 0.57 | G16: =IFERROR(VLOOKUP($B$3,'FIAG9BM-R'!$A$14:$CZ$500,19,FALSE),"") -> 0.59 | H16: =IFERROR(VLOOKUP($B$3,'WIAG9BM-R'!$A$14:$CZ$500,19,FALSE),"") -> 0.66
B17: LA.910.1.7.7 | C17: 6 | D17: 4 | E17: 4 | F17: =IFERROR(VLOOKUP($B$3,'BLG9BM-R'!$A$14:$CZ$500,21,FALSE),"") -> 0.58 | G17: =IFERROR(VLOOKUP($B$3,'FIAG9BM-R'!$A$14:$CZ$500,21,FALSE),"") -> 0.57 | H17: =IFERROR(VLOOKUP($B$3,'WIAG9BM-R'!$A$14:$CZ$500,21,FALSE),"") -> 0.63
B18: LA.910.2.1.5 | C18: 2 | D18: 3 | E18: 5 | F18: =IFERROR(VLOOKUP($B$3,'BLG9BM-R'!$A$14:$CZ$500,23,FALSE),"") -> 0.39 | G18: =IFERROR(VLOOKUP($B$3,'FIAG9BM-R'!$A$14:$CZ$500,23,FALSE),"") -> 0.44 | H18: =IFERROR(VLOOKUP($B$3,'WIAG9BM-R'!$A$14:$CZ$500,23,FALSE),"") -> 0.64
B19: LA.910.2.1.7 | C19: 4 | D19: 5 | E19: 1 | F19: =IFERROR(VLOOKUP($B$3,'BLG9BM-R'!$A$14:$CZ$500,25,FALSE),"") -> 0.55 | G19: =IFERROR(VLOOKUP($B$3,'FIAG9BM-R'!$A$14:$CZ$500,25,FALSE),"") -> 0.45 | H19: =IFERROR(VLOOKUP($B$3,'WIAG9BM-R'!$A$14:$CZ$500,25,FALSE),"") -> 0.59
B20: LA.910.2.2.1 | D20: 4 | E20: 4 | G20: =IFERROR(VLOOKUP($B$3,'FIAG9BM-R'!$A$14:$CZ$500,27,FALSE),"") -> 0.61 | H20: =IFERROR(VLOOKUP($B$3,'WIAG9BM-R'!$A$14:$CZ$500,27,FALSE),"") -> 0.44
B21: LA.910.6.1.1 | C21: 2 | D21: 4 | E21: 4 | F21: =IFERROR(VLOOKUP($B$3,'BLG9BM-R'!$A$14:$CZ$500,27,FALSE),"") -> 0.53 | G21: =IFERROR(VLOOKUP($B$3,'FIAG9BM-R'!$A$14:$CZ$500,29,FALSE),"") -> 0.64 | H21: =IFERROR(VLOOKUP($B$3,'WIAG9BM-R'!$A$14:$CZ$500,29,FALSE),"") -> 0.45
B22: LA.910.6.2.2 | C22: 6 | D22: 6 | E22: 5 | F22: =IFERROR(VLOOKUP($B$3,'BLG9BM-R'!$A$14:$CZ$500,29,FALSE),"") -> 0.44 | G22: =IFERROR(VLOOKUP($B$3,'FIAG9BM-R'!$A$14:$CZ$500,31,FALSE),"") -> 0.55 | H22: =IFERROR(VLOOKUP($B$3,'WIAG9BM-R'!$A$14:$CZ$500,31,FALSE),"") -> 0.47
A23: All Benchmarks | C23: =SUM(C10:C22) -> 43 | D23: =SUM(D10:D22) -> 57 | E23: =SUM(E10:E22) -> 50 | F23: =IFERROR(VLOOKUP($B$3,'BLG9CC-R'!$A$14:$CZ$500,5,FALSE),"") -> 0.54 | G23: =IFERROR(VLOOKUP($B$3,'FIAG9CC-R'!$A$14:$CZ$500,5,FALSE),"") -> 0.57 | H23: =IFERROR(VLOOKUP($B$3,'WIAG9CC-R'!$A$14:$CZ$500,5,FALSE),"") -> 0.6
A39: Reporting Categories | C39: Number of Items | F39: Average % Correct | I39: % of Students at or above Proficiency Level (70%)
C40: BL | D40: Fall IA | E40: Winter IA | F40: BL | G40: Fall IA | H40: Winter IA | I40: BL | J40: Fall IA | K40: Winter IA
A41: 1 | B41: Vocabulary | C41: =SUM(C10:C12) -> 7 | D41: =SUM(D10:D12) -> 13 | E41: =SUM(E10:E12) -> 12 | F41: =IFERROR(VLOOKUP($B$3,'BLG9CC-R'!$A$14:$BZ$500,11,FALSE),"") -> 0.57 | G41: =IFERROR(VLOOKUP($B$3,'FIAG9CC-R'!$A$14:$BZ$500,13,FALSE),"") -> 0.59 | H41: =IFERROR(VLOOKUP($B$3,'WIAG9CC-R'!$A$14:$BZ$500,13,FALSE),"") -> 0.63
A42: 2 | B42: Reading Application | C42: =SUM(C13:C17) -> 22 | D42: =SUM(D13:D17) -> 22 | E42: 19 | F42: =IFERROR(VLOOKUP($B$3,'BLG9CC-R'!$A$14:$BZ$500,17,FALSE),"") -> 0.57 | G42: =IFERROR(VLOOKUP($B$3,'FIAG9CC-R'!$A$14:$BZ$500,17,FALSE),"") -> 0.59 | H42: =IFERROR(VLOOKUP($B$3,'WIAG9CC-R'!$A$14:$BZ$500,17,FALSE),"") -> 0.66
A43: 3 | B43: Literary Analysis-Fiction/NonFiction | C43: =SUM(C18:C20) -> 6 | D43: =SUM(D18:D20) -> 12 | E43: =SUM(E18:E20) -> 10 | F43: =IFERROR(VLOOKUP($B$3,'BLG9CC-R'!$A$14:$BZ$500,23,FALSE),"") -> 0.5 | G43: =IFERROR(VLOOKUP($B$3,'FIAG9CC-R'!$A$14:$BZ$500,21,FALSE),"") -> 0.5 | H43: =IFERROR(VLOOKUP($B$3,'WIAG9CC-R'!$A$14:$BZ$500,21,FALSE),"") -> 0.55
A44: 4 | B44: Informational Text/Research Process | C44: =SUM(C21:C22) -> 8 | D44: =SUM(D21:D22) -> 10 | E44: =SUM(E21:E22) -> 9 | F44: =IFERROR(VLOOKUP($B$3,'BLG9CC-R'!$A$14:$BZ$500,29,FALSE),"") -> 0.47 | G44: =IFERROR(VLOOKUP($B$3,'FIAG9CC-R'!$A$14:$BZ$500,25,FALSE),"") -> 0.59 | H44: =IFERROR(VLOOKUP($B$3,'WIAG9CC-R'!$A$14:$BZ$500,25,FALSE),"") -> 0.46
C45: =SUM(C41:C44) -> 43 | D45: =SUM(D41:D44) -> 57 | E45: =SUM(E41:E44) -> 50

Sheet Grade 9 Reading NGSSS
A1: Click here to return to the school and subject selection sheet
A2: Next Generation Sunshine State Standards Grade 9 Reading Benchmarks Assessed by the FCAT 2.0
A3: Reporting Categories | B3: Benchmarks | C3: Description
A4: Vocabulary | B4: LA.910.1.6.3 | C4: The student will use context clues to determine meanings of unfamiliar words.
A5: Vocabulary | B5: LA.910.1.6.7 | C5: The student will identify and understand the meaning of conceptually advanced prefixes, suffixes, and root words.
A6: Vocabulary | B6: LA.910.1.6.8 | C6: The student will identify advanced word/phrase relationships and their meanings.
A7: Vocabulary | B7: LA.910.1.6.9 | C7: The student will determine the correct meaning of words with multiple meanings in context.
A8: Reading Application | B8: LA.910.1.7.2 | C8: The student will analyze the author's purpose and/or perspective in a variety of text and understand how they affect meaning.
A9: Reading Application | B9: LA.910.1.7.3 | C9: The student will determine the main idea or essential message in grade-level or higher texts through inferring, paraphrasing, summarizing, and identifying relevant details.
A10: Reading Application | B10: LA.910.1.7.4 | C10: The student will identify cause-and-effect relationships in text.
A11: Reading Application | B11: LA.910.1.7.5 | C11: The student will analyze a variety of text structures (e.g., comparison/contrast, cause/effect, chronological order, argument/support, lists) and text features (main headings with subheadings) and explain their impact on meaning in text.
A12: Reading Application | B12: LA.910.1.7.7 | C12: The student will compare and contrast elements in multiple texts.
A13: Literary Analysis- Fiction/Nonfiction | B13: LA.910.2.1.5 | C13: The student will analyze and develop an interpretation of a literary work by describing an author's use of literary elements (e.g., theme, point of view, characterization, setting, plot), and explain and analyze different elements of figurative language (e.g., simile, metaphor, personification, hyperbole, symbolism, allusion, imagery).
A14: Literary Analysis- Fiction/Nonfiction | B14: LA.910.2.1.7 | C14: The student will analyze, interpret, and evaluate an author's use of descriptive language (e.g., tone, irony, mood, imagery, pun, alliteration, onomatopoeia, allusion), figurative language (e.g., symbolism, metaphor, personification, hyperbole), common idioms, and mythological and literary allusions, and explain how they impact meaning in a variety of texts.
A15: Literary Analysis- Fiction/Nonfiction | B15: LA.910.2.2.1 | C15: The student will analyze and evaluate information from text features (e.g., transitional devices, table of contents, glossary, index, bold or italicized text, headings, charts and graphs, illustrations, subheadings).
A16: Informational Text/Research Process | B16: LA.910.6.1.1 | C16: The student will explain how text features (e.g., charts, maps, diagrams, sub-headings, captions, illustrations, graphs) aid the reader's understanding.
A17: Informational Text/Research Process | B17: LA.910.6.2.2 | C17: The student will organize, synthesize, analyze, and evaluate the validity and reliability of information from multiple sources (including primary and secondary sources) to draw conclusions using a variety of techniques, and correctly use standardized citations.

Sheet Geometry Report
A1: Direction: Click on "School Name" below then click on arrow key on the right to select a school. To see benchmark description, move the mouse over the benchmark code.
A2: Click here to return to the school and subject selection sheet
B3: =VALUE('Select School'!B3) -> 9999 | U3: =TEXT(B3,"0000") -> 9999
A4: 2011-12 Geometry Benchmark Analysis Report
A5: Baseline, Fall Interim Assessment (Fall IA) and Winter Interim Assessment (Winter IA)
A6: =TEXT($B$3,"0000")&"-"&VLOOKUP(B3,SchList!$A$2:$B$499,2,FALSE) -> 9999-District
A7: Reporting Categories | B7: Benchmarks | C7: No. of Items | F7: Average % Correct
C8: Base- line | D8: Fall IA | E8: Winter IA | F8: Base- line | G8: Fall IA | H8: Winter IA
B9: No. of Tested | F9: =IFERROR(VLOOKUP($B$3,'BLCC-MGEO'!$A$14:$BZ$500,3,FALSE),"") -> 26051 | G9: =IFERROR(VLOOKUP($B$3,'FIACC-MGEO'!$A$14:$BZ$500,3,FALSE),"") -> 26618 | H9: =IFERROR(VLOOKUP($B$3,'WIACC-MGEO'!$A$14:$BZ$500,3,FALSE),"") -> 24342
B10: MA.912.D.1.1 | D10: 1 | G10: =IFERROR(VLOOKUP($B$3,'FIABM-MGEO'!$A$14:$CZ$500,7,FALSE),"") -> 0.3466433844
B11: MA.912.D.6.4 | C11: 1 | F11: =IFERROR(VLOOKUP($B$3,'BLBM-MGEO'!$A$14:$CZ$500,9,FALSE),"") -> 0.2970519467
B12: MA.912.G.1.1 | C12: 2 | D12: 5 | F12: =IFERROR(VLOOKUP($B$3,'BLBM-MGEO'!$A$14:$CZ$500,11,FALSE),"") -> 0.2699205441 | G12: =IFERROR(VLOOKUP($B$3,'FIABM-MGEO'!$A$14:$CZ$500,9,FALSE),"") -> 0.6656050174
B13: MA.912.G.1.3 | C13: 2 | D13: 4 | F13: =IFERROR(VLOOKUP($B$3,'BLBM-MGEO'!$A$14:$CZ$500,13,FALSE),"") -> 0.3437583988 | G13: =IFERROR(VLOOKUP($B$3,'FIABM-MGEO'!$A$14:$CZ$500,11,FALSE),"") -> 0.5309158844
B14: MA.912.G.1.4 | D14: 5 | G14: =IFERROR(VLOOKUP($B$3,'FIABM-MGEO'!$A$14:$CZ$500,13,FALSE),"") -> 0.3689545035
B15: MA.912.G.2.1 | D15: 5 | E15: 1 | G15: =IFERROR(VLOOKUP($B$3,'FIABM-MGEO'!$A$14:$CZ$500,15,FALSE),"") -> 0.5778000645 | H15: =IFERROR(VLOOKUP($B$3,'WIABM-MGEO'!$A$14:$CZ$500,7,FALSE),"") -> 0.6999999881
B16: MA.912.G.2.2 | C16: 2 | E16: 8 | F16: =IFERROR(VLOOKUP($B$3,'BLBM-MGEO'!$A$14:$CZ$500,15,FALSE),"") -> 0.3159917129 | H16: =IFERROR(VLOOKUP($B$3,'WIABM-MGEO'!$A$14:$CZ$500,9,FALSE),"") -> 0.5375000238
B17: MA.912.G.2.3 | C17: 2 | E17: 2 | F17: =IFERROR(VLOOKUP($B$3,'BLBM-MGEO'!$A$14:$CZ$500,17,FALSE),"") -> 0.5604852066 | H17: =IFERROR(VLOOKUP($B$3,'WIABM-MGEO'!$A$14:$CZ$500,11,FALSE),"") -> 0.6751273341
B18: MA.912.G.2.4 | C18: 2 | F18: =IFERROR(VLOOKUP($B$3,'BLBM-MGEO'!$A$14:$CZ$500,19,FALSE),"") -> 0.3047848504
B19: MA.912.G.2.5 | C19: 2 | F19: =IFERROR(VLOOKUP($B$3,'BLBM-MGEO'!$A$14:$CZ$500,21,FALSE),"") -> 0.264859317
B20: MA.912.G.3.1 | E20: 1 | H20: =IFERROR(VLOOKUP($B$3,'WIABM-MGEO'!$A$14:$CZ$500,13,FALSE),"") -> 0.400000006
B21: MA.912.G.3.2 | E21: 2 | H21: =IFERROR(VLOOKUP($B$3,'WIABM-MGEO'!$A$14:$CZ$500,15,FALSE),"") -> 0.3251273548
B22: MA.912.G.3.3 | C22: 2 | F22: =IFERROR(VLOOKUP($B$3,'BLBM-MGEO'!$A$14:$CZ$500,23,FALSE),"") -> 0.2449310983
B23: MA.912.G.3.4 | C23: 1 | E23: 3 | F23: =IFERROR(VLOOKUP($B$3,'BLBM-MGEO'!$A$14:$CZ$500,25,FALSE),"") -> 0.1733753049 | H23: =IFERROR(VLOOKUP($B$3,'WIABM-MGEO'!$A$14:$CZ$500,17,FALSE),"") -> 0.3666666746
B24: MA.912.G.4.1 | D24: 5 | E24: 2 | G24: =IFERROR(VLOOKUP($B$3,'FIABM-MGEO'!$A$14:$CZ$500,17,FALSE),"") -> 0.5599150946 | H24: =IFERROR(VLOOKUP($B$3,'WIABM-MGEO'!$A$14:$CZ$500,19,FALSE),"") -> 0.400000006
B25: MA.912.G.4.2 | D25: 4 | G25: =IFERROR(VLOOKUP($B$3,'FIABM-MGEO'!$A$14:$CZ$500,19,FALSE),"") -> 0.5844904059
B26: MA.912.G.4.4 | E26: 2 | H26: =IFERROR(VLOOKUP($B$3,'WIABM-MGEO'!$A$14:$CZ$500,21,FALSE),"") -> 0.6000000238
B27: MA.912.G.4.6 | C27: 2 | E27: 4 | F27: =IFERROR(VLOOKUP($B$3,'BLBM-MGEO'!$A$14:$CZ$500,27,FALSE),"") -> 0.3095313094 | H27: =IFERROR(VLOOKUP($B$3,'WIABM-MGEO'!$A$14:$CZ$500,23,FALSE),"") -> 0.5625636759
B28: MA.912.G.4.7 | C28: 2 | E28: 4 | F28: =IFERROR(VLOOKUP($B$3,'BLBM-MGEO'!$A$14:$CZ$500,29,FALSE),"") -> 0.1798779359 | H28: =IFERROR(VLOOKUP($B$3,'WIABM-MGEO'!$A$14:$CZ$500,25,FALSE),"") -> 0.400000006
B29: MA.912.G.5.4 | C29: 2 | F29: =IFERROR(VLOOKUP($B$3,'BLBM-MGEO'!$A$14:$CZ$500,31,FALSE),"") -> 0.2724098924
B30: MA.912.G.6.2 | D30: 4 | E30: 2 | G30: =IFERROR(VLOOKUP($B$3,'FIABM-MGEO'!$A$14:$CZ$500,21,FALSE),"") -> 0.5201331723 | H30: =IFERROR(VLOOKUP($B$3,'WIABM-MGEO'!$A$14:$CZ$500,27,FALSE),"") -> 0.4748726421
B31: MA.912.G.6.4 | E31: 3 | H31: =IFERROR(VLOOKUP($B$3,'WIABM-MGEO'!$A$14:$CZ$500,29,FALSE),"") -> 0.5
B32: MA.912.G.6.5 | C32: 2 | E32: 2 | F32: =IFERROR(VLOOKUP($B$3,'BLBM-MGEO'!$A$14:$CZ$500,33,FALSE),"") -> 0.3313212564 | H32: =IFERROR(VLOOKUP($B$3,'WIABM-MGEO'!$A$14:$CZ$500,31,FALSE),"") -> 0.349999994
B33: MA.912.G.6.6 | C33: 2 | F33: =IFERROR(VLOOKUP($B$3,'BLBM-MGEO'!$A$14:$CZ$500,35,FALSE),"") -> 0.2021150848
B34: MA.912.G.8.4 | C34: 2 | D34: 5 | E34: 5 | F34: =IFERROR(VLOOKUP($B$3,'BLBM-MGEO'!$A$14:$CZ$500,43,FALSE),"") -> 0.3178265767 | G34: =IFERROR(VLOOKUP($B$3,'FIABM-MGEO'!$A$14:$CZ$500,23,FALSE),"") -> 0.3122273563 | H34: =IFERROR(VLOOKUP($B$3,'WIABM-MGEO'!$A$14:$CZ$500,33,FALSE),"") -> 0.4700509456
B35: MA.912.G.8.5 | E35: 2 | H35: =IFERROR(VLOOKUP($B$3,'WIABM-MGEO'!$A$14:$CZ$500,35,FALSE),"") -> 0.349999994
B36: MA.912.G.7.1 | C36: 2 | F36: =IFERROR(VLOOKUP($B$3,'BLBM-MGEO'!$A$14:$CZ$500,37,FALSE),"") -> 0.5235211713
B37: MA.912.G.7.5 | C37: 2 | F37: =IFERROR(VLOOKUP($B$3,'BLBM-MGEO'!$A$14:$CZ$500,39,FALSE),"") -> 0.2796437813
B38: MA.912.G.7.7 | C38: 2 | F38: =IFERROR(VLOOKUP($B$3,'BLBM-MGEO'!$A$14:$CZ$500,41,FALSE),"") -> 0.2353402956
B39: MA.912.D.6.2 | C39: 2 | F39: =IFERROR(VLOOKUP($B$3,'BLBM-MGEO'!$A$14:$CZ$500,7,FALSE),"") -> 0.2378027732
B40: MA.912.T.2.1 | C40: 2 | F40: =IFERROR(VLOOKUP($B$3,'BLBM-MGEO'!$A$14:$CZ$500,45,FALSE),"") -> 0.3446451196
A41: All Benchmarks | C41: =SUM(C10:C40) -> 38 | D41: =SUM(D10:D40) -> 38 | E41: =SUM(E10:E40) -> 43 | F41: =IFERROR(VLOOKUP($B$3,'BLCC-MGEO'!$A$14:$CZ$500,5,FALSE),"") -> 0.3028697762 | G41: =IFERROR(VLOOKUP($B$3,'FIACC-MGEO'!$A$14:$CZ$500,5,FALSE),"") -> 0.507967602 | H41: =IFERROR(VLOOKUP($B$3,'WIACC-MGEO'!$A$14:$CZ$500,5,FALSE),"") -> 0.4779129045
A57: Reporting Categories | C57: Number of Items | F57: Average % Correct | I57: % of Students at or above Proficiency Level (70%)
C58: BL | D58: Fall IA | E58: Winter IA | F58: BL | G58: Fall IA | H58: Winter IA | I58: BL | J58: Fall IA | K58: Winter IA
A59: 1 | B59: Two-Dimensional Geometry | C59: =SUM(C10:C35) -> 28 | D59: =SUM(D10:D35) -> 38 | E59: =SUM(E10:E35) -> 43 | F59: =IFERROR(VLOOKUP($B$3,'BLCC-MGEO'!$A$14:$CZ$500,11,FALSE),"") -> 0.29574749 | G59: =IFERROR(VLOOKUP($B$3,'FIACC-MGEO'!$A$14:$CZ$500,11,FALSE),"") -> 0.507967602 | H59: =IFERROR(VLOOKUP($B$3,'WIACC-MGEO'!$A$14:$CZ$500,11,FALSE),"") -> 0.4779129045 | K59: =IFERROR(VALUE(VLOOKUP($B$3,'WIACC-MGEO'!$A$14:$CZ$500,11,FALSE)),"") -> 0.4779129045
A60: 2 | B60: Three-Dimensional Geometry | C60: =SUM(C36:C38) -> 6 | D60: =SUM(D36:D38) -> 0 | E60: =SUM(E36:E38) -> 0 | F60: =IFERROR(VLOOKUP($B$3,'BLCC-MGEO'!$A$14:$CZ$500,23,FALSE),"") -> 0.3439528837 | G60: =IFERROR(VLOOKUP($B$3,'FIACC-MGEO'!$A$14:$CZ$500,17,FALSE),"") -> 0
A61: 3 | B61: Trigonometry and Discrete Mathematics | C61: =SUM(C39:C40) -> 4 | D61: =SUM(D39:D40) -> 0 | E61: =SUM(E39:E40) -> 0 | F61: =IFERROR(VLOOKUP($B$3,'BLCC-MGEO'!$A$14:$CZ$500,17,FALSE),"") -> 0.2906184069 | G61: =IFERROR(VLOOKUP($B$3,'FIACC-MGEO'!$A$14:$CZ$500,23,FALSE),"") -> 0
C62: =SUM(C59:C61) -> 38 | D62: =SUM(D59:D61) -> 38 | E62: 43

Sheet Geometry NGSSS
A1: Click here to return to the school and subject selection sheet
A2: Next Generation Sunshine State Standards Geometry EOC Assessed Benchmarks
A3: Reporting Categories | B3: Benchmarks | C3: Description
A4: Two-Dimensional Geometry | B4: MA.912.D.1.1 | C4: Use recursive and iterative thinking to solve problems, including identification of patterns, population growth and decline, and compound interest.
A5: Trigonometry and Discrete Mathematic | B5: MA.912.D.6.2 | C5: MA.912.D.6.2 Find the converse, inverse, and contrapositive of a statement.
A6: Trigonometry and Discrete Mathematic | B6: MA.912.D.6.3 | C6: MA.912.D.6.3 Determine whether two propositions are logically equivalent.
A7: Two-Dimensional Geometry | B7: MA.912.G.1.1 | C7: MA.912.G.1.1 Find the lengths and midpoints of line segments in two-dimensional coordinate systems.
A8: Two-Dimensional Geometry | B8: MA.912.G.1.3 | C8: MA.912.G.1.3 Identify and use the relationships between special pairs of angles formed by parallel lines and transversals.
A9: Two-Dimensional Geometry | B9: MA.912.G.2.2 | C9: MA.912.G.2.2 Determine the measures of interior and exterior angles of polygons, justifying the method used.
A10: Two-Dimensional Geometry | B10: MA.912.G.2.3 | C10: MA.912.G.2.3 Use properties of congruent and similar polygons to solve mathematical or real-world problems.
A11: Two-Dimensional Geometry | B11: MA.912.G.2.1 | C11: MA.912.G.2.1 Identify and describe convex, concave, regular, and irregular polygons.
A12: Two-Dimensional Geometry | B12: MA.912.G.4.1 | C12: MA.912.G.4.1 Classify, construct, and describe triangles that are right, acute, obtuse, scalene, isosceles, equilateral, and equiangular.
A13: Two-Dimensional Geometry | B13: MA.912.G.4.2 | C13: MA.912.G.4.2 Define, identify, and construct altitudes, medians, angle bisectors, perpendicular bisectors, orthocenter, centroid, incenter, and circumcenter.
A14: Two-Dimensional Geometry | B14: MA.912.G.4.4 | C14: MA.912.G.4.4 Use properties of congruent and similar triangles to solve problems involving lengths and areas.
A15: Two-Dimensional Geometry | B15: MA.912.G.4.5 | C15: MA.912.G.4.5 Apply theorems involving segments divided proportionally.
A16: Two-Dimensional Geometry | B16: MA.912.G.2.4 | C16: MA.912.G.2.4 Apply transformations (translations, reflections, rotations, dilations, and scale factors) to polygons to determine congruence, similarity, and symmetry. Know that images formed by translations, reflections, and rotations are congruent to the original shape. Create and verify tessellations of the plane using polygons.
A17: Two-Dimensional Geometry | B17: MA.912.G.2.5 | C17: MA.912.G.2.5 Explain the derivation and apply formulas for perimeter and area of polygons (triangles, quadrilaterals, pentagons, etc.).
A18: Two-Dimensional Geometry | B18: MA.912.G.2.7 | C18: MA.912.G.2.7 Determine how changes in dimensions affect the perimeter and area of common geometric figures.
A19: Two-Dimensional Geometry | B19: MA.912.G.3.3 | C19: MA.912.G.3.3 Use coordinate geometry to prove properties of congruent, regular, and similar quadrilaterals.
A20: Two-Dimensional Geometry | B20: MA.912.G.3.4 | C20: MA.912.G.3.4 Prove theorems involving quadrilaterals.
A21: Two-Dimensional Geometry | B21: MA.912.D.6.4 | C21: MA.912.D.6.4 Use methods of direct and indirect proof and determine whether a short proof is logically valid.
A22: Two-Dimensional Geometry | B22: MA.912.G.3.1 | C22: MA.912.G.3.1 Describe, classify, and compare relationships among quadrilaterals including the square, rectangle, rhombus, parallelogram, trapezoid, and kite.
A23: Two-Dimensional Geometry | B23: MA.912.G.3.2 | C23: MA.912.G.3.2 Compare and contrast special quadrilaterals on the basis of their properties.
A24: Two-Dimensional Geometry | B24: MA.912.G.8.5 | C24: MA.912.G.8.5 Write geometric proofs, including proofs by contradiction and proofs involving coordinate geometry. Use and compare a variety of ways to present deductive proofs, such as flow charts, paragraphs, two-column, and indirect proofs.
A25: Two-Dimensional Geometry | B25: MA.912.G.4.6 | C25: MA.912.G.4.6 Prove that triangles are congruent or similar and use the concept of corresponding parts of congruent triangles.
A26: Two-Dimensional Geometry | B26: MA.912.G.8.5 | C26: MA.912.G.8.5 Write geometric proofs, including proofs by contradiction and proofs involving coordinate geometry. Use and compare a variety of ways to present deductive proofs, such as flow charts, paragraphs, two-column, and indirect proofs.
A27: Two-Dimensional Geometry | B27: MA.912.G.4.7 | C27: MA.912.G.4.7 Apply the inequality theorems: triangle inequality, inequality in one triangle, and the Hinge Theorem.
A28: Two-Dimensional Geometry | B28: MA.912.G.5.4 | C28: MA.912.G.5.4 Solve real-world problems involving right triangles.
A29: Two-Dimensional Geometry | B29: MA.912.G.5.1 | C29: MA.912.G.5.1 Prove and apply the Pythagorean Theorem and its converse.
A30: Two-Dimensional Geometry | B30: MA.912.G.5.2 | C30: MA.912.G.5.2 State and apply the relationships that exist when the altitude is drawn to the hypotenuse of a right triangle.
A31: Two-Dimensional Geometry | B31: MA.912.G.5.3 | C31: MA.912.G.5.3 Use special right triangles (30° - 60° - 90° and 45° - 45° - 90°) to solve problems.
A32: Two-Dimensional Geometry | B32: MA.912.G.6.5 | C32: MA.912.G.6.5 Solve real-world problems using measures of circumference, arc length, and areas of circles and sectors.
A33: Two-Dimensional Geometry | B33: MA.912.G.6.2 | C33: MA.912.G.6.2 Define and identify: circumference, radius, diameter, arc, arc length, chord, secant, tangent and concentric circles.
A34: Two-Dimensional Geometry | B34: MA.912.G.6.4 | C34: MA.912.G.6.4 Determine and use measures of arcs and related angles (central, inscribed, and intersections of secants and tangents).
A35: Two-Dimensional Geometry | B35: MA.912.G.6.6 | C35: MA.912.G.6.6 Given the center and the radius, find the equation of a circle in the coordinate plane or given the equation of a circle in center-radius form, state the center and the radius of the circle.
A36: Two-Dimensional Geometry | B36: MA.912.G.6.7 | C36: MA.912.G.6.7 Given the equation of a circle in center-radius form or given the center and the radius of a circle, sketch the graph of the circle.
A37: Three-Dimensional Geometry | B37: MA.912.G.7.1 | C37: MA.912.G.7.1 Describe and make regular, non-regular, and oblique polyhedra, and sketch the net for a given polyhedron and vice versa.
A38: Three-Dimensional Geometry | B38: MA.912.G.7.2 | C38: MA.912.G.7.2 Describe the relationships between the faces, edges, and vertices of polyhedra.
A39: Three-Dimensional Geometry | B39: MA.912.G.7.5 | C39: MA.912.G.7.5 Explain and use formulas for lateral area, surface area, and volume of solids.
A40: Three-Dimensional Geometry | B40: MA.912.G.7.4 | C40: MA.912.G.7.4 Identify chords, tangents, radii, and great circles of spheres.
A41: Three-Dimensional Geometry | B41: MA.912.G.7.6 | C41: MA.912.G.7.6 Identify and use properties of congruent and similar solids.
A42: Three-Dimensional Geometry | B42: MA.912.G.7.7 | C42: MA.912.G.7.7 Determine how changes in dimensions affect the surface area and volume of common geometric solids.
A43: Three-Dimensional Geometry | B43: MA.912.G.2.7 | C43: MA.912.G.2.7 Determine how changes in dimensions affect the perimeter and area of common geometric figures.
A44: Two-Dimensional Geometry | B44: MA.912.G.8.4 | C44: MA.912.G.8.4 Make conjectures with justifications about geometric ideas. Distinguish between information that supports a conjecture and the proof of a conjecture.
A45: Trigonometry and Discrete Mathematic | B45: MA.912.T.2.1 | C45: MA.912.T.2.1 Define and use the trigonometric ratios (sine, cosine, tangent, cotangent, secant, cosecant) in terms of angles of right triangles.

Sheet Grade 10 Reading
A1: Direction: Click on "School Name" below then click on arrow key on the right to select a school. To see benchmark description, move the mouse over the benchmark code.
A2: Click here to return to the school and subject selection sheet
B3: =VALUE('Select School'!B3) -> 9999 | U3: =TEXT(B3,"0000") -> 9999
A4: 2011-12 Grade 10 Reading Benchmark Analysis Report
A5: Baseline, Fall Interim Assessment (Fall IA) and Winter Interim Assessment (Winter IA)
A6: =TEXT($B$3,"0000")&"-"&VLOOKUP(B3,SchList!$A$2:$B$499,2,FALSE) -> 9999-District
A7: Reporting Categories | B7: Bench-marks | C7: No. of Items | F7: Average % Correct
C8: Base- line | D8: Fall IA | E8: Winter IA | F8: Base- line | G8: Fall IA | H8: Winter IA
B9: No. of Tested | F9: =IFERROR(VLOOKUP($B$3,'BLG10CC-R'!$A$14:$BZ$500,3,FALSE),"") -> 23824 | G9: =IFERROR(VLOOKUP($B$3,'FIAG10CC-R'!$A$14:$BZ$500,3,FALSE),"") -> 24072 | H9: =IFERROR(VLOOKUP($B$3,'WIAG10CC-R'!$A$14:$BZ$500,3,FALSE),"") -> 21750
B10: LA.910.1.6.3 | C10: 2 | D10: 3 | E10: 4 | F10: =IFERROR(VLOOKUP($B$3,'BLG10BM-R'!$A$14:$CZ$500,7,FALSE),"") -> 0.7348900948 | G10: =IFERROR(VLOOKUP($B$3,'FIAG10BM-R'!$A$14:$CZ$500,7,FALSE),"") -> 0.62 | H10: =IFERROR(VLOOKUP($B$3,'WIAG10BM-R'!$A$14:$CZ$500,7,FALSE),"") -> 0.66
B11: LA.910.1.6.8 | C11: 1 | D11: 3 | E11: 4 | F11: =IFERROR(VLOOKUP($B$3,'BLG10BM-R'!$A$14:$CZ$500,9,FALSE),"") -> 0.6069487469 | G11: =IFERROR(VLOOKUP($B$3,'FIAG10BM-R'!$A$14:$CZ$500,9,FALSE),"") -> 0.48 | H11: =IFERROR(VLOOKUP($B$3,'WIAG10BM-R'!$A$14:$CZ$500,9,FALSE),"") -> 0.62
B12: LA.910.1.6.9 | C12: 2 | D12: 4 | E12: 4 | F12: =IFERROR(VLOOKUP($B$3,'BLG10BM-R'!$A$14:$CZ$500,11,FALSE),"") -> 0.6296362781 | G12: =IFERROR(VLOOKUP($B$3,'FIAG10BM-R'!$A$14:$CZ$500,11,FALSE),"") -> 0.59 | H12: =IFERROR(VLOOKUP($B$3,'WIAG10BM-R'!$A$14:$CZ$500,11,FALSE),"") -> 0.69
B13: LA.910.1.7.2 | C13: 4 | D13: 5 | E13: 4 | F13: =IFERROR(VLOOKUP($B$3,'BLG10BM-R'!$A$14:$CZ$500,13,FALSE),"") -> 0.6958874549 | G13: =IFERROR(VLOOKUP($B$3,'FIAG10BM-R'!$A$14:$CZ$500,13,FALSE),"") -> 0.63 | H13: =IFERROR(VLOOKUP($B$3,'WIAG10BM-R'!$A$14:$CZ$500,13,FALSE),"") -> 0.65
B14: LA.910.1.7.3 | C14: 5 | D14: 5 | E14: 4 | F14: =IFERROR(VLOOKUP($B$3,'BLG10BM-R'!$A$14:$CZ$500,15,FALSE),"") -> 0.6176906276 | G14: =IFERROR(VLOOKUP($B$3,'FIAG10BM-R'!$A$14:$CZ$500,15,FALSE),"") -> 0.56 | H14: =IFERROR(VLOOKUP($B$3,'WIAG10BM-R'!$A$14:$CZ$500,15,FALSE),"") -> 0.61
B15: LA.910.1.7.4 | C15: 2 | D15: 5 | E15: 4 | F15: =IFERROR(VLOOKUP($B$3,'BLG10BM-R'!$A$14:$CZ$500,17,FALSE),"") -> 0.5127819705 | G15: =IFERROR(VLOOKUP($B$3,'FIAG10BM-R'!$A$14:$CZ$500,17,FALSE),"") -> 0.49 | H15: =IFERROR(VLOOKUP($B$3,'WIAG10BM-R'!$A$14:$CZ$500,17,FALSE),"") -> 0.59
B16: LA.910.1.7.5 | C16: 1 | D16: 4 | E16: 3 | F16: =IFERROR(VLOOKUP($B$3,'BLG10BM-R'!$A$14:$CZ$500,19,FALSE),"") -> 0.6327642435 | G16: =IFERROR(VLOOKUP($B$3,'FIAG10BM-R'!$A$14:$CZ$500,19,FALSE),"") -> 0.53 | H16: =IFERROR(VLOOKUP($B$3,'WIAG10BM-R'!$A$14:$CZ$500,19,FALSE),"") -> 0.62
B17: LA.910.1.7.7 | C17: 3 | D17: 4 | E17: 5 | F17: =IFERROR(VLOOKUP($B$3,'BLG10BM-R'!$A$14:$CZ$500,21,FALSE),"") -> 0.5821545912 | G17: =IFERROR(VLOOKUP($B$3,'FIAG10BM-R'!$A$14:$CZ$500,21,FALSE),"") -> 0.6 | H17: =IFERROR(VLOOKUP($B$3,'WIAG10BM-R'!$A$14:$CZ$500,21,FALSE),"") -> 0.59
B18: LA.910.2.1.5 | C18: 5 | D18: 5 | E18: 4 | F18: =IFERROR(VLOOKUP($B$3,'BLG10BM-R'!$A$14:$CZ$500,23,FALSE),"") -> 0.4584452959 | G18: =IFERROR(VLOOKUP($B$3,'FIAG10BM-R'!$A$14:$CZ$500,23,FALSE),"") -> 0.58 | H18: =IFERROR(VLOOKUP($B$3,'WIAG10BM-R'!$A$14:$CZ$500,23,FALSE),"") -> 0.45
B19: LA.910.2.1.7 | C19: 1 | D19: 5 | E19: 3 | F19: =IFERROR(VLOOKUP($B$3,'BLG10BM-R'!$A$14:$CZ$500,25,FALSE),"") -> 0.4388387221 | G19: =IFERROR(VLOOKUP($B$3,'FIAG10BM-R'!$A$14:$CZ$500,25,FALSE),"") -> 0.59 | H19: =IFERROR(VLOOKUP($B$3,'WIAG10BM-R'!$A$14:$CZ$500,25,FALSE),"") -> 0.7
B20: LA.910.2.2.1 | D20: 1 | E20: 2 | G20: =IFERROR(VLOOKUP($B$3,'FIAG10BM-R'!$A$14:$CZ$500,27,FALSE),"") -> 0.25 | H20: =IFERROR(VLOOKUP($B$3,'WIAG10BM-R'!$A$14:$CZ$500,27,FALSE),"") -> 0.67
B21: LA.910.6.1.1 | C21: 3 | D21: 4 | E21: 5 | F21: =IFERROR(VLOOKUP($B$3,'BLG10BM-R'!$A$14:$CZ$500,27,FALSE),"") -> 0.4988893018 | G21: =IFERROR(VLOOKUP($B$3,'FIAG10BM-R'!$A$14:$CZ$500,29,FALSE),"") -> 0.39 | H21: =IFERROR(VLOOKUP($B$3,'WIAG10BM-R'!$A$14:$CZ$500,29,FALSE),"") -> 0.59
B22: LA.910.6.2.2 | C22: 7 | D22: 5 | E22: 3 | F22: =IFERROR(VLOOKUP($B$3,'BLG10BM-R'!$A$14:$CZ$500,29,FALSE),"") -> 0.5587405651 | G22: =IFERROR(VLOOKUP($B$3,'FIAG10BM-R'!$A$14:$CZ$500,31,FALSE),"") -> 0.64 | H22: =IFERROR(VLOOKUP($B$3,'WIAG10BM-R'!$A$14:$CZ$500,31,FALSE),"") -> 0.6
A23: All Benchmarks | C23: =SUM(C10:C22) -> 36 | D23: =SUM(D10:D22) -> 53 | E23: 49 | F23: =IFERROR(VLOOKUP($B$3,'BLG10CC-R'!$A$14:$CZ$500,5,FALSE),"") -> 0.58 | G23: =IFERROR(VLOOKUP($B$3,'FIAG10CC-R'!$A$14:$CZ$500,5,FALSE),"") -> 0.56 | H23: =IFERROR(VLOOKUP($B$3,'WIAG10CC-R'!$A$14:$CZ$500,5,FALSE),"") -> 0.61
A39: Reporting Categories | C39: Number of Items | F39: Average % Correct | I39: % of Students at or above Proficiency Level (70%)
C40: BL | D40: Fall IA | E40: Winter IA | F40: BL | G40: Fall IA | H40: Winter IA | I40: BL | J40: Fall IA | K40: Winter IA
A41: 1 | B41: Vocabulary | C41: =SUM(C10:C12) -> 5 | D41: =SUM(D10:D12) -> 10 | E41: =SUM(E10:E12) -> 12 | F41: =IFERROR(VLOOKUP($B$3,'BLG10CC-R'!$A$14:$BZ$500,11,FALSE),"") -> 0.67 | G41: =IFERROR(VLOOKUP($B$3,'FIAG10CC-R'!$A$14:$BZ$500,13,FALSE),"") -> 0.57 | H41: =IFERROR(VLOOKUP($B$3,'WIAG10CC-R'!$A$14:$BZ$500,13,FALSE),"") -> 0.65 | K41: =IFERROR(VALUE(VLOOKUP($B$3,'WIAG10CC-R'!$A$14:$CZ$500,9,FALSE)),"") -> 0.384
A42: 2 | B42: Reading Comprehension | C42: =SUM(C13:C17) -> 15 | D42: =SUM(D13:D17) -> 23 | E42: 20 | F42: =IFERROR(VLOOKUP($B$3,'BLG10CC-R'!$A$14:$BZ$500,17,FALSE),"") -> 0.62 | G42: =IFERROR(VLOOKUP($B$3,'FIAG10CC-R'!$A$14:$BZ$500,17,FALSE),"") -> 0.56 | H42: =IFERROR(VLOOKUP($B$3,'WIAG10CC-R'!$A$14:$BZ$500,17,FALSE),"") -> 0.61
A43: 3 | B43: Literary Analysis-Fiction/NonFiction | C43: =SUM(C18:C20) -> 6 | D43: =SUM(D18:D20) -> 11 | E43: =SUM(E18:E20) -> 9 | F43: =IFERROR(VLOOKUP($B$3,'BLG10CC-R'!$A$14:$BZ$500,23,FALSE),"") -> 0.45 | G43: =IFERROR(VLOOKUP($B$3,'FIAG10CC-R'!$A$14:$BZ$500,21,FALSE),"") -> 0.56 | H43: =IFERROR(VLOOKUP($B$3,'WIAG10CC-R'!$A$14:$BZ$500,21,FALSE),"") -> 0.58
A44: 4 | B44: Informational Text/Research Process | C44: =SUM(C21:C22) -> 10 | D44: =SUM(D21:D22) -> 9 | E44: =SUM(E21:E22) -> 8 | F44: =IFERROR(VLOOKUP($B$3,'BLG10CC-R'!$A$14:$BZ$500,29,FALSE),"") -> 0.54 | G44: =IFERROR(VLOOKUP($B$3,'FIAG10CC-R'!$A$14:$BZ$500,25,FALSE),"") -> 0.53 | H44: =IFERROR(VLOOKUP($B$3,'WIAG10CC-R'!$A$14:$BZ$500,25,FALSE),"") -> 0.6

Sheet Grade 10 Reading NGSSS
A1: Click here to return to the school and subject selection sheet
A2: Next Generation Sunshine State Standards Grade 10 Reading Benchmarks Assessed by the FCAT 2.0
A3: Reporting Categories | B3: Benchmarks | C3: Description
A4: Vocabulary | B4: LA.910.1.6.3 | C4: The student will use context clues to determine meanings of unfamiliar words.
A5: Vocabulary | B5: LA.910.1.6.7 | C5: The student will identify and understand the meaning of conceptually advanced prefixes, suffixes, and root words.
A6: Vocabulary | B6: LA.910.1.6.8 | C6: The student will identify advanced word/phrase relationships and their meanings.
A7: Vocabulary | B7: LA.910.1.6.9 | C7: The student will determine the correct meaning of words with multiple meanings in context.
A8: Reading Application | B8: LA.910.1.7.2 | C8: The student will analyze the author's purpose and/or perspective in a variety of text and understand how they affect meaning.
A9: Reading Application | B9: LA.910.1.7.3 | C9: The student will determine the main idea or essential message in grade-level or higher texts through inferring, paraphrasing, summarizing, and identifying relevant details.
A10: Reading Application | B10: LA.910.1.7.4 | C10: The student will identify cause-and-effect relationships in text.
A11: Reading Application | B11: LA.910.1.7.5 | C11: The student will analyze a variety of text structures (e.g., comparison/contrast, cause/effect, chronological order, argument/support, lists) and text features (main headings with subheadings) and explain their impact on meaning in text.
A12: Reading Application | B12: LA.910.1.7.7 | C12: The student will compare and contrast elements in multiple texts.
A13: Literary Analysis- Fiction/Nonfiction | B13: LA.910.2.1.5 | C13: The student will analyze and develop an interpretation of a literary work by describing an author's use of literary elements (e.g., theme, point of view, characterization, setting, plot), and explain and analyze different elements of figurative language (e.g., simile, metaphor, personification, hyperbole, symbolism, allusion, imagery).
A14: Literary Analysis- Fiction/Nonfiction | B14: LA.910.2.1.7 | C14: The student will analyze, interpret, and evaluate an author's use of descriptive language (e.g., tone, irony, mood, imagery, pun, alliteration, onomatopoeia, allusion), figurative language (e.g., symbolism, metaphor, personification, hyperbole), common idioms, and mythological and literary allusions, and explain how they impact meaning in a variety of texts.
A15: Literary Analysis- Fiction/Nonfiction | B15: LA.910.2.2.1 | C15: The student will analyze and evaluate information from text features (e.g., transitional devices, table of contents, glossary, index, bold or italicized text, headings, charts and graphs, illustrations, subheadings).
A16: Informational Text/Research Process | B16: LA.910.6.1.1 | C16: The student will explain how text features (e.g., charts, maps, diagrams, sub-headings, captions, illustrations, graphs) aid the reader's understanding.
A17: Informational Text/Research Process | B17: LA.910.6.2.2 | C17: The student will organize, synthesize, analyze, and evaluate the validity and reliability of information from multiple sources (including primary and secondary sources) to draw conclusions using a variety of techniques, and correctly use standardized citations.

Sheet Biology Report
A1: Direction: Click on "School Name" below then click on arrow key on the right to select a school. To see benchmark description, move the mouse over the benchmark code.
A2: Click here to return to the school and subject selection sheet
B3: =VALUE('Select School'!B3) -> 9999 | U3: =TEXT(B3,"0000") -> 9999
A4: 2011-12 Biology 1 Benchmark Analysis Report
A5: Baseline, Fall Interim Assessment (Fall IA) and Winter Interim Assessment (Winter IA)
A6: =TEXT($B$3,"0000")&"-"&VLOOKUP(B3,SchList!$A$2:$B$499,2,FALSE) -> 9999-District
A7: Reporting Categories | B7: Bench-marks | C7: No. of Items | F7: Average % Correct
C8: Base- line | D8: Fall IA | E8: Winter IA | F8: Base- line | G8: Fall IA | H8: Winter IA
B9: No. of Tested | F9: =IFERROR(VLOOKUP($B$3,'BLCC-SBIO'!$A$14:$BZ$500,3,FALSE),"") -> 25134 | G9: =IFERROR(VLOOKUP($B$3,'FIACC-SBIO'!$A$14:$BZ$500,3,FALSE),"") -> 25217 | H9: =IFERROR(VLOOKUP($B$3,'WIACC-SBIO'!$A$14:$BZ$500,3,FALSE),"") -> 23440
B10: SC.912.L.14.1 | C10: 3 | D10: 4 | E10: 3 | F10: =IFERROR(VLOOKUP($B$3,'BLBM-SBIO'!$A$14:$FZ$500,9,FALSE),"") -> 0.3126656803 | G10: =IFERROR(VLOOKUP($B$3,'FIABM-SBIO'!$A$14:$FV$500,7,FALSE),"") -> 0.5219157676 | H10: =IFERROR(VLOOKUP($B$3,'WIABM-SBIO'!$A$14:$FX$500,7,FALSE),"") -> 0.5166268527
B11: SC.912.L.14.3 | C11: 3 | D11: 3 | E11: 3 | F11: =IFERROR(VLOOKUP($B$3,'BLBM-SBIO'!$A$14:$FZ$500,11,FALSE),"") -> 0.3990933152 | G11: =IFERROR(VLOOKUP($B$3,'FIABM-SBIO'!$A$14:$FV$500,9,FALSE),"") -> 0.3762990613 | H11: =IFERROR(VLOOKUP($B$3,'WIABM-SBIO'!$A$14:$FX$500,9,FALSE),"") -> 0.3666666746
B12: SC.912.L.16.3 | C12: 4 | D12: 4 | E12: 4 | F12: =IFERROR(VLOOKUP($B$3,'BLBM-SBIO'!$A$14:$FZ$500,31,FALSE),"") -> 0.3277270352 | G12: =IFERROR(VLOOKUP($B$3,'FIABM-SBIO'!$A$14:$FV$500,29,FALSE),"") -> 0.3893732404 | H12: =IFERROR(VLOOKUP($B$3,'WIABM-SBIO'!$A$14:$FX$500,29,FALSE),"") -> 0.3375298545
B13: SC.912.L.16.17 | C13: 4 | D13: 4 | E13: 4 | F13: =IFERROR(VLOOKUP($B$3,'BLBM-SBIO'!$A$14:$FZ$500,35,FALSE),"") -> 0.2881286689 | G13: =IFERROR(VLOOKUP($B$3,'FIABM-SBIO'!$A$14:$FV$500,33,FALSE),"") -> 0.3302147347 | H13: =IFERROR(VLOOKUP($B$3,'WIABM-SBIO'!$A$14:$FX$500,33,FALSE),"") -> 0.375
B14: SC.912.L.18.1 | C14: 3 | D14: 3 | E14: 3 | F14: =IFERROR(VLOOKUP($B$3,'BLBM-SBIO'!$A$14:$FZ$500,43,FALSE),"") -> 0.2756683822 | G14: =IFERROR(VLOOKUP($B$3,'FIABM-SBIO'!$A$14:$FV$500,41,FALSE),"") -> 0.2316321013 | H14: =IFERROR(VLOOKUP($B$3,'WIABM-SBIO'!$A$14:$FX$500,41,FALSE),"") -> 0.2666666706
B15: SC.912.L.18.9 | C15: 4 | D15: 4 | E15: 4 | F15: =IFERROR(VLOOKUP($B$3,'BLBM-SBIO'!$A$14:$FZ$500,45,FALSE),"") -> 0.3048877314 | G15: =IFERROR(VLOOKUP($B$3,'FIABM-SBIO'!$A$14:$FV$500,43,FALSE),"") -> 0.3222835812 | H15: =IFERROR(VLOOKUP($B$3,'WIABM-SBIO'!$A$14:$FX$500,43,FALSE),"") -> 0.3625298605
B16: SC.912.L.18.12 | C16: 3 | D16: 3 | E16: 3 | F16: =IFERROR(VLOOKUP($B$3,'BLBM-SBIO'!$A$14:$FZ$500,47,FALSE),"") -> 0.2789760562 | G16: =IFERROR(VLOOKUP($B$3,'FIABM-SBIO'!$A$14:$FV$500,45,FALSE),"") -> 0.3500310641 | H16: =IFERROR(VLOOKUP($B$3,'WIABM-SBIO'!$A$14:$FX$500,45,FALSE),"") -> 0.4333333174
B17: SC.912.L.15.1 | C17: 4 | D17: 4 | E17: 4 | F17: =IFERROR(VLOOKUP($B$3,'BLBM-SBIO'!$A$14:$FZ$500,21,FALSE),"") -> 0.2981384414 | G17: =IFERROR(VLOOKUP($B$3,'FIABM-SBIO'!$A$14:$FV$500,19,FALSE),"") -> 0.330380297 | H17: =IFERROR(VLOOKUP($B$3,'WIABM-SBIO'!$A$14:$FX$500,19,FALSE),"") -> 0.5375298576
B18: SC.912.L.15.6 | C18: 4 | D18: 5 | E18: 4 | F18: =IFERROR(VLOOKUP($B$3,'BLBM-SBIO'!$A$14:$FZ$500,23,FALSE),"") -> 0.2466278465 | G18: =IFERROR(VLOOKUP($B$3,'FIABM-SBIO'!$A$14:$FV$500,21,FALSE),"") -> 0.2916778339 | H18: =IFERROR(VLOOKUP($B$3,'WIABM-SBIO'!$A$14:$FX$500,21,FALSE),"") -> 0.3124701365
B19: SC.912.L.15.8 | C19: 3 | D19: 3 | E19: 4 | F19: =IFERROR(VLOOKUP($B$3,'BLBM-SBIO'!$A$14:$FZ$500,25,FALSE),"") -> 0.3602560561 | G19: =IFERROR(VLOOKUP($B$3,'FIABM-SBIO'!$A$14:$FV$500,23,FALSE),"") -> 0.3336730515 | H19: =IFERROR(VLOOKUP($B$3,'WIABM-SBIO'!$A$14:$FX$500,23,FALSE),"") -> 0.3124701365
B20: SC.912.L.15.13 | C20: 4 | D20: 4 | E20: 5 | F20: =IFERROR(VLOOKUP($B$3,'BLBM-SBIO'!$A$14:$FZ$500,27,FALSE),"") -> 0.4421309771 | G20: =IFERROR(VLOOKUP($B$3,'FIABM-SBIO'!$A$14:$FV$500,25,FALSE),"") -> 0.523685404 | H20: =IFERROR(VLOOKUP($B$3,'WIABM-SBIO'!$A$14:$FX$500,25,FALSE),"") -> 0.3799999952
B21: SC.912.L.16.1 | C21: 3 | D21: 3 | E21: 3 | F21: =IFERROR(VLOOKUP($B$3,'BLBM-SBIO'!$A$14:$FZ$500,29,FALSE),"") -> 0.3562823234 | G21: =IFERROR(VLOOKUP($B$3,'FIABM-SBIO'!$A$14:$FV$500,27,FALSE),"") -> 0.4075874769 | H21: =IFERROR(VLOOKUP($B$3,'WIABM-SBIO'!$A$14:$FX$500,27,FALSE),"") -> 0.4666666587
B22: SC.912.L.14.7 | C22: 3 | D22: 3 | E22: 3 | F22: =IFERROR(VLOOKUP($B$3,'BLBM-SBIO'!$A$14:$FZ$500,13,FALSE),"") -> 0.2901474343 | G22: =IFERROR(VLOOKUP($B$3,'FIABM-SBIO'!$A$14:$FV$500,11,FALSE),"") -> 0.3936960552 | H22: =IFERROR(VLOOKUP($B$3,'WIABM-SBIO'!$A$14:$FX$500,11,FALSE),"") -> 0.4333333174
B23: SC.912.L.14.26 | C23: 3 | D23: 3 | E23: 3 | F23: =IFERROR(VLOOKUP($B$3,'BLBM-SBIO'!$A$14:$FZ$500,15,FALSE),"") -> 0.3540461883 | G23: =IFERROR(VLOOKUP($B$3,'FIABM-SBIO'!$A$14:$FV$500,13,FALSE),"") -> 0.309936415 | H23: =IFERROR(VLOOKUP($B$3,'WIABM-SBIO'!$A$14:$FX$500,13,FALSE),"") -> 0.5500398299
B24: SC.912.L.14.36 | C24: 3 | D24: 3 | E24: 3 | F24: =IFERROR(VLOOKUP($B$3,'BLBM-SBIO'!$A$14:$FZ$500,17,FALSE),"") -> 0.3308193401 | G24: =IFERROR(VLOOKUP($B$3,'FIABM-SBIO'!$A$14:$FV$500,15,FALSE),"") -> 0.5443179885 | H24: =IFERROR(VLOOKUP($B$3,'WIABM-SBIO'!$A$14:$FX$500,15,FALSE),"") -> 0.3666666746
B25: SC.912.L.14.52 | C25: 3 | D25: 3 | E25: 3 | F25: =IFERROR(VLOOKUP($B$3,'BLBM-SBIO'!$A$14:$FZ$500,19,FALSE),"") -> 0.3525452355 | G25: =IFERROR(VLOOKUP($B$3,'FIABM-SBIO'!$A$14:$FV$500,17,FALSE),"") -> 0.4632549431 | H25: =IFERROR(VLOOKUP($B$3,'WIABM-SBIO'!$A$14:$FX$500,17,FALSE),"") -> 0.4000000159
B26: SC.912.L.16.13 | C26: 3 | D26: 3 | E26: 3 | F26: =IFERROR(VLOOKUP($B$3,'BLBM-SBIO'!$A$14:$FZ$500,33,FALSE),"") -> 0.3657094635 | G26: =IFERROR(VLOOKUP($B$3,'FIABM-SBIO'!$A$14:$FV$500,31,FALSE),"") -> 0.4013681268 | H26: =IFERROR(VLOOKUP($B$3,'WIABM-SBIO'!$A$14:$FX$500,31,FALSE),"") -> 0.2999999921
B27: SC.912.L.17.5 | C27: 4 | D27: 4 | E27: 5 | F27: =IFERROR(VLOOKUP($B$3,'BLBM-SBIO'!$A$14:$FZ$500,37,FALSE),"") -> 0.3854694296 | G27: =IFERROR(VLOOKUP($B$3,'FIABM-SBIO'!$A$14:$FV$500,35,FALSE),"") -> 0.3450638425 | H27: =IFERROR(VLOOKUP($B$3,'WIABM-SBIO'!$A$14:$FX$500,35,FALSE),"") -> 0.5100238812
B28: SC.912.L.17.9 | C28: 3 | D28: 3 | E28: 3 | F28: =IFERROR(VLOOKUP($B$3,'BLBM-SBIO'!$A$14:$FZ$500,39,FALSE),"") -> 0.4160278696 | G28: =IFERROR(VLOOKUP($B$3,'FIABM-SBIO'!$A$14:$FV$500,37,FALSE),"") -> 0.4542292906 | H28: =IFERROR(VLOOKUP($B$3,'WIABM-SBIO'!$A$14:$FX$500,37,FALSE),"") -> 0.5666666826
B29: SC.912.L.17.20 | C29: 3 | D29: 4 | E29: 3 | F29: =IFERROR(VLOOKUP($B$3,'BLBM-SBIO'!$A$14:$FZ$500,41,FALSE),"") -> 0.3829404834 | G29: =IFERROR(VLOOKUP($B$3,'FIABM-SBIO'!$A$14:$FV$500,39,FALSE),"") -> 0.4568307097 | H29: =IFERROR(VLOOKUP($B$3,'WIABM-SBIO'!$A$14:$FX$500,39,FALSE),"") -> 0.4000000159
A30: All Benchmarks (BM) | C30: 70 | D30: =SUM(D9:D29) -> 70 | E30: =SUM(E9:E29) -> 70 | F30: =IFERROR(VLOOKUP($B$3,'BLCC-SBIO'!$A$14:$FZ$500,5,FALSE),"") -> 0.3355073934 | G30: =IFERROR(VLOOKUP($B$3,'FIACC-SBIO'!$A$14:$FZ$500,5,FALSE),"") -> 0.3879853149 | H30: =IFERROR(VLOOKUP($B$3,'WIACC-SBIO'!$A$14:$FZ$500,5,FALSE),"") -> 0.408574847
A31: Q1 BM Shaded in Blue | C31: =SUM(C10:C11,C14,C16,C27:C29) -> 22 | D31: =SUM(D10:D11,D14,D16,D27:D29) -> 24 | E31: =SUM(E27:E29,E16,E14,E10:E11) -> 23 | F31: =IFERROR(VLOOKUP($B$3,'BLBM-SBIO'!$A$14:$FZ$500,50,FALSE),"") -> 0.3169141869 | G31: =IFERROR(VLOOKUP($B$3,'FIACC-SBIO'!$A$14:$FX$500,29,FALSE),"") -> 0.3976926914 | H31: =IFERROR(VLOOKUP($B$3,'WIABM-SBIO'!$A$14:$FZ$500,47,FALSE),"") -> 0.3069558354
A32: Q2 BM Shaded in Green | C32: =SUM(C13:C15,C21:C22,C24) -> 20 | D32: =SUM(D13:D15,D21:D22,D24) -> 20 | E32: =SUM(E13:E15,E21:E22,E24) -> 20 | F32: =IFERROR(VLOOKUP($B$3,'BLBM-SBIO'!$A$14:$FZ$500,52,FALSE),"") -> 0.09229669402 | G32: =IFERROR(VLOOKUP($B$3,'FIABM-SBIO'!$A$14:$FX$500,47,FALSE),"") -> 0.1114865969 | H32: =IFERROR(VLOOKUP($B$3,'WIACC-SBIO'!$A$14:$FZ$500,29,FALSE),"") -> 0.3800119406
A48: Reporting Categories | C48: Number of Items | F48: Average % Correct | I48: % of Students at or above Proficiency Level (70%)
C49: BL | D49: Fall IA | E49: Winter IA | F49: BL | G49: Fall IA | H49: Winter IA | I49: BL | J49: Fall IA | K49: Winter IA
A50: 1 | B50: Molecular and Cellular Biology | C50: 20 | D50: =SUM(D10:D16) -> 25 | E50: =SUM(E10:E16) -> 24 | F50: =IFERROR(VLOOKUP($B$3,'BLCC-SBIO'!$A$14:$FZ$500,17,FALSE),"") -> 0.3161550107 | G50: =IFERROR(VLOOKUP($B$3,'FIACC-SBIO'!$A$14:$FZ$500,11,FALSE),"") -> 0.3660532177 | H50: =IFERROR(VLOOKUP($B$3,'WIACC-SBIO'!$A$14:$BZ$500,11,FALSE),"") -> 0.3770883185
A51: 2 | B51: Classification, Heredity, and Evolution | C51: 25 | D51: =SUM(D17:D21) -> 19 | E51: =SUM(E17:E20) -> 17 | F51: =IFERROR(VLOOKUP($B$3,'BLCC-SBIO'!$A$14:$FZ$500,11,FALSE),"") -> 0.3242547934 | G51: =IFERROR(VLOOKUP($B$3,'FIACC-SBIO'!$A$14:$FZ$500,17,FALSE),"") -> 0.3741047703 | H51: =IFERROR(VLOOKUP($B$3,'WIACC-SBIO'!$A$14:$BZ$500,17,FALSE),"") -> 0.4
A52: 3 | B52: Organisms, Populations, and Ecosystems | C52: 22 | D52: =SUM(D22:D29) -> 26 | E52: =SUM(E21:E27) -> 23 | F52: =IFERROR(VLOOKUP($B$3,'BLCC-SBIO'!$A$14:$FZ$500,23,FALSE),"") -> 0.370331027 | G52: =IFERROR(VLOOKUP($B$3,'FIACC-SBIO'!$A$14:$FZ$500,23,FALSE),"") -> 0.4198140145 | H52: =IFERROR(VLOOKUP($B$3,'WIACC-SBIO'!$A$14:$BZ$500,23,FALSE),"") -> 0.444235371

Sheet Biology NGSSS
A1: Click here to return to the school and subject selection sheet
A2: Next Generation Sunshine State Standards Biology EOC Assessed Benchmarks
A3: Reporting Categories | B3: Benchmarks | C3: Description
B4: SC.912.N.1.1 | C4: SC.912.N.1.1 Define a problem based on a specific body of knowledge, for example: biology, chemistry, physics, and earth/space science, and do the following: 1. pose questions about the natural world; 2. conduct systematic observations; 3. examine books and other sources of information to see what is already known; 4. review what is known in light of empirical evidence; 5. plan investigations; 6. use tools to gather, analyze, and interpret data (this includes the use of measurement in metric and other systems, and also the generation and interpretation of graphical representations of data, including data tables and graphs); 7. pose answers, explanations, or descriptions of events; 8. generate explanations that explicate or describe natural phenomena (inferences); 9. use appropriate evidence and reasoning to justify these explanations to others; 10. communicate results of scientific investigations; and 11. evaluate the merits of the explanations produced by others.
B5: SC.912.N.1.4 | C5: SC.912.N.1.4 Identify sources of information and assess their reliability according to the strict standards of scientific investigation.
B6: SC.912.N.1.6 | C6: SC.912.N.1.6 Describe how scientific inferences are drawn from scientific observations and provide examples from the content being studied.
B7: SC.912.L.14.4 | C7: SC.912.L.14.4 Compare and contrast structure and function of various types of microscopes.
B8: LA.910.2.2.3 | C8: LA.910.2.2.3 The student will organize information to show understanding or relationships among facts, ideas, and events (e.g., representing key points within text through charting, mapping, paraphrasing, summarizing, comparing, contrasting, or outlining).
B9: LA.910.4.2.2 | C9: LA.910.4.2.2 The student will record information and ideas from primary and/or secondary sources accurately and coherently, noting the validity and reliability of these sources and attributing sources of information.
B10: MA.912.S.1.2 | C10: MA.912.S.1.2 Determine appropriate and consistent standards of measurement for the data to be collected in a survey or experiment.
B11: MA.912.S.3.2 | C11: MA.912.S.3.2 Collect, organize, and analyze data sets, determine the best format for the data, and present visual summaries from the following: • bar graphs; • line graphs; • stem and leaf plots; • circle graphs; • histograms; • box and whisker plots; • scatter plots; and • cumulative frequency (ogive) graphs.
A12: Molecular and Cellular Biology | B12: SC.912.L.14.1 | C12: SC.912.L.14.1 Describe the scientific theory of cells (cell theory) and relate the history of its discovery to the process of science.
A13: Molecular and Cellular Biology | B13: SC.912.N.1.3 | C13: SC.912.N.1.3 Recognize that the strength or usefulness of a scientific claim is evaluated through scientific argumentation, which depends on critical and logical thinking, and the active consideration of alternative scientific explanations to explain the data presented.
A14: Molecular and Cellular Biology | B14: SC.912.N.2.1 | C14: SC.912.N.2.1 Identify what is science, what clearly is not science, and what superficially resembles science (but fails to meet the criteria for science).
A15: Molecular and Cellular Biology | B15: SC.912.N.3.1 | C15: SC.912.N.3.1 Explain that a scientific theory is the culmination of many scientific investigations drawing together all the current evidence concerning a substantial range of phenomena; thus, a scientific theory represents the most powerful explanation scientists have to offer.
A16: Molecular and Cellular Biology | B16: SC.912.N.3.4 | C16: SC.912.N.3.4 Recognize that theories do not become laws, nor do laws become theories; theories are well-supported explanations and laws are well-supported descriptions.
A17: Molecular and Cellular Biology | B17: SC.912.L.14.3 | C17: SC.912.L.14.3 Compare and contrast the general structures of plant and animal cells. Compare and contrast the general structures of prokaryotic and eukaryotic cells.
A18: Molecular and Cellular Biology | B18: SC.912.L.14.2 | C18: SC.912.L.14.2 Relate structure to function for the components of plant and animal cells. Explain the role of cell membranes as a highly selective barrier (passive and active transport).
A19: Organisms, Populations, and Ecosystems | B19: SC.912.L.14.7 | C19: SC.912.L.14.7 Relate the structure of each of the major plant organs and tissues to physiological processes.
A20: Organisms, Populations, and Ecosystems | B20: SC.912.L.14.26 | C20: SC.912.L.14.26 Identify the major parts of the brain on diagrams or models.
A21: Organisms, Populations, and Ecosystems | B21: SC.912.L.14.36 | C21: SC.912.L.14.36 Describe the factors affecting blood flow through the cardiovascular system.
A22: Organisms, Populations, and Ecosystems | B22: SC.912.L.14.52 | C22: SC.912.L.14.52 Explain the basic functions of the human immune system, including specific and nonspecific immune response, vaccines, and antibiotics.
A23: Organisms, Populations, and Ecosystems | B23: SC.912.L.14.6 | C23: SC.912.L.14.6 Explain the significance of genetic factors, environmental factors, and pathogenic agents to health from the perspectives of both individual and public health.
A24: Organisms, Populations, and Ecosystems | B24: HE.912.C.1.4 | C24: HE.912.C.1.4 Analyze how heredity and family history can impact personal health.
A25: Organisms, Populations, and Ecosystems | B25: HE.912.C.1.8 | C25: HE.912.C.1.8 Analyze strategies for prevention, detection, and treatment of communicable and chronic diseases.
A26: Classification, Heredity, and Evolution | B26: SC.912.L.15.1 | C26: SC.912.L.15.1 Explain how the scientific theory of evolution is supported by the fossil record, comparative anatomy, comparative embryology, biogeography, molecular biology, and observed evolutionary change.
A27: Classification, Heredity, and Evolution | B27: SC.912.L.15.10 | C27: SC.912.L.15.10 Identify basic trends in hominid evolution from early ancestors six million years ago to modern humans, including brain size, jaw size, language, and manufacture of tools.
A28: Classification, Heredity, and Evolution | B28: SC.912.N.1.3 | C28: SC.912.N.1.3 Recognize that the strength or usefulness of a scientific claim is evaluated through scientific argumentation, which depends on critical and logical thinking, and the active consideration of alternative scientific explanations to explain the data presented.
A29: Classification, Heredity, and Evolution | B29: SC.912.N.1.4 | C29: SC.912.N.1.4 Identify sources of information and assess their reliability according to the strict standards of scientific investigation.
A30: Classification, Heredity, and Evolution | B30: SC.912.N.1.6 | C30: SC.912.N.1.6 Describe how scientific inferences are drawn from scientific observations and provide examples from the content being studied.
A31: Classification, Heredity, and Evolution | B31: SC.912.N.2.1 | C31: SC.912.N.2.1 Identify what is science, what clearly is not science, and what superficially resembles science (but fails to meet the criteria for science).
A32: Classification, Heredity, and Evolution | B32: SC.912.N.3.1 | C32: SC.912.N.3.1 Explain that a scientific theory is the culmination of many scientific investigations drawing together all the current evidence concerning a substantial range of phenomena; thus, a scientific theory represents the most powerful explanation scientists have to offer.
A33: Classification, Heredity, and Evolution | B33: SC.912.N.3.4 | C33: SC.912.N.3.4 Recognize that theories do not become laws, nor do laws become theories; theories are well-supported explanations and laws are well-supported descriptions.
A34: Classification, Heredity, and Evolution | B34: SC.912.L.15.6 | C34: SC.912.L.15.6 Discuss distinguishing characteristics of the domains and kingdoms of living organisms.
A35: Classification, Heredity, and Evolution | B35: SC.912.L.15.4 | C35: SC.912.L.15.4 Describe how and why organisms are hierarchically classified and based on evolutionary relationships.
A36: Classification, Heredity, and Evolution | B36: SC.912.L.15.5 | C36: SC.912.L.15.5 Explain the reasons for changes in how organisms are classified.
A37: Classification, Heredity, and Evolution | B37: SC.912.N.1.3 | C37: SC.912.N.1.3 Recognize that the strength or usefulness of a scientific claim is evaluated through scientific argumentation, which depends on critical and logical thinking, and the active consideration of alternative scientific explanations to explain the data presented.
A38: Classification, Heredity, and Evolution | B38: SC.912.N.1.6 | C38: SC.912.N.1.6 Describe how scientific inferences are drawn from scientific observations and provide examples from the content being studied.
A39: Classification, Heredity, and Evolution | B39: SC.912.L.15.8 | C39: SC.912.L.15.8 Describe the scientific explanations of the origin of life on Earth.
A40: Classification, Heredity, and Evolution | B40: SC.912.N.1.3 | C40: SC.912.N.1.3 Recognize that the strength or usefulness of a scientific claim is evaluated through scientific argumentation, which depends on critical and logical thinking, and the active consideration of alternative scientific explanations to explain the data presented.
A41: Classification, Heredity, and Evolution | B41: SC.912.N.1.4 | C41: SC.912.N.1.4 Identify sources of information and assess their reliability according to the strict standards of scientific investigation.
A42: Classification, Heredity, and Evolution | B42: SC.912.N.2.1 | C42: SC.912.N.2.1 Identify what is science, what clearly is not science, and what superficially resembles science (but fails to meet the criteria for science).
A43: Classification, Heredity, and Evolution | B43: SC.912.L.15.13 | C43: SC.912.L.15.13 Describe the conditions required for natural selection, including: overproduction of offspring, inherited variation, and the struggle to survive, which result in differential reproductive success.
A44: Classification, Heredity, and Evolution | B44: SC.912.L.15.14 | C44: SC.912.L.15.14 Discuss mechanisms of evolutionary change other than natural selection such as genetic drift and gene flow.
A45: Classification, Heredity, and Evolution | B45: SC.912.L.15.15 | C45: SC.912.L.15.15 Describe how mutation and genetic recombination increase genetic variation.
A46: Classification, Heredity, and Evolution | B46: SC.912.N.1.3 | C46: SC.912.N.1.3 Recognize that the strength or usefulness of a scientific claim is evaluated through scientific argumentation, which depends on critical and logical thinking, and the active consideration of alternative scientific explanations to explain the data presented.
A47: Classification, Heredity, and Evolution | B47: SC.912.L.16.1 | C47: SC.912.L.16.1 Use Mendel’s laws of segregation and independent assortment to analyze patterns of inheritance.
A48: Classification, Heredity, and Evolution | B48: SC.912.L.16.2 | C48: SC.912.L.16.2 Discuss observed inheritance patterns caused by various modes of inheritance, including dominant, recessive, codominant, sex-linked, polygenic, and multiple alleles.
A49: Molecular and Cellular Biology | B49: SC.912.L.16.3 | C49: SC.912.L.16.3 Describe the basic process of DNA replication and how it relates to the transmission and conservation of the genetic information.
A50: Molecular and Cellular Biology | B50: SC.912.L.16.4 | C50: SC.912.L.16.4 Explain how mutations in the DNA sequence may or may not result in phenotypic change. Explain how mutations in gametes may result in phenotypic changes in offspring.
A51: Molecular and Cellular Biology | B51: SC.912.L.16.5 | C51: SC.912.L.16.5 Explain the basic processes of transcription and translation, and how they result in the expression of genes.
A52: Molecular and Cellular Biology | B52: SC.912.L.16.9 | C52: SC.912.L.16.9 Explain how and why the genetic code is universal and is common to almost all organisms.
A53: Organisms, Populations, and Ecosystems | B53: SC.912.L.16.10 | C53: SC.912.L.16.10 Evaluate the impact of biotechnology on the individual, society and the environment, including medical and ethical issues.
A54: Organisms, Populations, and Ecosystems | B54: SC.912.L.16.13 | C54: SC.912.L.16.13 Describe the basic anatomy and physiology of the human reproductive system. Describe the process of human development from fertilization to birth and major changes that occur in each trimester of pregnancy.
A55: Molecular and Cellular Biology | B55: SC.912.L.16.17 | C55: SC.912.L.16.17 Compare and contrast mitosis and meiosis and relate to the processes of sexual and asexual reproduction and their consequences for genetic variation.
A56: Molecular and Cellular Biology | B56: SC.912.L.16.8 | C56: SC.912.L.16.8 Explain the relationship between mutation, cell cycle, and uncontrolled cell growth potentially resulting in cancer.
A57: Molecular and Cellular Biology | B57: SC.912.L.16.14 | C57: SC.912.L.16.14 Describe the cell cycle, including the process of mitosis. Explain the role of mitosis in the formation of new cells and its importance in maintaining chromosome number during asexual reproduction.
A58: Molecular and Cellular Biology | B58: SC.912.L.16.16 | C58: SC.912.L.16.16 Describe the process of meiosis, including independent assortment and crossing over. Explain how reduction division results in the formation of haploid gametes or spores.
A59: Organisms, Populations, and Ecosystems | B59: SC.912.L.17.5 | C59: SC.912.L.17.5 Analyze how population size is determined by births, deaths, immigration, emigration, and limiting factors (biotic and abiotic) that determine carrying capacity.
A60: Organisms, Populations, and Ecosystems | B60: SC.912.L.17.2 | C60: SC.912.L.17.2 Explain the general distribution of life in aquatic systems as a function of chemistry, geography, light, depth, salinity, and temperature.
A61: Organisms, Populations, and Ecosystems | B61: SC.912.L.17.4 | C61: SC.912.L.17.4 Describe changes in ecosystems resulting from seasonal variations, climate change, and succession.
A62: Organisms, Populations, and Ecosystems | B62: SC.912.L.17.8 | C62: SC.912.L.17.8 Recognize the consequences of the losses of biodiversity due to catastrophic events, climate changes, human activity, and the introduction of invasive, non-native species.
A63: Organisms, Populations, and Ecosystems | B63: SC.912.N.1.4 | C63: SC.912.N.1.4 Identify sources of information and assess their reliability according to the strict standards of scientific investigation.
A64: Organisms, Populations, and Ecosystems | B64: SC.912.L.17.9 | C64: SC.912.L.17.9 Use a food web to identify and distinguish producers, consumers, and decomposers. Explain the pathway of energy transfer through trophic levels and the reduction of available energy at successive trophic levels.
A65: Organisms, Populations, and Ecosystems | B65: SC.912.E.7.1 | C65: SC.912.E.7.1 Analyze the movement of matter and energy through the different biogeochemical cycles, including water and carbon.
A66: Organisms, Populations, and Ecosystems | B66: SC.912.L.17.20 | C66: SC.912.L.17.20 Predict the impact of individuals on environmental systems and examine how human lifestyles affect sustainability.
A67: Organisms, Populations, and Ecosystems | B67: SC.912.L.17.11 | C67: SC.912.L.17.11 Evaluate the costs and benefits of renewable and nonrenewable resources, such as water, energy, fossil fuels, wildlife, and forests.
A68: Organisms, Populations, and Ecosystems | B68: SC.912.L.17.13 | C68: SC.912.L.17.13 Discuss the need for adequate monitoring of environmental parameters when making policy decisions.
A69: Organisms, Populations, and Ecosystems | B69: SC.912.N.1.3 | C69: SC.912.N.1.3 Recognize that the strength or usefulness of a scientific claim is evaluated through scientific argumentation, which depends on critical and logical thinking, and the active consideration of alternative scientific explanations to explain the data presented.
A70: Organisms, Populations, and Ecosystems | B70: HE.912.C.1.3 | C70: HE.912.C.1.3 Evaluate how environment and personal health are interrelated.
A71: Molecular and Cellular Biology | B71: SC.912.L.18.1 | C71: SC.912.L.18.1 Describe the basic molecular structures and primary functions of the four major categories of biological macromolecules.
A72: Molecular and Cellular Biology | B72: SC.912.L.18.11 | C72: SC.912.L.18.11 Explain the role of enzymes as catalysts that lower the activation energy of biochemical reactions. Identify factors, such as pH and temperature, and their effect on enzyme activity.
A73: Molecular and Cellular Biology | B73: SC.912.L.18.9 | C73: SC.912.L.18.9 Explain the interrelated nature of photosynthesis and cellular respiration.
A74: Molecular and Cellular Biology | B74: SC.912.L.18.7 | C74: SC.912.L.18.7 Identify the reactants, products, and basic functions of photosynthesis.
A75: Molecular and Cellular Biology | B75: SC.912.L.18.8 | C75: SC.912.L.18.8 Identify the reactants, products, and basic functions of aerobic and anaerobic cellular respiration.
A76: Molecular and Cellular Biology | B76: SC.912.L.18.10 | C76: SC.912.L.18.10 Connect the role of adenosine triphosphate (ATP) to energy transfers within a cell.
A77: Molecular and Cellular Biology | B77: SC.912.L.18.12 | C77: SC.912.L.18.12 Discuss the special properties of water that contribute to Earth’s suitability as an environment for life: cohesive behavior, ability to moderate temperature, expansion upon freezing, and versatility as a solvent.

Sheet BLG9BM-R (hidden)
B1: R-G09-BM-SCHL-ALL
B3: Description: | C3: Reading, G09, BM, School, All
B4: Student Selection: | C4: Multiple | 2011-2012 Fall, 2011-2012 School Year
B5: Group By Data: | C5: School
B6: Assessments: | C6: Baseline 2011 - Grade 9 Reading AUGUST 2011 Teacher __________ Period _____
B7: Scores: | C7: Overall Avg Raw Score, Overall Avg % Correct, Standards Avg Raw Score, Standards Avg % Correct
B8: Author Name: | C8: Yuwadee Wongbundhit
A9: =COLUMN() -> 1 | B9: =COLUMN() -> 2 | C9: =COLUMN() -> 3 | D9: =COLUMN() -> 4 | E9: =COLUMN() -> 5 | F9: =COLUMN() -> 6 | G9: =COLUMN() -> 7 | H9: =COLUMN() -> 8 | I9: =COLUMN() -> 9 | J9: =COLUMN() -> 10 | K9: =COLUMN() -> 11 | L9: =COLUMN() -> 12 | M9: =COLUMN() -> 13 | N9: =COLUMN() -> 14 | O9: =COLUMN() -> 15 | P9: =COLUMN() -> 16 | Q9: =COLUMN() -> 17 | R9: =COLUMN() -> 18 | S9: =COLUMN() -> 19 | T9: =COLUMN() -> 20 | U9: =COLUMN() -> 21 | V9: =COLUMN() -> 22 | W9: =COLUMN() -> 23 | X9: =COLUMN() -> 24 | Y9: =COLUMN() -> 25 | Z9: =COLUMN() -> 26 | AA9: =COLUMN() -> 27 | AB9: =COLUMN() -> 28 | AC9: =COLUMN() -> 29 | AD9: =COLUMN() -> 30 | AE9: =COLUMN() -> 31 | AF9: =COLUMN() -> 32 | AG9: =COLUMN() -> 33 | AH9: =COLUMN() -> 34 | AI9: =COLUMN() -> 35 | AJ9: =COLUMN() -> 36 | AK9: =COLUMN() -> 37 | AL9: =COLUMN() -> 38 | AM9: =COLUMN() -> 39 | AN9: =COLUMN() -> 40 | AO9: =COLUMN() -> 41 | AP9: =COLUMN() -> 42 | AQ9: =COLUMN() -> 43 | AR9: =COLUMN() -> 44 | AS9: =COLUMN() -> 45 | AT9: =COLUMN() -> 46 | AU9: =COLUMN() -> 47 | AV9: =COLUMN() -> 48 | AW9: =COLUMN() -> 49 | AX9: =COLUMN() -> 50 | AY9: =COLUMN() -> 51 | AZ9: =COLUMN() -> 52 | BA9: =COLUMN() -> 53 | BB9: =COLUMN() -> 54 | BC9: =COLUMN() -> 55
B10: Total Row(s): 92 Generated on Sep-17-2011 by Yuwadee Wongbundhit | C10: Baseline 2011 - Grade 9 Reading AUGUST 2011 Teacher __________ Period _____
C11: Total # students | D11: Overall (43 pts max) | F11: LA.910.1--LA.910.1.6: Benchmark LA.910.1.6.3 | H11: LA.910.1--LA.910.1.6: Benchmark LA.910.1.6.8 | J11: LA.910.1--LA.910.1.6: Benchmark LA.910.1.6.9 | L11: LA.910.1--LA.910.1.7: Benchmark LA.910.1.7.2 | N11: LA.910.1--LA.910.1.7: Benchmark LA.910.1.7.3 | P11: LA.910.1--LA.910.1.7: Benchmark LA.910.1.7.4 | R11: LA.910.1--LA.910.1.7: Benchmark LA.910.1.7.5 | T11: LA.910.1--LA.910.1.7: Benchmark LA.910.1.7.7 | V11: LA.910.2--LA.910.2.1: Benchmark LA.910.2.1.5 | X11: LA.910.2--LA.910.2.1: Benchmark LA.910.2.1.7 | Z11: LA.910.6--LA.910.6.1: Benchmark LA.910.6.1.1 | AB11: LA.910.6--LA.910.6.2: Benchmark LA.910.6.2.2
D12: Avg Raw Score | E12: Avg % Correct | F12: Avg Raw Score | G12: Avg % Correct | H12: Avg Raw Score | I12: Avg % Correct | J12: Avg Raw Score | K12: Avg % Correct | L12: Avg Raw Score | M12: Avg % Correct | N12: Avg Raw Score | O12: Avg % Correct | P12: Avg Raw Score | Q12: Avg % Correct | R12: Avg Raw Score | S12: Avg % Correct | T12: Avg Raw Score | U12: Avg % Correct | V12: Avg Raw Score | W12: Avg % Correct | X12: Avg Raw Score | Y12: Avg % Correct | Z12: Avg Raw Score | AA12: Avg % Correct | AB12: Avg Raw Score | AC12: Avg % Correct
B13: School Name
A14: =IFERROR(VALUE(LEFT(B14,4)),"") -> 91 | B14: 0091 Bob Graham Education Center | C14: 1 | D14: 14 | E14: 0.33 | F14: 2 | G14: 0.67 | H14: 1 | I14: 0.5 | J14: 2 | K14: 1 | L14: 1 | M14: 0.25 | N14: 2 | O14: 0.25 | P14: 0 | Q14: 0 | R14: 0 | S14: 0 | T14: 2 | U14: 0.33 | V14: 0 | W14: 0 | X14: 2 | Y14: 0.5 | Z14: 0 | AA14: 0 | AB14: 2 | AC14: 0.33
A15: =IFERROR(VALUE(LEFT(B15,4)),"") -> 451 | B15: 0451 Doolin /Ashe K-8 Academy | C15: 2 | D15: 17.5 | E15: 0.41 | F15: 1 | G15: 0.34 | H15: 0.5 | I15: 0.25 | J15: 1 | K15: 0.5 | L15: 1.5 | M15: 0.38 | N15: 4.5 | O15: 0.56 | P15: 0.5 | Q15: 0.25 | R15: 1 | S15: 0.5 | T15: 2.5 | U15: 0.41 | V15: 0 | W15: 0 | X15: 1.5 | Y15: 0.38 | Z15: 1.5 | AA15: 0.75 | AB15: 2 | AC15: 0.34
A16: 6040 | B16: 6040 Doctors Charter School Of Miami Shores | C16: 97 | D16: 28.39999962 | E16: 0.66 | F16: 2.200000048 | G16: 0.74 | H16: 0.8000000119 | I16: 0.4 | J16: 1.700000048 | K16: 0.86 | L16: 2.5 | M16: 0.61 | N16: 5.699999809 | O16: 0.72 | P16: 1.600000024 | Q16: 0.78 | R16: 1.399999976 | S16: 0.72 | T16: 4.400000095 | U16: 0.74 | V16: 0.6999999881 | W16: 0.35 | X16: 2.700000048 | Y16: 0.68 | Z16: 1.399999976 | AA16: 0.68 | AB16: 3.299999952 | AC16: 0.55
A17: 6121 | B17: 6121 Ruben Dario Middle School | C17: 1 | D17: 10 | E17: 0.23 | F17: 0 | G17: 0 | H17: 0 | I17: 0 | J17: 1 | K17: 0.5 | L17: 0 | M17: 0 | N17: 1 | O17: 0.13 | P17: 1 | Q17: 0.5 | R17: 1 | S17: 0.5 | T17: 3 | U17: 0.5 | V17: 0 | W17: 0 | X17: 1 | Y17: 0.25 | Z17: 0 | AA17: 0 | AB17: 2 | AC17: 0.33
A18: 6161 | B18: 6161 Lawton Chiles Middle | C18: 5 | D18: 16.79999924 | E18: 0.39 | F18: 1.399999976 | G18: 0.47 | H18: 1.200000048 | I18: 0.6 | J18: 1.799999952 | K18: 0.9 | L18: 2 | M18: 0.5 | N18: 3 | O18: 0.38 | P18: 0.400000006 | Q18: 0.2 | R18: 0.6000000238 | S18: 0.3 | T18: 1.600000024 | U18: 0.27 | V18: 0.6000000238 | W18: 0.3 | X18: 1.799999952 | Y18: 0.45 | Z18: 1 | AA18: 0.5 | AB18: 1.399999976 | AC18: 0.23
A19: 6231 | B19: 6231 Hialeah Middle School | C19: 1 | D19: 26 | E19: 0.6 | F19: 3 | G19: 1 | H19: 0 | I19: 0 | J19: 2 | K19: 1 | L19: 2 | M19: 0.5 | N19: 5 | O19: 0.63 | P19: 1 | Q19: 0.5 | R19: 1 | S19: 0.5 | T19: 5 | U19: 0.83 | V19: 0 | W19: 0 | X19: 3 | Y19: 0.75 | Z19: 0 | AA19: 0 | AB19: 4 | AC19: 0.67
A20: 6241 | B20: 6241 Highland Oaks Middle School | C20: 4 | D20: 12.30000019 | E20: 0.28 | F20: 1 | G20: 0.33 | H20: 0.5 | I20: 0.25 | J20: 0.8000000119 | K20: 0.38 | L20: 1.799999952 | M20: 0.44 | N20: 1.5 | O20: 0.19 | P20: 0.3000000119 | Q20: 0.13 | R20: 0.5 | S20: 0.25 | T20: 2.299999952 | U20: 0.38 | V20: 0.8000000119 | W20: 0.38 | X20: 1 | Y20: 0.25 | Z20: 0.5 | AA20: 0.25 | AB20: 1.5 | AC20: 0.25
A21: 6301 | B21: 6301 JFK Middle School | C21: 3 | D21: 18.70000076 | E21: 0.43 | F21: 1 | G21: 0.33 | H21: 0.6999999881 | I21: 0.33 | J21: 1.700000048 | K21: 0.83 | L21: 2.299999952 | M21: 0.58 | N21: 4 | O21: 0.5 | P21: 0.6999999881 | Q21: 0.33 | R21: 1.299999952 | S21: 0.67 | T21: 2.299999952 | U21: 0.39 | V21: 0.6999999881 | W21: 0.33 | X21: 2 | Y21: 0.5 | Z21: 0.6999999881 | AA21: 0.33 | AB21: 1.299999952 | AC21: 0.22
A22: 6351 | B22: 6351 Lake Stevens Middle School | C22: 1 | D22: 11 | E22: 0.26 | F22: 1 | G22: 0.33 | H22: 0 | I22: 0 | J22: 1 | K22: 0.5 | L22: 1 | M22: 0.25 | N22: 2 | O22: 0.25 | P22: 1 | Q22: 0.5 | R22: 1 | S22: 0.5 | T22: 2 | U22: 0.33 | V22: 1 | W22: 0.5 | X22: 1 | Y22: 0.25 | Z22: 0 | AA22: 0 | AB22: 0 | AC22: 0
A23: 6361 | B23: 6361 Jose de Diego Middle School | C23: 1 | D23: 11 | E23: 0.26 | F23: 0 | G23: 0 | H23: 1 | I23: 0.5 | J23: 1 | K23: 0.5 | L23: 0 | M23: 0 | N23: 2 | O23: 0.25 | P23: 0 | Q23: 0 | R23: 1 | S23: 0.5 | T23: 2 | U23: 0.33 | V23: 0 | W23: 0 | X23: 2 | Y23: 0.5 | Z23: 1 | AA23: 0.5 | AB23: 1 | AC23: 0.17
A24: 6431 | B24: 6431 Arthur & Polly Mays Middle Community School | C24: 91 | D24: 19.70000076 | E24: 0.46 | F24: 1.700000048 | G24: 0.56 | H24: 0.6000000238 | I24: 0.32 | J24: 1.299999952 | K24: 0.66 | L24: 1.700000048 | M24: 0.43 | N24: 4.099999905 | O24: 0.52 | P24: 1 | Q24: 0.48 | R24: 0.8000000119 | S24: 0.4 | T24: 2.900000095 | U24: 0.48 | V24: 0.6000000238 | W24: 0.3 | X24: 1.899999976 | Y24: 0.48 | Z24: 0.8000000119 | AA24: 0.42 | AB24: 2.200000048 | AC24: 0.36
A25: 6611 | B25: 6611 Country Club Middle School | C25: 1 | D25: 16 | E25: 0.37 | F25: 1 | G25: 0.33 | H25: 1 | I25: 0.5 | J25: 1 | K25: 0.5 | L25: 1 | M25: 0.25 | N25: 3 | O25: 0.38 | P25: 1 | Q25: 0.5 | R25: 1 | S25: 0.5 | T25: 2 | U25: 0.33 | V25: 2 | W25: 1 | X25: 2 | Y25: 0.5 | Z25: 0 | AA25: 0 | AB25: 1 | AC25: 0.17
A26: 6781 | B26: 6781 Richmond heights Middle School | C26: 1 | D26: 23 | E26: 0.53 | F26: 3 | G26: 1 | H26: 2 | I26: 1 | J26: 0 | K26: 0 | L26: 2 | M26: 0.5 | N26: 4 | O26: 0.5 | P26: 2 | Q26: 1 | R26: 1 | S26: 0.5 | T26: 3 | U26: 0.5 | V26: 0 | W26: 0 | X26: 3 | Y26: 0.75 | Z26: 1 | AA26: 0.5 | AB26: 2 | AC26: 0.33
A27: 6921 | B27: 6921 Lamar Louise Curry Middle School | C27: 2 | D27: 14.5 | E27: 0.34 | F27: 1.5 | G27: 0.5 | H27: 0 | I27: 0 | J27: 2 | K27: 1 | L27: 1 | M27: 0.25 | N27: 2.5 | O27: 0.31 | P27: 0.5 | Q27: 0.25 | R27: 1 | S27: 0.5 | T27: 3.5 | U27: 0.58 | V27: 0.5 | W27: 0.25 | X27: 1 | Y27: 0.25 | Z27: 0 | AA27: 0 | AB27: 1 | AC27: 0.17
A28: 7007 | B28: 7007 International Studies Charter High School | C28: 77 | D28: 26 | E28: 0.61 | F28: 2.099999905 | G28: 0.7 | H28: 0.8000000119 | I28: 0.4 | J28: 1.600000024 | K28: 0.78 | L28: 2.299999952 | M28: 0.57 | N28: 5.400000095 | O28: 0.68 | P28: 1.399999976 | Q28: 0.71 | R28: 1.399999976 | S28: 0.72 | T28: 3.900000095 | U28: 0.66 | V28: 0.8999999762 | W28: 0.45 | X28: 2.5 | Y28: 0.63 | Z28: 1.100000024 | AA28: 0.55 | AB28: 2.599999905 | AC28: 0.43
A29: 7009 | B29: 7009 Doral Performing Arts Academy | C29: 64 | D29: 27.39999962 | E29: 0.64 | F29: 2.299999952 | G29: 0.76 | H29: 0.8999999762 | I29: 0.43 | J29: 1.600000024 | K29: 0.8 | L29: 2.599999905 | M29: 0.66 | N29: 5.199999809 | O29: 0.65 | P29: 1.5 | Q29: 0.75 | R29: 1.399999976 | S29: 0.68 | T29: 3.799999952 | U29: 0.63 | V29: 1 | W29: 0.51 | X29: 2.900000095 | Y29: 0.72 | Z29: 1.200000048 | AA29: 0.6 | AB29: 3.099999905 | AC29: 0.52
A30: 7011 | B30: 7011 American Senior High School | C30: 507 | D30: 20.79999924 | E30: 0.48 | F30: 1.600000024 | G30: 0.54 | H30: 0.6999999881 | I30: 0.34 | J30: 1.399999976 | K30: 0.68 | L30: 1.799999952 | M30: 0.46 | N30: 4.199999809 | O30: 0.53 | P30: 1.100000024 | Q30: 0.53 | R30: 1 | S30: 0.51 | T30: 3.099999905 | U30: 0.51 | V30: 0.6999999881 | W30: 0.34 | X30: 2 | Y30: 0.5 | Z30: 0.8999999762 | AA30: 0.45 | AB30: 2.400000095 | AC30: 0.39
A31: 7014 | B31: 7014 Mater Performing Arts & Entertainment Academy | C31: 89 | D31: 29.29999924 | E31: 0.68 | F31: 2.299999952 | G31: 0.78 | H31: 0.8999999762 | I31: 0.46 | J31: 1.600000024 | K31: 0.81 | L31: 2.5 | M31: 0.63 | N31: 6.099999905 | O31: 0.76 | P31: 1.600000024 | Q31: 0.8 | R31: 1.399999976 | S31: 0.69 | T31: 4.300000191 | U31: 0.72 | V31: 1.100000024 | W31: 0.53 | X31: 2.799999952 | Y31: 0.7 | Z31: 1.399999976 | AA31: 0.7 | AB31: 3.299999952 | AC31: 0.54
A32: 7018 | B32: 7018 Mater Academy Lakes High School | C32: 284 | D32: 26.39999962 | E32: 0.61 | F32: 2.200000048 | G32: 0.73 | H32: 0.8000000119 | I32: 0.42 | J32: 1.5 | K32: 0.77 | L32: 2.200000048 | M32: 0.55 | N32: 5.199999809 | O32: 0.65 | P32: 1.399999976 | Q32: 0.69 | R32: 1.399999976 | S32: 0.69 | T32: 3.700000048 | U32: 0.62 | V32: 0.8999999762 | W32: 0.46 | X32: 2.799999952 | Y32: 0.7 | Z32: 1.200000048 | AA32: 0.61 | AB32: 3 | AC32: 0.5
A33: 7020 | B33: 7020 Doral Academy High School | C33: 413 | D33: 24.70000076 | E33: 0.58 | F33: 2.099999905 | G33: 0.69 | H33: 0.8000000119 | I33: 0.39 | J33: 1.5 | K33: 0.77 | L33: 2.299999952 | M33: 0.57 | N33: 4.900000095 | O33: 0.62 | P33: 1.299999952 | Q33: 0.65 | R33: 1.299999952 | S33: 0.63 | T33: 3.599999905 | U33: 0.6 | V33: 0.8000000119 | W33: 0.42 | X33: 2.400000095 | Y33: 0.61 | Z33: 1.100000024 | AA33: 0.53 | AB33: 2.599999905 | AC33: 0.44
A34: 7022 | B34: 7022 Academy Of Arts And Minds | C34: 109 | D34: 26.79999924 | E34: 0.62 | F34: 2.200000048 | G34: 0.72 | H34: 0.8000000119 | I34: 0.4 | J34: 1.600000024 | K34: 0.82 | L34: 2.400000095 | M34: 0.61 | N34: 5.300000191 | O34: 0.67 | P34: 1.399999976 | Q34: 0.69 | R34: 1.399999976 | S34: 0.69 | T34: 3.900000095 | U34: 0.65 | V34: 1 | W34: 0.5 | X34: 2.599999905 | Y34: 0.65 | Z34: 1.200000048 | AA34: 0.6 | AB34: 3 | AC34: 0.5
A35: 7024 | B35: 7024 Mater Academy HS of International Studies | C35: 51 | D35: 28 | E35: 0.65 | F35: 2.099999905 | G35: 0.71 | H35: 0.8000000119 | I35: 0.38 | J35: 1.600000024 | K35: 0.82 | L35: 2.299999952 | M35: 0.57 | N35: 5.699999809 | O35: 0.71 | P35: 1.600000024 | Q35: 0.82 | R35: 1.299999952 | S35: 0.66 | T35: 4.300000191 | U35: 0.72 | V35: 0.8999999762 | W35: 0.43 | X35: 2.400000095 | Y35: 0.6 | Z35: 1.399999976 | AA35: 0.72 | AB35: 3.5 | AC35: 0.59
A36: 7025 | B36: 7025 Mater Brickell Preparatory Academy High | C36: 2 | D36: 34 | E36: 0.79 | F36: 2.5 | G36: 0.84 | H36: 1.5 | I36: 0.75 | J36: 1 | K36: 0.5 | L36: 3 | M36: 0.75 | N36: 6.5 | O36: 0.81 | P36: 2 | Q36: 1 | R36: 1.5 | S36: 0.75 | T36: 5.5 | U36: 0.91 | V36: 1 | W36: 0.5 | X36: 2.5 | Y36: 0.63 | Z36: 2 | AA36: 1 | AB36: 5 | AC36: 0.84
A37: 7029 | B37: 7029 Terra Environmental Institute | C37: 515 | D37: 30.60000038 | E37: 0.71 | F37: 2.5 | G37: 0.83 | H37: 1 | I37: 0.49 | J37: 1.700000048 | K37: 0.83 | L37: 2.700000048 | M37: 0.68 | N37: 6.199999809 | O37: 0.78 | P37: 1.600000024 | Q37: 0.79 | R37: 1.5 | S37: 0.77 | T37: 4.5 | U37: 0.74 | V37: 1 | W37: 0.5 | X37: 2.900000095 | Y37: 0.72 | Z37: 1.5 | AA37: 0.76 | AB37: 3.599999905 | AC37: 0.6
A38: 7033 | B38: 7033 Law Enforcement Officers Memorial High | C38: 138 | D38: 27.20000076 | E38: 0.63 | F38: 2.299999952 | G38: 0.77 | H38: 0.8000000119 | I38: 0.4 | J38: 1.600000024 | K38: 0.79 | L38: 2.400000095 | M38: 0.61 | N38: 5.599999905 | O38: 0.7 | P38: 1.399999976 | Q38: 0.7 | R38: 1.299999952 | S38: 0.64 | T38: 4.099999905 | U38: 0.69 | V38: 0.8999999762 | W38: 0.46 | X38: 2.400000095 | Y38: 0.6 | Z38: 1.299999952 | AA38: 0.66 | AB38: 3.099999905 | AC38: 0.51
A39: 7034 | B39: 7034 Somerset Academy Charter High South Campus | C39: 12 | D39: 23.5 | E39: 0.55 | F39: 2.299999952 | G39: 0.75 | H39: 0.8000000119 | I39: 0.38 | J39: 1.399999976 | K39: 0.71 | L39: 2.200000048 | M39: 0.54 | N39: 5 | O39: 0.63 | P39: 1.5 | Q39: 0.75 | R39: 1.5 | S39: 0.75 | T39: 2.799999952 | U39: 0.47 | V39: 0.6999999881 | W39: 0.33 | X39: 2.200000048 | Y39: 0.54 | Z39: 0.6000000238 | AA39: 0.29 | AB39: 2.700000048 | AC39: 0.45
A40: 7036 | B40: 7036 Lawrence Academy Senior High Charter School | C40: 15 | D40: 19.60000038 | E40: 0.46 | F40: 1.700000048 | G40: 0.58 | H40: 0.5 | I40: 0.27 | J40: 1.5 | K40: 0.73 | L40: 1.700000048 | M40: 0.43 | N40: 4.099999905 | O40: 0.51 | P40: 0.6999999881 | Q40: 0.37 | R40: 1 | S40: 0.5 | T40: 2.799999952 | U40: 0.47 | V40: 0.3000000119 | W40: 0.13 | X40: 2.099999905 | Y40: 0.52 | Z40: 0.5 | AA40: 0.27 | AB40: 2.700000048 | AC40: 0.44
A41: 7037 | B41: 7037 Mater Academy East Charter High School | C41: 94 | D41: 22.89999962 | E41: 0.53 | F41: 1.899999976 | G41: 0.62 | H41: 0.6999999881 | I41: 0.34 | J41: 1.5 | K41: 0.73 | L41: 1.899999976 | M41: 0.46 | N41: 4.599999905 | O41: 0.58 | P41: 1.200000048 | Q41: 0.61 | R41: 1.100000024 | S41: 0.56 | T41: 3.599999905 | U41: 0.6 | V41: 0.8000000119 | W41: 0.39 | X41: 1.899999976 | Y41: 0.49 | Z41: 1.100000024 | AA41: 0.57 | AB41: 2.599999905 | AC41: 0.43
A42: 7042 | B42: 7042 Somerset Academy Charter High School | C42: 120 | D42: 25 | E42: 0.58 | F42: 2.099999905 | G42: 0.71 | H42: 0.6999999881 | I42: 0.36 | J42: 1.399999976 | K42: 0.68 | L42: 2.099999905 | M42: 0.53 | N42: 5 | O42: 0.63 | P42: 1.299999952 | Q42: 0.67 | R42: 1.299999952 | S42: 0.64 | T42: 3.900000095 | U42: 0.65 | V42: 0.8000000119 | W42: 0.4 | X42: 2.299999952 | Y42: 0.59 | Z42: 1.200000048 | AA42: 0.58 | AB42: 2.799999952 | AC42: 0.47
A43: 7048 | B43: 7048 Alonzo Andtracy Mourning High (Biscanye Bay) | C43: 451 | D43: 25.20000076 | E43: 0.59 | F43: 2 | G43: 0.68 | H43: 0.8000000119 | I43: 0.38 | J43: 1.5 | K43: 0.75 | L43: 2.200000048 | M43: 0.55 | N43: 5 | O43: 0.63 | P43: 1.299999952 | Q43: 0.65 | R43: 1.299999952 | S43: 0.63 | T43: 3.700000048 | U43: 0.62 | V43: 0.8000000119 | W43: 0.42 | X43: 2.400000095 | Y43: 0.6 | Z43: 1.200000048 | AA43: 0.61 | AB43: 2.900000095 | AC43: 0.49
A44: 7049 | B44: 7049 Westland Hialeah Senior | C44: 506 | D44: 20.39999962 | E44: 0.48 | F44: 1.700000048 | G44: 0.56 | H44: 0.6999999881 | I44: 0.34 | J44: 1.299999952 | K44: 0.64 | L44: 1.799999952 | M44: 0.46 | N44: 4.099999905 | O44: 0.52 | P44: 1 | Q44: 0.51 | R44: 1 | S44: 0.52 | T44: 3 | U44: 0.5 | V44: 0.6999999881 | W44: 0.36 | X44: 2 | Y44: 0.5 | Z44: 0.8000000119 | AA44: 0.41 | AB44: 2.200000048 | AC44: 0.37
A45: 7051 | B45: 7051 G Holmes Braddock Senior High | C45: 789 | D45: 23.89999962 | E45: 0.56 | F45: 1.899999976 | G45: 0.65 | H45: 0.6999999881 | I45: 0.37 | J45: 1.399999976 | K45: 0.71 | L45: 2.099999905 | M45: 0.53 | N45: 4.800000191 | O45: 0.6 | P45: 1.200000048 | Q45: 0.62 | R45: 1.100000024 | S45: 0.56 | T45: 3.599999905 | U45: 0.59 | V45: 0.8000000119 | W45: 0.39 | X45: 2.299999952 | Y45: 0.57 | Z45: 1.100000024 | AA45: 0.55 | AB45: 2.799999952 | AC45: 0.47
A46: 7053 | B46: 7053 Pinecrest Preparatory Academy Charter HS | C46: 121 | D46: 24.29999924 | E46: 0.57 | F46: 2.200000048 | G46: 0.73 | H46: 0.6000000238 | I46: 0.31 | J46: 1.5 | K46: 0.76 | L46: 2.099999905 | M46: 0.52 | N46: 4.900000095 | O46: 0.61 | P46: 1.200000048 | Q46: 0.62 | R46: 1.399999976 | S46: 0.68 | T46: 3.5 | U46: 0.59 | V46: 0.8000000119 | W46: 0.38 | X46: 2.5 | Y46: 0.62 | Z46: 1 | AA46: 0.52 | AB46: 2.599999905 | AC46: 0.44
A47: 7054 | B47: 7054 Excelsior Charter High School | C47: 45 | D47: 17.39999962 | E47: 0.41 | F47: 1.399999976 | G47: 0.47 | H47: 0.6000000238 | I47: 0.31 | J47: 1.200000048 | K47: 0.6 | L47: 1.799999952 | M47: 0.46 | N47: 3.200000048 | O47: 0.4 | P47: 0.8000000119 | Q47: 0.39 | R47: 0.8999999762 | S47: 0.47 | T47: 2.5 | U47: 0.42 | V47: 0.6000000238 | W47: 0.31 | X47: 1.600000024 | Y47: 0.41 | Z47: 0.6999999881 | AA47: 0.36 | AB47: 2 | AC47: 0.33
A48: 7055 | B48: 7055 Young Women's Preparatory Academy | C48: 46 | D48: 31 | E48: 0.72 | F48: 2.5 | G48: 0.82 | H48: 1 | I48: 0.48 | J48: 1.399999976 | K48: 0.71 | L48: 2.900000095 | M48: 0.73 | N48: 6.300000191 | O48: 0.79 | P48: 1.700000048 | Q48: 0.86 | R48: 1.5 | S48: 0.75 | T48: 4.599999905 | U48: 0.77 | V48: 1 | W48: 0.51 | X48: 2.599999905 | Y48: 0.65 | Z48: 1.700000048 | AA48: 0.83 | AB48: 3.799999952 | AC48: 0.63
A49: 7056 | B49: 7056 Young Men's Preparatory High School | C49: 37 | D49: 21.20000076 | E49: 0.49 | F49: 1.700000048 | G49: 0.57 | H49: 0.6000000238 | I49: 0.28 | J49: 1.399999976 | K49: 0.72 | L49: 1.600000024 | M49: 0.41 | N49: 4.5 | O49: 0.56 | P49: 1.200000048 | Q49: 0.59 | R49: 1.200000048 | S49: 0.58 | T49: 3.299999952 | U49: 0.55 | V49: 0.6000000238 | W49: 0.32 | X49: 2.099999905 | Y49: 0.52 | Z49: 0.8999999762 | AA49: 0.47 | AB49: 2.099999905 | AC49: 0.35
A50: 7058 | B50: 7058 Miami Community Charter High | C50: 34 | D50: 19.20000076 | E50: 0.45 | F50: 1.600000024 | G50: 0.54 | H50: 0.6000000238 | I50: 0.29 | J50: 1.100000024 | K50: 0.53 | L50: 1.899999976 | M50: 0.48 | N50: 3.799999952 | O50: 0.47 | P50: 0.8999999762 | Q50: 0.46 | R50: 0.8999999762 | S50: 0.46 | T50: 2.799999952 | U50: 0.46 | V50: 0.8999999762 | W50: 0.43 | X50: 1.799999952 | Y50: 0.44 | Z50: 1 | AA50: 0.5 | AB50: 2.099999905 | AC50: 0.35
A51: 7059 | B51: 7059 Miami Arts Charter | C51: 82 | D51: 27.29999924 | E51: 0.64 | F51: 2.200000048 | G51: 0.72 | H51: 0.8000000119 | I51: 0.41 | J51: 1.5 | K51: 0.73 | L51: 2.599999905 | M51: 0.64 | N51: 5.5 | O51: 0.69 | P51: 1.5 | Q51: 0.76 | R51: 1.299999952 | S51: 0.66 | T51: 4.099999905 | U51: 0.68 | V51: 0.8999999762 | W51: 0.43 | X51: 2.5 | Y51: 0.63 | Z51: 1.299999952 | AA51: 0.65 | AB51: 3.200000048 | AC51: 0.53
A52: 7065 | B52: 7065 Mavericks High Of South Miami Dade County | C52: 48 | D52: 20.5 | E52: 0.48 | F52: 1.600000024 | G52: 0.54 | H52: 0.5 | I52: 0.24 | J52: 1.399999976 | K52: 0.69 | L52: 1.700000048 | M52: 0.43 | N52: 4.099999905 | O52: 0.52 | P52: 1.200000048 | Q52: 0.61 | R52: 0.8999999762 | S52: 0.46 | T52: 2.900000095 | U52: 0.48 | V52: 0.8000000119 | W52: 0.41 | X52: 2 | Y52: 0.51 | Z52: 1 | AA52: 0.48 | AB52: 2.400000095 | AC52: 0.4
A53: 7067 | B53: 7067 Florida High School Of Accelerated Learning- | C53: 22 | D53: 21.29999924 | E53: 0.5 | F53: 1.5 | G53: 0.48 | H53: 0.6000000238 | I53: 0.3 | J53: 1.700000048 | K53: 0.86 | L53: 1.700000048 | M53: 0.43 | N53: 4.300000191 | O53: 0.54 | P53: 1.200000048 | Q53: 0.61 | R53: 0.8999999762 | S53: 0.43 | T53: 3.099999905 | U53: 0.51 | V53: 0.8000000119 | W53: 0.39 | X53: 2 | Y53: 0.5 | Z53: 1 | AA53: 0.48 | AB53: 2.599999905 | AC53: 0.44
A54: 7068 | B54: 7068 North Gardens High School | C54: 10 | D54: 15.89999962 | E54: 0.37 | F54: 1.399999976 | G54: 0.47 | H54: 0.5 | I54: 0.25 | J54: 1.399999976 | K54: 0.7 | L54: 1.799999952 | M54: 0.45 | N54: 2.599999905 | O54: 0.33 | P54: 0.6000000238 | Q54: 0.3 | R54: 0.6000000238 | S54: 0.3 | T54: 2.299999952 | U54: 0.38 | V54: 0.8000000119 | W54: 0.4 | X54: 1 | Y54: 0.25 | Z54: 0.6999999881 | AA54: 0.35 | AB54: 2.200000048 | AC54: 0.37
A55: 7069 | B55: 7069 North Park High School | C55: 8 | D55: 16.10000038 | E55: 0.38 | F55: 1 | G55: 0.33 | H55: 0.5 | I55: 0.25 | J55: 0.8999999762 | K55: 0.44 | L55: 2 | M55: 0.5 | N55: 2.400000095 | O55: 0.3 | P55: 0.5 | Q55: 0.25 | R55: 0.6000000238 | S55: 0.31 | T55: 2.799999952 | U55: 0.46 | V55: 0.8999999762 | W55: 0.44 | X55: 1.799999952 | Y55: 0.44 | Z55: 1 | AA55: 0.5 | AB55: 1.899999976 | AC55: 0.31
A56: 7071 | B56: 7071 Coral Gables Senior High School | C56: 761 | D56: 23.70000076 | E56: 0.55 | F56: 1.899999976 | G56: 0.64 | H56: 0.8000000119 | I56: 0.39 | J56: 1.399999976 | K56: 0.71 | L56: 2.099999905 | M56: 0.53 | N56: 4.699999809 | O56: 0.6 | P56: 1.200000048 | Q56: 0.58 | R56: 1.299999952 | S56: 0.63 | T56: 3.5 | U56: 0.58 | V56: 0.8000000119 | W56: 0.4 | X56: 2.200000048 | Y56: 0.56 | Z56: 1 | AA56: 0.51 | AB56: 2.700000048 | AC56: 0.45
A57: 7081 | B57: 7081 DASH | C57: 121 | D57: 32 | E57: 0.74 | F57: 2.400000095 | G57: 0.82 | H57: 1.100000024 | I57: 0.53 | J57: 1.700000048 | K57: 0.86 | L57: 3 | M57: 0.74 | N57: 6.5 | O57: 0.81 | P57: 1.700000048 | Q57: 0.85 | R57: 1.5 | S57: 0.77 | T57: 4.800000191 | U57: 0.81 | V57: 0.8999999762 | W57: 0.46 | X57: 3 | Y57: 0.74 | Z57: 1.5 | AA57: 0.77 | AB57: 3.900000095 | AC57: 0.65
A58: 7101 | B58: 7101 Coral Reef Senior High School | C58: 877 | D58: 29.39999962 | E58: 0.68 | F58: 2.400000095 | G58: 0.79 | H58: 1 | I58: 0.5 | J58: 1.600000024 | K58: 0.82 | L58: 2.599999905 | M58: 0.65 | N58: 5.900000095 | O58: 0.74 | P58: 1.5 | Q58: 0.77 | R58: 1.5 | S58: 0.73 | T58: 4.300000191 | U58: 0.72 | V58: 1 | W58: 0.49 | X58: 2.700000048 | Y58: 0.69 | Z58: 1.399999976 | AA58: 0.7 | AB58: 3.5 | AC58: 0.58
A59: 7111 | B59: 7111 Hialeah Senior high | C59: 737 | D59: 21.29999924 | E59: 0.5 | F59: 1.700000048 | G59: 0.58 | H59: 0.6000000238 | I59: 0.32 | J59: 1.299999952 | K59: 0.67 | L59: 1.899999976 | M59: 0.47 | N59: 4.300000191 | O59: 0.54 | P59: 1.100000024 | Q59: 0.55 | R59: 1 | S59: 0.49 | T59: 3.099999905 | U59: 0.52 | V59: 0.6999999881 | W59: 0.36 | X59: 2 | Y59: 0.51 | Z59: 1 | AA59: 0.5 | AB59: 2.400000095 | AC59: 0.41
A60: 7121 | B60: 7121 John A. Ferguson Senior High School | C60: 1053 | D60: 24.89999962 | E60: 0.58 | F60: 2 | G60: 0.67 | H60: 0.8000000119 | I60: 0.4 | J60: 1.5 | K60: 0.75 | L60: 2.200000048 | M60: 0.56 | N60: 5 | O60: 0.63 | P60: 1.299999952 | Q60: 0.65 | R60: 1.299999952 | S60: 0.63 | T60: 3.700000048 | U60: 0.61 | V60: 0.8999999762 | W60: 0.43 | X60: 2.400000095 | Y60: 0.6 | Z60: 1.100000024 | AA60: 0.57 | AB60: 2.700000048 | AC60: 0.46
A61: 7131 | B61: 7131 Hialeah-Miami Lakes Senior High | C61: 481 | D61: 18.89999962 | E61: 0.44 | F61: 1.600000024 | G61: 0.52 | H61: 0.6999999881 | I61: 0.33 | J61: 1.299999952 | K61: 0.63 | L61: 1.600000024 | M61: 0.4 | N61: 3.799999952 | O61: 0.47 | P61: 1 | Q61: 0.48 | R61: 0.8999999762 | S61: 0.45 | T61: 2.900000095 | U61: 0.49 | V61: 0.6999999881 | W61: 0.33 | X61: 1.799999952 | Y61: 0.45 | Z61: 0.8000000119 | AA61: 0.4 | AB61: 2.099999905 | AC61: 0.34
A62: 7141 | B62: 7141 Dr. Michael M. Krop Senior High School | C62: 694 | D62: 24.79999924 | E62: 0.58 | F62: 1.899999976 | G62: 0.64 | H62: 0.8000000119 | I62: 0.39 | J62: 1.5 | K62: 0.75 | L62: 2.200000048 | M62: 0.54 | N62: 5 | O62: 0.62 | P62: 1.299999952 | Q62: 0.66 | R62: 1.200000048 | S62: 0.61 | T62: 3.700000048 | U62: 0.62 | V62: 0.8000000119 | W62: 0.39 | X62: 2.400000095 | Y62: 0.6 | Z62: 1.200000048 | AA62: 0.59 | AB62: 2.900000095 | AC62: 0.48
A63: 7151 | B63: 7151 Homestead Sr. High School | C63: 505 | D63: 18.79999924 | E63: 0.44 | F63: 1.399999976 | G63: 0.47 | H63: 0.5 | I63: 0.25 | J63: 1.299999952 | K63: 0.65 | L63: 1.5 | M63: 0.39 | N63: 3.700000048 | O63: 0.47 | P63: 1 | Q63: 0.51 | R63: 0.8000000119 | S63: 0.42 | T63: 2.900000095 | U63: 0.48 | V63: 0.6999999881 | W63: 0.33 | X63: 1.899999976 | Y63: 0.46 | Z63: 0.8999999762 | AA63: 0.44 | AB63: 2.200000048 | AC63: 0.37
A64: 7160 | B64: 7160 Mater Academy High | C64: 421 | D64: 25.10000038 | E64: 0.58 | F64: 2 | G64: 0.67 | H64: 0.8000000119 | I64: 0.39 | J64: 1.5 | K64: 0.74 | L64: 2.200000048 | M64: 0.55 | N64: 5 | O64: 0.63 | P64: 1.399999976 | Q64: 0.68 | R64: 1.299999952 | S64: 0.63 | T64: 3.700000048 | U64: 0.62 | V64: 0.8000000119 | W64: 0.39 | X64: 2.5 | Y64: 0.62 | Z64: 1.200000048 | AA64: 0.62 | AB64: 2.900000095 | AC64: 0.48
A65: 7161 | B65: 7161 MAST Academy | C65: 144 | D65: 33 | E65: 0.77 | F65: 2.5 | G65: 0.84 | H65: 1.100000024 | I65: 0.55 | J65: 1.700000048 | K65: 0.86 | L65: 3.099999905 | M65: 0.77 | N65: 6.5 | O65: 0.81 | P65: 1.700000048 | Q65: 0.83 | R65: 1.700000048 | S65: 0.85 | T65: 4.800000191 | U65: 0.81 | V65: 1.100000024 | W65: 0.54 | X65: 3.099999905 | Y65: 0.77 | Z65: 1.700000048 | AA65: 0.84 | AB65: 4 | AC65: 0.67
A66: 7171 | B66: 7171 M.A.S.T At Homestead | C66: 181 | D66: 26.89999962 | E66: 0.63 | F66: 2.200000048 | G66: 0.72 | H66: 0.8999999762 | I66: 0.43 | J66: 1.5 | K66: 0.76 | L66: 2.299999952 | M66: 0.58 | N66: 5.5 | O66: 0.69 | P66: 1.399999976 | Q66: 0.72 | R66: 1.299999952 | S66: 0.66 | T66: 4 | U66: 0.66 | V66: 0.8999999762 | W66: 0.44 | X66: 2.5 | Y66: 0.63 | Z66: 1.399999976 | AA66: 0.69 | AB66: 3.099999905 | AC66: 0.52
A67: 7191 | B67: 7191 Hialeah Gardens High School | C67: 674 | D67: 23.39999962 | E67: 0.54 | F67: 1.899999976 | G67: 0.63 | H67: 0.6999999881 | I67: 0.34 | J67: 1.399999976 | K67: 0.71 | L67: 2 | M67: 0.51 | N67: 4.800000191 | O67: 0.6 | P67: 1.200000048 | Q67: 0.61 | R67: 1.100000024 | S67: 0.57 | T67: 3.5 | U67: 0.59 | V67: 0.8000000119 | W67: 0.38 | X67: 2.099999905 | Y67: 0.54 | Z67: 1.100000024 | AA67: 0.55 | AB67: 2.700000048 | AC67: 0.45
A68: 7201 | B68: 7201 Miami Beach Senior high School | C68: 628 | D68: 22.60000038 | E68: 0.53 | F68: 1.799999952 | G68: 0.6 | H68: 0.6999999881 | I68: 0.36 | J68: 1.399999976 | K68: 0.71 | L68: 2 | M68: 0.51 | N68: 4.5 | O68: 0.56 | P68: 1.200000048 | Q68: 0.62 | R68: 1.100000024 | S68: 0.57 | T68: 3.299999952 | U68: 0.56 | V68: 0.8000000119 | W68: 0.41 | X68: 2.099999905 | Y68: 0.52 | Z68: 0.8999999762 | AA68: 0.46 | AB68: 2.599999905 | AC68: 0.43
A69: 7231 | B69: 7231 Miami Carol City Sr. High | C69: 403 | D69: 18.79999924 | E69: 0.44 | F69: 1.5 | G69: 0.49 | H69: 0.6000000238 | I69: 0.29 | J69: 1.399999976 | K69: 0.69 | L69: 1.600000024 | M69: 0.4 | N69: 3.799999952 | O69: 0.47 | P69: 0.8999999762 | Q69: 0.43 | R69: 0.8999999762 | S69: 0.43 | T69: 3 | U69: 0.49 | V69: 0.6000000238 | W69: 0.29 | X69: 1.700000048 | Y69: 0.44 | Z69: 0.8000000119 | AA69: 0.38 | AB69: 2.200000048 | AC69: 0.36
A70: 7241 | B70: 7241 Ronald W. Reagan/Doral Senior High | C70: 505 | D70: 25.39999962 | E70: 0.59 | F70: 2 | G70: 0.68 | H70: 0.8000000119 | I70: 0.42 | J70: 1.5 | K70: 0.75 | L70: 2.200000048 | M70: 0.55 | N70: 5.099999905 | O70: 0.64 | P70: 1.299999952 | Q70: 0.66 | R70: 1.299999952 | S70: 0.66 | T70: 3.700000048 | U70: 0.62 | V70: 0.8000000119 | W70: 0.42 | X70: 2.400000095 | Y70: 0.61 | Z70: 1.200000048 | AA70: 0.59 | AB70: 2.900000095 | AC70: 0.48
A71: 7251 | B71: 7251 Miami Central Senior High | C71: 463 | D71: 18.20000076 | E71: 0.42 | F71: 1.399999976 | G71: 0.47 | H71: 0.5 | I71: 0.27 | J71: 1.399999976 | K71: 0.7 | L71: 1.5 | M71: 0.38 | N71: 3.599999905 | O71: 0.45 | P71: 0.8999999762 | Q71: 0.47 | R71: 0.8000000119 | S71: 0.41 | T71: 2.799999952 | U71: 0.47 | V71: 0.6999999881 | W71: 0.34 | X71: 1.700000048 | Y71: 0.43 | Z71: 0.6999999881 | AA71: 0.35 | AB71: 2 | AC71: 0.33
A72: 7254 | B72: 7254 MacArthur North | C72: 1 | D72: 11 | E72: 0.26 | F72: 1 | G72: 0.33 | H72: 1 | I72: 0.5 | J72: 1 | K72: 0.5 | L72: 0 | M72: 0 | N72: 1 | O72: 0.13 | P72: 0 | Q72: 0 | R72: 1 | S72: 0.5 | T72: 2 | U72: 0.33 | V72: 0 | W72: 0 | X72: 1 | Y72: 0.25 | Z72: 1 | AA72: 0.5 | AB72: 2 | AC72: 0.33
A73: 7262 | B73: 7262 City of Hialeah Education Academy | C73: 60 | D73: 23.89999962 | E73: 0.55 | F73: 2.099999905 | G73: 0.71 | H73: 0.6000000238 | I73: 0.29 | J73: 1.5 | K73: 0.74 | L73: 2.099999905 | M73: 0.52 | N73: 5.099999905 | O73: 0.63 | P73: 1.399999976 | Q73: 0.71 | R73: 1.200000048 | S73: 0.62 | T73: 3.5 | U73: 0.59 | V73: 0.5 | W73: 0.27 | X73: 2.299999952 | Y73: 0.58 | Z73: 1.100000024 | AA73: 0.56 | AB73: 2.400000095 | AC73: 0.4
A74: 7265 | B74: 7265 Archimedean Upper Conservatory | C74: 57 | D74: 29.79999924 | E74: 0.69 | F74: 2.299999952 | G74: 0.78 | H74: 1 | I74: 0.52 | J74: 1.700000048 | K74: 0.83 | L74: 2.799999952 | M74: 0.7 | N74: 6 | O74: 0.75 | P74: 1.5 | Q74: 0.74 | R74: 1.5 | S74: 0.77 | T74: 4.199999809 | U74: 0.7 | V74: 1 | W74: 0.51 | X74: 2.900000095 | Y74: 0.74 | Z74: 1.299999952 | AA74: 0.63 | AB74: 3.5 | AC74: 0.59
A75: 7271 | B75: 7271 Miami Coral Park Senior High School | C75: 647 | D75: 22.20000076 | E75: 0.52 | F75: 1.799999952 | G75: 0.61 | H75: 0.6999999881 | I75: 0.37 | J75: 1.399999976 | K75: 0.7 | L75: 1.899999976 | M75: 0.47 | N75: 4.5 | O75: 0.57 | P75: 1.200000048 | Q75: 0.58 | R75: 1.100000024 | S75: 0.56 | T75: 3.299999952 | U75: 0.54 | V75: 0.6999999881 | W75: 0.37 | X75: 2.099999905 | Y75: 0.52 | Z75: 1 | AA75: 0.48 | AB75: 2.5 | AC75: 0.42
A76: 7301 | B76: 7301 Miami Edison Senior High | C76: 235 | D76: 19 | E76: 0.44 | F76: 1.399999976 | G76: 0.47 | H76: 0.6000000238 | I76: 0.28 | J76: 1.299999952 | K76: 0.63 | L76: 1.600000024 | M76: 0.41 | N76: 3.799999952 | O76: 0.48 | P76: 1 | Q76: 0.51 | R76: 0.8000000119 | S76: 0.42 | T76: 3 | U76: 0.5 | V76: 0.6000000238 | W76: 0.29 | X76: 1.799999952 | Y76: 0.45 | Z76: 0.8000000119 | AA76: 0.42 | AB76: 2.200000048 | AC76: 0.37
A77: 7341 | B77: 7341 Miami Jackson Senior High | C77: 309 | D77: 16.60000038 | E77: 0.39 | F77: 1.299999952 | G77: 0.43 | H77: 0.5 | I77: 0.25 | J77: 1.299999952 | K77: 0.64 | L77: 1.399999976 | M77: 0.34 | N77: 3.400000095 | O77: 0.43 | P77: 0.8000000119 | Q77: 0.42 | R77: 0.8000000119 | S77: 0.4 | T77: 2.5 | U77: 0.42 | V77: 0.6000000238 | W77: 0.28 | X77: 1.5 | Y77: 0.38 | Z77: 0.6999999881 | AA77: 0.36 | AB77: 1.799999952 | AC77: 0.3
A78: 7361 | B78: 7361 Miami Killian Senior High | C78: 571 | D78: 23.20000076 | E78: 0.54 | F78: 1.899999976 | G78: 0.62 | H78: 0.6999999881 | I78: 0.36 | J78: 1.5 | K78: 0.73 | L78: 2.099999905 | M78: 0.52 | N78: 4.599999905 | O78: 0.58 | P78: 1.200000048 | Q78: 0.6 | R78: 1.100000024 | S78: 0.56 | T78: 3.5 | U78: 0.58 | V78: 0.8000000119 | W78: 0.38 | X78: 2.200000048 | Y78: 0.54 | Z78: 1 | AA78: 0.52 | AB78: 2.599999905 | AC78: 0.44
A79: =IFERROR(VALUE(LEFT(B79,4)),"") -> 7371 | B79: 7371 Robert Morgan Education Center | C79: 660 | D79: 26.89999962 | E79: 0.63 | F79: 2.200000048 | G79: 0.73 | H79: 0.8000000119 | I79: 0.42 | J79: 1.600000024 | K79: 0.8 | L79: 2.299999952 | M79: 0.57 | N79: 5.400000095 | O79: 0.68 | P79: 1.399999976 | Q79: 0.69 | R79: 1.299999952 | S79: 0.66 | T79: 4 | U79: 0.67 | V79: 0.8000000119 | W79: 0.42 | X79: 2.599999905 | Y79: 0.66 | Z79: 1.299999952 | AA79: 0.65 | AB79: 3.099999905 | AC79: 0.52
A80: 7381 | B80: 7381 Miami Norland Senior High | C80: 383 | D80: 20 | E80: 0.47 | F80: 1.5 | G80: 0.5 | H80: 0.6000000238 | I80: 0.31 | J80: 1.399999976 | K80: 0.68 | L80: 1.600000024 | M80: 0.39 | N80: 4.099999905 | O80: 0.52 | P80: 1 | Q80: 0.52 | R80: 0.8999999762 | S80: 0.46 | T80: 3.099999905 | U80: 0.52 | V80: 0.6000000238 | W80: 0.3 | X80: 1.899999976 | Y80: 0.46 | Z80: 0.8999999762 | AA80: 0.44 | AB80: 2.400000095 | AC80: 0.4
A81: 7391 | B81: 7391 Miami Lakes Educational Center | C81: 339 | D81: 26.29999924 | E81: 0.61 | F81: 2.099999905 | G81: 0.71 | H81: 0.6999999881 | I81: 0.37 | J81: 1.5 | K81: 0.77 | L81: 2.299999952 | M81: 0.57 | N81: 5.400000095 | O81: 0.67 | P81: 1.399999976 | Q81: 0.68 | R81: 1.299999952 | S81: 0.63 | T81: 4 | U81: 0.67 | V81: 0.8999999762 | W81: 0.43 | X81: 2.5 | Y81: 0.62 | Z81: 1.299999952 | AA81: 0.63 | AB81: 3 | AC81: 0.51
A82: 7411 | B82: 7411 Miami Northwestern Senior | C82: 369 | D82: 19.39999962 | E82: 0.45 | F82: 1.399999976 | G82: 0.46 | H82: 0.5 | I82: 0.27 | J82: 1.399999976 | K82: 0.71 | L82: 1.600000024 | M82: 0.41 | N82: 4 | O82: 0.5 | P82: 1 | Q82: 0.48 | R82: 0.8999999762 | S82: 0.46 | T82: 3 | U82: 0.5 | V82: 0.6000000238 | W82: 0.3 | X82: 1.799999952 | Y82: 0.46 | Z82: 0.8000000119 | AA82: 0.41 | AB82: 2.299999952 | AC82: 0.38
A83: 7431 | B83: 7431 Miami Palmetto Sr High | C83: 648 | D83: 26.70000076 | E83: 0.62 | F83: 2.099999905 | G83: 0.71 | H83: 0.8000000119 | I83: 0.4 | J83: 1.600000024 | K83: 0.78 | L83: 2.5 | M83: 0.63 | N83: 5.300000191 | O83: 0.66 | P83: 1.399999976 | Q83: 0.7 | R83: 1.299999952 | S83: 0.67 | T83: 4 | U83: 0.66 | V83: 0.8999999762 | W83: 0.45 | X83: 2.5 | Y83: 0.62 | Z83: 1.200000048 | AA83: 0.6 | AB83: 3.200000048 | AC83: 0.53
A84: 7461 | B84: 7461 Miami Senior High | C84: 648 | D84: 17.60000038 | E84: 0.41 | F84: 1.5 | G84: 0.49 | H84: 0.6000000238 | I84: 0.28 | J84: 1.299999952 | K84: 0.63 | L84: 1.600000024 | M84: 0.41 | N84: 3.5 | O84: 0.44 | P84: 0.8999999762 | Q84: 0.44 | R84: 0.8999999762 | S84: 0.43 | T84: 2.700000048 | U84: 0.44 | V84: 0.6999999881 | W84: 0.33 | X84: 1.700000048 | Y84: 0.43 | Z84: 0.6000000238 | AA84: 0.3 | AB84: 1.799999952 | AC84: 0.3
A85: 7511 | B85: 7511 Miami Springs Senior High | C85: 503 | D85: 21.89999962 | E85: 0.51 | F85: 1.700000048 | G85: 0.58 | H85: 0.6999999881 | I85: 0.36 | J85: 1.299999952 | K85: 0.67 | L85: 1.899999976 | M85: 0.47 | N85: 4.400000095 | O85: 0.56 | P85: 1.100000024 | Q85: 0.55 | R85: 1.100000024 | S85: 0.53 | T85: 3.299999952 | U85: 0.55 | V85: 0.6999999881 | W85: 0.36 | X85: 2.099999905 | Y85: 0.51 | Z85: 1 | AA85: 0.51 | AB85: 2.5 | AC85: 0.42
A86: 7531 | B86: 7531 Miami SunSET Senior | C86: 487 | D86: 22.5 | E86: 0.52 | F86: 1.799999952 | G86: 0.59 | H86: 0.6999999881 | I86: 0.33 | J86: 1.399999976 | K86: 0.71 | L86: 2 | M86: 0.5 | N86: 4.5 | O86: 0.57 | P86: 1.100000024 | Q86: 0.56 | R86: 1.100000024 | S86: 0.55 | T86: 3.400000095 | U86: 0.56 | V86: 0.6999999881 | W86: 0.36 | X86: 2.299999952 | Y86: 0.56 | Z86: 1 | AA86: 0.51 | AB86: 2.5 | AC86: 0.42
A87: 7541 | B87: 7541 North Miami Beach Sr. | C87: 498 | D87: 21.70000076 | E87: 0.5 | F87: 1.700000048 | G87: 0.58 | H87: 0.6999999881 | I87: 0.34 | J87: 1.399999976 | K87: 0.72 | L87: 1.899999976 | M87: 0.48 | N87: 4.400000095 | O87: 0.55 | P87: 1.100000024 | Q87: 0.57 | R87: 1 | S87: 0.52 | T87: 3.299999952 | U87: 0.55 | V87: 0.6999999881 | W87: 0.35 | X87: 1.899999976 | Y87: 0.48 | Z87: 1 | AA87: 0.49 | AB87: 2.5 | AC87: 0.42
A88: 7571 | B88: 7571 International Studies Preparatory Academy | C88: 67 | D88: 29.79999924 | E88: 0.69 | F88: 2.200000048 | G88: 0.74 | H88: 1 | I88: 0.51 | J88: 1.5 | K88: 0.75 | L88: 2.599999905 | M88: 0.65 | N88: 6 | O88: 0.75 | P88: 1.600000024 | Q88: 0.78 | R88: 1.600000024 | S88: 0.78 | T88: 4.699999809 | U88: 0.78 | V88: 0.8999999762 | W88: 0.43 | X88: 2.799999952 | Y88: 0.71 | Z88: 1.5 | AA88: 0.77 | AB88: 3.400000095 | AC88: 0.57
A89: 7581 | B89: 7581 IPreparatory Academy | C89: 52 | D89: 30.5 | E89: 0.71 | F89: 2.5 | G89: 0.83 | H89: 0.8000000119 | I89: 0.39 | J89: 1.600000024 | K89: 0.81 | L89: 2.5 | M89: 0.63 | N89: 6.300000191 | O89: 0.79 | P89: 1.600000024 | Q89: 0.82 | R89: 1.600000024 | S89: 0.79 | T89: 4.800000191 | U89: 0.8 | V89: 0.8999999762 | W89: 0.46 | X89: 2.599999905 | Y89: 0.65 | Z89: 1.5 | AA89: 0.76 | AB89: 3.799999952 | AC89: 0.63
A90: 7591 | B90: 7591 North Miami Senior High School | C90: 660 | D90: 20.20000076 | E90: 0.47 | F90: 1.5 | G90: 0.51 | H90: 0.6999999881 | I90: 0.33 | J90: 1.299999952 | K90: 0.66 | L90: 1.700000048 | M90: 0.42 | N90: 4.099999905 | O90: 0.51 | P90: 1.100000024 | Q90: 0.53 | R90: 1 | S90: 0.48 | T90: 3.200000048 | U90: 0.53 | V90: 0.6000000238 | W90: 0.31 | X90: 1.899999976 | Y90: 0.47 | Z90: 0.8999999762 | AA90: 0.46 | AB90: 2.299999952 | AC90: 0.39
A91: 7601 | B91: 7601 Turner Tech | C91: 422 | D91: 25.39999962 | E91: 0.59 | F91: 1.899999976 | G91: 0.62 | H91: 0.8000000119 | I91: 0.38 | J91: 1.600000024 | K91: 0.79 | L91: 2 | M91: 0.51 | N91: 5.300000191 | O91: 0.66 | P91: 1.399999976 | Q91: 0.68 | R91: 1.200000048 | S91: 0.62 | T91: 4 | U91: 0.66 | V91: 0.8000000119 | W91: 0.38 | X91: 2.299999952 | Y91: 0.58 | Z91: 1.200000048 | AA91: 0.62 | AB91: 3 | AC91: 0.5
A92: 7631 | B92: 7631 MacArthur South Senior High | C92: 31 | D92: 11.60000038 | E92: 0.27 | F92: 0.8000000119 | G92: 0.27 | H92: 0.6999999881 | I92: 0.37 | J92: 0.8000000119 | K92: 0.42 | L92: 1.100000024 | M92: 0.27 | N92: 2 | O92: 0.25 | P92: 0.5 | Q92: 0.24 | R92: 0.5 | S92: 0.27 | T92: 1.700000048 | U92: 0.28 | V92: 0.400000006 | W92: 0.18 | X92: 0.8999999762 | Y92: 0.22 | Z92: 0.5 | AA92: 0.24 | AB92: 1.700000048 | AC92: 0.29
A93: 7701 | B93: 7701 South Dade Senior | C93: 795 | D93: 20.60000038 | E93: 0.48 | F93: 1.700000048 | G93: 0.56 | H93: 0.6000000238 | I93: 0.3 | J93: 1.299999952 | K93: 0.66 | L93: 1.799999952 | M93: 0.45 | N93: 4.199999809 | O93: 0.52 | P93: 1 | Q93: 0.51 | R93: 1 | S93: 0.49 | T93: 3.099999905 | U93: 0.51 | V93: 0.6999999881 | W93: 0.36 | X93: 2 | Y93: 0.5 | Z93: 0.8999999762 | AA93: 0.46 | AB93: 2.299999952 | AC93: 0.39
A94: 7721 | B94: 7721 South Miami Senior High | C94: 562 | D94: 20.79999924 | E94: 0.48 | F94: 1.600000024 | G94: 0.54 | H94: 0.6999999881 | I94: 0.35 | J94: 1.299999952 | K94: 0.66 | L94: 1.899999976 | M94: 0.47 | N94: 4.199999809 | O94: 0.52 | P94: 1 | Q94: 0.52 | R94: 1 | S94: 0.5 | T94: 3.099999905 | U94: 0.52 | V94: 0.6999999881 | W94: 0.35 | X94: 1.899999976 | Y94: 0.48 | Z94: 0.8999999762 | AA94: 0.45 | AB94: 2.400000095 | AC94: 0.4
A95: 7731 | B95: 7731 Miami Southridge Senior High | C95: 556 | D95: 19.5 | E95: 0.45 | F95: 1.600000024 | G95: 0.54 | H95: 0.5 | I95: 0.27 | J95: 1.399999976 | K95: 0.68 | L95: 1.700000048 | M95: 0.43 | N95: 3.900000095 | O95: 0.49 | P95: 1 | Q95: 0.48 | R95: 0.8999999762 | S95: 0.47 | T95: 2.900000095 | U95: 0.48 | V95: 0.6999999881 | W95: 0.35 | X95: 1.899999976 | Y95: 0.46 | Z95: 0.8999999762 | AA95: 0.44 | AB95: 2.200000048 | AC95: 0.36
A96: 7741 | B96: 7741 Southwest Miami High School | C96: 840 | D96: 22.79999924 | E96: 0.53 | F96: 1.899999976 | G96: 0.63 | H96: 0.6999999881 | I96: 0.34 | J96: 1.399999976 | K96: 0.71 | L96: 2 | M96: 0.51 | N96: 4.599999905 | O96: 0.58 | P96: 1.200000048 | Q96: 0.59 | R96: 1.100000024 | S96: 0.56 | T96: 3.400000095 | U96: 0.56 | V96: 0.8000000119 | W96: 0.39 | X96: 2.099999905 | Y96: 0.53 | Z96: 1 | AA96: 0.5 | AB96: 2.599999905 | AC96: 0.44
A97: 7751 | B97: 7751 Barbara Goleman High School | C97: 500 | D97: 22.89999962 | E97: 0.53 | F97: 1.899999976 | G97: 0.62 | H97: 0.6999999881 | I97: 0.33 | J97: 1.5 | K97: 0.74 | L97: 2 | M97: 0.49 | N97: 4.699999809 | O97: 0.58 | P97: 1.200000048 | Q97: 0.58 | R97: 1.100000024 | S97: 0.56 | T97: 3.5 | U97: 0.58 | V97: 0.8000000119 | W97: 0.39 | X97: 2.200000048 | Y97: 0.54 | Z97: 1 | AA97: 0.52 | AB97: 2.599999905 | AC97: 0.43
A98: 7781 | B98: 7781 Felix Varela Senior High School | C98: 786 | D98: 23.70000076 | E98: 0.55 | F98: 1.899999976 | G98: 0.65 | H98: 0.6999999881 | I98: 0.36 | J98: 1.399999976 | K98: 0.72 | L98: 2 | M98: 0.51 | N98: 4.800000191 | O98: 0.6 | P98: 1.200000048 | Q98: 0.61 | R98: 1.200000048 | S98: 0.6 | T98: 3.5 | U98: 0.59 | V98: 0.8000000119 | W98: 0.39 | X98: 2.299999952 | Y98: 0.57 | Z98: 1.100000024 | AA98: 0.53 | AB98: 2.700000048 | AC98: 0.45
A99: 7791 | B99: 7791 Booker T. Washington Senior High School | C99: 215 | D99: 19.5 | E99: 0.45 | F99: 1.399999976 | G99: 0.48 | H99: 0.5 | I99: 0.25 | J99: 1.299999952 | K99: 0.66 | L99: 1.799999952 | M99: 0.44 | N99: 4.099999905 | O99: 0.52 | P99: 1 | Q99: 0.51 | R99: 0.8999999762 | S99: 0.43 | T99: 3.099999905 | U99: 0.51 | V99: 0.6000000238 | W99: 0.3 | X99: 1.700000048 | Y99: 0.44 | Z99: 1 | AA99: 0.48 | AB99: 2.099999905 | AC99: 0.35
A100: 7801 | B100: 7801 George T. Baker | C100: 124 | D100: 23.5 | E100: 0.55 | F100: 1.899999976 | G100: 0.64 | H100: 0.6999999881 | I100: 0.34 | J100: 1.399999976 | K100: 0.72 | L100: 2.099999905 | M100: 0.52 | N100: 4.800000191 | O100: 0.6 | P100: 1.299999952 | Q100: 0.65 | R100: 1.200000048 | S100: 0.58 | T100: 3.400000095 | U100: 0.57 | V100: 0.8000000119 | W100: 0.38 | X100: 2.200000048 | Y100: 0.55 | Z100: 1.200000048 | AA100: 0.59 | AB100: 2.599999905 | AC100: 0.43
A101: 7901 | B101: 7901 New World School of Arts | C101: 118 | D101: 28.89999962 | E101: 0.67 | F101: 2.400000095 | G101: 0.81 | H101: 0.8000000119 | I101: 0.42 | J101: 1.600000024 | K101: 0.78 | L101: 2.700000048 | M101: 0.68 | N101: 5.800000191 | O101: 0.73 | P101: 1.5 | Q101: 0.77 | R101: 1.5 | S101: 0.77 | T101: 4.199999809 | U101: 0.7 | V101: 1 | W101: 0.51 | X101: 2.799999952 | Y101: 0.71 | Z101: 1.299999952 | AA101: 0.65 | AB101: 3.099999905 | AC101: 0.52
A102: 8101 | B102: 8101 Jan Mann Opp. Center | C102: 17 | D102: 14.89999962 | E102: 0.35 | F102: 1.200000048 | G102: 0.41 | H102: 0.5 | I102: 0.26 | J102: 1.200000048 | K102: 0.59 | L102: 1.5 | M102: 0.37 | N102: 2.5 | O102: 0.32 | P102: 0.6000000238 | Q102: 0.29 | R102: 0.8000000119 | S102: 0.41 | T102: 2.5 | U102: 0.41 | V102: 0.5 | W102: 0.26 | X102: 1.299999952 | Y102: 0.32 | Z102: 0.5 | AA102: 0.26 | AB102: 1.799999952 | AC102: 0.29
A103: 8121 | B103: 8121 C.O.P.E. Center North | C103: 17 | D103: 17.20000076 | E103: 0.4 | F103: 1.299999952 | G103: 0.43 | H103: 0.400000006 | I103: 0.18 | J103: 1.600000024 | K103: 0.79 | L103: 1.600000024 | M103: 0.4 | N103: 3.099999905 | O103: 0.39 | P103: 1.100000024 | Q103: 0.53 | R103: 0.5 | S103: 0.24 | T103: 2.700000048 | U103: 0.45 | V103: 0.8000000119 | W103: 0.41 | X103: 1.600000024 | Y103: 0.41 | Z103: 0.6000000238 | AA103: 0.29 | AB103: 2 | AC103: 0.33
A104: 8131 | B104: 8131 Dorothy M. Wallace COPE Center | C104: 8 | D104: 16.39999962 | E104: 0.38 | F104: 1.899999976 | G104: 0.63 | H104: 0.400000006 | I104: 0.19 | J104: 1 | K104: 0.5 | L104: 1.100000024 | M104: 0.28 | N104: 3.099999905 | O104: 0.39 | P104: 0.8000000119 | Q104: 0.38 | R104: 0.8000000119 | S104: 0.38 | T104: 2.799999952 | U104: 0.46 | V104: 0.6000000238 | W104: 0.31 | X104: 1.799999952 | Y104: 0.44 | Z104: 0.5 | AA104: 0.25 | AB104: 1.799999952 | AC104: 0.29
A105: 8141 | B105: 8141 Juvenile Justice Center | C105: 16 | D105: 10.39999962 | E105: 0.24 | F105: 0.6999999881 | G105: 0.23 | H105: 0.6000000238 | I105: 0.28 | J105: 0.6000000238 | K105: 0.31 | L105: 1.100000024 | M105: 0.28 | N105: 1.700000048 | O105: 0.21 | P105: 0.400000006 | Q105: 0.19 | R105: 0.6000000238 | S105: 0.28 | T105: 1.5 | U105: 0.25 | V105: 0.6000000238 | W105: 0.28 | X105: 1.100000024 | Y105: 0.27 | Z105: 0.3000000119 | AA105: 0.16 | AB105: 1.399999976 | AC105: 0.23
A107: 9999 | B107: 9999 DISTRICT | C107: 24968 | D107: 23.20000076 | E107: 0.54 | F107: 1.899999976 | G107: 0.62 | H107: 0.6999999881 | I107: 0.36 | J107: 1.399999976 | K107: 0.72 | L107: 2 | M107: 0.51 | N107: 4.699999809 | O107: 0.59 | P107: 1.200000048 | Q107: 0.6 | R107: 1.100000024 | S107: 0.57 | T107: 3.5 | U107: 0.58 | V107: 0.8000000119 | W107: 0.39 | X107: 2.200000048 | Y107: 0.55 | Z107: 1.100000024 | AA107: 0.53 | AB107: 2.599999905 | AC107: 0.44
A143: =IFERROR(VALUE(LEFT(B143,4)),"") -> 
A207: =IFERROR(VALUE(LEFT(B207,4)),"") -> 
A271: =IFERROR(VALUE(LEFT(B271,4)),"") -> 
A335: =IFERROR(VALUE(LEFT(B335,4)),"") -> 
A399: =IFERROR(VALUE(LEFT(B399,4)),"") -> 
A463: =IFERROR(VALUE(LEFT(B463,4)),"") -> 

Sheet BLG9CC-R (hidden)
B1: R-G09-RC-SCHL-ALL
B3: Description: | C3: Reading, G09, RC, School, All
B4: Student Selection: | C4: Multiple | 2011-2012 Fall, 2011-2012 School Year
B5: Group By Data: | C5: School
B6: Assessments: | C6: Baseline 2011 - Grade 9 Reading AUGUST 2011 Teacher __________ Period _____
B7: Scores: | C7: Overall Avg Raw Score, Overall Avg % Correct, Overall # in Performance Band, Overall % in Performance Band, Question Groups Avg Raw Score, Question Groups Avg % Correct, Question Groups # in Performance Band, Question Groups % in Performance Band
B8: Author Name: | C8: Yuwadee Wongbundhit
A9: =COLUMN() -> 1
B10: Total Row(s): 91 Generated on Sep-17-2011 by Yuwadee Wongbundhit | C10: Baseline 2011 - Grade 9 Reading AUGUST 2011 Teacher __________ Period _____
C11: Total # students | D11: Overall (43 pts max) | J11: Vocabulary (7 pts max) | P11: Reading Application (22 pts max) | V11: Literary Analysis - Fiction/Non-Fiction (6 pts max) | AB11: Informational Text/Research Process (8 pts max)
D12: Avg Raw Score | E12: Avg % Correct | F12: # in Performance Band | H12: % in Performance Band | J12: Avg Raw Score | K12: Avg % Correct | L12: # in Performance Band | N12: % in Performance Band | P12: Avg Raw Score | Q12: Avg % Correct | R12: # in Performance Band | T12: % in Performance Band | V12: Avg Raw Score | W12: Avg % Correct | X12: # in Performance Band | Z12: % in Performance Band | AB12: Avg Raw Score | AC12: Avg % Correct | AD12: # in Performance Band | AF12: % in Performance Band
B13: School Name | F13: Non Proficient | G13: Proficient | H13: Non Proficient | I13: Proficient | L13: Non Proficient | M13: Proficient | N13: Non Proficient | O13: Proficient | R13: Non Proficient | S13: Proficient | T13: Non Proficient | U13: Proficient | X13: Non Proficient | Y13: Proficient | Z13: Non Proficient | AA13: Proficient | AD13: Non Proficient | AE13: Proficient | AF13: Non Proficient | AG13: Proficient
A14: =IFERROR(VALUE(LEFT(B14,4)),"") -> 91 | B14: 0091 Bob Graham Education Center | C14: 1 | D14: 14 | E14: 0.33 | F14: 1 | H14: 100.00% | J14: 5 | K14: 0.71 | M14: 1 | O14: 100.00% | P14: 5 | Q14: 0.23 | R14: 1 | T14: 100.00% | V14: 2 | W14: 0.33 | X14: 1 | Z14: 100.00% | AB14: 2 | AC14: 0.25 | AD14: 1 | AF14: 100.00%
A15: =IFERROR(VALUE(LEFT(B15,4)),"") -> 451 | B15: 0451 Doolin /Ashe K-8 Academy | C15: 2 | D15: 17.5 | E15: 0.41 | F15: 2 | H15: 100.00% | J15: 2.5 | K15: 0.35 | L15: 2 | N15: 100.00% | P15: 10 | Q15: 0.46 | R15: 1 | S15: 1 | T15: 50.00% | U15: 50.00% | V15: 1.5 | W15: 0.25 | X15: 2 | Z15: 100.00% | AB15: 3.5 | AC15: 0.44 | AD15: 2 | AF15: 100.00%
A16: 6040 | B16: 6040 Doctors Charter School Of Miami Shores | C16: 97 | D16: 28.39999962 | E16: 0.66 | F16: 54 | G16: 43 | H16: 55.67% | I16: 44.33% | J16: 4.699999809 | K16: 0.68 | L16: 41 | M16: 56 | N16: 42.27% | O16: 57.73% | P16: 15.60000038 | Q16: 0.71 | R16: 43 | S16: 54 | T16: 44.33% | U16: 55.67% | V16: 3.400000095 | W16: 0.57 | X16: 82 | Y16: 15 | Z16: 84.54% | AA16: 15.46% | AB16: 4.699999809 | AC16: 0.59 | AD16: 64 | AE16: 33 | AF16: 65.98% | AG16: 34.02%
A17: 6121 | B17: 6121 Ruben Dario Middle School | C17: 1 | D17: 10 | E17: 0.23 | F17: 1 | H17: 100.00% | J17: 1 | K17: 0.14 | L17: 1 | N17: 100.00% | P17: 6 | Q17: 0.27 | R17: 1 | T17: 100.00% | V17: 1 | W17: 0.17 | X17: 1 | Z17: 100.00% | AB17: 2 | AC17: 0.25 | AD17: 1 | AF17: 100.00%
A18: 6161 | B18: 6161 Lawton Chiles Middle | C18: 5 | D18: 16.79999924 | E18: 0.39 | F18: 5 | H18: 100.00% | J18: 4.400000095 | K18: 0.63 | L18: 2 | M18: 3 | N18: 40.00% | O18: 60.00% | P18: 7.599999905 | Q18: 0.35 | R18: 5 | T18: 100.00% | V18: 2.400000095 | W18: 0.4 | X18: 5 | Z18: 100.00% | AB18: 2.400000095 | AC18: 0.3 | AD18: 5 | AF18: 100.00%
A19: 6231 | B19: 6231 Hialeah Middle School | C19: 1 | D19: 26 | E19: 0.6 | F19: 1 | H19: 100.00% | J19: 5 | K19: 0.71 | M19: 1 | O19: 100.00% | P19: 14 | Q19: 0.64 | R19: 1 | T19: 100.00% | V19: 3 | W19: 0.5 | X19: 1 | Z19: 100.00% | AB19: 4 | AC19: 0.5 | AD19: 1 | AF19: 100.00%
A20: 6241 | B20: 6241 Highland Oaks Middle School | C20: 4 | D20: 12.30000019 | E20: 0.28 | F20: 4 | H20: 100.00% | J20: 2.299999952 | K20: 0.32 | L20: 3 | M20: 1 | N20: 75.00% | O20: 25.00% | P20: 6.300000191 | Q20: 0.28 | R20: 4 | T20: 100.00% | V20: 1.799999952 | W20: 0.29 | X20: 4 | Z20: 100.00% | AB20: 2 | AC20: 0.25 | AD20: 3 | AE20: 1 | AF20: 75.00% | AG20: 25.00%
A21: 6301 | B21: 6301 JFK Middle School | C21: 3 | D21: 18.70000076 | E21: 0.43 | F21: 3 | H21: 100.00% | J21: 3.299999952 | K21: 0.48 | L21: 3 | N21: 100.00% | P21: 10.69999981 | Q21: 0.49 | R21: 3 | T21: 100.00% | V21: 2.700000048 | W21: 0.44 | X21: 3 | Z21: 100.00% | AB21: 2 | AC21: 0.25 | AD21: 3 | AF21: 100.00%
A22: 6351 | B22: 6351 Lake Stevens Middle School | C22: 1 | D22: 11 | E22: 0.26 | F22: 1 | H22: 100.00% | J22: 2 | K22: 0.29 | L22: 1 | N22: 100.00% | P22: 7 | Q22: 0.32 | R22: 1 | T22: 100.00% | V22: 2 | W22: 0.33 | X22: 1 | Z22: 100.00% | AB22: 0 | AC22: 0 | AD22: 1 | AF22: 100.00%
A23: 6361 | B23: 6361 Jose de Diego Middle School | C23: 1 | D23: 11 | E23: 0.26 | F23: 1 | H23: 100.00% | J23: 2 | K23: 0.29 | L23: 1 | N23: 100.00% | P23: 5 | Q23: 0.23 | R23: 1 | T23: 100.00% | V23: 2 | W23: 0.33 | X23: 1 | Z23: 100.00% | AB23: 2 | AC23: 0.25 | AD23: 1 | AF23: 100.00%
A24: 6431 | B24: 6431 Arthur & Polly Mays Middle Community School | C24: 91 | D24: 19.70000076 | E24: 0.46 | F24: 84 | G24: 7 | H24: 92.31% | I24: 7.69% | J24: 3.700000048 | K24: 0.52 | L24: 62 | M24: 29 | N24: 68.13% | O24: 31.87% | P24: 10.5 | Q24: 0.48 | R24: 76 | S24: 15 | T24: 83.52% | U24: 16.48% | V24: 2.5 | W24: 0.42 | X24: 83 | Y24: 8 | Z24: 91.21% | AA24: 8.79% | AB24: 3 | AC24: 0.38 | AD24: 86 | AE24: 5 | AF24: 94.51% | AG24: 5.49%
A25: 6611 | B25: 6611 Country Club Middle School | C25: 1 | D25: 16 | E25: 0.37 | F25: 1 | H25: 100.00% | J25: 3 | K25: 0.43 | L25: 1 | N25: 100.00% | P25: 8 | Q25: 0.36 | R25: 1 | T25: 100.00% | V25: 4 | W25: 0.67 | X25: 1 | Z25: 100.00% | AB25: 1 | AC25: 0.13 | AD25: 1 | AF25: 100.00%
A26: 6781 | B26: 6781 Richmond heights Middle School | C26: 1 | D26: 23 | E26: 0.53 | F26: 1 | H26: 100.00% | J26: 5 | K26: 0.71 | M26: 1 | O26: 100.00% | P26: 12 | Q26: 0.55 | R26: 1 | T26: 100.00% | V26: 3 | W26: 0.5 | X26: 1 | Z26: 100.00% | AB26: 3 | AC26: 0.38 | AD26: 1 | AF26: 100.00%
A27: 6921 | B27: 6921 Lamar Louise Curry Middle School | C27: 2 | D27: 14.5 | E27: 0.34 | F27: 2 | H27: 100.00% | J27: 3.5 | K27: 0.5 | L27: 2 | N27: 100.00% | P27: 8.5 | Q27: 0.39 | R27: 2 | T27: 100.00% | V27: 1.5 | W27: 0.25 | X27: 2 | Z27: 100.00% | AB27: 1 | AC27: 0.13 | AD27: 2 | AF27: 100.00%
A28: 7007 | B28: 7007 International Studies Charter High School | C28: 77 | D28: 26 | E28: 0.61 | F28: 51 | G28: 26 | H28: 66.23% | I28: 33.77% | J28: 4.5 | K28: 0.64 | L28: 39 | M28: 38 | N28: 50.65% | O28: 49.35% | P28: 14.5 | Q28: 0.66 | R28: 44 | S28: 33 | T28: 57.14% | U28: 42.86% | V28: 3.400000095 | W28: 0.57 | X28: 64 | Y28: 13 | Z28: 83.12% | AA28: 16.88% | AB28: 3.700000048 | AC28: 0.46 | AD28: 60 | AE28: 17 | AF28: 77.92% | AG28: 22.08%
A29: 7009 | B29: 7009 Doral Performing Arts Academy | C29: 64 | D29: 27.39999962 | E29: 0.64 | F29: 38 | G29: 26 | H29: 59.38% | I29: 40.62% | J29: 4.699999809 | K29: 0.68 | L29: 23 | M29: 41 | N29: 35.94% | O29: 64.06% | P29: 14.5 | Q29: 0.66 | R29: 34 | S29: 30 | T29: 53.12% | U29: 46.88% | V29: 3.900000095 | W29: 0.65 | X29: 39 | Y29: 25 | Z29: 60.94% | AA29: 39.06% | AB29: 4.300000191 | AC29: 0.54 | AD29: 43 | AE29: 21 | AF29: 67.19% | AG29: 32.81%
A30: 7011 | B30: 7011 American Senior High School | C30: 507 | D30: 20.79999924 | E30: 0.48 | F30: 439 | G30: 68 | H30: 86.59% | I30: 13.41% | J30: 3.700000048 | K30: 0.52 | L30: 343 | M30: 164 | N30: 67.65% | O30: 32.35% | P30: 11.19999981 | Q30: 0.51 | R30: 401 | S30: 106 | T30: 79.09% | U30: 20.91% | V30: 2.700000048 | W30: 0.44 | X30: 461 | Y30: 46 | Z30: 90.93% | AA30: 9.07% | AB30: 3.200000048 | AC30: 0.41 | AD30: 436 | AE30: 71 | AF30: 86.00% | AG30: 14.00%
A31: 7014 | B31: 7014 Mater Performing Arts & Entertainment Academy | C31: 89 | D31: 29.29999924 | E31: 0.68 | F31: 49 | G31: 40 | H31: 55.06% | I31: 44.94% | J31: 4.900000095 | K31: 0.7 | L31: 33 | M31: 56 | N31: 37.08% | O31: 62.92% | P31: 15.89999962 | Q31: 0.72 | R31: 38 | S31: 51 | T31: 42.70% | U31: 57.30% | V31: 3.900000095 | W31: 0.64 | X31: 63 | Y31: 26 | Z31: 70.79% | AA31: 29.21% | AB31: 4.699999809 | AC31: 0.59 | AD31: 58 | AE31: 31 | AF31: 65.17% | AG31: 34.83%
A32: 7018 | B32: 7018 Mater Academy Lakes High School | C32: 284 | D32: 26.39999962 | E32: 0.61 | F32: 201 | G32: 83 | H32: 70.77% | I32: 29.23% | J32: 4.599999905 | K32: 0.65 | L32: 123 | M32: 161 | N32: 43.31% | O32: 56.69% | P32: 13.89999962 | Q32: 0.63 | R32: 172 | S32: 112 | T32: 60.56% | U32: 39.44% | V32: 3.700000048 | W32: 0.62 | X32: 203 | Y32: 81 | Z32: 71.48% | AA32: 28.52% | AB32: 4.199999809 | AC32: 0.53 | AD32: 207 | AE32: 77 | AF32: 72.89% | AG32: 27.11%
A33: 7020 | B33: 7020 Doral Academy High School | C33: 413 | D33: 24.70000076 | E33: 0.58 | F33: 296 | G33: 117 | H33: 71.67% | I33: 28.33% | J33: 4.400000095 | K33: 0.63 | L33: 195 | M33: 218 | N33: 47.22% | O33: 52.78% | P33: 13.39999962 | Q33: 0.61 | R33: 260 | S33: 153 | T33: 62.95% | U33: 37.05% | V33: 3.299999952 | W33: 0.55 | X33: 331 | Y33: 82 | Z33: 80.15% | AA33: 19.85% | AB33: 3.700000048 | AC33: 0.47 | AD33: 328 | AE33: 85 | AF33: 79.42% | AG33: 20.58%
A34: 7022 | B34: 7022 Academy Of Arts And Minds | C34: 109 | D34: 26.79999924 | E34: 0.62 | F34: 73 | G34: 36 | H34: 66.97% | I34: 33.03% | J34: 4.599999905 | K34: 0.66 | L34: 55 | M34: 54 | N34: 50.46% | O34: 49.54% | P34: 14.39999962 | Q34: 0.66 | R34: 60 | S34: 49 | T34: 55.05% | U34: 44.95% | V34: 3.599999905 | W34: 0.6 | X34: 81 | Y34: 28 | Z34: 74.31% | AA34: 25.69% | AB34: 4.199999809 | AC34: 0.53 | AD34: 85 | AE34: 24 | AF34: 77.98% | AG34: 22.02%
A35: 7024 | B35: 7024 Mater Academy HS of International Studies | C35: 46 | D35: 28.60000038 | E35: 0.66 | F35: 25 | G35: 21 | H35: 54.35% | I35: 45.65% | J35: 4.599999905 | K35: 0.66 | L35: 19 | M35: 27 | N35: 41.30% | O35: 58.70% | P35: 15.60000038 | Q35: 0.71 | R35: 23 | S35: 23 | T35: 50.00% | U35: 50.00% | V35: 3.299999952 | W35: 0.56 | X35: 39 | Y35: 7 | Z35: 84.78% | AA35: 15.22% | AB35: 5.099999905 | AC35: 0.64 | AD35: 24 | AE35: 22 | AF35: 52.17% | AG35: 47.83%
A36: 7029 | B36: 7029 Terra Environmental Institute | C36: 515 | D36: 30.60000038 | E36: 0.71 | F36: 219 | G36: 296 | H36: 42.52% | I36: 57.48% | J36: 5.099999905 | K36: 0.73 | L36: 142 | M36: 373 | N36: 27.57% | O36: 72.43% | P36: 16.5 | Q36: 0.75 | R36: 172 | S36: 343 | T36: 33.40% | U36: 66.60% | V36: 3.900000095 | W36: 0.65 | X36: 345 | Y36: 170 | Z36: 66.99% | AA36: 33.01% | AB36: 5.099999905 | AC36: 0.64 | AD36: 268 | AE36: 247 | AF36: 52.04% | AG36: 47.96%
A37: 7033 | B37: 7033 Law Enforcement Officers Memorial High | C37: 138 | D37: 27.20000076 | E37: 0.63 | F37: 86 | G37: 52 | H37: 62.32% | I37: 37.68% | J37: 4.699999809 | K37: 0.67 | L37: 58 | M37: 80 | N37: 42.03% | O37: 57.97% | P37: 14.80000019 | Q37: 0.67 | R37: 75 | S37: 63 | T37: 54.35% | U37: 45.65% | V37: 3.299999952 | W37: 0.55 | X37: 105 | Y37: 33 | Z37: 76.09% | AA37: 23.91% | AB37: 4.400000095 | AC37: 0.55 | AD37: 103 | AE37: 35 | AF37: 74.64% | AG37: 25.36%
A38: 7034 | B38: 7034 Somerset Academy Charter High South Campus | C38: 12 | D38: 23.5 | E38: 0.55 | F38: 10 | G38: 2 | H38: 83.33% | I38: 16.67% | J38: 4.400000095 | K38: 0.63 | L38: 4 | M38: 8 | N38: 33.33% | O38: 66.67% | P38: 13 | Q38: 0.59 | R38: 9 | S38: 3 | T38: 75.00% | U38: 25.00% | V38: 2.799999952 | W38: 0.47 | X38: 11 | Y38: 1 | Z38: 91.67% | AA38: 8.33% | AB38: 3.299999952 | AC38: 0.41 | AD38: 12 | AF38: 100.00%
A39: 7036 | B39: 7036 Lawrence Academy Senior High Charter School | C39: 15 | D39: 19.60000038 | E39: 0.46 | F39: 14 | G39: 1 | H39: 93.33% | I39: 6.67% | J39: 3.700000048 | K39: 0.53 | L39: 12 | M39: 3 | N39: 80.00% | O39: 20.00% | P39: 10.30000019 | Q39: 0.47 | R39: 14 | S39: 1 | T39: 93.33% | U39: 6.67% | V39: 2.299999952 | W39: 0.39 | X39: 15 | Z39: 100.00% | AB39: 3.200000048 | AC39: 0.4 | AD39: 14 | AE39: 1 | AF39: 93.33% | AG39: 6.67%
A40: 7037 | B40: 7037 Mater Academy East Charter High School | C40: 100 | D40: 23 | E40: 0.53 | F40: 89 | G40: 11 | H40: 89.00% | I40: 11.00% | J40: 4 | K40: 0.57 | L40: 61 | M40: 39 | N40: 61.00% | O40: 39.00% | P40: 12.5 | Q40: 0.57 | R40: 79 | S40: 21 | T40: 79.00% | U40: 21.00% | V40: 2.700000048 | W40: 0.46 | X40: 95 | Y40: 5 | Z40: 95.00% | AA40: 5.00% | AB40: 3.799999952 | AC40: 0.47 | AD40: 85 | AE40: 15 | AF40: 85.00% | AG40: 15.00%
A41: 7042 | B41: 7042 Somerset Academy Charter High School | C41: 120 | D41: 25 | E41: 0.58 | F41: 89 | G41: 31 | H41: 74.17% | I41: 25.83% | J41: 4.199999809 | K41: 0.6 | L41: 71 | M41: 49 | N41: 59.17% | O41: 40.83% | P41: 13.60000038 | Q41: 0.62 | R41: 78 | S41: 42 | T41: 65.00% | U41: 35.00% | V41: 3.200000048 | W41: 0.53 | X41: 100 | Y41: 20 | Z41: 83.33% | AA41: 16.67% | AB41: 4 | AC41: 0.5 | AD41: 88 | AE41: 32 | AF41: 73.33% | AG41: 26.67%
A42: 7048 | B42: 7048 Alonzo Andtracy Mourning High (Biscanye Bay) | C42: 451 | D42: 25.20000076 | E42: 0.59 | F42: 314 | G42: 137 | H42: 69.62% | I42: 30.38% | J42: 4.300000191 | K42: 0.61 | L42: 239 | M42: 212 | N42: 52.99% | O42: 47.01% | P42: 13.5 | Q42: 0.61 | R42: 267 | S42: 184 | T42: 59.20% | U42: 40.80% | V42: 3.200000048 | W42: 0.54 | X42: 363 | Y42: 88 | Z42: 80.49% | AA42: 19.51% | AB42: 4.099999905 | AC42: 0.52 | AD42: 317 | AE42: 134 | AF42: 70.29% | AG42: 29.71%
A43: 7049 | B43: 7049 Westland Hialeah Senior | C43: 506 | D43: 20.39999962 | E43: 0.48 | F43: 430 | G43: 76 | H43: 84.98% | I43: 15.02% | J43: 3.599999905 | K43: 0.52 | L43: 321 | M43: 185 | N43: 63.44% | O43: 36.56% | P43: 11 | Q43: 0.5 | R43: 392 | S43: 114 | T43: 77.47% | U43: 22.53% | V43: 2.700000048 | W43: 0.45 | X43: 443 | Y43: 63 | Z43: 87.55% | AA43: 12.45% | AB43: 3 | AC43: 0.38 | AD43: 444 | AE43: 62 | AF43: 87.75% | AG43: 12.25%
A44: 7051 | B44: 7051 G Holmes Braddock Senior High | C44: 789 | D44: 23.89999962 | E44: 0.56 | F44: 585 | G44: 204 | H44: 74.14% | I44: 25.86% | J44: 4.099999905 | K44: 0.58 | L44: 449 | M44: 340 | N44: 56.91% | O44: 43.09% | P44: 12.89999962 | Q44: 0.58 | R44: 513 | S44: 276 | T44: 65.02% | U44: 34.98% | V44: 3.099999905 | W44: 0.51 | X44: 653 | Y44: 136 | Z44: 82.76% | AA44: 17.24% | AB44: 3.900000095 | AC44: 0.49 | AD44: 595 | AE44: 194 | AF44: 75.41% | AG44: 24.59%
A45: 7053 | B45: 7053 Pinecrest Preparatory Academy Charter HS | C45: 121 | D45: 24.29999924 | E45: 0.57 | F45: 92 | G45: 29 | H45: 76.03% | I45: 23.97% | J45: 4.300000191 | K45: 0.62 | L45: 63 | M45: 58 | N45: 52.07% | O45: 47.93% | P45: 13.10000038 | Q45: 0.59 | R45: 80 | S45: 41 | T45: 66.12% | U45: 33.88% | V45: 3.200000048 | W45: 0.54 | X45: 93 | Y45: 28 | Z45: 76.86% | AA45: 23.14% | AB45: 3.700000048 | AC45: 0.46 | AD45: 98 | AE45: 23 | AF45: 80.99% | AG45: 19.01%
A46: 7054 | B46: 7054 Excelsior Charter High School | C46: 45 | D46: 17.39999962 | E46: 0.41 | F46: 41 | G46: 4 | H46: 91.11% | I46: 8.89% | J46: 3.200000048 | K46: 0.46 | L46: 33 | M46: 12 | N46: 73.33% | O46: 26.67% | P46: 9.199999809 | Q46: 0.42 | R46: 38 | S46: 7 | T46: 84.44% | U46: 15.56% | V46: 2.299999952 | W46: 0.38 | X46: 41 | Y46: 4 | Z46: 91.11% | AA46: 8.89% | AB46: 2.700000048 | AC46: 0.34 | AD46: 42 | AE46: 3 | AF46: 93.33% | AG46: 6.67%
A47: 7055 | B47: 7055 Young Women's Preparatory Academy | C47: 46 | D47: 31 | E47: 0.72 | F47: 17 | G47: 29 | H47: 36.96% | I47: 63.04% | J47: 4.800000191 | K47: 0.69 | L47: 21 | M47: 25 | N47: 45.65% | O47: 54.35% | P47: 17 | Q47: 0.77 | R47: 12 | S47: 34 | T47: 26.09% | U47: 73.91% | V47: 3.599999905 | W47: 0.61 | X47: 32 | Y47: 14 | Z47: 69.57% | AA47: 30.43% | AB47: 5.5 | AC47: 0.68 | AD47: 19 | AE47: 27 | AF47: 41.30% | AG47: 58.70%
A48: 7056 | B48: 7056 Young Men's Preparatory High School | C48: 37 | D48: 21.20000076 | E48: 0.49 | F48: 33 | G48: 4 | H48: 89.19% | I48: 10.81% | J48: 3.700000048 | K48: 0.53 | L48: 25 | M48: 12 | N48: 67.57% | O48: 32.43% | P48: 11.69999981 | Q48: 0.53 | R48: 26 | S48: 11 | T48: 70.27% | U48: 29.73% | V48: 2.700000048 | W48: 0.45 | X48: 35 | Y48: 2 | Z48: 94.59% | AA48: 5.41% | AB48: 3.099999905 | AC48: 0.38 | AD48: 33 | AE48: 4 | AF48: 89.19% | AG48: 10.81%
A49: 7058 | B49: 7058 Miami Community Charter High | C49: 35 | D49: 19.20000076 | E49: 0.45 | F49: 32 | G49: 3 | H49: 91.43% | I49: 8.57% | J49: 3.299999952 | K49: 0.47 | L49: 27 | M49: 8 | N49: 77.14% | O49: 22.86% | P49: 10.19999981 | Q49: 0.46 | R49: 29 | S49: 6 | T49: 82.86% | U49: 17.14% | V49: 2.700000048 | W49: 0.45 | X49: 30 | Y49: 5 | Z49: 85.71% | AA49: 14.29% | AB49: 3 | AC49: 0.38 | AD49: 31 | AE49: 4 | AF49: 88.57% | AG49: 11.43%
A50: 7059 | B50: 7059 Miami Arts Charter | C50: 82 | D50: 27.29999924 | E50: 0.64 | F50: 47 | G50: 35 | H50: 57.32% | I50: 42.68% | J50: 4.5 | K50: 0.64 | L50: 38 | M50: 44 | N50: 46.34% | O50: 53.66% | P50: 15 | Q50: 0.68 | R50: 38 | S50: 44 | T50: 46.34% | U50: 53.66% | V50: 3.400000095 | W50: 0.56 | X50: 66 | Y50: 16 | Z50: 80.49% | AA50: 19.51% | AB50: 4.5 | AC50: 0.56 | AD50: 55 | AE50: 27 | AF50: 67.07% | AG50: 32.93%
A51: 7065 | B51: 7065 Mavericks High Of South Miami Dade County | C51: 48 | D51: 20.5 | E51: 0.48 | F51: 43 | G51: 5 | H51: 89.58% | I51: 10.42% | J51: 3.5 | K51: 0.49 | L51: 34 | M51: 14 | N51: 70.83% | O51: 29.17% | P51: 10.89999962 | Q51: 0.49 | R51: 40 | S51: 8 | T51: 83.33% | U51: 16.67% | V51: 2.799999952 | W51: 0.47 | X51: 42 | Y51: 6 | Z51: 87.50% | AA51: 12.50% | AB51: 3.400000095 | AC51: 0.42 | AD51: 42 | AE51: 6 | AF51: 87.50% | AG51: 12.50%
A52: 7067 | B52: 7067 Florida High School Of Accelerated Learning- | C52: 23 | D52: 20.89999962 | E52: 0.49 | F52: 20 | G52: 3 | H52: 86.96% | I52: 13.04% | J52: 3.700000048 | K52: 0.53 | L52: 16 | M52: 7 | N52: 69.57% | O52: 30.43% | P52: 10.89999962 | Q52: 0.49 | R52: 20 | S52: 3 | T52: 86.96% | U52: 13.04% | V52: 2.700000048 | W52: 0.46 | X52: 20 | Y52: 3 | Z52: 86.96% | AA52: 13.04% | AB52: 3.5 | AC52: 0.44 | AD52: 21 | AE52: 2 | AF52: 91.30% | AG52: 8.70%
A53: 7068 | B53: 7068 North Gardens High School | C53: 10 | D53: 15.89999962 | E53: 0.37 | F53: 10 | H53: 100.00% | J53: 3.299999952 | K53: 0.47 | L53: 9 | M53: 1 | N53: 90.00% | O53: 10.00% | P53: 7.900000095 | Q53: 0.36 | R53: 9 | S53: 1 | T53: 90.00% | U53: 10.00% | V53: 1.799999952 | W53: 0.3 | X53: 10 | Z53: 100.00% | AB53: 2.900000095 | AC53: 0.36 | AD53: 9 | AE53: 1 | AF53: 90.00% | AG53: 10.00%
A54: 7069 | B54: 7069 North Park High School | C54: 8 | D54: 16.10000038 | E54: 0.38 | F54: 8 | H54: 100.00% | J54: 2.400000095 | K54: 0.34 | L54: 8 | N54: 100.00% | P54: 8.300000191 | Q54: 0.37 | R54: 8 | T54: 100.00% | V54: 2.599999905 | W54: 0.44 | X54: 8 | Z54: 100.00% | AB54: 2.900000095 | AC54: 0.36 | AD54: 8 | AF54: 100.00%
A55: 7071 | B55: 7071 Coral Gables Senior High School | C55: 761 | D55: 23.70000076 | E55: 0.55 | F55: 530 | G55: 231 | H55: 69.65% | I55: 30.35% | J55: 4.099999905 | K55: 0.59 | L55: 413 | M55: 348 | N55: 54.27% | O55: 45.73% | P55: 12.80000019 | Q55: 0.58 | R55: 483 | S55: 278 | T55: 63.47% | U55: 36.53% | V55: 3.099999905 | W55: 0.51 | X55: 604 | Y55: 157 | Z55: 79.37% | AA55: 20.63% | AB55: 3.700000048 | AC55: 0.47 | AD55: 569 | AE55: 192 | AF55: 74.77% | AG55: 25.23%
A56: 7081 | B56: 7081 DASH | C56: 121 | D56: 32 | E56: 0.74 | F56: 40 | G56: 81 | H56: 33.06% | I56: 66.94% | J56: 5.199999809 | K56: 0.75 | L56: 29 | M56: 92 | N56: 23.97% | O56: 76.03% | P56: 17.5 | Q56: 0.8 | R56: 28 | S56: 93 | T56: 23.14% | U56: 76.86% | V56: 3.900000095 | W56: 0.65 | X56: 82 | Y56: 39 | Z56: 67.77% | AA56: 32.23% | AB56: 5.400000095 | AC56: 0.68 | AD56: 55 | AE56: 66 | AF56: 45.45% | AG56: 54.55%
A57: 7101 | B57: 7101 Coral Reef Senior High School | C57: 877 | D57: 29.39999962 | E57: 0.68 | F57: 422 | G57: 455 | H57: 48.12% | I57: 51.88% | J57: 5 | K57: 0.71 | L57: 294 | M57: 583 | N57: 33.52% | O57: 66.48% | P57: 15.80000019 | Q57: 0.72 | R57: 343 | S57: 534 | T57: 39.11% | U57: 60.89% | V57: 3.700000048 | W57: 0.62 | X57: 590 | Y57: 287 | Z57: 67.27% | AA57: 32.73% | AB57: 4.900000095 | AC57: 0.62 | AD57: 509 | AE57: 368 | AF57: 58.04% | AG57: 41.96%
A58: 7111 | B58: 7111 Hialeah Senior high | C58: 737 | D58: 21.29999924 | E58: 0.5 | F58: 610 | G58: 127 | H58: 82.77% | I58: 17.23% | J58: 3.700000048 | K58: 0.53 | L58: 460 | M58: 277 | N58: 62.42% | O58: 37.58% | P58: 11.39999962 | Q58: 0.52 | R58: 565 | S58: 172 | T58: 76.66% | U58: 23.34% | V58: 2.799999952 | W58: 0.46 | X58: 644 | Y58: 93 | Z58: 87.38% | AA58: 12.62% | AB58: 3.400000095 | AC58: 0.43 | AD58: 618 | AE58: 119 | AF58: 83.85% | AG58: 16.15%
A59: 7121 | B59: 7121 John A. Ferguson Senior High School | C59: 1053 | D59: 24.89999962 | E59: 0.58 | F59: 719 | G59: 334 | H59: 68.28% | I59: 31.72% | J59: 4.300000191 | K59: 0.62 | L59: 523 | M59: 530 | N59: 49.67% | O59: 50.33% | P59: 13.5 | Q59: 0.61 | R59: 623 | S59: 430 | T59: 59.16% | U59: 40.84% | V59: 3.200000048 | W59: 0.54 | X59: 825 | Y59: 228 | Z59: 78.35% | AA59: 21.65% | AB59: 3.900000095 | AC59: 0.49 | AD59: 791 | AE59: 262 | AF59: 75.12% | AG59: 24.88%
A60: 7131 | B60: 7131 Hialeah-Miami Lakes Senior High | C60: 481 | D60: 18.89999962 | E60: 0.44 | F60: 419 | G60: 62 | H60: 87.11% | I60: 12.89% | J60: 3.5 | K60: 0.5 | L60: 331 | M60: 150 | N60: 68.81% | O60: 31.19% | P60: 10.19999981 | Q60: 0.46 | R60: 398 | S60: 83 | T60: 82.74% | U60: 17.26% | V60: 2.400000095 | W60: 0.41 | X60: 425 | Y60: 56 | Z60: 88.36% | AA60: 11.64% | AB60: 2.900000095 | AC60: 0.36 | AD60: 432 | AE60: 49 | AF60: 89.81% | AG60: 10.19%
A61: 7141 | B61: 7141 Dr. Michael M. Krop Senior High School | C61: 694 | D61: 24.79999924 | E61: 0.58 | F61: 504 | G61: 190 | H61: 72.62% | I61: 27.38% | J61: 4.199999809 | K61: 0.6 | L61: 382 | M61: 312 | N61: 55.04% | O61: 44.96% | P61: 13.39999962 | Q61: 0.61 | R61: 431 | S61: 263 | T61: 62.10% | U61: 37.90% | V61: 3.200000048 | W61: 0.53 | X61: 566 | Y61: 128 | Z61: 81.56% | AA61: 18.44% | AB61: 4 | AC61: 0.51 | AD61: 517 | AE61: 177 | AF61: 74.50% | AG61: 25.50%
A62: 7151 | B62: 7151 Homestead Sr. High School | C62: 505 | D62: 18.79999924 | E62: 0.44 | F62: 477 | G62: 28 | H62: 94.46% | I62: 5.54% | J62: 3.200000048 | K62: 0.46 | L62: 396 | M62: 109 | N62: 78.42% | O62: 21.58% | P62: 10 | Q62: 0.45 | R62: 457 | S62: 48 | T62: 90.50% | U62: 9.50% | V62: 2.5 | W62: 0.42 | X62: 465 | Y62: 40 | Z62: 92.08% | AA62: 7.92% | AB62: 3.099999905 | AC62: 0.39 | AD62: 458 | AE62: 47 | AF62: 90.69% | AG62: 9.31%
A63: 7160 | B63: 7160 Mater Academy High | C63: 421 | D63: 25.10000038 | E63: 0.58 | F63: 297 | G63: 124 | H63: 70.55% | I63: 29.45% | J63: 4.300000191 | K63: 0.61 | L63: 222 | M63: 199 | N63: 52.73% | O63: 47.27% | P63: 13.5 | Q63: 0.61 | R63: 253 | S63: 168 | T63: 60.10% | U63: 39.90% | V63: 3.299999952 | W63: 0.54 | X63: 339 | Y63: 82 | Z63: 80.52% | AA63: 19.48% | AB63: 4.099999905 | AC63: 0.51 | AD63: 314 | AE63: 107 | AF63: 74.58% | AG63: 25.42%
A64: 7161 | B64: 7161 MAST Academy | C64: 144 | D64: 33 | E64: 0.77 | F64: 35 | G64: 109 | H64: 24.31% | I64: 75.69% | J64: 5.300000191 | K64: 0.76 | L64: 38 | M64: 106 | N64: 26.39% | O64: 73.61% | P64: 17.79999924 | Q64: 0.81 | R64: 24 | S64: 120 | T64: 16.67% | U64: 83.33% | V64: 4.199999809 | W64: 0.69 | X64: 88 | Y64: 56 | Z64: 61.11% | AA64: 38.89% | AB64: 5.699999809 | AC64: 0.72 | AD64: 55 | AE64: 89 | AF64: 38.19% | AG64: 61.81%
A65: 7171 | B65: 7171 M.A.S.T At Homestead | C65: 181 | D65: 26.89999962 | E65: 0.63 | F65: 120 | G65: 61 | H65: 66.30% | I65: 33.70% | J65: 4.5 | K65: 0.65 | L65: 83 | M65: 98 | N65: 45.86% | O65: 54.14% | P65: 14.5 | Q65: 0.66 | R65: 97 | S65: 84 | T65: 53.59% | U65: 46.41% | V65: 3.400000095 | W65: 0.57 | X65: 140 | Y65: 41 | Z65: 77.35% | AA65: 22.65% | AB65: 4.5 | AC65: 0.57 | AD65: 120 | AE65: 61 | AF65: 66.30% | AG65: 33.70%
A66: 7191 | B66: 7191 Hialeah Gardens High School | C66: 674 | D66: 23.39999962 | E66: 0.54 | F66: 495 | G66: 179 | H66: 73.44% | I66: 26.56% | J66: 4 | K66: 0.57 | L66: 378 | M66: 296 | N66: 56.08% | O66: 43.92% | P66: 12.69999981 | Q66: 0.58 | R66: 445 | S66: 229 | T66: 66.02% | U66: 33.98% | V66: 2.900000095 | W66: 0.48 | X66: 567 | Y66: 107 | Z66: 84.12% | AA66: 15.88% | AB66: 3.799999952 | AC66: 0.48 | AD66: 536 | AE66: 138 | AF66: 79.53% | AG66: 20.47%
A67: 7201 | B67: 7201 Miami Beach Senior high School | C67: 628 | D67: 22.60000038 | E67: 0.53 | F67: 460 | G67: 168 | H67: 73.25% | I67: 26.75% | J67: 3.900000095 | K67: 0.56 | L67: 374 | M67: 254 | N67: 59.55% | O67: 40.45% | P67: 12.30000019 | Q67: 0.56 | R67: 414 | S67: 214 | T67: 65.92% | U67: 34.08% | V67: 2.900000095 | W67: 0.48 | X67: 537 | Y67: 91 | Z67: 85.51% | AA67: 14.49% | AB67: 3.5 | AC67: 0.44 | AD67: 497 | AE67: 131 | AF67: 79.14% | AG67: 20.86%
A68: 7231 | B68: 7231 Miami Carol City Sr. High | C68: 403 | D68: 18.79999924 | E68: 0.44 | F68: 372 | G68: 31 | H68: 92.31% | I68: 7.69% | J68: 3.400000095 | K68: 0.49 | L68: 294 | M68: 109 | N68: 72.95% | O68: 27.05% | P68: 10 | Q68: 0.46 | R68: 348 | S68: 55 | T68: 86.35% | U68: 13.65% | V68: 2.299999952 | W68: 0.39 | X68: 380 | Y68: 23 | Z68: 94.29% | AA68: 5.71% | AB68: 2.900000095 | AC68: 0.37 | AD68: 361 | AE68: 42 | AF68: 89.58% | AG68: 10.42%
A69: 7241 | B69: 7241 Ronald W. Reagan/Doral Senior High | C69: 505 | D69: 25.39999962 | E69: 0.59 | F69: 324 | G69: 181 | H69: 64.16% | I69: 35.84% | J69: 4.400000095 | K69: 0.62 | L69: 256 | M69: 249 | N69: 50.69% | O69: 49.31% | P69: 13.69999981 | Q69: 0.62 | R69: 289 | S69: 216 | T69: 57.23% | U69: 42.77% | V69: 3.299999952 | W69: 0.55 | X69: 399 | Y69: 106 | Z69: 79.01% | AA69: 20.99% | AB69: 4 | AC69: 0.51 | AD69: 358 | AE69: 147 | AF69: 70.89% | AG69: 29.11%
A70: 7251 | B70: 7251 Miami Central Senior High | C70: 463 | D70: 18.20000076 | E70: 0.42 | F70: 439 | G70: 24 | H70: 94.82% | I70: 5.18% | J70: 3.299999952 | K70: 0.48 | L70: 356 | M70: 107 | N70: 76.89% | O70: 23.11% | P70: 9.800000191 | Q70: 0.44 | R70: 411 | S70: 52 | T70: 88.77% | U70: 11.23% | V70: 2.400000095 | W70: 0.4 | X70: 435 | Y70: 28 | Z70: 93.95% | AA70: 6.05% | AB70: 2.700000048 | AC70: 0.34 | AD70: 433 | AE70: 30 | AF70: 93.52% | AG70: 6.48%
A71: 7254 | B71: 7254 MacArthur North | C71: 1 | D71: 11 | E71: 0.26 | F71: 1 | H71: 100.00% | J71: 3 | K71: 0.43 | L71: 1 | N71: 100.00% | P71: 4 | Q71: 0.18 | R71: 1 | T71: 100.00% | V71: 1 | W71: 0.17 | X71: 1 | Z71: 100.00% | AB71: 3 | AC71: 0.38 | AD71: 1 | AF71: 100.00%
A72: 7262 | B72: 7262 City of Hialeah Education Academy | C72: 60 | D72: 23.89999962 | E72: 0.55 | F72: 48 | G72: 12 | H72: 80.00% | I72: 20.00% | J72: 4.199999809 | K72: 0.6 | L72: 31 | M72: 29 | N72: 51.67% | O72: 48.33% | P72: 13.30000019 | Q72: 0.6 | R72: 37 | S72: 23 | T72: 61.67% | U72: 38.33% | V72: 2.900000095 | W72: 0.48 | X72: 55 | Y72: 5 | Z72: 91.67% | AA72: 8.33% | AB72: 3.5 | AC72: 0.44 | AD72: 48 | AE72: 12 | AF72: 80.00% | AG72: 20.00%
A73: 7265 | B73: 7265 Archimedean Upper Conservatory | C73: 57 | D73: 29.79999924 | E73: 0.69 | F73: 27 | G73: 30 | H73: 47.37% | I73: 52.63% | J73: 5 | K73: 0.72 | L73: 17 | M73: 40 | N73: 29.82% | O73: 70.18% | P73: 16 | Q73: 0.73 | R73: 23 | S73: 34 | T73: 40.35% | U73: 59.65% | V73: 4 | W73: 0.66 | X73: 38 | Y73: 19 | Z73: 66.67% | AA73: 33.33% | AB73: 4.800000191 | AC73: 0.6 | AD73: 34 | AE73: 23 | AF73: 59.65% | AG73: 40.35%
A74: 7271 | B74: 7271 Miami Coral Park Senior High School | C74: 647 | D74: 22.20000076 | E74: 0.52 | F74: 504 | G74: 143 | H74: 77.90% | I74: 22.10% | J74: 4 | K74: 0.57 | L74: 367 | M74: 280 | N74: 56.72% | O74: 43.28% | P74: 11.89999962 | Q74: 0.54 | R74: 470 | S74: 177 | T74: 72.64% | U74: 27.36% | V74: 2.799999952 | W74: 0.47 | X74: 558 | Y74: 89 | Z74: 86.24% | AA74: 13.76% | AB74: 3.5 | AC74: 0.44 | AD74: 526 | AE74: 121 | AF74: 81.30% | AG74: 18.70%
A75: 7301 | B75: 7301 Miami Edison Senior High | C75: 235 | D75: 19 | E75: 0.44 | F75: 219 | G75: 16 | H75: 93.19% | I75: 6.81% | J75: 3.200000048 | K75: 0.46 | L75: 186 | M75: 49 | N75: 79.15% | O75: 20.85% | P75: 10.30000019 | Q75: 0.47 | R75: 204 | S75: 31 | T75: 86.81% | U75: 13.19% | V75: 2.400000095 | W75: 0.4 | X75: 223 | Y75: 12 | Z75: 94.89% | AA75: 5.11% | AB75: 3.099999905 | AC75: 0.39 | AD75: 207 | AE75: 28 | AF75: 88.09% | AG75: 11.91%
A76: 7341 | B76: 7341 Miami Jackson Senior High | C76: 309 | D76: 16.60000038 | E76: 0.39 | F76: 291 | G76: 18 | H76: 94.17% | I76: 5.83% | J76: 3.099999905 | K76: 0.44 | L76: 245 | M76: 64 | N76: 79.29% | O76: 20.71% | P76: 9 | Q76: 0.41 | R76: 282 | S76: 27 | T76: 91.26% | U76: 8.74% | V76: 2.099999905 | W76: 0.35 | X76: 299 | Y76: 10 | Z76: 96.76% | AA76: 3.24% | AB76: 2.5 | AC76: 0.31 | AD76: 289 | AE76: 20 | AF76: 93.53% | AG76: 6.47%
A77: 7361 | B77: 7361 Miami Killian Senior High | C77: 571 | D77: 23.20000076 | E77: 0.54 | F77: 439 | G77: 132 | H77: 76.88% | I77: 23.12% | J77: 4 | K77: 0.58 | L77: 327 | M77: 244 | N77: 57.27% | O77: 42.73% | P77: 12.5 | Q77: 0.57 | R77: 393 | S77: 178 | T77: 68.83% | U77: 31.17% | V77: 2.900000095 | W77: 0.49 | X77: 476 | Y77: 95 | Z77: 83.36% | AA77: 16.64% | AB77: 3.700000048 | AC77: 0.46 | AD77: 453 | AE77: 118 | AF77: 79.33% | AG77: 20.67%
A78: 7371 | B78: 7371 Robert Morgan Education Center | C78: 660 | D78: 26.89999962 | E78: 0.63 | F78: 425 | G78: 235 | H78: 64.39% | I78: 35.61% | J78: 4.599999905 | K78: 0.66 | L78: 293 | M78: 367 | N78: 44.39% | O78: 55.61% | P78: 14.39999962 | Q78: 0.65 | R78: 357 | S78: 303 | T78: 54.09% | U78: 45.91% | V78: 3.5 | W78: 0.58 | X78: 512 | Y78: 148 | Z78: 77.58% | AA78: 22.42% | AB78: 4.400000095 | AC78: 0.56 | AD78: 459 | AE78: 201 | AF78: 69.55% | AG78: 30.45%
A79: =IFERROR(VALUE(LEFT(B79,4)),"") -> 7381 | B79: 7381 Miami Norland Senior High | C79: 383 | D79: 20 | E79: 0.47 | F79: 347 | G79: 36 | H79: 90.60% | I79: 9.40% | J79: 3.5 | K79: 0.5 | L79: 279 | M79: 104 | N79: 72.85% | O79: 27.15% | P79: 10.80000019 | Q79: 0.49 | R79: 320 | S79: 63 | T79: 83.55% | U79: 16.45% | V79: 2.5 | W79: 0.41 | X79: 363 | Y79: 20 | Z79: 94.78% | AA79: 5.22% | AB79: 3.200000048 | AC79: 0.41 | AD79: 336 | AE79: 47 | AF79: 87.73% | AG79: 12.27%
A80: 7391 | B80: 7391 Miami Lakes Educational Center | C80: 339 | D80: 26.29999924 | E80: 0.61 | F80: 216 | G80: 123 | H80: 63.72% | I80: 36.28% | J80: 4.400000095 | K80: 0.63 | L80: 169 | M80: 170 | N80: 49.85% | O80: 50.15% | P80: 14.30000019 | Q80: 0.65 | R80: 187 | S80: 152 | T80: 55.16% | U80: 44.84% | V80: 3.299999952 | W80: 0.56 | X80: 256 | Y80: 83 | Z80: 75.52% | AA80: 24.48% | AB80: 4.300000191 | AC80: 0.54 | AD80: 233 | AE80: 106 | AF80: 68.73% | AG80: 31.27%
A81: 7411 | B81: 7411 Miami Northwestern Senior | C81: 369 | D81: 19.39999962 | E81: 0.45 | F81: 340 | G81: 29 | H81: 92.14% | I81: 7.86% | J81: 3.299999952 | K81: 0.48 | L81: 294 | M81: 75 | N81: 79.67% | O81: 20.33% | P81: 10.5 | Q81: 0.48 | R81: 317 | S81: 52 | T81: 85.91% | U81: 14.09% | V81: 2.400000095 | W81: 0.41 | X81: 340 | Y81: 29 | Z81: 92.14% | AA81: 7.86% | AB81: 3.099999905 | AC81: 0.39 | AD81: 337 | AE81: 32 | AF81: 91.33% | AG81: 8.67%
A82: 7431 | B82: 7431 Miami Palmetto Sr High | C82: 648 | D82: 26.70000076 | E82: 0.62 | F82: 397 | G82: 251 | H82: 61.27% | I82: 38.73% | J82: 4.5 | K82: 0.64 | L82: 296 | M82: 352 | N82: 45.68% | O82: 54.32% | P82: 14.5 | Q82: 0.66 | R82: 335 | S82: 313 | T82: 51.70% | U82: 48.30% | V82: 3.400000095 | W82: 0.56 | X82: 499 | Y82: 149 | Z82: 77.01% | AA82: 22.99% | AB82: 4.400000095 | AC82: 0.55 | AD82: 420 | AE82: 228 | AF82: 64.81% | AG82: 35.19%
A83: 7461 | B83: 7461 Miami Senior High | C83: 648 | D83: 17.60000038 | E83: 0.41 | F83: 608 | G83: 40 | H83: 93.83% | I83: 6.17% | J83: 3.299999952 | K83: 0.47 | L83: 488 | M83: 160 | N83: 75.31% | O83: 24.69% | P83: 9.5 | Q83: 0.43 | R83: 580 | S83: 68 | T83: 89.51% | U83: 10.49% | V83: 2.400000095 | W83: 0.4 | X83: 597 | Y83: 51 | Z83: 92.13% | AA83: 7.87% | AB83: 2.400000095 | AC83: 0.31 | AD83: 618 | AE83: 30 | AF83: 95.37% | AG83: 4.63%
A84: 7511 | B84: 7511 Miami Springs Senior High | C84: 503 | D84: 21.89999962 | E84: 0.51 | F84: 400 | G84: 103 | H84: 79.52% | I84: 20.48% | J84: 3.799999952 | K84: 0.54 | L84: 310 | M84: 193 | N84: 61.63% | O84: 38.37% | P84: 11.80000019 | Q84: 0.54 | R84: 360 | S84: 143 | T84: 71.57% | U84: 28.43% | V84: 2.799999952 | W84: 0.46 | X84: 430 | Y84: 73 | Z84: 85.49% | AA84: 14.51% | AB84: 3.5 | AC84: 0.45 | AD84: 414 | AE84: 89 | AF84: 82.31% | AG84: 17.69%
A85: 7531 | B85: 7531 Miami SunSET Senior | C85: 487 | D85: 22.5 | E85: 0.52 | F85: 385 | G85: 102 | H85: 79.06% | I85: 20.94% | J85: 3.900000095 | K85: 0.55 | L85: 301 | M85: 186 | N85: 61.81% | O85: 38.19% | P85: 12.10000038 | Q85: 0.55 | R85: 344 | S85: 143 | T85: 70.64% | U85: 29.36% | V85: 3 | W85: 0.5 | X85: 416 | Y85: 71 | Z85: 85.42% | AA85: 14.58% | AB85: 3.599999905 | AC85: 0.45 | AD85: 389 | AE85: 98 | AF85: 79.88% | AG85: 20.12%
A86: 7541 | B86: 7541 North Miami Beach Sr. | C86: 498 | D86: 21.70000076 | E86: 0.5 | F86: 411 | G86: 87 | H86: 82.53% | I86: 17.47% | J86: 3.799999952 | K86: 0.55 | L86: 313 | M86: 185 | N86: 62.85% | O86: 37.15% | P86: 11.80000019 | Q86: 0.53 | R86: 369 | S86: 129 | T86: 74.10% | U86: 25.90% | V86: 2.599999905 | W86: 0.43 | X86: 469 | Y86: 29 | Z86: 94.18% | AA86: 5.82% | AB86: 3.5 | AC86: 0.44 | AD86: 420 | AE86: 78 | AF86: 84.34% | AG86: 15.66%
A87: 7571 | B87: 7571 International Studies Preparatory Academy | C87: 67 | D87: 29.79999924 | E87: 0.69 | F87: 34 | G87: 33 | H87: 50.75% | I87: 49.25% | J87: 4.699999809 | K87: 0.68 | L87: 29 | M87: 38 | N87: 43.28% | O87: 56.72% | P87: 16.39999962 | Q87: 0.74 | R87: 24 | S87: 43 | T87: 35.82% | U87: 64.18% | V87: 3.700000048 | W87: 0.61 | X87: 50 | Y87: 17 | Z87: 74.63% | AA87: 25.37% | AB87: 5 | AC87: 0.62 | AD87: 36 | AE87: 31 | AF87: 53.73% | AG87: 46.27%
A88: 7581 | B88: 7581 IPreparatory Academy | C88: 52 | D88: 30.5 | E88: 0.71 | F88: 21 | G88: 31 | H88: 40.38% | I88: 59.62% | J88: 4.900000095 | K88: 0.7 | L88: 19 | M88: 33 | N88: 36.54% | O88: 63.46% | P88: 16.79999924 | Q88: 0.76 | R88: 12 | S88: 40 | T88: 23.08% | U88: 76.92% | V88: 3.5 | W88: 0.59 | X88: 42 | Y88: 10 | Z88: 80.77% | AA88: 19.23% | AB88: 5.300000191 | AC88: 0.66 | AD88: 25 | AE88: 27 | AF88: 48.08% | AG88: 51.92%
A89: 7591 | B89: 7591 North Miami Senior High School | C89: 660 | D89: 20.20000076 | E89: 0.47 | F89: 580 | G89: 80 | H89: 87.88% | I89: 12.12% | J89: 3.5 | K89: 0.5 | L89: 472 | M89: 188 | N89: 71.52% | O89: 28.48% | P89: 10.89999962 | Q89: 0.5 | R89: 533 | S89: 127 | T89: 80.76% | U89: 19.24% | V89: 2.5 | W89: 0.42 | X89: 616 | Y89: 44 | Z89: 93.33% | AA89: 6.67% | AB89: 3.200000048 | AC89: 0.41 | AD89: 571 | AE89: 89 | AF89: 86.52% | AG89: 13.48%
A90: 7601 | B90: 7601 Turner Tech | C90: 422 | D90: 25.39999962 | E90: 0.59 | F90: 309 | G90: 113 | H90: 73.22% | I90: 26.78% | J90: 4.199999809 | K90: 0.6 | L90: 241 | M90: 181 | N90: 57.11% | O90: 42.89% | P90: 13.89999962 | Q90: 0.63 | R90: 272 | S90: 150 | T90: 64.45% | U90: 35.55% | V90: 3.099999905 | W90: 0.51 | X90: 365 | Y90: 57 | Z90: 86.49% | AA90: 13.51% | AB90: 4.199999809 | AC90: 0.53 | AD90: 304 | AE90: 118 | AF90: 72.04% | AG90: 27.96%
A91: 7631 | B91: 7631 MacArthur South Senior High | C91: 31 | D91: 11.60000038 | E91: 0.27 | F91: 31 | H91: 100.00% | J91: 2.400000095 | K91: 0.34 | L91: 28 | M91: 3 | N91: 90.32% | O91: 9.68% | P91: 5.800000191 | Q91: 0.26 | R91: 31 | T91: 100.00% | V91: 1.200000048 | W91: 0.2 | X91: 31 | Z91: 100.00% | AB91: 2.200000048 | AC91: 0.28 | AD91: 31 | AF91: 100.00%
A92: 7701 | B92: 7701 South Dade Senior | C92: 795 | D92: 20.60000038 | E92: 0.48 | F92: 681 | G92: 114 | H92: 85.66% | I92: 14.34% | J92: 3.599999905 | K92: 0.51 | L92: 542 | M92: 253 | N92: 68.18% | O92: 31.82% | P92: 11 | Q92: 0.5 | R92: 636 | S92: 159 | T92: 80.00% | U92: 20.00% | V92: 2.700000048 | W92: 0.45 | X92: 717 | Y92: 78 | Z92: 90.19% | AA92: 9.81% | AB92: 3.200000048 | AC92: 0.41 | AD92: 695 | AE92: 100 | AF92: 87.42% | AG92: 12.58%
A93: 7721 | B93: 7721 South Miami Senior High | C93: 562 | D93: 20.79999924 | E93: 0.48 | F93: 455 | G93: 107 | H93: 80.96% | I93: 19.04% | J93: 3.700000048 | K93: 0.52 | L93: 362 | M93: 200 | N93: 64.41% | O93: 35.59% | P93: 11.19999981 | Q93: 0.51 | R93: 404 | S93: 158 | T93: 71.89% | U93: 28.11% | V93: 2.599999905 | W93: 0.44 | X93: 487 | Y93: 75 | Z93: 86.65% | AA93: 13.35% | AB93: 3.299999952 | AC93: 0.41 | AD93: 474 | AE93: 88 | AF93: 84.34% | AG93: 15.66%
A94: 7731 | B94: 7731 Miami Southridge Senior High | C94: 556 | D94: 19.5 | E94: 0.45 | F94: 504 | G94: 52 | H94: 90.65% | I94: 9.35% | J94: 3.5 | K94: 0.5 | L94: 408 | M94: 148 | N94: 73.38% | O94: 26.62% | P94: 10.39999962 | Q94: 0.47 | R94: 481 | S94: 75 | T94: 86.51% | U94: 13.49% | V94: 2.599999905 | W94: 0.43 | X94: 508 | Y94: 48 | Z94: 91.37% | AA94: 8.63% | AB94: 3.099999905 | AC94: 0.38 | AD94: 504 | AE94: 52 | AF94: 90.65% | AG94: 9.35%
A95: 7741 | B95: 7741 Southwest Miami High School | C95: 840 | D95: 22.79999924 | E95: 0.53 | F95: 661 | G95: 179 | H95: 78.69% | I95: 21.31% | J95: 4 | K95: 0.57 | L95: 505 | M95: 335 | N95: 60.12% | O95: 39.88% | P95: 12.30000019 | Q95: 0.56 | R95: 575 | S95: 265 | T95: 68.45% | U95: 31.55% | V95: 2.900000095 | W95: 0.48 | X95: 723 | Y95: 117 | Z95: 86.07% | AA95: 13.93% | AB95: 3.599999905 | AC95: 0.45 | AD95: 675 | AE95: 165 | AF95: 80.36% | AG95: 19.64%
A96: 7751 | B96: 7751 Barbara Goleman High School | C96: 500 | D96: 22.89999962 | E96: 0.53 | F96: 380 | G96: 120 | H96: 76.00% | I96: 24.00% | J96: 4 | K96: 0.57 | L96: 286 | M96: 214 | N96: 57.20% | O96: 42.80% | P96: 12.39999962 | Q96: 0.56 | R96: 338 | S96: 162 | T96: 67.60% | U96: 32.40% | V96: 2.900000095 | W96: 0.49 | X96: 425 | Y96: 75 | Z96: 85.00% | AA96: 15.00% | AB96: 3.599999905 | AC96: 0.45 | AD96: 394 | AE96: 106 | AF96: 78.80% | AG96: 21.20%
A97: 7781 | B97: 7781 Felix Varela Senior High School | C97: 786 | D97: 23.70000076 | E97: 0.55 | F97: 593 | G97: 193 | H97: 75.45% | I97: 24.55% | J97: 4.099999905 | K97: 0.59 | L97: 440 | M97: 346 | N97: 55.98% | O97: 44.02% | P97: 12.80000019 | Q97: 0.58 | R97: 516 | S97: 270 | T97: 65.65% | U97: 34.35% | V97: 3.099999905 | W97: 0.51 | X97: 650 | Y97: 136 | Z97: 82.70% | AA97: 17.30% | AB97: 3.700000048 | AC97: 0.47 | AD97: 620 | AE97: 166 | AF97: 78.88% | AG97: 21.12%
A98: 7791 | B98: 7791 Booker T. Washington Senior High School | C98: 215 | D98: 19.5 | E98: 0.45 | F98: 201 | G98: 14 | H98: 93.49% | I98: 6.51% | J98: 3.299999952 | K98: 0.47 | L98: 166 | M98: 49 | N98: 77.21% | O98: 22.79% | P98: 10.80000019 | Q98: 0.49 | R98: 182 | S98: 33 | T98: 84.65% | U98: 15.35% | V98: 2.400000095 | W98: 0.39 | X98: 210 | Y98: 5 | Z98: 97.67% | AA98: 2.33% | AB98: 3.099999905 | AC98: 0.38 | AD98: 194 | AE98: 21 | AF98: 90.23% | AG98: 9.77%
A99: 7801 | B99: 7801 George T. Baker | C99: 124 | D99: 23.5 | E99: 0.55 | F99: 101 | G99: 23 | H99: 81.45% | I99: 18.55% | J99: 4 | K99: 0.58 | L99: 71 | M99: 53 | N99: 57.26% | O99: 42.74% | P99: 12.80000019 | Q99: 0.58 | R99: 90 | S99: 34 | T99: 72.58% | U99: 27.42% | V99: 3 | W99: 0.49 | X99: 113 | Y99: 11 | Z99: 91.13% | AA99: 8.87% | AB99: 3.799999952 | AC99: 0.47 | AD99: 97 | AE99: 27 | AF99: 78.23% | AG99: 21.77%
A100: 7901 | B100: 7901 New World School of Arts | C100: 118 | D100: 28.89999962 | E100: 0.67 | F100: 58 | G100: 60 | H100: 49.15% | I100: 50.85% | J100: 4.800000191 | K100: 0.69 | L100: 41 | M100: 77 | N100: 34.75% | O100: 65.25% | P100: 15.80000019 | Q100: 0.72 | R100: 47 | S100: 71 | T100: 39.83% | U100: 60.17% | V100: 3.900000095 | W100: 0.64 | X100: 77 | Y100: 41 | Z100: 65.25% | AA100: 34.75% | AB100: 4.400000095 | AC100: 0.56 | AD100: 79 | AE100: 39 | AF100: 66.95% | AG100: 33.05%
A101: 8101 | B101: 8101 Jan Mann Opp. Center | C101: 17 | D101: 14.89999962 | E101: 0.35 | F101: 16 | G101: 1 | H101: 94.12% | I101: 5.88% | J101: 2.900000095 | K101: 0.42 | L101: 13 | M101: 4 | N101: 76.47% | O101: 23.53% | P101: 7.900000095 | Q101: 0.36 | R101: 16 | S101: 1 | T101: 94.12% | U101: 5.88% | V101: 1.799999952 | W101: 0.3 | X101: 17 | Z101: 100.00% | AB101: 2.299999952 | AC101: 0.29 | AD101: 17 | AF101: 100.00%
A102: 8121 | B102: 8121 C.O.P.E. Center North | C102: 17 | D102: 17.20000076 | E102: 0.4 | F102: 16 | G102: 1 | H102: 94.12% | I102: 5.88% | J102: 3.200000048 | K102: 0.46 | L102: 14 | M102: 3 | N102: 82.35% | O102: 17.65% | P102: 8.899999619 | Q102: 0.41 | R102: 15 | S102: 2 | T102: 88.24% | U102: 11.76% | V102: 2.5 | W102: 0.41 | X102: 17 | Z102: 100.00% | AB102: 2.599999905 | AC102: 0.33 | AD102: 17 | AF102: 100.00%
A103: 8131 | B103: 8131 Dorothy M. Wallace COPE Center | C103: 8 | D103: 16.39999962 | E103: 0.38 | F103: 8 | H103: 100.00% | J103: 3.299999952 | K103: 0.47 | L103: 7 | M103: 1 | N103: 87.50% | O103: 12.50% | P103: 8.5 | Q103: 0.39 | R103: 8 | T103: 100.00% | V103: 2.400000095 | W103: 0.4 | X103: 8 | Z103: 100.00% | AB103: 2.299999952 | AC103: 0.28 | AD103: 8 | AF103: 100.00%
A104: 8141 | B104: 8141 Juvenile Justice Center | C104: 16 | D104: 10.39999962 | E104: 0.24 | F104: 16 | H104: 100.00% | J104: 1.899999976 | K104: 0.27 | L104: 15 | M104: 1 | N104: 93.75% | O104: 6.25% | P104: 5.300000191 | Q104: 0.24 | R104: 15 | S104: 1 | T104: 93.75% | U104: 6.25% | V104: 1.600000024 | W104: 0.27 | X104: 16 | Z104: 100.00% | AB104: 1.700000048 | AC104: 0.21 | AD104: 16 | AF104: 100.00%
C105: =SUM(C14:C104) -> 25750
A106: 9999 | B106: 9999 DISTRICT | C106: 24961 | D106: 23.20000076 | E106: 0.54 | F106: 18815 | G106: 6146 | H106: 75.38% | I106: 24.62% | J106: 4 | K106: 0.57 | L106: 14453 | M106: 10508 | N106: 57.90% | O106: 42.10% | P106: 12.5 | Q106: 0.57 | R106: 16830 | S106: 8131 | T106: 67.43% | U106: 32.57% | V106: 3 | W106: 0.5 | X106: 20944 | Y106: 4017 | Z106: 83.91% | AA106: 16.09% | AB106: 3.700000048 | AC106: 0.47 | AD106: 19587 | AE106: 5374 | AF106: 78.47% | AG106: 21.53%
C107: 789
A143: =IFERROR(VALUE(LEFT(B143,4)),"") -> 
A207: =IFERROR(VALUE(LEFT(B207,4)),"") -> 
A271: =IFERROR(VALUE(LEFT(B271,4)),"") -> 

Sheet BLG10BM-R (hidden)
B1: R-G10-BM-SCHL-ALL
B3: Description: | C3: Reading, G10, BM, School, All
B4: Student Selection: | C4: All Schools | 2011-2012 Fall, 2011-2012 School Year
B5: Group By Data: | C5: School
B6: Assessments: | C6: Baseline 2011 - Grade 10 Reading AUGUST 2011 Teacher __________ Period _____
B7: Scores: | C7: Overall Avg Raw Score, Overall Avg % Correct, Standards Avg Raw Score, Standards Avg % Correct
B8: Author Name: | C8: Yuwadee Wongbundhit
A9: =COLUMN() -> 1 | B9: =COLUMN() -> 2 | C9: =COLUMN() -> 3 | D9: =COLUMN() -> 4 | E9: =COLUMN() -> 5 | F9: =COLUMN() -> 6 | G9: =COLUMN() -> 7 | H9: =COLUMN() -> 8 | I9: =COLUMN() -> 9 | J9: =COLUMN() -> 10 | K9: =COLUMN() -> 11 | L9: =COLUMN() -> 12 | M9: =COLUMN() -> 13 | N9: =COLUMN() -> 14 | O9: =COLUMN() -> 15 | P9: =COLUMN() -> 16 | Q9: =COLUMN() -> 17 | R9: =COLUMN() -> 18 | S9: =COLUMN() -> 19 | T9: =COLUMN() -> 20 | U9: =COLUMN() -> 21 | V9: =COLUMN() -> 22 | W9: =COLUMN() -> 23 | X9: =COLUMN() -> 24 | Y9: =COLUMN() -> 25 | Z9: =COLUMN() -> 26 | AA9: =COLUMN() -> 27 | AB9: =COLUMN() -> 28 | AC9: =COLUMN() -> 29
B10: Total Row(s): 77 Generated on Sep-17-2011 by Yuwadee Wongbundhit | C10: Baseline 2011 - Grade 10 Reading AUGUST 2011 Teacher __________ Period _____
C11: Total # students | D11: Overall (36 pts max) | F11: LA.910.1--LA.910.1.6: Benchmark LA.910.1.6.3 | H11: LA.910.1--LA.910.1.6: Benchmark LA.910.1.6.8 | J11: LA.910.1--LA.910.1.6: Benchmark LA.910.1.6.9 | L11: LA.910.1--LA.910.1.7: Benchmark LA.910.1.7.2 | N11: LA.910.1--LA.910.1.7: Benchmark LA.910.1.7.3 | P11: LA.910.1--LA.910.1.7: Benchmark LA.910.1.7.4 | R11: LA.910.1--LA.910.1.7: Benchmark LA.910.1.7.5 | T11: LA.910.1--LA.910.1.7: Benchmark LA.910.1.7.7 | V11: LA.910.2--LA.910.2.1: Benchmark LA.910.2.1.5 | X11: LA.910.2--LA.910.2.1: Benchmark LA.910.2.1.7 | Z11: LA.910.6--LA.910.6.1: Benchmark LA.910.6.1.1 | AB11: LA.910.6--LA.910.6.2: Benchmark LA.910.6.2.2
D12: Avg Raw Score | E12: Avg % Correct | F12: Avg Raw Score | G12: Avg % Correct | H12: Avg Raw Score | I12: Avg % Correct | J12: Avg Raw Score | K12: Avg % Correct | L12: Avg Raw Score | M12: Avg % Correct | N12: Avg Raw Score | O12: Avg % Correct | P12: Avg Raw Score | Q12: Avg % Correct | R12: Avg Raw Score | S12: Avg % Correct | T12: Avg Raw Score | U12: Avg % Correct | V12: Avg Raw Score | W12: Avg % Correct | X12: Avg Raw Score | Y12: Avg % Correct | Z12: Avg Raw Score | AA12: Avg % Correct | AB12: Avg Raw Score | AC12: Avg % Correct
B13: School Name | E13: 36 | G13: 2 | I13: 1 | K13: 2 | M13: 4 | O13: 5 | Q13: 2 | S13: 1 | U13: 3 | W13: 5 | Y13: 1 | AA13: 3 | AC13: 7
A14: =IFERROR(VALUE(LEFT(B14,4)),"") -> 6040 | B14: 6040 Doctors Charter School Of Miami Shores | C14: 82 | D14: 26 | E14: 0.72 | F14: 1.700000048 | G14: 0.85 | H14: 0.8999999762 | I14: 0.89 | J14: 1.700000048 | K14: 0.87 | L14: 3.400000095 | M14: 0.85 | N14: 3.599999905 | O14: 0.73 | P14: 1.299999952 | Q14: 0.65 | R14: 0.8999999762 | S14: 0.85 | T14: 2.200000048 | U14: 0.74 | V14: 3 | W14: 0.6 | X14: 0.6000000238 | Y14: 0.62 | Z14: 1.899999976 | AA14: 0.64 | AB14: 4.699999809 | AC14: 0.68
A15: 7007 | B15: 7007 International Studies Charter High School | C15: 87 | D15: 23.60000038 | E15: 0.65 | F15: 1.600000024 | G15: 0.8 | H15: 0.8000000119 | I15: 0.79 | J15: 1.5 | K15: 0.74 | L15: 3.200000048 | M15: 0.8 | N15: 3.400000095 | O15: 0.68 | P15: 1.299999952 | Q15: 0.65 | R15: 0.8000000119 | S15: 0.84 | T15: 1.899999976 | U15: 0.63 | V15: 2.5 | W15: 0.49 | X15: 0.6000000238 | Y15: 0.56 | Z15: 1.600000024 | AA15: 0.55 | AB15: 4.400000095 | AC15: 0.62
A16: 7009 | B16: 7009 Doral Performing Arts Academy | C16: 47 | D16: 23.60000038 | E16: 0.66 | F16: 1.700000048 | G16: 0.86 | H16: 0.8000000119 | I16: 0.77 | J16: 1.600000024 | K16: 0.8 | L16: 3.400000095 | M16: 0.85 | N16: 3.400000095 | O16: 0.68 | P16: 1.100000024 | Q16: 0.55 | R16: 0.8000000119 | S16: 0.83 | T16: 1.899999976 | U16: 0.63 | V16: 2.299999952 | W16: 0.46 | X16: 0.5 | Y16: 0.53 | Z16: 1.600000024 | AA16: 0.54 | AB16: 4.400000095 | AC16: 0.63
A17: 7011 | B17: 7011 American Senior High School | C17: 490 | D17: 19.10000038 | E17: 0.53 | F17: 1.399999976 | G17: 0.69 | H17: 0.5 | I17: 0.51 | J17: 1.100000024 | K17: 0.56 | L17: 2.599999905 | M17: 0.65 | N17: 2.799999952 | O17: 0.57 | P17: 0.8999999762 | Q17: 0.46 | R17: 0.5 | S17: 0.53 | T17: 1.700000048 | U17: 0.56 | V17: 2.099999905 | W17: 0.42 | X17: 0.400000006 | Y17: 0.38 | Z17: 1.399999976 | AA17: 0.46 | AB17: 3.599999905 | AC17: 0.52
A18: 7014 | B18: 7014 Mater Performing Arts & Entertainment Academy | C18: 91 | D18: 25.10000038 | E18: 0.7 | F18: 1.600000024 | G18: 0.8 | H18: 0.6999999881 | I18: 0.74 | J18: 1.600000024 | K18: 0.79 | L18: 3.299999952 | M18: 0.84 | N18: 3.5 | O18: 0.71 | P18: 1.200000048 | Q18: 0.61 | R18: 0.8999999762 | S18: 0.9 | T18: 2.099999905 | U18: 0.72 | V18: 2.900000095 | W18: 0.58 | X18: 0.5 | Y18: 0.47 | Z18: 1.799999952 | AA18: 0.61 | AB18: 4.800000191 | AC18: 0.69
A19: 7018 | B19: 7018 Mater Academy Lakes High School | C19: 201 | D19: 22.60000038 | E19: 0.63 | F19: 1.5 | G19: 0.77 | H19: 0.6999999881 | I19: 0.73 | J19: 1.399999976 | K19: 0.72 | L19: 3.099999905 | M19: 0.77 | N19: 3.200000048 | O19: 0.65 | P19: 1.100000024 | Q19: 0.57 | R19: 0.6999999881 | S19: 0.72 | T19: 1.700000048 | U19: 0.58 | V19: 2.5 | W19: 0.5 | X19: 0.400000006 | Y19: 0.42 | Z19: 1.600000024 | AA19: 0.55 | AB19: 4.400000095 | AC19: 0.63
A20: 7020 | B20: 7020 Doral Academy High School | C20: 247 | D20: 22.70000076 | E20: 0.63 | F20: 1.5 | G20: 0.77 | H20: 0.6999999881 | I20: 0.67 | J20: 1.399999976 | K20: 0.71 | L20: 3.099999905 | M20: 0.78 | N20: 3.400000095 | O20: 0.67 | P20: 1.100000024 | Q20: 0.56 | R20: 0.6999999881 | S20: 0.72 | T20: 2 | U20: 0.65 | V20: 2.400000095 | W20: 0.49 | X20: 0.400000006 | Y20: 0.44 | Z20: 1.700000048 | AA20: 0.57 | AB20: 4.199999809 | AC20: 0.6
A21: 7022 | B21: 7022 Academy Of Arts And Minds | C21: 123 | D21: 25 | E21: 0.69 | F21: 1.600000024 | G21: 0.82 | H21: 0.8000000119 | I21: 0.83 | J21: 1.5 | K21: 0.74 | L21: 3.400000095 | M21: 0.84 | N21: 3.400000095 | O21: 0.68 | P21: 1.299999952 | Q21: 0.63 | R21: 0.8999999762 | S21: 0.88 | T21: 2 | U21: 0.66 | V21: 3 | W21: 0.6 | X21: 0.6000000238 | Y21: 0.6 | Z21: 1.899999976 | AA21: 0.62 | AB21: 4.699999809 | AC21: 0.67
A22: 7024 | B22: 7024 Mater Academy HS of International Studies | C22: 27 | D22: 26.29999924 | E22: 0.73 | F22: 1.700000048 | G22: 0.87 | H22: 0.8999999762 | I22: 0.89 | J22: 1.700000048 | K22: 0.85 | L22: 3.299999952 | M22: 0.82 | N22: 3.799999952 | O22: 0.76 | P22: 1.299999952 | Q22: 0.63 | R22: 0.8000000119 | S22: 0.81 | T22: 2 | U22: 0.65 | V22: 3.200000048 | W22: 0.64 | X22: 0.6000000238 | Y22: 0.56 | Z22: 1.700000048 | AA22: 0.58 | AB22: 5.300000191 | AC22: 0.75
A23: 7029 | B23: 7029 Terra Environmental Institute | C23: 428 | D23: 26.10000038 | E23: 0.72 | F23: 1.700000048 | G23: 0.87 | H23: 0.8999999762 | I23: 0.88 | J23: 1.600000024 | K23: 0.82 | L23: 3.5 | M23: 0.87 | N23: 3.700000048 | O23: 0.75 | P23: 1.299999952 | Q23: 0.67 | R23: 0.8000000119 | S23: 0.82 | T23: 2.099999905 | U23: 0.7 | V23: 3.099999905 | W23: 0.61 | X23: 0.6000000238 | Y23: 0.61 | Z23: 1.899999976 | AA23: 0.64 | AB23: 4.699999809 | AC23: 0.67
A24: 7033 | B24: 7033 Law Enforcement Officers Memorial High | C24: 116 | D24: 24.10000038 | E24: 0.67 | F24: 1.700000048 | G24: 0.85 | H24: 0.8000000119 | I24: 0.77 | J24: 1.5 | K24: 0.75 | L24: 3.299999952 | M24: 0.81 | N24: 3.599999905 | O24: 0.71 | P24: 1.100000024 | Q24: 0.56 | R24: 0.8000000119 | S24: 0.79 | T24: 1.899999976 | U24: 0.64 | V24: 2.900000095 | W24: 0.57 | X24: 0.400000006 | Y24: 0.44 | Z24: 1.700000048 | AA24: 0.56 | AB24: 4.5 | AC24: 0.65
A25: 7034 | B25: 7034 Somerset Academy Charter High South Campus | C25: 8 | D25: 21.89999962 | E25: 0.61 | F25: 1.299999952 | G25: 0.63 | H25: 0.8000000119 | I25: 0.75 | J25: 1.399999976 | K25: 0.69 | L25: 3.299999952 | M25: 0.81 | N25: 2.900000095 | O25: 0.58 | P25: 0.8000000119 | Q25: 0.38 | R25: 0.6000000238 | S25: 0.63 | T25: 2.299999952 | U25: 0.75 | V25: 2.299999952 | W25: 0.45 | X25: 0.5 | Y25: 0.5 | Z25: 1.600000024 | AA25: 0.54 | AB25: 4.400000095 | AC25: 0.62
A26: 7036 | B26: 7036 Lawrence Academy Senior High Charter School | C26: 21 | D26: 19.29999924 | E26: 0.54 | F26: 1.399999976 | G26: 0.71 | H26: 0.5 | I26: 0.48 | J26: 1 | K26: 0.5 | L26: 2.5 | M26: 0.63 | N26: 2.599999905 | O26: 0.52 | P26: 0.8999999762 | Q26: 0.43 | R26: 0.400000006 | S26: 0.43 | T26: 2 | U26: 0.67 | V26: 2 | W26: 0.4 | X26: 0.6000000238 | Y26: 0.57 | Z26: 1.299999952 | AA26: 0.43 | AB26: 4.099999905 | AC26: 0.59
A27: 7037 | B27: 7037 Mater Academy East Charter High School | C27: 61 | D27: 23.29999924 | E27: 0.65 | F27: 1.5 | G27: 0.77 | H27: 0.6000000238 | I27: 0.64 | J27: 1.299999952 | K27: 0.64 | L27: 3 | M27: 0.76 | N27: 3.5 | O27: 0.7 | P27: 1.200000048 | Q27: 0.61 | R27: 0.6999999881 | S27: 0.72 | T27: 1.899999976 | U27: 0.63 | V27: 2.400000095 | W27: 0.48 | X27: 0.5 | Y27: 0.52 | Z27: 1.600000024 | AA27: 0.54 | AB27: 4.900000095 | AC27: 0.7
A28: 7042 | B28: 7042 Somerset Academy Charter High School | C28: 112 | D28: 20.89999962 | E28: 0.58 | F28: 1.5 | G28: 0.77 | H28: 0.6000000238 | I28: 0.61 | J28: 1.299999952 | K28: 0.66 | L28: 3 | M28: 0.76 | N28: 3.099999905 | O28: 0.62 | P28: 1 | Q28: 0.49 | R28: 0.6000000238 | S28: 0.64 | T28: 1.700000048 | U28: 0.55 | V28: 2.299999952 | W28: 0.46 | X28: 0.400000006 | Y28: 0.41 | Z28: 1.299999952 | AA28: 0.45 | AB28: 4 | AC28: 0.57
A29: 7048 | B29: 7048 Alonzo Andtracy Mourning High (Biscanye Bay) | C29: 394 | D29: 21.70000076 | E29: 0.6 | F29: 1.600000024 | G29: 0.8 | H29: 0.6000000238 | I29: 0.63 | J29: 1.299999952 | K29: 0.66 | L29: 2.900000095 | M29: 0.73 | N29: 3.299999952 | O29: 0.65 | P29: 1.100000024 | Q29: 0.53 | R29: 0.6999999881 | S29: 0.7 | T29: 1.700000048 | U29: 0.58 | V29: 2.400000095 | W29: 0.48 | X29: 0.5 | Y29: 0.47 | Z29: 1.600000024 | AA29: 0.53 | AB29: 4 | AC29: 0.57
A30: 7049 | B30: 7049 Westland Hialeah Senior | C30: 516 | D30: 18.60000038 | E30: 0.52 | F30: 1.299999952 | G30: 0.63 | H30: 0.5 | I30: 0.52 | J30: 1.100000024 | K30: 0.55 | L30: 2.599999905 | M30: 0.64 | N30: 2.799999952 | O30: 0.55 | P30: 0.8999999762 | Q30: 0.43 | R30: 0.6000000238 | S30: 0.56 | T30: 1.600000024 | U30: 0.53 | V30: 2 | W30: 0.4 | X30: 0.400000006 | Y30: 0.38 | Z30: 1.399999976 | AA30: 0.45 | AB30: 3.700000048 | AC30: 0.52
A31: 7051 | B31: 7051 G Holmes Braddock Senior High | C31: 773 | D31: 19.70000076 | E31: 0.55 | F31: 1.299999952 | G31: 0.67 | H31: 0.6000000238 | I31: 0.58 | J31: 1.200000048 | K31: 0.59 | L31: 2.700000048 | M31: 0.68 | N31: 2.900000095 | O31: 0.58 | P31: 1 | Q31: 0.48 | R31: 0.6000000238 | S31: 0.59 | T31: 1.600000024 | U31: 0.54 | V31: 2.200000048 | W31: 0.44 | X31: 0.3000000119 | Y31: 0.35 | Z31: 1.5 | AA31: 0.49 | AB31: 3.799999952 | AC31: 0.54
A32: 7053 | B32: 7053 Pinecrest Preparatory Academy Charter HS | C32: 55 | D32: 19.89999962 | E32: 0.55 | F32: 1.399999976 | G32: 0.72 | H32: 0.6000000238 | I32: 0.58 | J32: 1.200000048 | K32: 0.58 | L32: 2.599999905 | M32: 0.65 | N32: 2.799999952 | O32: 0.56 | P32: 0.8999999762 | Q32: 0.44 | R32: 0.6000000238 | S32: 0.6 | T32: 1.700000048 | U32: 0.56 | V32: 2.200000048 | W32: 0.44 | X32: 0.3000000119 | Y32: 0.35 | Z32: 1.399999976 | AA32: 0.47 | AB32: 4.199999809 | AC32: 0.6
A33: 7054 | B33: 7054 Excelsior Charter High School | C33: 20 | D33: 16.89999962 | E33: 0.47 | F33: 1.200000048 | G33: 0.6 | H33: 0.6999999881 | I33: 0.7 | J33: 1.100000024 | K33: 0.55 | L33: 2.099999905 | M33: 0.52 | N33: 2.5 | O33: 0.49 | P33: 0.6999999881 | Q33: 0.35 | R33: 0.6000000238 | S33: 0.55 | T33: 1.600000024 | U33: 0.53 | V33: 1.899999976 | W33: 0.37 | X33: 0.400000006 | Y33: 0.4 | Z33: 0.8999999762 | AA33: 0.3 | AB33: 3.299999952 | AC33: 0.47
A34: 7055 | B34: 7055 Young Women's Preparatory Academy | C34: 41 | D34: 28.20000076 | E34: 0.78 | F34: 1.700000048 | G34: 0.85 | H34: 0.8999999762 | I34: 0.9 | J34: 1.700000048 | K34: 0.85 | L34: 3.599999905 | M34: 0.89 | N34: 3.900000095 | O34: 0.79 | P34: 1.5 | Q34: 0.74 | R34: 1 | S34: 0.98 | T34: 2.400000095 | U34: 0.79 | V34: 3.700000048 | W34: 0.75 | X34: 0.6999999881 | Y34: 0.71 | Z34: 2 | AA34: 0.67 | AB34: 5.099999905 | AC34: 0.73
A35: 7056 | B35: 7056 Young Men's Preparatory High School | C35: 32 | D35: 18.79999924 | E35: 0.52 | F35: 1.5 | G35: 0.75 | H35: 0.5 | I35: 0.47 | J35: 1 | K35: 0.5 | L35: 2.599999905 | M35: 0.64 | N35: 2.900000095 | O35: 0.58 | P35: 0.8999999762 | Q35: 0.47 | R35: 0.5 | S35: 0.53 | T35: 1.899999976 | U35: 0.63 | V35: 1.799999952 | W35: 0.36 | X35: 0.5 | Y35: 0.53 | Z35: 1.299999952 | AA35: 0.42 | AB35: 3.400000095 | AC35: 0.49
A36: 7058 | B36: 7058 Miami Community Charter High | C36: 22 | D36: 18.70000076 | E36: 0.52 | F36: 1.399999976 | G36: 0.7 | H36: 0.400000006 | I36: 0.41 | J36: 1 | K36: 0.52 | L36: 2.5 | M36: 0.64 | N36: 3 | O36: 0.59 | P36: 0.8999999762 | Q36: 0.45 | R36: 0.400000006 | S36: 0.41 | T36: 1.5 | U36: 0.5 | V36: 2 | W36: 0.4 | X36: 0.400000006 | Y36: 0.36 | Z36: 1 | AA36: 0.33 | AB36: 4.099999905 | AC36: 0.59
A37: 7059 | B37: 7059 Miami Arts Charter | C37: 75 | D37: 26 | E37: 0.72 | F37: 1.799999952 | G37: 0.91 | H37: 0.8999999762 | I37: 0.87 | J37: 1.600000024 | K37: 0.79 | L37: 3.599999905 | M37: 0.89 | N37: 3.799999952 | O37: 0.75 | P37: 1.299999952 | Q37: 0.65 | R37: 0.8999999762 | S37: 0.91 | T37: 2.200000048 | U37: 0.73 | V37: 3 | W37: 0.59 | X37: 0.5 | Y37: 0.55 | Z37: 1.899999976 | AA37: 0.62 | AB37: 4.599999905 | AC37: 0.66
A38: 7062 | B38: 7062 Mavericks High Of North Miami Dade County | C38: 1 | D38: 13 | E38: 0.36 | F38: 2 | G38: 1 | H38: 0 | I38: 0 | J38: 1 | K38: 0.5 | L38: 3 | M38: 0.75 | N38: 3 | O38: 0.6 | P38: 0 | Q38: 0 | R38: 0 | S38: 0 | T38: 1 | U38: 0.33 | V38: 1 | W38: 0.2 | X38: 0 | Y38: 0 | Z38: 1 | AA38: 0.33 | AB38: 1 | AC38: 0.14
A39: 7065 | B39: 7065 Mavericks High Of South Miami Dade County | C39: 28 | D39: 19.39999962 | E39: 0.54 | F39: 1.600000024 | G39: 0.82 | H39: 0.5 | I39: 0.5 | J39: 1.399999976 | K39: 0.68 | L39: 2.799999952 | M39: 0.69 | N39: 2.700000048 | O39: 0.54 | P39: 1.200000048 | Q39: 0.61 | R39: 0.6000000238 | S39: 0.57 | T39: 1.600000024 | U39: 0.54 | V39: 1.899999976 | W39: 0.38 | X39: 0.3000000119 | Y39: 0.25 | Z39: 1.399999976 | AA39: 0.45 | AB39: 3.5 | AC39: 0.5
A40: 7067 | B40: 7067 Florida High School Of Accelerated Learning- | C40: 35 | D40: 15.89999962 | E40: 0.44 | F40: 1.299999952 | G40: 0.66 | H40: 0.3000000119 | I40: 0.31 | J40: 0.8999999762 | K40: 0.47 | L40: 2.099999905 | M40: 0.52 | N40: 2.5 | O40: 0.49 | P40: 0.8000000119 | Q40: 0.41 | R40: 0.400000006 | S40: 0.4 | T40: 1.200000048 | U40: 0.4 | V40: 1.600000024 | W40: 0.31 | X40: 0.3000000119 | Y40: 0.31 | Z40: 1.100000024 | AA40: 0.36 | AB40: 3.400000095 | AC40: 0.48
A41: 7068 | B41: 7068 North Gardens High School | C41: 22 | D41: 17.20000076 | E41: 0.48 | F41: 1.399999976 | G41: 0.7 | H41: 0.5 | I41: 0.45 | J41: 1.200000048 | K41: 0.61 | L41: 2 | M41: 0.49 | N41: 3 | O41: 0.61 | P41: 1 | Q41: 0.48 | R41: 0.5 | S41: 0.5 | T41: 1.200000048 | U41: 0.41 | V41: 1.700000048 | W41: 0.34 | X41: 0.3000000119 | Y41: 0.32 | Z41: 1.200000048 | AA41: 0.41 | AB41: 3.200000048 | AC41: 0.45
A42: 7071 | B42: 7071 Coral Gables Senior High School | C42: 742 | D42: 18 | E42: 0.5 | F42: 1.299999952 | G42: 0.65 | H42: 0.5 | I42: 0.45 | J42: 1 | K42: 0.51 | L42: 2.599999905 | M42: 0.64 | N42: 2.799999952 | O42: 0.55 | P42: 0.8999999762 | Q42: 0.45 | R42: 0.5 | S42: 0.53 | T42: 1.600000024 | U42: 0.52 | V42: 1.799999952 | W42: 0.36 | X42: 0.400000006 | Y42: 0.37 | Z42: 1.399999976 | AA42: 0.45 | AB42: 3.299999952 | AC42: 0.48
A43: 7081 | B43: 7081 DASH | C43: 124 | D43: 26.70000076 | E43: 0.74 | F43: 1.700000048 | G43: 0.86 | H43: 0.8999999762 | I43: 0.87 | J43: 1.700000048 | K43: 0.83 | L43: 3.5 | M43: 0.89 | N43: 3.900000095 | O43: 0.79 | P43: 1.399999976 | Q43: 0.7 | R43: 0.8999999762 | S43: 0.88 | T43: 2.200000048 | U43: 0.72 | V43: 3.200000048 | W43: 0.64 | X43: 0.6000000238 | Y43: 0.58 | Z43: 1.899999976 | AA43: 0.63 | AB43: 4.900000095 | AC43: 0.7
A44: 7101 | B44: 7101 Coral Reef Senior High School | C44: 879 | D44: 26.39999962 | E44: 0.73 | F44: 1.700000048 | G44: 0.87 | H44: 0.8999999762 | I44: 0.88 | J44: 1.700000048 | K44: 0.83 | L44: 3.5 | M44: 0.88 | N44: 3.799999952 | O44: 0.76 | P44: 1.399999976 | Q44: 0.69 | R44: 0.8000000119 | S44: 0.85 | T44: 2.099999905 | U44: 0.71 | V44: 3.200000048 | W44: 0.63 | X44: 0.6000000238 | Y44: 0.59 | Z44: 1.899999976 | AA44: 0.64 | AB44: 4.699999809 | AC44: 0.68
A45: 7111 | B45: 7111 Hialeah Senior high | C45: 737 | D45: 19.60000038 | E45: 0.54 | F45: 1.299999952 | G45: 0.66 | H45: 0.5 | I45: 0.55 | J45: 1.200000048 | K45: 0.58 | L45: 2.5 | M45: 0.64 | N45: 3 | O45: 0.6 | P45: 1 | Q45: 0.48 | R45: 0.6000000238 | S45: 0.63 | T45: 1.600000024 | U45: 0.54 | V45: 2.200000048 | W45: 0.44 | X45: 0.3000000119 | Y45: 0.35 | Z45: 1.399999976 | AA45: 0.47 | AB45: 3.900000095 | AC45: 0.55
A46: 7121 | B46: 7121 John A. Ferguson Senior High School | C46: 1026 | D46: 22.10000038 | E46: 0.61 | F46: 1.5 | G46: 0.75 | H46: 0.6999999881 | I46: 0.68 | J46: 1.299999952 | K46: 0.66 | L46: 3 | M46: 0.75 | N46: 3.299999952 | O46: 0.65 | P46: 1.100000024 | Q46: 0.54 | R46: 0.6999999881 | S46: 0.69 | T46: 1.899999976 | U46: 0.63 | V46: 2.400000095 | W46: 0.47 | X46: 0.5 | Y46: 0.45 | Z46: 1.700000048 | AA46: 0.56 | AB46: 4.099999905 | AC46: 0.59
A47: 7131 | B47: 7131 Hialeah-Miami Lakes Senior High | C47: 378 | D47: 19.5 | E47: 0.54 | F47: 1.399999976 | G47: 0.68 | H47: 0.6000000238 | I47: 0.58 | J47: 1.200000048 | K47: 0.6 | L47: 2.5 | M47: 0.64 | N47: 3 | O47: 0.59 | P47: 0.8999999762 | Q47: 0.47 | R47: 0.6000000238 | S47: 0.56 | T47: 1.600000024 | U47: 0.54 | V47: 2.200000048 | W47: 0.43 | X47: 0.400000006 | Y47: 0.37 | Z47: 1.399999976 | AA47: 0.46 | AB47: 3.799999952 | AC47: 0.54
A48: 7141 | B48: 7141 Dr. Michael M. Krop Senior High School | C48: 744 | D48: 22.89999962 | E48: 0.64 | F48: 1.600000024 | G48: 0.8 | H48: 0.6999999881 | I48: 0.75 | J48: 1.399999976 | K48: 0.72 | L48: 3.099999905 | M48: 0.77 | N48: 3.400000095 | O48: 0.67 | P48: 1.100000024 | Q48: 0.54 | R48: 0.6999999881 | S48: 0.72 | T48: 1.799999952 | U48: 0.62 | V48: 2.599999905 | W48: 0.53 | X48: 0.6000000238 | Y48: 0.56 | Z48: 1.5 | AA48: 0.51 | AB48: 4.300000191 | AC48: 0.61
A49: 7151 | B49: 7151 Homestead Sr. High School | C49: 467 | D49: 16.29999924 | E49: 0.45 | F49: 1.299999952 | G49: 0.65 | H49: 0.400000006 | I49: 0.38 | J49: 1 | K49: 0.49 | L49: 2.099999905 | M49: 0.54 | N49: 2.400000095 | O49: 0.49 | P49: 0.8000000119 | Q49: 0.4 | R49: 0.5 | S49: 0.48 | T49: 1.5 | U49: 0.49 | V49: 1.799999952 | W49: 0.35 | X49: 0.3000000119 | Y49: 0.32 | Z49: 1.200000048 | AA49: 0.4 | AB49: 3 | AC49: 0.44
A50: 7160 | B50: 7160 Mater Academy High | C50: 343 | D50: 22.79999924 | E50: 0.63 | F50: 1.5 | G50: 0.76 | H50: 0.6999999881 | I50: 0.73 | J50: 1.399999976 | K50: 0.72 | L50: 3.099999905 | M50: 0.78 | N50: 3.299999952 | O50: 0.66 | P50: 1.100000024 | Q50: 0.55 | R50: 0.6999999881 | S50: 0.72 | T50: 1.899999976 | U50: 0.62 | V50: 2.599999905 | W50: 0.52 | X50: 0.400000006 | Y50: 0.43 | Z50: 1.600000024 | AA50: 0.54 | AB50: 4.400000095 | AC50: 0.62
A51: 7161 | B51: 7161 MAST Academy | C51: 142 | D51: 28.79999924 | E51: 0.8 | F51: 1.899999976 | G51: 0.93 | H51: 1 | I51: 0.97 | J51: 1.799999952 | K51: 0.89 | L51: 3.700000048 | M51: 0.92 | N51: 4.099999905 | O51: 0.82 | P51: 1.5 | Q51: 0.73 | R51: 1 | S51: 0.96 | T51: 2.299999952 | U51: 0.78 | V51: 3.700000048 | W51: 0.75 | X51: 0.6000000238 | Y51: 0.58 | Z51: 2 | AA51: 0.68 | AB51: 5.300000191 | AC51: 0.76
A52: 7171 | B52: 7171 M.A.S.T At Homestead | C52: 78 | D52: 22.5 | E52: 0.63 | F52: 1.600000024 | G52: 0.8 | H52: 0.6999999881 | I52: 0.65 | J52: 1.399999976 | K52: 0.69 | L52: 3 | M52: 0.75 | N52: 3.099999905 | O52: 0.62 | P52: 1.100000024 | Q52: 0.56 | R52: 0.8000000119 | S52: 0.76 | T52: 1.899999976 | U52: 0.62 | V52: 2.700000048 | W52: 0.53 | X52: 0.400000006 | Y52: 0.44 | Z52: 1.700000048 | AA52: 0.56 | AB52: 4.199999809 | AC52: 0.6
A53: 7191 | B53: 7191 Hialeah Gardens High School | C53: 648 | D53: 20.29999924 | E53: 0.56 | F53: 1.299999952 | G53: 0.67 | H53: 0.6000000238 | I53: 0.6 | J53: 1.200000048 | K53: 0.6 | L53: 2.700000048 | M53: 0.68 | N53: 3 | O53: 0.6 | P53: 1 | Q53: 0.52 | R53: 0.6000000238 | S53: 0.59 | T53: 1.700000048 | U53: 0.57 | V53: 2.299999952 | W53: 0.47 | X53: 0.400000006 | Y53: 0.37 | Z53: 1.399999976 | AA53: 0.48 | AB53: 3.900000095 | AC53: 0.56
A54: 7201 | B54: 7201 Miami Beach Senior high School | C54: 605 | D54: 20.5 | E54: 0.57 | F54: 1.5 | G54: 0.74 | H54: 0.6000000238 | I54: 0.55 | J54: 1.100000024 | K54: 0.57 | L54: 2.900000095 | M54: 0.72 | N54: 3.099999905 | O54: 0.61 | P54: 1 | Q54: 0.49 | R54: 0.6000000238 | S54: 0.62 | T54: 1.700000048 | U54: 0.58 | V54: 2.200000048 | W54: 0.45 | X54: 0.5 | Y54: 0.47 | Z54: 1.600000024 | AA54: 0.52 | AB54: 3.799999952 | AC54: 0.54
A55: 7231 | B55: 7231 Miami Carol City Sr. High | C55: 327 | D55: 17.89999962 | E55: 0.5 | F55: 1.5 | G55: 0.74 | H55: 0.5 | I55: 0.45 | J55: 1.100000024 | K55: 0.56 | L55: 2.299999952 | M55: 0.57 | N55: 2.700000048 | O55: 0.54 | P55: 0.8999999762 | Q55: 0.43 | R55: 0.5 | S55: 0.5 | T55: 1.600000024 | U55: 0.54 | V55: 1.799999952 | W55: 0.37 | X55: 0.400000006 | Y55: 0.36 | Z55: 1.299999952 | AA55: 0.44 | AB55: 3.400000095 | AC55: 0.48
A56: 7241 | B56: 7241 Ronald W. Reagan/Doral Senior High | C56: 562 | D56: 22.20000076 | E56: 0.62 | F56: 1.5 | G56: 0.75 | H56: 0.6000000238 | I56: 0.65 | J56: 1.299999952 | K56: 0.66 | L56: 3 | M56: 0.76 | N56: 3.299999952 | O56: 0.66 | P56: 1.100000024 | Q56: 0.54 | R56: 0.6999999881 | S56: 0.69 | T56: 1.799999952 | U56: 0.6 | V56: 2.5 | W56: 0.49 | X56: 0.5 | Y56: 0.52 | Z56: 1.600000024 | AA56: 0.54 | AB56: 4.199999809 | AC56: 0.6
A57: 7251 | B57: 7251 Miami Central Senior High | C57: 463 | D57: 17 | E57: 0.47 | F57: 1.399999976 | G57: 0.68 | H57: 0.400000006 | I57: 0.43 | J57: 1 | K57: 0.51 | L57: 2.099999905 | M57: 0.53 | N57: 2.700000048 | O57: 0.53 | P57: 0.8000000119 | Q57: 0.41 | R57: 0.5 | S57: 0.52 | T57: 1.5 | U57: 0.49 | V57: 1.700000048 | W57: 0.35 | X57: 0.400000006 | Y57: 0.37 | Z57: 1.200000048 | AA57: 0.41 | AB57: 3.200000048 | AC57: 0.46
A58: 7254 | B58: 7254 MacArthur North | C58: 1 | D58: 19 | E58: 0.53 | F58: 1 | G58: 0.5 | H58: 1 | I58: 1 | J58: 2 | K58: 1 | L58: 0 | M58: 0 | N58: 4 | O58: 0.8 | P58: 1 | Q58: 0.5 | R58: 0 | S58: 0 | T58: 2 | U58: 0.67 | V58: 1 | W58: 0.2 | X58: 0 | Y58: 0 | Z58: 2 | AA58: 0.67 | AB58: 5 | AC58: 0.71
A59: 7262 | B59: 7262 City of Hialeah Education Academy | C59: 110 | D59: 21.89999962 | E59: 0.61 | F59: 1.399999976 | G59: 0.7 | H59: 0.6999999881 | I59: 0.68 | J59: 1.399999976 | K59: 0.7 | L59: 2.799999952 | M59: 0.71 | N59: 3.200000048 | O59: 0.64 | P59: 1.100000024 | Q59: 0.56 | R59: 0.6000000238 | S59: 0.62 | T59: 1.799999952 | U59: 0.61 | V59: 2.5 | W59: 0.49 | X59: 0.5 | Y59: 0.45 | Z59: 1.600000024 | AA59: 0.52 | AB59: 4.300000191 | AC59: 0.62
A60: 7265 | B60: 7265 Archimedean Upper Conservatory | C60: 38 | D60: 27.60000038 | E60: 0.77 | F60: 1.899999976 | G60: 0.93 | H60: 0.8999999762 | I60: 0.92 | J60: 1.600000024 | K60: 0.79 | L60: 3.700000048 | M60: 0.93 | N60: 3.799999952 | O60: 0.76 | P60: 1.5 | Q60: 0.75 | R60: 0.8000000119 | S60: 0.84 | T60: 2.400000095 | U60: 0.8 | V60: 3.400000095 | W60: 0.68 | X60: 0.400000006 | Y60: 0.39 | Z60: 2 | AA60: 0.68 | AB60: 5.099999905 | AC60: 0.72
A61: 7271 | B61: 7271 Miami Coral Park Senior High School | C61: 717 | D61: 20.89999962 | E61: 0.58 | F61: 1.399999976 | G61: 0.72 | H61: 0.6000000238 | I61: 0.59 | J61: 1.299999952 | K61: 0.63 | L61: 2.799999952 | M61: 0.71 | N61: 3.099999905 | O61: 0.63 | P61: 1 | Q61: 0.52 | R61: 0.6000000238 | S61: 0.65 | T61: 1.799999952 | U61: 0.59 | V61: 2.200000048 | W61: 0.44 | X61: 0.400000006 | Y61: 0.4 | Z61: 1.5 | AA61: 0.51 | AB61: 4 | AC61: 0.57
A62: 7301 | B62: 7301 Miami Edison Senior High | C62: 233 | D62: 18.60000038 | E62: 0.52 | F62: 1.399999976 | G62: 0.72 | H62: 0.5 | I62: 0.53 | J62: 1.200000048 | K62: 0.61 | L62: 2.299999952 | M62: 0.57 | N62: 3 | O62: 0.6 | P62: 0.8999999762 | Q62: 0.45 | R62: 0.5 | S62: 0.49 | T62: 1.5 | U62: 0.49 | V62: 2.099999905 | W62: 0.43 | X62: 0.400000006 | Y62: 0.39 | Z62: 1.200000048 | AA62: 0.41 | AB62: 3.5 | AC62: 0.5
A63: 7341 | B63: 7341 Miami Jackson Senior High | C63: 287 | D63: 17.39999962 | E63: 0.48 | F63: 1.200000048 | G63: 0.62 | H63: 0.5 | I63: 0.48 | J63: 1 | K63: 0.52 | L63: 2.200000048 | M63: 0.55 | N63: 2.700000048 | O63: 0.54 | P63: 0.8999999762 | Q63: 0.43 | R63: 0.5 | S63: 0.51 | T63: 1.5 | U63: 0.49 | V63: 1.899999976 | W63: 0.38 | X63: 0.400000006 | Y63: 0.37 | Z63: 1.200000048 | AA63: 0.41 | AB63: 3.400000095 | AC63: 0.48
A64: 7361 | B64: 7361 Miami Killian Senior High | C64: 599 | D64: 20.60000038 | E64: 0.57 | F64: 1.5 | G64: 0.75 | H64: 0.6000000238 | I64: 0.62 | J64: 1.299999952 | K64: 0.63 | L64: 2.799999952 | M64: 0.69 | N64: 3.099999905 | O64: 0.61 | P64: 0.8999999762 | Q64: 0.47 | R64: 0.6000000238 | S64: 0.61 | T64: 1.799999952 | U64: 0.59 | V64: 2.299999952 | W64: 0.46 | X64: 0.5 | Y64: 0.47 | Z64: 1.5 | AA64: 0.49 | AB64: 3.799999952 | AC64: 0.54
A65: 7371 | B65: 7371 Robert Morgan Education Center | C65: 478 | D65: 22.5 | E65: 0.62 | F65: 1.600000024 | G65: 0.8 | H65: 0.6999999881 | I65: 0.68 | J65: 1.399999976 | K65: 0.68 | L65: 3.099999905 | M65: 0.77 | N65: 3.400000095 | O65: 0.68 | P65: 1.100000024 | Q65: 0.55 | R65: 0.6999999881 | S65: 0.73 | T65: 1.899999976 | U65: 0.63 | V65: 2.400000095 | W65: 0.49 | X65: 0.400000006 | Y65: 0.43 | Z65: 1.600000024 | AA65: 0.54 | AB65: 4.199999809 | AC65: 0.6
A66: 7381 | B66: 7381 Miami Norland Senior High | C66: 358 | D66: 18.70000076 | E66: 0.52 | F66: 1.5 | G66: 0.76 | H66: 0.5 | I66: 0.5 | J66: 1.200000048 | K66: 0.58 | L66: 2.400000095 | M66: 0.6 | N66: 2.900000095 | O66: 0.58 | P66: 0.8999999762 | Q66: 0.47 | R66: 0.6000000238 | S66: 0.56 | T66: 1.600000024 | U66: 0.52 | V66: 2 | W66: 0.39 | X66: 0.400000006 | Y66: 0.4 | Z66: 1.299999952 | AA66: 0.44 | AB66: 3.400000095 | AC66: 0.49
A67: 7391 | B67: 7391 Miami Lakes Educational Center | C67: 431 | D67: 23.29999924 | E67: 0.65 | F67: 1.700000048 | G67: 0.83 | H67: 0.6999999881 | I67: 0.74 | J67: 1.399999976 | K67: 0.72 | L67: 3.099999905 | M67: 0.78 | N67: 3.400000095 | O67: 0.67 | P67: 1.200000048 | Q67: 0.6 | R67: 0.6999999881 | S67: 0.72 | T67: 2 | U67: 0.66 | V67: 2.599999905 | W67: 0.51 | X67: 0.5 | Y67: 0.45 | Z67: 1.700000048 | AA67: 0.58 | AB67: 4.400000095 | AC67: 0.62
A68: 7411 | B68: 7411 Miami Northwestern Senior | C68: 379 | D68: 17.89999962 | E68: 0.5 | F68: 1.399999976 | G68: 0.71 | H68: 0.5 | I68: 0.48 | J68: 1.100000024 | K68: 0.54 | L68: 2.299999952 | M68: 0.58 | N68: 2.700000048 | O68: 0.54 | P68: 0.8999999762 | Q68: 0.44 | R68: 0.5 | S68: 0.53 | T68: 1.600000024 | U68: 0.53 | V68: 1.899999976 | W68: 0.39 | X68: 0.400000006 | Y68: 0.37 | Z68: 1.200000048 | AA68: 0.41 | AB68: 3.400000095 | AC68: 0.48
A69: 7431 | B69: 7431 Miami Palmetto Sr High | C69: 661 | D69: 23.79999924 | E69: 0.66 | F69: 1.700000048 | G69: 0.84 | H69: 0.8000000119 | I69: 0.79 | J69: 1.5 | K69: 0.73 | L69: 3.200000048 | M69: 0.81 | N69: 3.400000095 | O69: 0.68 | P69: 1.200000048 | Q69: 0.6 | R69: 0.6999999881 | S69: 0.75 | T69: 1.899999976 | U69: 0.65 | V69: 2.799999952 | W69: 0.55 | X69: 0.5 | Y69: 0.52 | Z69: 1.600000024 | AA69: 0.54 | AB69: 4.400000095 | AC69: 0.63
A70: 7461 | B70: 7461 Miami Senior High | C70: 655 | D70: 17 | E70: 0.47 | F70: 1.299999952 | G70: 0.65 | H70: 0.400000006 | I70: 0.4 | J70: 1 | K70: 0.48 | L70: 2.400000095 | M70: 0.6 | N70: 2.700000048 | O70: 0.53 | P70: 0.8000000119 | Q70: 0.39 | R70: 0.5 | S70: 0.52 | T70: 1.5 | U70: 0.49 | V70: 1.700000048 | W70: 0.34 | X70: 0.400000006 | Y70: 0.35 | Z70: 1.200000048 | AA70: 0.4 | AB70: 3.299999952 | AC70: 0.47
A71: 7511 | B71: 7511 Miami Springs Senior High | C71: 488 | D71: 20.39999962 | E71: 0.57 | F71: 1.399999976 | G71: 0.71 | H71: 0.5 | I71: 0.55 | J71: 1.200000048 | K71: 0.61 | L71: 2.599999905 | M71: 0.66 | N71: 3.099999905 | O71: 0.61 | P71: 1 | Q71: 0.51 | R71: 0.6000000238 | S71: 0.61 | T71: 1.799999952 | U71: 0.59 | V71: 2.299999952 | W71: 0.46 | X71: 0.5 | Y71: 0.47 | Z71: 1.5 | AA71: 0.49 | AB71: 3.799999952 | AC71: 0.55
A72: 7531 | B72: 7531 Miami SunSET Senior | C72: 608 | D72: 20.89999962 | E72: 0.58 | F72: 1.5 | G72: 0.75 | H72: 0.6000000238 | I72: 0.64 | J72: 1.299999952 | K72: 0.65 | L72: 2.799999952 | M72: 0.69 | N72: 3 | O72: 0.6 | P72: 1.100000024 | Q72: 0.55 | R72: 0.6999999881 | S72: 0.69 | T72: 1.700000048 | U72: 0.56 | V72: 2.200000048 | W72: 0.45 | X72: 0.400000006 | Y72: 0.41 | Z72: 1.5 | AA72: 0.49 | AB72: 4.099999905 | AC72: 0.58
A73: 7541 | B73: 7541 North Miami Beach Sr. | C73: 520 | D73: 18.70000076 | E73: 0.52 | F73: 1.399999976 | G73: 0.71 | H73: 0.5 | I73: 0.49 | J73: 1.200000048 | K73: 0.58 | L73: 2.5 | M73: 0.62 | N73: 2.900000095 | O73: 0.57 | P73: 0.8999999762 | Q73: 0.45 | R73: 0.6000000238 | S73: 0.58 | T73: 1.600000024 | U73: 0.52 | V73: 2 | W73: 0.39 | X73: 0.5 | Y73: 0.49 | Z73: 1.299999952 | AA73: 0.43 | AB73: 3.5 | AC73: 0.49
A74: 7571 | B74: 7571 International Studies Preparatory Academy | C74: 27 | D74: 27.10000038 | E74: 0.75 | F74: 1.799999952 | G74: 0.89 | H74: 0.8000000119 | I74: 0.81 | J74: 1.700000048 | K74: 0.85 | L74: 3.599999905 | M74: 0.89 | N74: 4.099999905 | O74: 0.81 | P74: 1.299999952 | Q74: 0.63 | R74: 0.8999999762 | S74: 0.85 | T74: 2.099999905 | U74: 0.72 | V74: 3.599999905 | W74: 0.71 | X74: 0.6000000238 | Y74: 0.59 | Z74: 1.899999976 | AA74: 0.63 | AB74: 4.900000095 | AC74: 0.7
A75: 7591 | B75: 7591 North Miami Senior High School | C75: 628 | D75: 19.10000038 | E75: 0.53 | F75: 1.5 | G75: 0.74 | H75: 0.5 | I75: 0.53 | J75: 1.200000048 | K75: 0.6 | L75: 2.5 | M75: 0.63 | N75: 2.900000095 | O75: 0.57 | P75: 0.8999999762 | Q75: 0.45 | R75: 0.6000000238 | S75: 0.59 | T75: 1.600000024 | U75: 0.54 | V75: 2.099999905 | W75: 0.42 | X75: 0.400000006 | Y75: 0.44 | Z75: 1.299999952 | AA75: 0.44 | AB75: 3.5 | AC75: 0.5
A76: 7601 | B76: 7601 Turner Tech | C76: 310 | D76: 21.70000076 | E76: 0.6 | F76: 1.600000024 | G76: 0.79 | H76: 0.6000000238 | I76: 0.64 | J76: 1.399999976 | K76: 0.7 | L76: 2.900000095 | M76: 0.71 | N76: 3.200000048 | O76: 0.64 | P76: 1 | Q76: 0.52 | R76: 0.6999999881 | S76: 0.67 | T76: 1.899999976 | U76: 0.63 | V76: 2.5 | W76: 0.5 | X76: 0.400000006 | Y76: 0.42 | Z76: 1.5 | AA76: 0.49 | AB76: 4 | AC76: 0.57
A77: 7631 | B77: 7631 MacArthur South Senior High | C77: 18 | D77: 11.5 | E77: 0.32 | F77: 1.100000024 | G77: 0.56 | H77: 0.200000003 | I77: 0.22 | J77: 0.6999999881 | K77: 0.33 | L77: 1.299999952 | M77: 0.32 | N77: 1.600000024 | O77: 0.31 | P77: 0.6999999881 | Q77: 0.36 | R77: 0.200000003 | S77: 0.22 | T77: 0.8000000119 | U77: 0.28 | V77: 1.600000024 | W77: 0.31 | X77: 0.3000000119 | Y77: 0.28 | Z77: 0.6999999881 | AA77: 0.22 | AB77: 2.400000095 | AC77: 0.34
A78: 7701 | B78: 7701 South Dade Senior | C78: 827 | D78: 19.60000038 | E78: 0.55 | F78: 1.399999976 | G78: 0.71 | H78: 0.6000000238 | I78: 0.6 | J78: 1.200000048 | K78: 0.62 | L78: 2.599999905 | M78: 0.65 | N78: 2.900000095 | O78: 0.58 | P78: 1 | Q78: 0.49 | R78: 0.6000000238 | S78: 0.59 | T78: 1.700000048 | U78: 0.56 | V78: 2.099999905 | W78: 0.43 | X78: 0.400000006 | Y78: 0.4 | Z78: 1.399999976 | AA78: 0.46 | AB78: 3.700000048 | AC78: 0.53
A79: =IFERROR(VALUE(LEFT(B79,4)),"") -> 7721 | B79: 7721 South Miami Senior High | C79: 467 | D79: 21.10000038 | E79: 0.59 | F79: 1.5 | G79: 0.75 | H79: 0.6000000238 | I79: 0.61 | J79: 1.200000048 | K79: 0.61 | L79: 2.799999952 | M79: 0.7 | N79: 3.099999905 | O79: 0.63 | P79: 1 | Q79: 0.51 | R79: 0.6999999881 | S79: 0.68 | T79: 1.700000048 | U79: 0.58 | V79: 2.400000095 | W79: 0.47 | X79: 0.400000006 | Y79: 0.39 | Z79: 1.5 | AA79: 0.52 | AB79: 4.099999905 | AC79: 0.59
A80: 7731 | B80: 7731 Miami Southridge Senior High | C80: 579 | D80: 18.89999962 | E80: 0.53 | F80: 1.5 | G80: 0.74 | H80: 0.5 | I80: 0.5 | J80: 1.100000024 | K80: 0.56 | L80: 2.599999905 | M80: 0.65 | N80: 2.799999952 | O80: 0.57 | P80: 0.8999999762 | Q80: 0.44 | R80: 0.5 | S80: 0.53 | T80: 1.700000048 | U80: 0.57 | V80: 1.899999976 | W80: 0.39 | X80: 0.400000006 | Y80: 0.4 | Z80: 1.399999976 | AA80: 0.46 | AB80: 3.5 | AC80: 0.51
A81: 7741 | B81: 7741 Southwest Miami High School | C81: 687 | D81: 20.89999962 | E81: 0.58 | F81: 1.399999976 | G81: 0.69 | H81: 0.6000000238 | I81: 0.63 | J81: 1.200000048 | K81: 0.62 | L81: 2.900000095 | M81: 0.72 | N81: 3 | O81: 0.6 | P81: 1.100000024 | Q81: 0.54 | R81: 0.6999999881 | S81: 0.65 | T81: 1.799999952 | U81: 0.59 | V81: 2.400000095 | W81: 0.47 | X81: 0.400000006 | Y81: 0.37 | Z81: 1.600000024 | AA81: 0.52 | AB81: 4 | AC81: 0.56
A82: 7751 | B82: 7751 Barbara Goleman High School | C82: 451 | D82: 20.5 | E82: 0.57 | F82: 1.5 | G82: 0.73 | H82: 0.6000000238 | I82: 0.59 | J82: 1.299999952 | K82: 0.63 | L82: 2.799999952 | M82: 0.7 | N82: 3.099999905 | O82: 0.61 | P82: 1 | Q82: 0.5 | R82: 0.6000000238 | S82: 0.57 | T82: 1.700000048 | U82: 0.58 | V82: 2.299999952 | W82: 0.45 | X82: 0.400000006 | Y82: 0.39 | Z82: 1.5 | AA82: 0.48 | AB82: 3.900000095 | AC82: 0.55
A83: 7781 | B83: 7781 Felix Varela Senior High School | C83: 729 | D83: 19.89999962 | E83: 0.55 | F83: 1.399999976 | G83: 0.7 | H83: 0.6000000238 | I83: 0.6 | J83: 1.200000048 | K83: 0.59 | L83: 2.700000048 | M83: 0.67 | N83: 3 | O83: 0.6 | P83: 1 | Q83: 0.48 | R83: 0.6000000238 | S83: 0.6 | T83: 1.700000048 | U83: 0.57 | V83: 2.099999905 | W83: 0.42 | X83: 0.400000006 | Y83: 0.43 | Z83: 1.5 | AA83: 0.51 | AB83: 3.799999952 | AC83: 0.54
A84: 7791 | B84: 7791 Booker T. Washington Senior High School | C84: 231 | D84: 18.20000076 | E84: 0.5 | F84: 1.399999976 | G84: 0.7 | H84: 0.6000000238 | I84: 0.56 | J84: 1.100000024 | K84: 0.55 | L84: 2.200000048 | M84: 0.55 | N84: 2.700000048 | O84: 0.54 | P84: 1 | Q84: 0.48 | R84: 0.5 | S84: 0.51 | T84: 1.5 | U84: 0.51 | V84: 2.099999905 | W84: 0.41 | X84: 0.400000006 | Y84: 0.41 | Z84: 1.299999952 | AA84: 0.42 | AB84: 3.5 | AC84: 0.5
A85: 7801 | B85: 7801 George T. Baker | C85: 156 | D85: 19.79999924 | E85: 0.55 | F85: 1.399999976 | G85: 0.68 | H85: 0.6000000238 | I85: 0.56 | J85: 1.200000048 | K85: 0.59 | L85: 2.599999905 | M85: 0.65 | N85: 3 | O85: 0.6 | P85: 1 | Q85: 0.51 | R85: 0.5 | S85: 0.54 | T85: 1.700000048 | U85: 0.56 | V85: 2.099999905 | W85: 0.41 | X85: 0.5 | Y85: 0.47 | Z85: 1.5 | AA85: 0.51 | AB85: 3.799999952 | AC85: 0.54
A86: 7901 | B86: 7901 New World School of Arts | C86: 120 | D86: 23.70000076 | E86: 0.66 | F86: 1.799999952 | G86: 0.88 | H86: 0.6000000238 | I86: 0.6 | J86: 1.399999976 | K86: 0.7 | L86: 3.5 | M86: 0.87 | N86: 3.5 | O86: 0.69 | P86: 1 | Q86: 0.51 | R86: 0.8999999762 | S86: 0.85 | T86: 2 | U86: 0.68 | V86: 2.400000095 | W86: 0.48 | X86: 0.6000000238 | Y86: 0.55 | Z86: 1.799999952 | AA86: 0.58 | AB86: 4.400000095 | AC86: 0.63
A87: 8101 | B87: 8101 Jan Mann Opp. Center | C87: 5 | D87: 12.60000038 | E87: 0.35 | F87: 1.200000048 | G87: 0.6 | H87: 0.200000003 | I87: 0.2 | J87: 1 | K87: 0.5 | L87: 1.200000048 | M87: 0.3 | N87: 2 | O87: 0.4 | P87: 0.6000000238 | Q87: 0.3 | R87: 0 | S87: 0 | T87: 1.600000024 | U87: 0.53 | V87: 0.8000000119 | W87: 0.16 | X87: 0.200000003 | Y87: 0.2 | Z87: 1.399999976 | AA87: 0.47 | AB87: 2.400000095 | AC87: 0.34
A88: 8121 | B88: 8121 C.O.P.E. Center North | C88: 16 | D88: 16.10000038 | E88: 0.45 | F88: 1.399999976 | G88: 0.69 | H88: 0.400000006 | I88: 0.44 | J88: 0.8999999762 | K88: 0.47 | L88: 1.799999952 | M88: 0.44 | N88: 2.599999905 | O88: 0.53 | P88: 0.6000000238 | Q88: 0.28 | R88: 0.6000000238 | S88: 0.63 | T88: 1.700000048 | U88: 0.56 | V88: 1.600000024 | W88: 0.31 | X88: 0.3000000119 | Y88: 0.25 | Z88: 1.299999952 | AA88: 0.44 | AB88: 3 | AC88: 0.43
A89: 8131 | B89: 8131 Dorothy M. Wallace COPE Center | C89: 10 | D89: 18.39999962 | E89: 0.51 | F89: 1.399999976 | G89: 0.7 | H89: 0.400000006 | I89: 0.4 | J89: 1.100000024 | K89: 0.55 | L89: 2.799999952 | M89: 0.7 | N89: 2.599999905 | O89: 0.52 | P89: 1 | Q89: 0.5 | R89: 0.5 | S89: 0.5 | T89: 1.700000048 | U89: 0.57 | V89: 1.899999976 | W89: 0.38 | X89: 0.3000000119 | Y89: 0.3 | Z89: 1.100000024 | AA89: 0.37 | AB89: 3.599999905 | AC89: 0.52
A90: 8141 | B90: 8141 Juvenile Justice Center | C90: 5 | D90: 16.39999962 | E90: 0.45 | F90: 1.600000024 | G90: 0.8 | H90: 0.200000003 | I90: 0.2 | J90: 1.200000048 | K90: 0.6 | L90: 2.200000048 | M90: 0.55 | N90: 2.599999905 | O90: 0.52 | P90: 0.6000000238 | Q90: 0.3 | R90: 0.8000000119 | S90: 0.8 | T90: 1.600000024 | U90: 0.53 | V90: 1.200000048 | W90: 0.24 | X90: 0.400000006 | Y90: 0.4 | Z90: 1 | AA90: 0.33 | AB90: 3 | AC90: 0.43
A92: 9999 | B92: 9999 DISTRICT | C92: =SUM(C$14:C90) -> 24249 | D92: =SUMPRODUCT($C$14:$C90,D$14:D90)/$C92 -> 20.75113202 | E92: =D92/E13 -> 0.576420334 | F92: =SUMPRODUCT($C$14:$C90,F$14:F90)/$C92 -> 1.46978019 | G92: =F92/G13 -> 0.7348900948 | H92: =SUMPRODUCT($C$14:$C90,H$14:H90)/$C92 -> 0.6069487469 | I92: =H92/I13 -> 0.6069487469 | J92: =SUMPRODUCT($C$14:$C90,J$14:J90)/$C92 -> 1.259272556 | K92: =J92/K13 -> 0.6296362781 | L92: =SUMPRODUCT($C$14:$C90,L$14:L90)/$C92 -> 2.783549819 | M92: =L92/M13 -> 0.6958874549 | N92: =SUMPRODUCT($C$14:$C90,N$14:N90)/$C92 -> 3.088453138 | O92: =N92/O13 -> 0.6176906276 | P92: =SUMPRODUCT($C$14:$C90,P$14:P90)/$C92 -> 1.025563941 | Q92: =P92/Q13 -> 0.5127819705 | R92: =SUMPRODUCT($C$14:$C90,R$14:R90)/$C92 -> 0.6327642435 | S92: =R92/S13 -> 0.6327642435 | T92: =SUMPRODUCT($C$14:$C90,T$14:T90)/$C92 -> 1.746463774 | U92: =T92/U13 -> 0.5821545912 | V92: =SUMPRODUCT($C$14:$C90,V$14:V90)/$C92 -> 2.29222648 | W92: =V92/W13 -> 0.4584452959 | X92: =SUMPRODUCT($C$14:$C90,X$14:X90)/$C92 -> 0.4388387221 | Y92: =X92/Y13 -> 0.4388387221 | Z92: =SUMPRODUCT($C$14:$C90,Z$14:Z90)/$C92 -> 1.496667905 | AA92: =Z92/AA13 -> 0.4988893018 | AB92: =SUMPRODUCT($C$14:$C90,AB$14:AB90)/$C92 -> 3.911183956 | AC92: =AB92/AC13 -> 0.5587405651
A143: =IFERROR(VALUE(LEFT(B143,4)),"") -> 
A207: =IFERROR(VALUE(LEFT(B207,4)),"") -> 
A271: =IFERROR(VALUE(LEFT(B271,4)),"") -> 

Sheet BLG10CC-R (hidden)
B1: R-G10-RC-SCHL-ALL
B3: Description: | C3: Reading, Grade 10, RC, School, All
B4: Student Selection: | C4: Multiple | 2011-2012 Fall, 2011-2012 School Year
B5: Group By Data: | C5: School
B6: Assessments: | C6: Baseline 2011 - Grade 10 Reading AUGUST 2011 Teacher __________ Period _____, Baseline 2011 - Grade 10 Reading Retake (NGSSS) AUGUST 2011 Teacher __________ Period _____, Baseline 2011 - Reading Retake SSS AUGUST 2011 Teacher ____________ Period _____
B7: Scores: | C7: Overall Avg Raw Score, Overall Avg % Correct, Overall # in Performance Band, Overall % in Performance Band, Question Groups Avg Raw Score, Question Groups Avg % Correct, Question Groups # in Performance Band, Question Groups % in Performance Band
B8: Author Name: | C8: Yuwadee Wongbundhit
A9: =COLUMN() -> 1
B10: Total Row(s): 78 Generated on Sep-17-2011 by Yuwadee Wongbundhit | C10: Baseline 2011 - Grade 10 Reading AUGUST 2011 Teacher __________ Period _____ | AH10: Baseline 2011 - Grade 10 Reading Retake (NGSSS) AUGUST 2011 Teacher __________ Period _____ | BM10: Baseline 2011 - Reading Retake SSS AUGUST 2011 Teacher ____________ Period _____
C11: Total # students | D11: Overall (36 pts max) | J11: Vocabulary (5 pts max) | P11: Reading Application (15 pts max) | V11: Literary Analysis - Fiction/Non-Fiction (6 pts max) | AB11: Informational Text/Research Process (10 pts max) | AH11: Total # students | AI11: Overall (36 pts max) | AO11: Vocabulary (5 pts max) | AU11: Reading Application (15 pts max) | BA11: Literary Analysis - Fiction/Non-Fiction (6 pts max) | BG11: Informational Text/Research Process (10 pts max) | BM11: Total # students | BN11: Overall (36 pts max) | BT11: Words and Phrases in Context (4 pts max) | BZ11: Main Idea, Plot, and Purpose (12 pts max) | CF11: Comparisons and Cause/Effect (8 pts max) | CL11: Reference and Research (12 pts max)
D12: Avg Raw Score | E12: Avg % Correct | F12: # in Performance Band | H12: % in Performance Band | J12: Avg Raw Score | K12: Avg % Correct | L12: # in Performance Band | N12: % in Performance Band | P12: Avg Raw Score | Q12: Avg % Correct | R12: # in Performance Band | T12: % in Performance Band | V12: Avg Raw Score | W12: Avg % Correct | X12: # in Performance Band | Z12: % in Performance Band | AB12: Avg Raw Score | AC12: Avg % Correct | AD12: # in Performance Band | AF12: % in Performance Band | AI12: Avg Raw Score | AJ12: Avg % Correct | AK12: # in Performance Band | AM12: % in Performance Band | AO12: Avg Raw Score | AP12: Avg % Correct | AQ12: # in Performance Band | AS12: % in Performance Band | AU12: Avg Raw Score | AV12: Avg % Correct | AW12: # in Performance Band | AY12: % in Performance Band | BA12: Avg Raw Score | BB12: Avg % Correct | BC12: # in Performance Band | BE12: % in Performance Band | BG12: Avg Raw Score | BH12: Avg % Correct | BI12: # in Performance Band | BK12: % in Performance Band | BN12: Avg Raw Score | BO12: Avg % Correct | BP12: # in Performance Band | BR12: % in Performance Band | BT12: Avg Raw Score | BU12: Avg % Correct | BV12: # in Performance Band | BX12: % in Performance Band | BZ12: Avg Raw Score | CA12: Avg % Correct | CB12: # in Performance Band | CD12: % in Performance Band | CF12: Avg Raw Score | CG12: Avg % Correct | CH12: # in Performance Band | CJ12: % in Performance Band | CL12: Avg Raw Score | CM12: Avg % Correct | CN12: # in Performance Band | CP12: % in Performance Band
B13: School Name | F13: Non Proficient | G13: Proficient | H13: Non Proficient | I13: Proficient | L13: Non Proficient | M13: Proficient | N13: Non Proficient | O13: Proficient | R13: Non Proficient | S13: Proficient | T13: Non Proficient | U13: Proficient | X13: Non Proficient | Y13: Proficient | Z13: Non Proficient | AA13: Proficient | AD13: Non Proficient | AE13: Proficient | AF13: Non Proficient | AG13: Proficient | AK13: Non Proficient | AL13: Proficient | AM13: Non Proficient | AN13: Proficient | AQ13: Non Proficient | AR13: Proficient | AS13: Non Proficient | AT13: Proficient | AW13: Non Proficient | AX13: Proficient | AY13: Non Proficient | AZ13: Proficient | BC13: Non Proficient | BD13: Proficient | BE13: Non Proficient | BF13: Proficient | BI13: Non Proficient | BJ13: Proficient | BK13: Non Proficient | BL13: Proficient | BP13: Non Proficient | BQ13: Proficient | BR13: Non Proficient | BS13: Proficient | BV13: Non Proficient | BW13: Proficient | BX13: Non Proficient | BY13: Proficient | CB13: Non Proficient | CC13: Proficient | CD13: Non Proficient | CE13: Proficient | CH13: Non Proficient | CI13: Proficient | CJ13: Non Proficient | CK13: Proficient | CN13: Non Proficient | CO13: Proficient | CP13: Non Proficient | CQ13: Proficient
A14: =IFERROR(VALUE(LEFT(B14,4)),"") -> 6040 | B14: 6040 Doctors Charter School Of Miami Shores | C14: 82 | D14: 26 | E14: 0.72 | F14: 36 | G14: 46 | H14: 43.90% | I14: 56.10% | J14: 4.300000191 | K14: 0.86 | L14: 11 | M14: 71 | N14: 13.41% | O14: 86.59% | P14: 11.39999962 | Q14: 0.76 | R14: 24 | S14: 58 | T14: 29.27% | U14: 70.73% | V14: 3.599999905 | W14: 0.6 | X14: 55 | Y14: 27 | Z14: 67.07% | AA14: 32.93% | AB14: 6.699999809 | AC14: 0.67 | AD14: 42 | AE14: 40 | AF14: 51.22% | AG14: 48.78%
A15: =IFERROR(VALUE(LEFT(B15,4)),"") -> 7007 | B15: 7007 International Studies Charter High School | C15: 87 | D15: 23.60000038 | E15: 0.65 | F15: 57 | G15: 30 | H15: 65.52% | I15: 34.48% | J15: 3.900000095 | K15: 0.77 | L15: 29 | M15: 58 | N15: 33.33% | O15: 66.67% | P15: 10.60000038 | Q15: 0.71 | R15: 35 | S15: 52 | T15: 40.23% | U15: 59.77% | V15: 3 | W15: 0.51 | X15: 68 | Y15: 19 | Z15: 78.16% | AA15: 21.84% | AB15: 6 | AC15: 0.6 | AD15: 52 | AE15: 35 | AF15: 59.77% | AG15: 40.23%
A16: 7009 | B16: 7009 Doral Performing Arts Academy | C16: 47 | D16: 23.60000038 | E16: 0.66 | F16: 28 | G16: 19 | H16: 59.57% | I16: 40.43% | J16: 4.099999905 | K16: 0.82 | L16: 11 | M16: 36 | N16: 23.40% | O16: 76.60% | P16: 10.60000038 | Q16: 0.71 | R16: 17 | S16: 30 | T16: 36.17% | U16: 63.83% | V16: 2.900000095 | W16: 0.48 | X16: 40 | Y16: 7 | Z16: 85.11% | AA16: 14.89% | AB16: 6 | AC16: 0.6 | AD16: 25 | AE16: 22 | AF16: 53.19% | AG16: 46.81%
A17: 7011 | B17: 7011 American Senior High School | C17: 490 | D17: 19.10000038 | E17: 0.53 | F17: 396 | G17: 94 | H17: 80.82% | I17: 19.18% | J17: 3 | K17: 0.61 | L17: 286 | M17: 204 | N17: 58.37% | O17: 41.63% | P17: 8.600000381 | Q17: 0.57 | R17: 349 | S17: 141 | T17: 71.22% | U17: 28.78% | V17: 2.5 | W17: 0.41 | X17: 445 | Y17: 45 | Z17: 90.82% | AA17: 9.18% | AB17: 5 | AC17: 0.5 | AD17: 362 | AE17: 128 | AF17: 73.88% | AG17: 26.12%
A18: 7014 | B18: 7014 Mater Performing Arts & Entertainment Academy | C18: 91 | D18: 25.10000038 | E18: 0.7 | F18: 46 | G18: 45 | H18: 50.55% | I18: 49.45% | J18: 3.900000095 | K18: 0.78 | L18: 25 | M18: 66 | N18: 27.47% | O18: 72.53% | P18: 11.10000038 | Q18: 0.74 | R18: 26 | S18: 65 | T18: 28.57% | U18: 71.43% | V18: 3.400000095 | W18: 0.56 | X18: 69 | Y18: 22 | Z18: 75.82% | AA18: 24.18% | AB18: 6.599999905 | AC18: 0.66 | AD18: 38 | AE18: 53 | AF18: 41.76% | AG18: 58.24%
A19: 7018 | B19: 7018 Mater Academy Lakes High School | C19: 201 | D19: 22.60000038 | E19: 0.63 | F19: 131 | G19: 70 | H19: 65.17% | I19: 34.83% | J19: 3.700000048 | K19: 0.74 | L19: 68 | M19: 133 | N19: 33.83% | O19: 66.17% | P19: 9.899999619 | Q19: 0.66 | R19: 105 | S19: 96 | T19: 52.24% | U19: 47.76% | V19: 2.900000095 | W19: 0.49 | X19: 168 | Y19: 33 | Z19: 83.58% | AA19: 16.42% | AB19: 6.099999905 | AC19: 0.61 | AD19: 113 | AE19: 88 | AF19: 56.22% | AG19: 43.78% | BM19: 1 | BN19: 16 | BO19: 0.44 | BP19: 1 | BR19: 100.00% | BT19: 2 | BU19: 0.5 | BV19: 1 | BX19: 100.00% | BZ19: 7 | CA19: 0.58 | CB19: 1 | CD19: 100.00% | CF19: 2 | CG19: 0.25 | CH19: 1 | CJ19: 100.00% | CL19: 5 | CM19: 0.42 | CN19: 1 | CP19: 100.00%
A20: 7020 | B20: 7020 Doral Academy High School | C20: 247 | D20: 22.70000076 | E20: 0.63 | F20: 144 | G20: 103 | H20: 58.30% | I20: 41.70% | J20: 3.599999905 | K20: 0.73 | L20: 90 | M20: 157 | N20: 36.44% | O20: 63.56% | P20: 10.30000019 | Q20: 0.69 | R20: 113 | S20: 134 | T20: 45.75% | U20: 54.25% | V20: 2.900000095 | W20: 0.48 | X20: 204 | Y20: 43 | Z20: 82.59% | AA20: 17.41% | AB20: 5.900000095 | AC20: 0.59 | AD20: 137 | AE20: 110 | AF20: 55.47% | AG20: 44.53%
A21: 7022 | B21: 7022 Academy Of Arts And Minds | C21: 123 | D21: 25 | E21: 0.69 | F21: 57 | G21: 66 | H21: 46.34% | I21: 53.66% | J21: 4 | K21: 0.79 | L21: 32 | M21: 91 | N21: 26.02% | O21: 73.98% | P21: 10.89999962 | Q21: 0.72 | R21: 46 | S21: 77 | T21: 37.40% | U21: 62.60% | V21: 3.599999905 | W21: 0.6 | X21: 86 | Y21: 37 | Z21: 69.92% | AA21: 30.08% | AB21: 6.599999905 | AC21: 0.66 | AD21: 55 | AE21: 68 | AF21: 44.72% | AG21: 55.28% | AH21: 1 | AI21: 18 | AJ21: 0.5 | AK21: 1 | AM21: 100.00% | AO21: 4 | AP21: 0.8 | AR21: 1 | AT21: 100.00% | AU21: 6 | AV21: 0.4 | AW21: 1 | AY21: 100.00% | BA21: 2 | BB21: 0.33 | BC21: 1 | BE21: 100.00% | BG21: 6 | BH21: 0.6 | BI21: 1 | BK21: 100.00%
A22: 7024 | B22: 7024 Mater Academy HS of International Studies | C22: 27 | D22: 26.29999924 | E22: 0.73 | F22: 9 | G22: 18 | H22: 33.33% | I22: 66.67% | J22: 4.300000191 | K22: 0.87 | L22: 2 | M22: 25 | N22: 7.41% | O22: 92.59% | P22: 11.10000038 | Q22: 0.74 | R22: 9 | S22: 18 | T22: 33.33% | U22: 66.67% | V22: 3.799999952 | W22: 0.63 | X22: 19 | Y22: 8 | Z22: 70.37% | AA22: 29.63% | AB22: 7 | AC22: 0.7 | AD22: 9 | AE22: 18 | AF22: 33.33% | AG22: 66.67%
A23: 7029 | B23: 7029 Terra Environmental Institute | C23: 429 | D23: 26.10000038 | E23: 0.72 | F23: 165 | G23: 264 | H23: 38.46% | I23: 61.54% | J23: 4.300000191 | K23: 0.85 | L23: 81 | M23: 348 | N23: 18.88% | O23: 81.12% | P23: 11.5 | Q23: 0.77 | R23: 115 | S23: 314 | T23: 26.81% | U23: 73.19% | V23: 3.700000048 | W23: 0.61 | X23: 299 | Y23: 130 | Z23: 69.70% | AA23: 30.30% | AB23: 6.599999905 | AC23: 0.66 | AD23: 186 | AE23: 243 | AF23: 43.36% | AG23: 56.64%
A24: 7033 | B24: 7033 Law Enforcement Officers Memorial High | C24: 116 | D24: 24.10000038 | E24: 0.67 | F24: 64 | G24: 52 | H24: 55.17% | I24: 44.83% | J24: 4 | K24: 0.79 | L24: 30 | M24: 86 | N24: 25.86% | O24: 74.14% | P24: 10.60000038 | Q24: 0.71 | R24: 53 | S24: 63 | T24: 45.69% | U24: 54.31% | V24: 3.299999952 | W24: 0.55 | X24: 86 | Y24: 30 | Z24: 74.14% | AA24: 25.86% | AB24: 6.199999809 | AC24: 0.62 | AD24: 60 | AE24: 56 | AF24: 51.72% | AG24: 48.28%
A25: 7034 | B25: 7034 Somerset Academy Charter High South Campus | C25: 8 | D25: 21.89999962 | E25: 0.61 | F25: 7 | G25: 1 | H25: 87.50% | I25: 12.50% | J25: 3.400000095 | K25: 0.67 | L25: 4 | M25: 4 | N25: 50.00% | O25: 50.00% | P25: 9.800000191 | Q25: 0.65 | R25: 4 | S25: 4 | T25: 50.00% | U25: 50.00% | V25: 2.799999952 | W25: 0.46 | X25: 7 | Y25: 1 | Z25: 87.50% | AA25: 12.50% | AB25: 6 | AC25: 0.6 | AD25: 5 | AE25: 3 | AF25: 62.50% | AG25: 37.50%
A26: 7036 | B26: 7036 Lawrence Academy Senior High Charter School | C26: 21 | D26: 19.29999924 | E26: 0.54 | F26: 18 | G26: 3 | H26: 85.71% | I26: 14.29% | J26: 2.900000095 | K26: 0.58 | L26: 14 | M26: 7 | N26: 66.67% | O26: 33.33% | P26: 8.399999619 | Q26: 0.56 | R26: 17 | S26: 4 | T26: 80.95% | U26: 19.05% | V26: 2.599999905 | W26: 0.43 | X26: 18 | Y26: 3 | Z26: 85.71% | AA26: 14.29% | AB26: 5.400000095 | AC26: 0.54 | AD26: 16 | AE26: 5 | AF26: 76.19% | AG26: 23.81%
A27: 7037 | B27: 7037 Mater Academy East Charter High School | C27: 61 | D27: 23.29999924 | E27: 0.65 | F27: 40 | G27: 21 | H27: 65.57% | I27: 34.43% | J27: 3.5 | K27: 0.69 | L27: 30 | M27: 31 | N27: 49.18% | O27: 50.82% | P27: 10.39999962 | Q27: 0.69 | R27: 25 | S27: 36 | T27: 40.98% | U27: 59.02% | V27: 2.900000095 | W27: 0.49 | X27: 53 | Y27: 8 | Z27: 86.89% | AA27: 13.11% | AB27: 6.5 | AC27: 0.65 | AD27: 28 | AE27: 33 | AF27: 45.90% | AG27: 54.10%
A28: 7042 | B28: 7042 Somerset Academy Charter High School | C28: 112 | D28: 20.89999962 | E28: 0.58 | F28: 84 | G28: 28 | H28: 75.00% | I28: 25.00% | J28: 3.5 | K28: 0.69 | L28: 51 | M28: 61 | N28: 45.54% | O28: 54.46% | P28: 9.399999619 | Q28: 0.63 | R28: 71 | S28: 41 | T28: 63.39% | U28: 36.61% | V28: 2.700000048 | W28: 0.45 | X28: 101 | Y28: 11 | Z28: 90.18% | AA28: 9.82% | AB28: 5.400000095 | AC28: 0.54 | AD28: 81 | AE28: 31 | AF28: 72.32% | AG28: 27.68%
A29: 7048 | B29: 7048 Alonzo Andtracy Mourning High (Biscanye Bay) | C29: 396 | D29: 21.70000076 | E29: 0.6 | F29: 250 | G29: 146 | H29: 63.13% | I29: 36.87% | J29: 3.599999905 | K29: 0.71 | L29: 171 | M29: 225 | N29: 43.18% | O29: 56.82% | P29: 9.699999809 | Q29: 0.65 | R29: 220 | S29: 176 | T29: 55.56% | U29: 44.44% | V29: 2.900000095 | W29: 0.48 | X29: 328 | Y29: 68 | Z29: 82.83% | AA29: 17.17% | AB29: 5.599999905 | AC29: 0.56 | AD29: 255 | AE29: 141 | AF29: 64.39% | AG29: 35.61% | AH29: 9 | AI29: 16.20000076 | AJ29: 0.45 | AK29: 8 | AL29: 1 | AM29: 88.89% | AN29: 11.11% | AO29: 2.299999952 | AP29: 0.47 | AQ29: 7 | AR29: 2 | AS29: 77.78% | AT29: 22.22% | AU29: 7.099999905 | AV29: 0.47 | AW29: 8 | AX29: 1 | AY29: 88.89% | AZ29: 11.11% | BA29: 2.099999905 | BB29: 0.35 | BC29: 9 | BE29: 100.00% | BG29: 4.699999809 | BH29: 0.47 | BI29: 8 | BJ29: 1 | BK29: 88.89% | BL29: 11.11%
A30: 7049 | B30: 7049 Westland Hialeah Senior | C30: 515 | D30: 18.60000038 | E30: 0.52 | F30: 420 | G30: 95 | H30: 81.55% | I30: 18.45% | J30: 2.900000095 | K30: 0.57 | L30: 327 | M30: 188 | N30: 63.50% | O30: 36.50% | P30: 8.300000191 | Q30: 0.56 | R30: 371 | S30: 144 | T30: 72.04% | U30: 27.96% | V30: 2.400000095 | W30: 0.4 | X30: 464 | Y30: 51 | Z30: 90.10% | AA30: 9.90% | AB30: 5 | AC30: 0.5 | AD30: 372 | AE30: 143 | AF30: 72.23% | AG30: 27.77% | AH30: 1 | AI30: 13 | AJ30: 0.36 | AK30: 1 | AM30: 100.00% | AO30: 2 | AP30: 0.4 | AQ30: 1 | AS30: 100.00% | AU30: 6 | AV30: 0.4 | AW30: 1 | AY30: 100.00% | BA30: 0 | BB30: 0 | BC30: 1 | BE30: 100.00% | BG30: 5 | BH30: 0.5 | BI30: 1 | BK30: 100.00% | BM30: 34 | BN30: 13.10000038 | BO30: 0.37 | BP30: 34 | BR30: 100.00% | BT30: 1.5 | BU30: 0.38 | BV30: 30 | BW30: 4 | BX30: 88.24% | BY30: 11.76% | BZ30: 4.5 | CA30: 0.37 | CB30: 33 | CC30: 1 | CD30: 97.06% | CE30: 2.94% | CF30: 2.700000048 | CG30: 0.34 | CH30: 33 | CI30: 1 | CJ30: 97.06% | CK30: 2.94% | CL30: 4.5 | CM30: 0.38 | CN30: 34 | CP30: 100.00%
A31: 7051 | B31: 7051 G Holmes Braddock Senior High | C31: 773 | D31: 19.70000076 | E31: 0.55 | F31: 565 | G31: 208 | H31: 73.09% | I31: 26.91% | J31: 3.099999905 | K31: 0.62 | L31: 413 | M31: 360 | N31: 53.43% | O31: 46.57% | P31: 8.800000191 | Q31: 0.59 | R31: 502 | S31: 271 | T31: 64.94% | U31: 35.06% | V31: 2.5 | W31: 0.42 | X31: 683 | Y31: 90 | Z31: 88.36% | AA31: 11.64% | AB31: 5.199999809 | AC31: 0.52 | AD31: 531 | AE31: 242 | AF31: 68.69% | AG31: 31.31% | AH31: 6 | AI31: 10.30000019 | AJ31: 0.29 | AK31: 6 | AM31: 100.00% | AO31: 2.200000048 | AP31: 0.43 | AQ31: 6 | AS31: 100.00% | AU31: 4.699999809 | AV31: 0.31 | AW31: 6 | AY31: 100.00% | BA31: 0.6999999881 | BB31: 0.11 | BC31: 6 | BE31: 100.00% | BG31: 2.799999952 | BH31: 0.28 | BI31: 6 | BK31: 100.00%
A32: 7053 | B32: 7053 Pinecrest Preparatory Academy Charter HS | C32: 55 | D32: 19.89999962 | E32: 0.55 | F32: 46 | G32: 9 | H32: 83.64% | I32: 16.36% | J32: 3.200000048 | K32: 0.64 | L32: 29 | M32: 26 | N32: 52.73% | O32: 47.27% | P32: 8.600000381 | Q32: 0.57 | R32: 39 | S32: 16 | T32: 70.91% | U32: 29.09% | V32: 2.5 | W32: 0.42 | X32: 52 | Y32: 3 | Z32: 94.55% | AA32: 5.45% | AB32: 5.699999809 | AC32: 0.57 | AD32: 33 | AE32: 22 | AF32: 60.00% | AG32: 40.00%
A33: 7054 | B33: 7054 Excelsior Charter High School | C33: 20 | D33: 16.89999962 | E33: 0.47 | F33: 19 | G33: 1 | H33: 95.00% | I33: 5.00% | J33: 3 | K33: 0.6 | L33: 12 | M33: 8 | N33: 60.00% | O33: 40.00% | P33: 7.400000095 | Q33: 0.49 | R33: 16 | S33: 4 | T33: 80.00% | U33: 20.00% | V33: 2.299999952 | W33: 0.38 | X33: 19 | Y33: 1 | Z33: 95.00% | AA33: 5.00% | AB33: 4.199999809 | AC33: 0.42 | AD33: 18 | AE33: 2 | AF33: 90.00% | AG33: 10.00%
A34: 7055 | B34: 7055 Young Women's Preparatory Academy | C34: 41 | D34: 28.20000076 | E34: 0.78 | F34: 11 | G34: 30 | H34: 26.83% | I34: 73.17% | J34: 4.300000191 | K34: 0.86 | L34: 6 | M34: 35 | N34: 14.63% | O34: 85.37% | P34: 12.30000019 | Q34: 0.82 | R34: 9 | S34: 32 | T34: 21.95% | U34: 78.05% | V34: 4.400000095 | W34: 0.74 | X34: 20 | Y34: 21 | Z34: 48.78% | AA34: 51.22% | AB34: 7.099999905 | AC34: 0.71 | AD34: 12 | AE34: 29 | AF34: 29.27% | AG34: 70.73%
A35: 7056 | B35: 7056 Young Men's Preparatory High School | C35: 33 | D35: 18.79999924 | E35: 0.52 | F35: 27 | G35: 6 | H35: 81.82% | I35: 18.18% | J35: 2.900000095 | K35: 0.59 | L35: 20 | M35: 13 | N35: 60.61% | O35: 39.39% | P35: 8.800000191 | Q35: 0.59 | R35: 24 | S35: 9 | T35: 72.73% | U35: 27.27% | V35: 2.299999952 | W35: 0.39 | X35: 31 | Y35: 2 | Z35: 93.94% | AA35: 6.06% | AB35: 4.699999809 | AC35: 0.47 | AD35: 28 | AE35: 5 | AF35: 84.85% | AG35: 15.15%
A36: 7058 | B36: 7058 Miami Community Charter High | C36: 22 | D36: 18.70000076 | E36: 0.52 | F36: 19 | G36: 3 | H36: 86.36% | I36: 13.64% | J36: 2.900000095 | K36: 0.57 | L36: 15 | M36: 7 | N36: 68.18% | O36: 31.82% | P36: 8.300000191 | Q36: 0.55 | R36: 15 | S36: 7 | T36: 68.18% | U36: 31.82% | V36: 2.400000095 | W36: 0.39 | X36: 18 | Y36: 4 | Z36: 81.82% | AA36: 18.18% | AB36: 5.099999905 | AC36: 0.51 | AD36: 20 | AE36: 2 | AF36: 90.91% | AG36: 9.09%
A37: 7059 | B37: 7059 Miami Arts Charter | C37: 75 | D37: 26 | E37: 0.72 | F37: 29 | G37: 46 | H37: 38.67% | I37: 61.33% | J37: 4.300000191 | K37: 0.86 | L37: 15 | M37: 60 | N37: 20.00% | O37: 80.00% | P37: 11.69999981 | Q37: 0.78 | R37: 15 | S37: 60 | T37: 20.00% | U37: 80.00% | V37: 3.5 | W37: 0.59 | X37: 55 | Y37: 20 | Z37: 73.33% | AA37: 26.67% | AB37: 6.5 | AC37: 0.65 | AD37: 36 | AE37: 39 | AF37: 48.00% | AG37: 52.00%
A38: 7062 | B38: 7062 Mavericks High Of North Miami Dade County | C38: 1 | D38: 13 | E38: 0.36 | F38: 1 | H38: 100.00% | J38: 3 | K38: 0.6 | L38: 1 | N38: 100.00% | P38: 7 | Q38: 0.47 | R38: 1 | T38: 100.00% | V38: 1 | W38: 0.17 | X38: 1 | Z38: 100.00% | AB38: 2 | AC38: 0.2 | AD38: 1 | AF38: 100.00%
A39: 7065 | B39: 7065 Mavericks High Of South Miami Dade County | C39: 29 | D39: 19 | E39: 0.53 | F39: 28 | G39: 1 | H39: 96.55% | I39: 3.45% | J39: 3.400000095 | K39: 0.69 | L39: 14 | M39: 15 | N39: 48.28% | O39: 51.72% | P39: 8.699999809 | Q39: 0.58 | R39: 20 | S39: 9 | T39: 68.97% | U39: 31.03% | V39: 2.099999905 | W39: 0.34 | X39: 29 | Z39: 100.00% | AB39: 4.900000095 | AC39: 0.49 | AD39: 24 | AE39: 5 | AF39: 82.76% | AG39: 17.24%
A40: 7067 | B40: 7067 Florida High School Of Accelerated Learning- | C40: 35 | D40: 15.89999962 | E40: 0.44 | F40: 32 | G40: 3 | H40: 91.43% | I40: 8.57% | J40: 2.599999905 | K40: 0.51 | L40: 24 | M40: 11 | N40: 68.57% | O40: 31.43% | P40: 7 | Q40: 0.46 | R40: 31 | S40: 4 | T40: 88.57% | U40: 11.43% | V40: 1.899999976 | W40: 0.32 | X40: 34 | Y40: 1 | Z40: 97.14% | AA40: 2.86% | AB40: 4.5 | AC40: 0.45 | AD40: 30 | AE40: 5 | AF40: 85.71% | AG40: 14.29%
A41: 7068 | B41: 7068 North Gardens High School | C41: 22 | D41: 17.20000076 | E41: 0.48 | F41: 21 | G41: 1 | H41: 95.45% | I41: 4.55% | J41: 3.099999905 | K41: 0.62 | L41: 14 | M41: 8 | N41: 63.64% | O41: 36.36% | P41: 7.699999809 | Q41: 0.51 | R41: 19 | S41: 3 | T41: 86.36% | U41: 13.64% | V41: 2 | W41: 0.33 | X41: 21 | Y41: 1 | Z41: 95.45% | AA41: 4.55% | AB41: 4.400000095 | AC41: 0.44 | AD41: 19 | AE41: 3 | AF41: 86.36% | AG41: 13.64% | AH41: 4 | AI41: 18.29999924 | AJ41: 0.51 | AK41: 4 | AM41: 100.00% | AO41: 3.299999952 | AP41: 0.65 | AQ41: 3 | AR41: 1 | AS41: 75.00% | AT41: 25.00% | AU41: 8 | AV41: 0.53 | AW41: 4 | AY41: 100.00% | BA41: 2.799999952 | BB41: 0.46 | BC41: 3 | BD41: 1 | BE41: 75.00% | BF41: 25.00% | BG41: 4.300000191 | BH41: 0.42 | BI41: 4 | BK41: 100.00% | BM41: 1 | BN41: 10 | BO41: 0.28 | BP41: 1 | BR41: 100.00% | BT41: 2 | BU41: 0.5 | BV41: 1 | BX41: 100.00% | BZ41: 2 | CA41: 0.17 | CB41: 1 | CD41: 100.00% | CF41: 3 | CG41: 0.38 | CH41: 1 | CJ41: 100.00% | CL41: 3 | CM41: 0.25 | CN41: 1 | CP41: 100.00%
A42: 7069 | B42: 7069 North Park High School | AH42: 3 | AI42: 19.29999924 | AJ42: 0.54 | AK42: 3 | AM42: 100.00% | AO42: 3.700000048 | AP42: 0.73 | AQ42: 2 | AR42: 1 | AS42: 66.67% | AT42: 33.33% | AU42: 9 | AV42: 0.6 | AW42: 2 | AX42: 1 | AY42: 66.67% | AZ42: 33.33% | BA42: 1.299999952 | BB42: 0.22 | BC42: 3 | BE42: 100.00% | BG42: 5.300000191 | BH42: 0.53 | BI42: 2 | BJ42: 1 | BK42: 66.67% | BL42: 33.33% | BM42: 2 | BN42: 16.5 | BO42: 0.46 | BP42: 2 | BR42: 100.00% | BT42: 2 | BU42: 0.5 | BV42: 1 | BW42: 1 | BX42: 50.00% | BY42: 50.00% | BZ42: 7.5 | CA42: 0.63 | CB42: 1 | CC42: 1 | CD42: 50.00% | CE42: 50.00% | CF42: 2.5 | CG42: 0.31 | CH42: 2 | CJ42: 100.00% | CL42: 4.5 | CM42: 0.38 | CN42: 2 | CP42: 100.00%
A43: 7071 | B43: 7071 Coral Gables Senior High School | C43: 742 | D43: 18 | E43: 0.5 | F43: 596 | G43: 146 | H43: 80.32% | I43: 19.68% | J43: 2.799999952 | K43: 0.55 | L43: 465 | M43: 277 | N43: 62.67% | O43: 37.33% | P43: 8.300000191 | Q43: 0.55 | R43: 515 | S43: 227 | T43: 69.41% | U43: 30.59% | V43: 2.200000048 | W43: 0.36 | X43: 677 | Y43: 65 | Z43: 91.24% | AA43: 8.76% | AB43: 4.699999809 | AC43: 0.47 | AD43: 560 | AE43: 182 | AF43: 75.47% | AG43: 24.53% | AH43: 7 | AI43: 11.60000038 | AJ43: 0.32 | AK43: 7 | AM43: 100.00% | AO43: 1.299999952 | AP43: 0.26 | AQ43: 7 | AS43: 100.00% | AU43: 5.900000095 | AV43: 0.39 | AW43: 7 | AY43: 100.00% | BA43: 1.100000024 | BB43: 0.19 | BC43: 7 | BE43: 100.00% | BG43: 3.299999952 | BH43: 0.33 | BI43: 7 | BK43: 100.00% | BM43: 1 | BN43: 24 | BO43: 0.67 | BP43: 1 | BR43: 100.00% | BT43: 3 | BU43: 0.75 | BW43: 1 | BY43: 100.00% | BZ43: 8 | CA43: 0.67 | CB43: 1 | CD43: 100.00% | CF43: 6 | CG43: 0.75 | CI43: 1 | CK43: 100.00% | CL43: 7 | CM43: 0.58 | CN43: 1 | CP43: 100.00%
A44: 7081 | B44: 7081 DASH | C44: 124 | D44: 26.70000076 | E44: 0.74 | F44: 36 | G44: 88 | H44: 29.03% | I44: 70.97% | J44: 4.300000191 | K44: 0.85 | L44: 23 | M44: 101 | N44: 18.55% | O44: 81.45% | P44: 11.89999962 | Q44: 0.79 | R44: 25 | S44: 99 | T44: 20.16% | U44: 79.84% | V44: 3.799999952 | W44: 0.63 | X44: 84 | Y44: 40 | Z44: 67.74% | AA44: 32.26% | AB44: 6.800000191 | AC44: 0.68 | AD44: 49 | AE44: 75 | AF44: 39.52% | AG44: 60.48%
A45: 7101 | B45: 7101 Coral Reef Senior High School | C45: 879 | D45: 26.39999962 | E45: 0.73 | F45: 326 | G45: 553 | H45: 37.09% | I45: 62.91% | J45: 4.300000191 | K45: 0.85 | L45: 149 | M45: 730 | N45: 16.95% | O45: 83.05% | P45: 11.69999981 | Q45: 0.78 | R45: 223 | S45: 656 | T45: 25.37% | U45: 74.63% | V45: 3.799999952 | W45: 0.63 | X45: 584 | Y45: 295 | Z45: 66.44% | AA45: 33.56% | AB45: 6.699999809 | AC45: 0.67 | AD45: 378 | AE45: 501 | AF45: 43.00% | AG45: 57.00%
A46: 7111 | B46: 7111 Hialeah Senior high | C46: 737 | D46: 19.60000038 | E46: 0.54 | F46: 567 | G46: 170 | H46: 76.93% | I46: 23.07% | J46: 3 | K46: 0.61 | L46: 427 | M46: 310 | N46: 57.94% | O46: 42.06% | P46: 8.699999809 | Q46: 0.58 | R46: 482 | S46: 255 | T46: 65.40% | U46: 34.60% | V46: 2.5 | W46: 0.42 | X46: 666 | Y46: 71 | Z46: 90.37% | AA46: 9.63% | AB46: 5.300000191 | AC46: 0.53 | AD46: 515 | AE46: 222 | AF46: 69.88% | AG46: 30.12% | AH46: 22 | AI46: 13.39999962 | AJ46: 0.37 | AK46: 20 | AL46: 2 | AM46: 90.91% | AN46: 9.09% | AO46: 1.799999952 | AP46: 0.35 | AQ46: 19 | AR46: 3 | AS46: 86.36% | AT46: 13.64% | AU46: 6.099999905 | AV46: 0.41 | AW46: 19 | AX46: 3 | AY46: 86.36% | AZ46: 13.64% | BA46: 1.399999976 | BB46: 0.23 | BC46: 22 | BE46: 100.00% | BG46: 4 | BH46: 0.4 | BI46: 18 | BJ46: 4 | BK46: 81.82% | BL46: 18.18%
A47: 7121 | B47: 7121 John A. Ferguson Senior High School | C47: 1026 | D47: 22.10000038 | E47: 0.61 | F47: 648 | G47: 378 | H47: 63.16% | I47: 36.84% | J47: 3.5 | K47: 0.7 | L47: 431 | M47: 595 | N47: 42.01% | O47: 57.99% | P47: 9.899999619 | Q47: 0.66 | R47: 521 | S47: 505 | T47: 50.78% | U47: 49.22% | V47: 2.799999952 | W47: 0.47 | X47: 875 | Y47: 151 | Z47: 85.28% | AA47: 14.72% | AB47: 5.800000191 | AC47: 0.58 | AD47: 604 | AE47: 422 | AF47: 58.87% | AG47: 41.13% | AH47: 32 | AI47: 15.19999981 | AJ47: 0.42 | AK47: 30 | AL47: 2 | AM47: 93.75% | AN47: 6.25% | AO47: 2.299999952 | AP47: 0.45 | AQ47: 25 | AR47: 7 | AS47: 78.12% | AT47: 21.88% | AU47: 6.900000095 | AV47: 0.46 | AW47: 26 | AX47: 6 | AY47: 81.25% | AZ47: 18.75% | BA47: 2.200000048 | BB47: 0.36 | BC47: 30 | BD47: 2 | BE47: 93.75% | BF47: 6.25% | BG47: 3.900000095 | BH47: 0.39 | BI47: 27 | BJ47: 5 | BK47: 84.38% | BL47: 15.62% | BM47: 2 | BN47: 7.5 | BO47: 0.2 | BP47: 2 | BR47: 100.00% | BT47: 1.5 | BU47: 0.38 | BV47: 2 | BX47: 100.00% | BZ47: 2.5 | CA47: 0.21 | CB47: 2 | CD47: 100.00% | CF47: 1.5 | CG47: 0.19 | CH47: 2 | CJ47: 100.00% | CL47: 2 | CM47: 0.17 | CN47: 2 | CP47: 100.00%
A48: 7131 | B48: 7131 Hialeah-Miami Lakes Senior High | C48: 378 | D48: 19.5 | E48: 0.54 | F48: 297 | G48: 81 | H48: 78.57% | I48: 21.43% | J48: 3.099999905 | K48: 0.63 | L48: 207 | M48: 171 | N48: 54.76% | O48: 45.24% | P48: 8.600000381 | Q48: 0.58 | R48: 264 | S48: 114 | T48: 69.84% | U48: 30.16% | V48: 2.5 | W48: 0.42 | X48: 345 | Y48: 33 | Z48: 91.27% | AA48: 8.73% | AB48: 5.199999809 | AC48: 0.52 | AD48: 279 | AE48: 99 | AF48: 73.81% | AG48: 26.19% | AH48: 33 | AI48: 14.89999962 | AJ48: 0.42 | AK48: 33 | AM48: 100.00% | AO48: 2.200000048 | AP48: 0.44 | AQ48: 29 | AR48: 4 | AS48: 87.88% | AT48: 12.12% | AU48: 6.900000095 | AV48: 0.46 | AW48: 30 | AX48: 3 | AY48: 90.91% | AZ48: 9.09% | BA48: 1.700000048 | BB48: 0.28 | BC48: 33 | BE48: 100.00% | BG48: 4.199999809 | BH48: 0.42 | BI48: 30 | BJ48: 3 | BK48: 90.91% | BL48: 9.09% | BM48: 7 | BN48: 12 | BO48: 0.33 | BP48: 7 | BR48: 100.00% | BT48: 1.600000024 | BU48: 0.39 | BV48: 5 | BW48: 2 | BX48: 71.43% | BY48: 28.57% | BZ48: 4.599999905 | CA48: 0.38 | CB48: 7 | CD48: 100.00% | CF48: 2.099999905 | CG48: 0.27 | CH48: 7 | CJ48: 100.00% | CL48: 3.700000048 | CM48: 0.31 | CN48: 7 | CP48: 100.00%
A49: 7141 | B49: 7141 Dr. Michael M. Krop Senior High School | C49: 744 | D49: 22.89999962 | E49: 0.64 | F49: 433 | G49: 311 | H49: 58.20% | I49: 41.80% | J49: 3.799999952 | K49: 0.76 | L49: 261 | M49: 483 | N49: 35.08% | O49: 64.92% | P49: 10.10000038 | Q49: 0.67 | R49: 350 | S49: 394 | T49: 47.04% | U49: 52.96% | V49: 3.200000048 | W49: 0.53 | X49: 568 | Y49: 176 | Z49: 76.34% | AA49: 23.66% | AB49: 5.800000191 | AC49: 0.58 | AD49: 449 | AE49: 295 | AF49: 60.35% | AG49: 39.65% | BM49: 3 | BN49: 5.699999809 | BO49: 0.16 | BP49: 3 | BR49: 100.00% | BT49: 1 | BU49: 0.25 | BV49: 3 | BX49: 100.00% | BZ49: 3 | CA49: 0.25 | CB49: 3 | CD49: 100.00% | CF49: 1 | CG49: 0.13 | CH49: 3 | CJ49: 100.00% | CL49: 0.6999999881 | CM49: 0.05 | CN49: 3 | CP49: 100.00%
A50: 7151 | B50: 7151 Homestead Sr. High School | C50: 467 | D50: 16.29999924 | E50: 0.45 | F50: 433 | G50: 34 | H50: 92.72% | I50: 7.28% | J50: 2.700000048 | K50: 0.53 | L50: 331 | M50: 136 | N50: 70.88% | O50: 29.12% | P50: 7.300000191 | Q50: 0.49 | R50: 393 | S50: 74 | T50: 84.15% | U50: 15.85% | V50: 2.099999905 | W50: 0.35 | X50: 450 | Y50: 17 | Z50: 96.36% | AA50: 3.64% | AB50: 4.199999809 | AC50: 0.42 | AD50: 410 | AE50: 57 | AF50: 87.79% | AG50: 12.21% | AH50: 9 | AI50: 17.20000076 | AJ50: 0.48 | AK50: 8 | AL50: 1 | AM50: 88.89% | AN50: 11.11% | AO50: 2.900000095 | AP50: 0.58 | AQ50: 7 | AR50: 2 | AS50: 77.78% | AT50: 22.22% | AU50: 8.199999809 | AV50: 0.55 | AW50: 6 | AX50: 3 | AY50: 66.67% | AZ50: 33.33% | BA50: 2 | BB50: 0.33 | BC50: 8 | BD50: 1 | BE50: 88.89% | BF50: 11.11% | BG50: 4.099999905 | BH50: 0.41 | BI50: 8 | BJ50: 1 | BK50: 88.89% | BL50: 11.11% | BM50: 2 | BN50: 11 | BO50: 0.31 | BP50: 2 | BR50: 100.00% | BT50: 2 | BU50: 0.5 | BV50: 1 | BW50: 1 | BX50: 50.00% | BY50: 50.00% | BZ50: 2 | CA50: 0.17 | CB50: 2 | CD50: 100.00% | CF50: 4 | CG50: 0.5 | CH50: 2 | CJ50: 100.00% | CL50: 3 | CM50: 0.25 | CN50: 2 | CP50: 100.00%
A51: 7160 | B51: 7160 Mater Academy High | C51: 343 | D51: 22.79999924 | E51: 0.63 | F51: 219 | G51: 124 | H51: 63.85% | I51: 36.15% | J51: 3.700000048 | K51: 0.74 | L51: 128 | M51: 215 | N51: 37.32% | O51: 62.68% | P51: 10.10000038 | Q51: 0.67 | R51: 176 | S51: 167 | T51: 51.31% | U51: 48.69% | V51: 3 | W51: 0.51 | X51: 278 | Y51: 65 | Z51: 81.05% | AA51: 18.95% | AB51: 6 | AC51: 0.6 | AD51: 193 | AE51: 150 | AF51: 56.27% | AG51: 43.73%
A52: 7161 | B52: 7161 MAST Academy | C52: 142 | D52: 28.79999924 | E52: 0.8 | F52: 14 | G52: 128 | H52: 9.86% | I52: 90.14% | J52: 4.599999905 | K52: 0.92 | L52: 8 | M52: 134 | N52: 5.63% | O52: 94.37% | P52: 12.5 | Q52: 0.84 | R52: 17 | S52: 125 | T52: 11.97% | U52: 88.03% | V52: 4.300000191 | W52: 0.72 | X52: 73 | Y52: 69 | Z52: 51.41% | AA52: 48.59% | AB52: 7.400000095 | AC52: 0.74 | AD52: 35 | AE52: 107 | AF52: 24.65% | AG52: 75.35%
A53: 7171 | B53: 7171 M.A.S.T At Homestead | C53: 78 | D53: 22.5 | E53: 0.63 | F53: 49 | G53: 29 | H53: 62.82% | I53: 37.18% | J53: 3.599999905 | K53: 0.73 | L53: 33 | M53: 45 | N53: 42.31% | O53: 57.69% | P53: 9.899999619 | Q53: 0.66 | R53: 42 | S53: 36 | T53: 53.85% | U53: 46.15% | V53: 3.099999905 | W53: 0.52 | X53: 64 | Y53: 14 | Z53: 82.05% | AA53: 17.95% | AB53: 5.900000095 | AC53: 0.59 | AD53: 49 | AE53: 29 | AF53: 62.82% | AG53: 37.18%
A54: 7191 | B54: 7191 Hialeah Gardens High School | C54: 648 | D54: 20.29999924 | E54: 0.56 | F54: 450 | G54: 198 | H54: 69.44% | I54: 30.56% | J54: 3.200000048 | K54: 0.63 | L54: 331 | M54: 317 | N54: 51.08% | O54: 48.92% | P54: 9.100000381 | Q54: 0.6 | R54: 396 | S54: 252 | T54: 61.11% | U54: 38.89% | V54: 2.700000048 | W54: 0.45 | X54: 558 | Y54: 90 | Z54: 86.11% | AA54: 13.89% | AB54: 5.300000191 | AC54: 0.53 | AD54: 430 | AE54: 218 | AF54: 66.36% | AG54: 33.64% | AH54: 4 | AI54: 16 | AJ54: 0.44 | AK54: 4 | AM54: 100.00% | AO54: 1.799999952 | AP54: 0.35 | AQ54: 4 | AS54: 100.00% | AU54: 8 | AV54: 0.54 | AW54: 4 | AY54: 100.00% | BA54: 1.799999952 | BB54: 0.29 | BC54: 4 | BE54: 100.00% | BG54: 4.5 | BH54: 0.45 | BI54: 4 | BK54: 100.00%
A55: 7201 | B55: 7201 Miami Beach Senior high School | C55: 605 | D55: 20.5 | E55: 0.57 | F55: 424 | G55: 181 | H55: 70.08% | I55: 29.92% | J55: 3.200000048 | K55: 0.63 | L55: 326 | M55: 279 | N55: 53.88% | O55: 46.12% | P55: 9.300000191 | Q55: 0.62 | R55: 353 | S55: 252 | T55: 58.35% | U55: 41.65% | V55: 2.700000048 | W55: 0.45 | X55: 506 | Y55: 99 | Z55: 83.64% | AA55: 16.36% | AB55: 5.300000191 | AC55: 0.53 | AD55: 418 | AE55: 187 | AF55: 69.09% | AG55: 30.91% | AH55: 4 | AI55: 19 | AJ55: 0.53 | AK55: 3 | AL55: 1 | AM55: 75.00% | AN55: 25.00% | AO55: 3 | AP55: 0.6 | AQ55: 3 | AR55: 1 | AS55: 75.00% | AT55: 25.00% | AU55: 8 | AV55: 0.53 | AW55: 3 | AX55: 1 | AY55: 75.00% | AZ55: 25.00% | BA55: 2.299999952 | BB55: 0.38 | BC55: 4 | BE55: 100.00% | BG55: 5.800000191 | BH55: 0.57 | BI55: 2 | BJ55: 2 | BK55: 50.00% | BL55: 50.00%
A56: 7231 | B56: 7231 Miami Carol City Sr. High | C56: 327 | D56: 17.89999962 | E56: 0.5 | F56: 281 | G56: 46 | H56: 85.93% | I56: 14.07% | J56: 3 | K56: 0.61 | L56: 194 | M56: 133 | N56: 59.33% | O56: 40.67% | P56: 8 | Q56: 0.53 | R56: 259 | S56: 68 | T56: 79.20% | U56: 20.80% | V56: 2.200000048 | W56: 0.37 | X56: 305 | Y56: 22 | Z56: 93.27% | AA56: 6.73% | AB56: 4.699999809 | AC56: 0.47 | AD56: 264 | AE56: 63 | AF56: 80.73% | AG56: 19.27% | AH56: 1 | AI56: 25 | AJ56: 0.69 | AK56: 1 | AM56: 100.00% | AO56: 5 | AP56: 1 | AR56: 1 | AT56: 100.00% | AU56: 12 | AV56: 0.8 | AX56: 1 | AZ56: 100.00% | BA56: 1 | BB56: 0.17 | BC56: 1 | BE56: 100.00% | BG56: 7 | BH56: 0.7 | BJ56: 1 | BL56: 100.00%
A57: 7241 | B57: 7241 Ronald W. Reagan/Doral Senior High | C57: 562 | D57: 22.20000076 | E57: 0.62 | F57: 366 | G57: 196 | H57: 65.12% | I57: 34.88% | J57: 3.5 | K57: 0.7 | L57: 244 | M57: 318 | N57: 43.42% | O57: 56.58% | P57: 9.899999619 | Q57: 0.66 | R57: 302 | S57: 260 | T57: 53.74% | U57: 46.26% | V57: 3 | W57: 0.5 | X57: 476 | Y57: 86 | Z57: 84.70% | AA57: 15.30% | AB57: 5.800000191 | AC57: 0.58 | AD57: 332 | AE57: 230 | AF57: 59.07% | AG57: 40.93% | AH57: 8 | AI57: 19.29999924 | AJ57: 0.53 | AK57: 6 | AL57: 2 | AM57: 75.00% | AN57: 25.00% | AO57: 2.799999952 | AP57: 0.55 | AQ57: 5 | AR57: 3 | AS57: 62.50% | AT57: 37.50% | AU57: 8.300000191 | AV57: 0.55 | AW57: 6 | AX57: 2 | AY57: 75.00% | AZ57: 25.00% | BA57: 2.5 | BB57: 0.42 | BC57: 7 | BD57: 1 | BE57: 87.50% | BF57: 12.50% | BG57: 5.800000191 | BH57: 0.57 | BI57: 6 | BJ57: 2 | BK57: 75.00% | BL57: 25.00%
A58: 7251 | B58: 7251 Miami Central Senior High | C58: 463 | D58: 17 | E58: 0.47 | F58: 415 | G58: 48 | H58: 89.63% | I58: 10.37% | J58: 2.799999952 | K58: 0.56 | L58: 300 | M58: 163 | N58: 64.79% | O58: 35.21% | P58: 7.599999905 | Q58: 0.5 | R58: 378 | S58: 85 | T58: 81.64% | U58: 18.36% | V58: 2.099999905 | W58: 0.35 | X58: 439 | Y58: 24 | Z58: 94.82% | AA58: 5.18% | AB58: 4.400000095 | AC58: 0.44 | AD58: 381 | AE58: 82 | AF58: 82.29% | AG58: 17.71% | AH58: 5 | AI58: 13 | AJ58: 0.36 | AK58: 4 | AL58: 1 | AM58: 80.00% | AN58: 20.00% | AO58: 1.799999952 | AP58: 0.36 | AQ58: 4 | AR58: 1 | AS58: 80.00% | AT58: 20.00% | AU58: 5.599999905 | AV58: 0.37 | AW58: 4 | AX58: 1 | AY58: 80.00% | AZ58: 20.00% | BA58: 2 | BB58: 0.33 | BC58: 5 | BE58: 100.00% | BG58: 3.599999905 | BH58: 0.36 | BI58: 4 | BJ58: 1 | BK58: 80.00% | BL58: 20.00%
A59: 7254 | B59: 7254 MacArthur North | C59: 1 | D59: 19 | E59: 0.53 | F59: 1 | H59: 100.00% | J59: 4 | K59: 0.8 | M59: 1 | O59: 100.00% | P59: 7 | Q59: 0.47 | R59: 1 | T59: 100.00% | V59: 1 | W59: 0.17 | X59: 1 | Z59: 100.00% | AB59: 7 | AC59: 0.7 | AE59: 1 | AG59: 100.00% | AH59: 1 | AI59: 9 | AJ59: 0.25 | AK59: 1 | AM59: 100.00% | AO59: 2 | AP59: 0.4 | AQ59: 1 | AS59: 100.00% | AU59: 4 | AV59: 0.27 | AW59: 1 | AY59: 100.00% | BA59: 0 | BB59: 0 | BC59: 1 | BE59: 100.00% | BG59: 3 | BH59: 0.3 | BI59: 1 | BK59: 100.00%
A60: 7262 | B60: 7262 City of Hialeah Education Academy | C60: 110 | D60: 21.89999962 | E60: 0.61 | F60: 79 | G60: 31 | H60: 71.82% | I60: 28.18% | J60: 3.5 | K60: 0.69 | L60: 50 | M60: 60 | N60: 45.45% | O60: 54.55% | P60: 9.600000381 | Q60: 0.64 | R60: 68 | S60: 42 | T60: 61.82% | U60: 38.18% | V60: 2.900000095 | W60: 0.48 | X60: 93 | Y60: 17 | Z60: 84.55% | AA60: 15.45% | AB60: 5.900000095 | AC60: 0.59 | AD60: 67 | AE60: 43 | AF60: 60.91% | AG60: 39.09% | AH60: 1 | AI60: 13 | AJ60: 0.36 | AK60: 1 | AM60: 100.00% | AO60: 3 | AP60: 0.6 | AQ60: 1 | AS60: 100.00% | AU60: 3 | AV60: 0.2 | AW60: 1 | AY60: 100.00% | BA60: 3 | BB60: 0.5 | BC60: 1 | BE60: 100.00% | BG60: 4 | BH60: 0.4 | BI60: 1 | BK60: 100.00%
A61: 7265 | B61: 7265 Archimedean Upper Conservatory | C61: 38 | D61: 27.60000038 | E61: 0.77 | F61: 12 | G61: 26 | H61: 31.58% | I61: 68.42% | J61: 4.400000095 | K61: 0.87 | L61: 5 | M61: 33 | N61: 13.16% | O61: 86.84% | P61: 12.30000019 | Q61: 0.82 | R61: 7 | S61: 31 | T61: 18.42% | U61: 81.58% | V61: 3.799999952 | W61: 0.64 | X61: 22 | Y61: 16 | Z61: 57.89% | AA61: 42.11% | AB61: 7.099999905 | AC61: 0.71 | AD61: 13 | AE61: 25 | AF61: 34.21% | AG61: 65.79%
A62: 7271 | B62: 7271 Miami Coral Park Senior High School | C62: 717 | D62: 20.89999962 | E62: 0.58 | F62: 513 | G62: 204 | H62: 71.55% | I62: 28.45% | J62: 3.299999952 | K62: 0.66 | L62: 367 | M62: 350 | N62: 51.19% | O62: 48.81% | P62: 9.399999619 | Q62: 0.63 | R62: 418 | S62: 299 | T62: 58.30% | U62: 41.70% | V62: 2.599999905 | W62: 0.43 | X62: 630 | Y62: 87 | Z62: 87.87% | AA62: 12.13% | AB62: 5.5 | AC62: 0.55 | AD62: 457 | AE62: 260 | AF62: 63.74% | AG62: 36.26% | AH62: 13 | AI62: 13 | AJ62: 0.36 | AK62: 13 | AM62: 100.00% | AO62: 2.200000048 | AP62: 0.43 | AQ62: 12 | AR62: 1 | AS62: 92.31% | AT62: 7.69% | AU62: 6.5 | AV62: 0.44 | AW62: 13 | AY62: 100.00% | BA62: 1.600000024 | BB62: 0.27 | BC62: 13 | BE62: 100.00% | BG62: 2.700000048 | BH62: 0.27 | BI62: 13 | BK62: 100.00%
A63: 7301 | B63: 7301 Miami Edison Senior High | C63: 233 | D63: 18.60000038 | E63: 0.52 | F63: 196 | G63: 37 | H63: 84.12% | I63: 15.88% | J63: 3.200000048 | K63: 0.64 | L63: 123 | M63: 110 | N63: 52.79% | O63: 47.21% | P63: 8.100000381 | Q63: 0.54 | R63: 181 | S63: 52 | T63: 77.68% | U63: 22.32% | V63: 2.5 | W63: 0.42 | X63: 212 | Y63: 21 | Z63: 90.99% | AA63: 9.01% | AB63: 4.800000191 | AC63: 0.48 | AD63: 190 | AE63: 43 | AF63: 81.55% | AG63: 18.45% | AH63: 1 | AI63: 6 | AJ63: 0.17 | AK63: 1 | AM63: 100.00% | AO63: 1 | AP63: 0.2 | AQ63: 1 | AS63: 100.00% | AU63: 2 | AV63: 0.13 | AW63: 1 | AY63: 100.00% | BA63: 1 | BB63: 0.17 | BC63: 1 | BE63: 100.00% | BG63: 2 | BH63: 0.2 | BI63: 1 | BK63: 100.00%
A64: 7341 | B64: 7341 Miami Jackson Senior High | C64: 287 | D64: 17.39999962 | E64: 0.48 | F64: 264 | G64: 23 | H64: 91.99% | I64: 8.01% | J64: 2.799999952 | K64: 0.55 | L64: 197 | M64: 90 | N64: 68.64% | O64: 31.36% | P64: 7.800000191 | Q64: 0.52 | R64: 223 | S64: 64 | T64: 77.70% | U64: 22.30% | V64: 2.299999952 | W64: 0.38 | X64: 267 | Y64: 20 | Z64: 93.03% | AA64: 6.97% | AB64: 4.599999905 | AC64: 0.46 | AD64: 240 | AE64: 47 | AF64: 83.62% | AG64: 16.38% | AH64: 2 | AI64: 15 | AJ64: 0.42 | AK64: 2 | AM64: 100.00% | AO64: 2.5 | AP64: 0.5 | AQ64: 2 | AS64: 100.00% | AU64: 6.5 | AV64: 0.43 | AW64: 2 | AY64: 100.00% | BA64: 2 | BB64: 0.34 | BC64: 2 | BE64: 100.00% | BG64: 4 | BH64: 0.4 | BI64: 2 | BK64: 100.00%
A65: 7361 | B65: 7361 Miami Killian Senior High | C65: 599 | D65: 20.60000038 | E65: 0.57 | F65: 440 | G65: 159 | H65: 73.46% | I65: 26.54% | J65: 3.400000095 | K65: 0.68 | L65: 275 | M65: 324 | N65: 45.91% | O65: 54.09% | P65: 9.199999809 | Q65: 0.61 | R65: 372 | S65: 227 | T65: 62.10% | U65: 37.90% | V65: 2.700000048 | W65: 0.46 | X65: 511 | Y65: 88 | Z65: 85.31% | AA65: 14.69% | AB65: 5.300000191 | AC65: 0.53 | AD65: 430 | AE65: 169 | AF65: 71.79% | AG65: 28.21% | AH65: 23 | AI65: 15.60000038 | AJ65: 0.43 | AK65: 23 | AM65: 100.00% | AO65: 2.599999905 | AP65: 0.51 | AQ65: 19 | AR65: 4 | AS65: 82.61% | AT65: 17.39% | AU65: 7.099999905 | AV65: 0.48 | AW65: 20 | AX65: 3 | AY65: 86.96% | AZ65: 13.04% | BA65: 2 | BB65: 0.33 | BC65: 21 | BD65: 2 | BE65: 91.30% | BF65: 8.70% | BG65: 3.900000095 | BH65: 0.39 | BI65: 22 | BJ65: 1 | BK65: 95.65% | BL65: 4.35% | BM65: 1 | BN65: 13 | BO65: 0.36 | BP65: 1 | BR65: 100.00% | BT65: 2 | BU65: 0.5 | BV65: 1 | BX65: 100.00% | BZ65: 5 | CA65: 0.42 | CB65: 1 | CD65: 100.00% | CF65: 2 | CG65: 0.25 | CH65: 1 | CJ65: 100.00% | CL65: 4 | CM65: 0.33 | CN65: 1 | CP65: 100.00%
A66: 7371 | B66: 7371 Robert Morgan Education Center | C66: 478 | D66: 22.5 | E66: 0.62 | F66: 316 | G66: 162 | H66: 66.11% | I66: 33.89% | J66: 3.700000048 | K66: 0.73 | L66: 189 | M66: 289 | N66: 39.54% | O66: 60.46% | P66: 10.19999981 | Q66: 0.68 | R66: 229 | S66: 249 | T66: 47.91% | U66: 52.09% | V66: 2.900000095 | W66: 0.48 | X66: 413 | Y66: 65 | Z66: 86.40% | AA66: 13.60% | AB66: 5.800000191 | AC66: 0.58 | AD66: 302 | AE66: 176 | AF66: 63.18% | AG66: 36.82%
A67: 7381 | B67: 7381 Miami Norland Senior High | C67: 358 | D67: 18.70000076 | E67: 0.52 | F67: 307 | G67: 51 | H67: 85.75% | I67: 14.25% | J67: 3.200000048 | K67: 0.64 | L67: 190 | M67: 168 | N67: 53.07% | O67: 46.93% | P67: 8.399999619 | Q67: 0.56 | R67: 266 | S67: 92 | T67: 74.30% | U67: 25.70% | V67: 2.400000095 | W67: 0.39 | X67: 329 | Y67: 29 | Z67: 91.90% | AA67: 8.10% | AB67: 4.699999809 | AC67: 0.47 | AD67: 278 | AE67: 80 | AF67: 77.65% | AG67: 22.35% | AH67: 3 | AI67: 21.29999924 | AJ67: 0.59 | AK67: 2 | AL67: 1 | AM67: 66.67% | AN67: 33.33% | AO67: 2.700000048 | AP67: 0.53 | AQ67: 2 | AR67: 1 | AS67: 66.67% | AT67: 33.33% | AU67: 10 | AV67: 0.66 | AW67: 1 | AX67: 2 | AY67: 33.33% | AZ67: 66.67% | BA67: 3 | BB67: 0.5 | BC67: 2 | BD67: 1 | BE67: 66.67% | BF67: 33.33% | BG67: 5.699999809 | BH67: 0.57 | BI67: 2 | BJ67: 1 | BK67: 66.67% | BL67: 33.33%
A68: 7391 | B68: 7391 Miami Lakes Educational Center | C68: 431 | D68: 23.29999924 | E68: 0.65 | F68: 259 | G68: 172 | H68: 60.09% | I68: 39.91% | J68: 3.799999952 | K68: 0.77 | L68: 140 | M68: 291 | N68: 32.48% | O68: 67.52% | P68: 10.39999962 | Q68: 0.69 | R68: 207 | S68: 224 | T68: 48.03% | U68: 51.97% | V68: 3 | W68: 0.5 | X68: 349 | Y68: 82 | Z68: 80.97% | AA68: 19.03% | AB68: 6.099999905 | AC68: 0.61 | AD68: 236 | AE68: 195 | AF68: 54.76% | AG68: 45.24% | BM68: 2 | BN68: 11 | BO68: 0.31 | BP68: 2 | BR68: 100.00% | BT68: 2.5 | BU68: 0.63 | BV68: 1 | BW68: 1 | BX68: 50.00% | BY68: 50.00% | BZ68: 3.5 | CA68: 0.29 | CB68: 2 | CD68: 100.00% | CF68: 1.5 | CG68: 0.19 | CH68: 2 | CJ68: 100.00% | CL68: 3.5 | CM68: 0.29 | CN68: 2 | CP68: 100.00%
A69: 7411 | B69: 7411 Miami Northwestern Senior | C69: 379 | D69: 17.89999962 | E69: 0.5 | F69: 329 | G69: 50 | H69: 86.81% | I69: 13.19% | J69: 3 | K69: 0.6 | L69: 224 | M69: 155 | N69: 59.10% | O69: 40.90% | P69: 8 | Q69: 0.54 | R69: 284 | S69: 95 | T69: 74.93% | U69: 25.07% | V69: 2.299999952 | W69: 0.38 | X69: 343 | Y69: 36 | Z69: 90.50% | AA69: 9.50% | AB69: 4.599999905 | AC69: 0.46 | AD69: 317 | AE69: 62 | AF69: 83.64% | AG69: 16.36% | AH69: 9 | AI69: 17.20000076 | AJ69: 0.48 | AK69: 8 | AL69: 1 | AM69: 88.89% | AN69: 11.11% | AO69: 2.900000095 | AP69: 0.58 | AQ69: 5 | AR69: 4 | AS69: 55.56% | AT69: 44.44% | AU69: 7.699999809 | AV69: 0.51 | AW69: 7 | AX69: 2 | AY69: 77.78% | AZ69: 22.22% | BA69: 1.600000024 | BB69: 0.26 | BC69: 9 | BE69: 100.00% | BG69: 5.099999905 | BH69: 0.51 | BI69: 6 | BJ69: 3 | BK69: 66.67% | BL69: 33.33% | BM69: 3 | BN69: 13.69999981 | BO69: 0.38 | BP69: 3 | BR69: 100.00% | BT69: 1.299999952 | BU69: 0.33 | BV69: 3 | BX69: 100.00% | BZ69: 5 | CA69: 0.42 | CB69: 3 | CD69: 100.00% | CF69: 2.700000048 | CG69: 0.33 | CH69: 3 | CJ69: 100.00% | CL69: 4.699999809 | CM69: 0.39 | CN69: 2 | CO69: 1 | CP69: 66.67% | CQ69: 33.33%
A70: 7431 | B70: 7431 Miami Palmetto Sr High | C70: 661 | D70: 23.79999924 | E70: 0.66 | F70: 339 | G70: 322 | H70: 51.29% | I70: 48.71% | J70: 3.900000095 | K70: 0.78 | L70: 198 | M70: 463 | N70: 29.95% | O70: 70.05% | P70: 10.60000038 | Q70: 0.7 | R70: 267 | S70: 394 | T70: 40.39% | U70: 59.61% | V70: 3.299999952 | W70: 0.55 | X70: 508 | Y70: 153 | Z70: 76.85% | AA70: 23.15% | AB70: 6 | AC70: 0.6 | AD70: 364 | AE70: 297 | AF70: 55.07% | AG70: 44.93% | AH70: 4 | AI70: 9.5 | AJ70: 0.26 | AK70: 4 | AM70: 100.00% | AO70: 1.299999952 | AP70: 0.25 | AQ70: 4 | AS70: 100.00% | AU70: 5.5 | AV70: 0.37 | AW70: 4 | AY70: 100.00% | BA70: 1 | BB70: 0.17 | BC70: 4 | BE70: 100.00% | BG70: 1.799999952 | BH70: 0.18 | BI70: 4 | BK70: 100.00%
A71: 7461 | B71: 7461 Miami Senior High | C71: 655 | D71: 17 | E71: 0.47 | F71: 572 | G71: 83 | H71: 87.33% | I71: 12.67% | J71: 2.599999905 | K71: 0.53 | L71: 471 | M71: 184 | N71: 71.91% | O71: 28.09% | P71: 7.800000191 | Q71: 0.52 | R71: 507 | S71: 148 | T71: 77.40% | U71: 22.60% | V71: 2 | W71: 0.34 | X71: 612 | Y71: 43 | Z71: 93.44% | AA71: 6.56% | AB71: 4.5 | AC71: 0.45 | AD71: 538 | AE71: 117 | AF71: 82.14% | AG71: 17.86% | AH71: 19 | AI71: 11.80000019 | AJ71: 0.33 | AK71: 19 | AM71: 100.00% | AO71: 1.600000024 | AP71: 0.33 | AQ71: 18 | AR71: 1 | AS71: 94.74% | AT71: 5.26% | AU71: 5.599999905 | AV71: 0.37 | AW71: 19 | AY71: 100.00% | BA71: 1.399999976 | BB71: 0.23 | BC71: 19 | BE71: 100.00% | BG71: 3.200000048 | BH71: 0.32 | BI71: 19 | BK71: 100.00% | BM71: 6 | BN71: 10.19999981 | BO71: 0.28 | BP71: 6 | BR71: 100.00% | BT71: 1 | BU71: 0.25 | BV71: 6 | BX71: 100.00% | BZ71: 4.300000191 | CA71: 0.36 | CB71: 6 | CD71: 100.00% | CF71: 2.299999952 | CG71: 0.29 | CH71: 6 | CJ71: 100.00% | CL71: 2.5 | CM71: 0.21 | CN71: 6 | CP71: 100.00%
A72: 7511 | B72: 7511 Miami Springs Senior High | C72: 488 | D72: 20.39999962 | E72: 0.57 | F72: 364 | G72: 124 | H72: 74.59% | I72: 25.41% | J72: 3.200000048 | K72: 0.63 | L72: 256 | M72: 232 | N72: 52.46% | O72: 47.54% | P72: 9.100000381 | Q72: 0.61 | R72: 305 | S72: 183 | T72: 62.50% | U72: 37.50% | V72: 2.799999952 | W72: 0.46 | X72: 421 | Y72: 67 | Z72: 86.27% | AA72: 13.73% | AB72: 5.300000191 | AC72: 0.53 | AD72: 338 | AE72: 150 | AF72: 69.26% | AG72: 30.74% | AH72: 9 | AI72: 12.30000019 | AJ72: 0.34 | AK72: 9 | AM72: 100.00% | AO72: 1.100000024 | AP72: 0.22 | AQ72: 8 | AR72: 1 | AS72: 88.89% | AT72: 11.11% | AU72: 5.699999809 | AV72: 0.38 | AW72: 9 | AY72: 100.00% | BA72: 2.299999952 | BB72: 0.39 | BC72: 8 | BD72: 1 | BE72: 88.89% | BF72: 11.11% | BG72: 3.200000048 | BH72: 0.32 | BI72: 9 | BK72: 100.00%
A73: 7531 | B73: 7531 Miami SunSET Senior | C73: 608 | D73: 20.89999962 | E73: 0.58 | F73: 456 | G73: 152 | H73: 75.00% | I73: 25.00% | J73: 3.400000095 | K73: 0.69 | L73: 279 | M73: 329 | N73: 45.89% | O73: 54.11% | P73: 9.199999809 | Q73: 0.62 | R73: 371 | S73: 237 | T73: 61.02% | U73: 38.98% | V73: 2.700000048 | W73: 0.44 | X73: 545 | Y73: 63 | Z73: 89.64% | AA73: 10.36% | AB73: 5.5 | AC73: 0.55 | AD73: 392 | AE73: 216 | AF73: 64.47% | AG73: 35.53% | AH73: 19 | AI73: 15.60000038 | AJ73: 0.43 | AK73: 17 | AL73: 2 | AM73: 89.47% | AN73: 10.53% | AO73: 2.5 | AP73: 0.49 | AQ73: 14 | AR73: 5 | AS73: 73.68% | AT73: 26.32% | AU73: 7.699999809 | AV73: 0.51 | AW73: 16 | AX73: 3 | AY73: 84.21% | AZ73: 15.79% | BA73: 1.700000048 | BB73: 0.28 | BC73: 18 | BD73: 1 | BE73: 94.74% | BF73: 5.26% | BG73: 3.799999952 | BH73: 0.38 | BI73: 17 | BJ73: 2 | BK73: 89.47% | BL73: 10.53%
A74: 7541 | B74: 7541 North Miami Beach Sr. | C74: 520 | D74: 18.70000076 | E74: 0.52 | F74: 430 | G74: 90 | H74: 82.69% | I74: 17.31% | J74: 3.099999905 | K74: 0.61 | L74: 304 | M74: 216 | N74: 58.46% | O74: 41.54% | P74: 8.399999619 | Q74: 0.56 | R74: 374 | S74: 146 | T74: 71.92% | U74: 28.08% | V74: 2.5 | W74: 0.41 | X74: 461 | Y74: 59 | Z74: 88.65% | AA74: 11.35% | AB74: 4.800000191 | AC74: 0.48 | AD74: 424 | AE74: 96 | AF74: 81.54% | AG74: 18.46% | AH74: 8 | AI74: 18.39999962 | AJ74: 0.51 | AK74: 7 | AL74: 1 | AM74: 87.50% | AN74: 12.50% | AO74: 3.5 | AP74: 0.7 | AQ74: 5 | AR74: 3 | AS74: 62.50% | AT74: 37.50% | AU74: 8.800000191 | AV74: 0.59 | AW74: 7 | AX74: 1 | AY74: 87.50% | AZ74: 12.50% | BA74: 1.799999952 | BB74: 0.29 | BC74: 8 | BE74: 100.00% | BG74: 4.400000095 | BH74: 0.44 | BI74: 7 | BJ74: 1 | BK74: 87.50% | BL74: 12.50%
A75: 7571 | B75: 7571 International Studies Preparatory Academy | C75: 27 | D75: 27.10000038 | E75: 0.75 | F75: 10 | G75: 17 | H75: 37.04% | I75: 62.96% | J75: 4.300000191 | K75: 0.86 | L75: 6 | M75: 21 | N75: 22.22% | O75: 77.78% | P75: 11.89999962 | Q75: 0.79 | R75: 6 | S75: 21 | T75: 22.22% | U75: 77.78% | V75: 4.099999905 | W75: 0.69 | X75: 14 | Y75: 13 | Z75: 51.85% | AA75: 48.15% | AB75: 6.800000191 | AC75: 0.68 | AD75: 9 | AE75: 18 | AF75: 33.33% | AG75: 66.67%
A76: 7591 | B76: 7591 North Miami Senior High School | C76: 628 | D76: 19.10000038 | E76: 0.53 | F76: 499 | G76: 129 | H76: 79.46% | I76: 20.54% | J76: 3.200000048 | K76: 0.64 | L76: 325 | M76: 303 | N76: 51.75% | O76: 48.25% | P76: 8.5 | Q76: 0.57 | R76: 442 | S76: 186 | T76: 70.38% | U76: 29.62% | V76: 2.599999905 | W76: 0.43 | X76: 552 | Y76: 76 | Z76: 87.90% | AA76: 12.10% | AB76: 4.800000191 | AC76: 0.48 | AD76: 488 | AE76: 140 | AF76: 77.71% | AG76: 22.29% | AH76: 4 | AI76: 13.5 | AJ76: 0.38 | AK76: 4 | AM76: 100.00% | AO76: 2.299999952 | AP76: 0.45 | AQ76: 3 | AR76: 1 | AS76: 75.00% | AT76: 25.00% | AU76: 6.5 | AV76: 0.43 | AW76: 4 | AY76: 100.00% | BA76: 0.8000000119 | BB76: 0.13 | BC76: 4 | BE76: 100.00% | BG76: 4 | BH76: 0.4 | BI76: 4 | BK76: 100.00% | BM76: 3 | BN76: 13.30000019 | BO76: 0.37 | BP76: 3 | BR76: 100.00% | BT76: 1 | BU76: 0.25 | BV76: 2 | BW76: 1 | BX76: 66.67% | BY76: 33.33% | BZ76: 5 | CA76: 0.42 | CB76: 3 | CD76: 100.00% | CF76: 3.700000048 | CG76: 0.46 | CH76: 3 | CJ76: 100.00% | CL76: 3.700000048 | CM76: 0.31 | CN76: 3 | CP76: 100.00%
A77: 7601 | B77: 7601 Turner Tech | C77: 310 | D77: 21.70000076 | E77: 0.6 | F77: 220 | G77: 90 | H77: 70.97% | I77: 29.03% | J77: 3.599999905 | K77: 0.72 | L77: 124 | M77: 186 | N77: 40.00% | O77: 60.00% | P77: 9.699999809 | Q77: 0.64 | R77: 172 | S77: 138 | T77: 55.48% | U77: 44.52% | V77: 2.900000095 | W77: 0.49 | X77: 262 | Y77: 48 | Z77: 84.52% | AA77: 15.48% | AB77: 5.5 | AC77: 0.55 | AD77: 213 | AE77: 97 | AF77: 68.71% | AG77: 31.29%
A78: 7631 | B78: 7631 MacArthur South Senior High | C78: 18 | D78: 11.5 | E78: 0.32 | F78: 18 | H78: 100.00% | J78: 2 | K78: 0.4 | L78: 17 | M78: 1 | N78: 94.44% | O78: 5.56% | P78: 4.599999905 | Q78: 0.31 | R78: 18 | T78: 100.00% | V78: 1.799999952 | W78: 0.31 | X78: 18 | Z78: 100.00% | AB78: 3.099999905 | AC78: 0.31 | AD78: 18 | AF78: 100.00% | BM78: 7 | BN78: 11.30000019 | BO78: 0.31 | BP78: 7 | BR78: 100.00% | BT78: 1.299999952 | BU78: 0.32 | BV78: 7 | BX78: 100.00% | BZ78: 5.099999905 | CA78: 0.43 | CB78: 7 | CD78: 100.00% | CF78: 1.399999976 | CG78: 0.18 | CH78: 7 | CJ78: 100.00% | CL78: 3.400000095 | CM78: 0.29 | CN78: 7 | CP78: 100.00%
A79: =IFERROR(VALUE(LEFT(B79,4)),"") -> 7701 | B79: 7701 South Dade Senior | C79: 827 | D79: 19.60000038 | E79: 0.55 | F79: 641 | G79: 186 | H79: 77.51% | I79: 22.49% | J79: 3.299999952 | K79: 0.65 | L79: 418 | M79: 409 | N79: 50.54% | O79: 49.46% | P79: 8.800000191 | Q79: 0.58 | R79: 568 | S79: 259 | T79: 68.68% | U79: 31.32% | V79: 2.5 | W79: 0.42 | X79: 735 | Y79: 92 | Z79: 88.88% | AA79: 11.12% | AB79: 5.099999905 | AC79: 0.51 | AD79: 611 | AE79: 216 | AF79: 73.88% | AG79: 26.12% | AH79: 16 | AI79: 15.10000038 | AJ79: 0.42 | AK79: 16 | AM79: 100.00% | AO79: 2.400000095 | AP79: 0.49 | AQ79: 13 | AR79: 3 | AS79: 81.25% | AT79: 18.75% | AU79: 6.699999809 | AV79: 0.45 | AW79: 14 | AX79: 2 | AY79: 87.50% | AZ79: 12.50% | BA79: 1.899999976 | BB79: 0.32 | BC79: 16 | BE79: 100.00% | BG79: 4 | BH79: 0.4 | BI79: 13 | BJ79: 3 | BK79: 81.25% | BL79: 18.75% | BM79: 1 | BN79: 20 | BO79: 0.56 | BP79: 1 | BR79: 100.00% | BT79: 3 | BU79: 0.75 | BW79: 1 | BY79: 100.00% | BZ79: 5 | CA79: 0.42 | CB79: 1 | CD79: 100.00% | CF79: 3 | CG79: 0.38 | CH79: 1 | CJ79: 100.00% | CL79: 9 | CM79: 0.75 | CO79: 1 | CQ79: 100.00%
A80: 7721 | B80: 7721 South Miami Senior High | C80: 467 | D80: 21.10000038 | E80: 0.59 | F80: 326 | G80: 141 | H80: 69.81% | I80: 30.19% | J80: 3.299999952 | K80: 0.67 | L80: 228 | M80: 239 | N80: 48.82% | O80: 51.18% | P80: 9.399999619 | Q80: 0.63 | R80: 272 | S80: 195 | T80: 58.24% | U80: 41.76% | V80: 2.799999952 | W80: 0.46 | X80: 402 | Y80: 65 | Z80: 86.08% | AA80: 13.92% | AB80: 5.699999809 | AC80: 0.57 | AD80: 293 | AE80: 174 | AF80: 62.74% | AG80: 37.26% | AH80: 29 | AI80: 15 | AJ80: 0.42 | AK80: 29 | AM80: 100.00% | AO80: 2 | AP80: 0.39 | AQ80: 25 | AR80: 4 | AS80: 86.21% | AT80: 13.79% | AU80: 7.199999809 | AV80: 0.48 | AW80: 27 | AX80: 2 | AY80: 93.10% | AZ80: 6.90% | BA80: 1.799999952 | BB80: 0.29 | BC80: 29 | BE80: 100.00% | BG80: 4.099999905 | BH80: 0.41 | BI80: 27 | BJ80: 2 | BK80: 93.10% | BL80: 6.90% | BM80: 1 | BN80: 11 | BO80: 0.31 | BP80: 1 | BR80: 100.00% | BT80: 2 | BU80: 0.5 | BV80: 1 | BX80: 100.00% | BZ80: 4 | CA80: 0.33 | CB80: 1 | CD80: 100.00% | CF80: 2 | CG80: 0.25 | CH80: 1 | CJ80: 100.00% | CL80: 3 | CM80: 0.25 | CN80: 1 | CP80: 100.00%
A81: 7731 | B81: 7731 Miami Southridge Senior High | C81: 579 | D81: 18.89999962 | E81: 0.53 | F81: 485 | G81: 94 | H81: 83.77% | I81: 16.23% | J81: 3.099999905 | K81: 0.62 | L81: 333 | M81: 246 | N81: 57.51% | O81: 42.49% | P81: 8.600000381 | Q81: 0.57 | R81: 423 | S81: 156 | T81: 73.06% | U81: 26.94% | V81: 2.299999952 | W81: 0.39 | X81: 532 | Y81: 47 | Z81: 91.88% | AA81: 8.12% | AB81: 4.900000095 | AC81: 0.49 | AD81: 444 | AE81: 135 | AF81: 76.68% | AG81: 23.32% | BM81: 4 | BN81: 11.80000019 | BO81: 0.33 | BP81: 4 | BR81: 100.00% | BT81: 1.299999952 | BU81: 0.31 | BV81: 4 | BX81: 100.00% | BZ81: 5.800000191 | CA81: 0.48 | CB81: 4 | CD81: 100.00% | CF81: 2.799999952 | CG81: 0.35 | CH81: 4 | CJ81: 100.00% | CL81: 2 | CM81: 0.17 | CN81: 4 | CP81: 100.00%
A82: 7741 | B82: 7741 Southwest Miami High School | C82: 687 | D82: 20.89999962 | E82: 0.58 | F82: 462 | G82: 225 | H82: 67.25% | I82: 32.75% | J82: 3.299999952 | K82: 0.65 | L82: 333 | M82: 354 | N82: 48.47% | O82: 51.53% | P82: 9.399999619 | Q82: 0.63 | R82: 388 | S82: 299 | T82: 56.48% | U82: 43.52% | V82: 2.700000048 | W82: 0.46 | X82: 589 | Y82: 98 | Z82: 85.74% | AA82: 14.26% | AB82: 5.5 | AC82: 0.55 | AD82: 430 | AE82: 257 | AF82: 62.59% | AG82: 37.41% | AH82: 34 | AI82: 18.20000076 | AJ82: 0.51 | AK82: 30 | AL82: 4 | AM82: 88.24% | AN82: 11.76% | AO82: 3 | AP82: 0.59 | AQ82: 20 | AR82: 14 | AS82: 58.82% | AT82: 41.18% | AU82: 8.100000381 | AV82: 0.54 | AW82: 24 | AX82: 10 | AY82: 70.59% | AZ82: 29.41% | BA82: 2.200000048 | BB82: 0.36 | BC82: 31 | BD82: 3 | BE82: 91.18% | BF82: 8.82% | BG82: 5 | BH82: 0.5 | BI82: 25 | BJ82: 9 | BK82: 73.53% | BL82: 26.47% | BM82: 1 | BN82: 23 | BO82: 0.64 | BP82: 1 | BR82: 100.00% | BT82: 2 | BU82: 0.5 | BV82: 1 | BX82: 100.00% | BZ82: 7 | CA82: 0.58 | CB82: 1 | CD82: 100.00% | CF82: 4 | CG82: 0.5 | CH82: 1 | CJ82: 100.00% | CL82: 10 | CM82: 0.83 | CO82: 1 | CQ82: 100.00%
A83: 7751 | B83: 7751 Barbara Goleman High School | C83: 451 | D83: 20.5 | E83: 0.57 | F83: 341 | G83: 110 | H83: 75.61% | I83: 24.39% | J83: 3.299999952 | K83: 0.66 | L83: 223 | M83: 228 | N83: 49.45% | O83: 50.55% | P83: 9.199999809 | Q83: 0.61 | R83: 288 | S83: 163 | T83: 63.86% | U83: 36.14% | V83: 2.700000048 | W83: 0.44 | X83: 398 | Y83: 53 | Z83: 88.25% | AA83: 11.75% | AB83: 5.300000191 | AC83: 0.53 | AD83: 314 | AE83: 137 | AF83: 69.62% | AG83: 30.38% | BM83: 3 | BN83: 20.70000076 | BO83: 0.57 | BP83: 3 | BR83: 100.00% | BT83: 2.299999952 | BU83: 0.58 | BV83: 2 | BW83: 1 | BX83: 66.67% | BY83: 33.33% | BZ83: 6.300000191 | CA83: 0.53 | CB83: 3 | CD83: 100.00% | CF83: 5.300000191 | CG83: 0.67 | CH83: 2 | CI83: 1 | CJ83: 66.67% | CK83: 33.33% | CL83: 6.699999809 | CM83: 0.56 | CN83: 2 | CO83: 1 | CP83: 66.67% | CQ83: 33.33%
A84: 7781 | B84: 7781 Felix Varela Senior High School | C84: 729 | D84: 19.89999962 | E84: 0.55 | F84: 538 | G84: 191 | H84: 73.80% | I84: 26.20% | J84: 3.200000048 | K84: 0.64 | L84: 398 | M84: 331 | N84: 54.60% | O84: 45.40% | P84: 8.899999619 | Q84: 0.59 | R84: 469 | S84: 260 | T84: 64.33% | U84: 35.67% | V84: 2.5 | W84: 0.42 | X84: 640 | Y84: 89 | Z84: 87.79% | AA84: 12.21% | AB84: 5.300000191 | AC84: 0.53 | AD84: 476 | AE84: 253 | AF84: 65.29% | AG84: 34.71% | AH84: 7 | AI84: 20.60000038 | AJ84: 0.57 | AK84: 6 | AL84: 1 | AM84: 85.71% | AN84: 14.29% | AO84: 3.900000095 | AP84: 0.77 | AQ84: 2 | AR84: 5 | AS84: 28.57% | AT84: 71.43% | AU84: 8.100000381 | AV84: 0.54 | AW84: 5 | AX84: 2 | AY84: 71.43% | AZ84: 28.57% | BA84: 2.900000095 | BB84: 0.48 | BC84: 7 | BE84: 100.00% | BG84: 5.699999809 | BH84: 0.57 | BI84: 4 | BJ84: 3 | BK84: 57.14% | BL84: 42.86%
A85: 7791 | B85: 7791 Booker T. Washington Senior High School | C85: 231 | D85: 18.20000076 | E85: 0.5 | F85: 198 | G85: 33 | H85: 85.71% | I85: 14.29% | J85: 3.099999905 | K85: 0.61 | L85: 129 | M85: 102 | N85: 55.84% | O85: 44.16% | P85: 7.900000095 | Q85: 0.52 | R85: 185 | S85: 46 | T85: 80.09% | U85: 19.91% | V85: 2.5 | W85: 0.41 | X85: 210 | Y85: 21 | Z85: 90.91% | AA85: 9.09% | AB85: 4.800000191 | AC85: 0.48 | AD85: 182 | AE85: 49 | AF85: 78.79% | AG85: 21.21% | AH85: 3 | AI85: 14 | AJ85: 0.39 | AK85: 3 | AM85: 100.00% | AO85: 2.299999952 | AP85: 0.47 | AQ85: 3 | AS85: 100.00% | AU85: 5.300000191 | AV85: 0.36 | AW85: 3 | AY85: 100.00% | BA85: 2.700000048 | BB85: 0.44 | BC85: 3 | BE85: 100.00% | BG85: 3.700000048 | BH85: 0.37 | BI85: 3 | BK85: 100.00% | BM85: 1 | BN85: 21 | BO85: 0.58 | BP85: 1 | BR85: 100.00% | BT85: 2 | BU85: 0.5 | BV85: 1 | BX85: 100.00% | BZ85: 6 | CA85: 0.5 | CB85: 1 | CD85: 100.00% | CF85: 4 | CG85: 0.5 | CH85: 1 | CJ85: 100.00% | CL85: 9 | CM85: 0.75 | CO85: 1 | CQ85: 100.00%
A86: 7801 | B86: 7801 George T. Baker | C86: 156 | D86: 19.79999924 | E86: 0.55 | F86: 122 | G86: 34 | H86: 78.21% | I86: 21.79% | J86: 3.099999905 | K86: 0.62 | L86: 90 | M86: 66 | N86: 57.69% | O86: 42.31% | P86: 8.800000191 | Q86: 0.59 | R86: 108 | S86: 48 | T86: 69.23% | U86: 30.77% | V86: 2.5 | W86: 0.42 | X86: 140 | Y86: 16 | Z86: 89.74% | AA86: 10.26% | AB86: 5.300000191 | AC86: 0.53 | AD86: 105 | AE86: 51 | AF86: 67.31% | AG86: 32.69%
A87: 7901 | B87: 7901 New World School of Arts | C87: 120 | D87: 23.70000076 | E87: 0.66 | F87: 73 | G87: 47 | H87: 60.83% | I87: 39.17% | J87: 3.799999952 | K87: 0.75 | L87: 52 | M87: 68 | N87: 43.33% | O87: 56.67% | P87: 10.80000019 | Q87: 0.72 | R87: 47 | S87: 73 | T87: 39.17% | U87: 60.83% | V87: 3 | W87: 0.49 | X87: 97 | Y87: 23 | Z87: 80.83% | AA87: 19.17% | AB87: 6.199999809 | AC87: 0.62 | AD87: 64 | AE87: 56 | AF87: 53.33% | AG87: 46.67%
A88: 8101 | B88: 8101 Jan Mann Opp. Center | C88: 5 | D88: 12.60000038 | E88: 0.35 | F88: 5 | H88: 100.00% | J88: 2.400000095 | K88: 0.48 | L88: 4 | M88: 1 | N88: 80.00% | O88: 20.00% | P88: 5.400000095 | Q88: 0.36 | R88: 5 | T88: 100.00% | V88: 1 | W88: 0.17 | X88: 5 | Z88: 100.00% | AB88: 3.799999952 | AC88: 0.38 | AD88: 5 | AF88: 100.00% | BM88: 9 | BN88: 8.100000381 | BO88: 0.23 | BP88: 9 | BR88: 100.00% | BT88: 1.600000024 | BU88: 0.39 | BV88: 9 | BX88: 100.00% | BZ88: 2.299999952 | CA88: 0.19 | CB88: 9 | CD88: 100.00% | CF88: 1.600000024 | CG88: 0.2 | CH88: 9 | CJ88: 100.00% | CL88: 2.700000048 | CM88: 0.22 | CN88: 9 | CP88: 100.00%
A89: 8121 | B89: 8121 C.O.P.E. Center North | C89: 16 | D89: 16.10000038 | E89: 0.45 | F89: 15 | G89: 1 | H89: 93.75% | I89: 6.25% | J89: 2.799999952 | K89: 0.55 | L89: 12 | M89: 4 | N89: 75.00% | O89: 25.00% | P89: 7.300000191 | Q89: 0.48 | R89: 15 | S89: 1 | T89: 93.75% | U89: 6.25% | V89: 1.799999952 | W89: 0.3 | X89: 15 | Y89: 1 | Z89: 93.75% | AA89: 6.25% | AB89: 4.300000191 | AC89: 0.43 | AD89: 13 | AE89: 3 | AF89: 81.25% | AG89: 18.75% | AH89: 3 | AI89: 16.29999924 | AJ89: 0.45 | AK89: 3 | AM89: 100.00% | AO89: 3.299999952 | AP89: 0.67 | AQ89: 2 | AR89: 1 | AS89: 66.67% | AT89: 33.33% | AU89: 7.300000191 | AV89: 0.49 | AW89: 2 | AX89: 1 | AY89: 66.67% | AZ89: 33.33% | BA89: 2 | BB89: 0.34 | BC89: 3 | BE89: 100.00% | BG89: 3.700000048 | BH89: 0.37 | BI89: 3 | BK89: 100.00%
A90: 8131 | B90: 8131 Dorothy M. Wallace COPE Center | C90: 10 | D90: 18.39999962 | E90: 0.51 | F90: 8 | G90: 2 | H90: 80.00% | I90: 20.00% | J90: 2.900000095 | K90: 0.58 | L90: 6 | M90: 4 | N90: 60.00% | O90: 40.00% | P90: 8.600000381 | Q90: 0.57 | R90: 7 | S90: 3 | T90: 70.00% | U90: 30.00% | V90: 2.200000048 | W90: 0.37 | X90: 10 | Z90: 100.00% | AB90: 4.699999809 | AC90: 0.47 | AD90: 8 | AE90: 2 | AF90: 80.00% | AG90: 20.00% | AH90: 5 | AI90: 17.39999962 | AJ90: 0.48 | AK90: 5 | AM90: 100.00% | AO90: 3.200000048 | AP90: 0.64 | AQ90: 3 | AR90: 2 | AS90: 60.00% | AT90: 40.00% | AU90: 7.400000095 | AV90: 0.49 | AW90: 4 | AX90: 1 | AY90: 80.00% | AZ90: 20.00% | BA90: 2.200000048 | BB90: 0.37 | BC90: 5 | BE90: 100.00% | BG90: 4.599999905 | BH90: 0.46 | BI90: 4 | BJ90: 1 | BK90: 80.00% | BL90: 20.00% | BM90: 1 | BN90: 9 | BO90: 0.25 | BP90: 1 | BR90: 100.00% | BT90: 0 | BU90: 0 | BV90: 1 | BX90: 100.00% | BZ90: 3 | CA90: 0.25 | CB90: 1 | CD90: 100.00% | CF90: 3 | CG90: 0.38 | CH90: 1 | CJ90: 100.00% | CL90: 3 | CM90: 0.25 | CN90: 1 | CP90: 100.00%
A91: 8141 | B91: 8141 Juvenile Justice Center | C91: 5 | D91: 16.39999962 | E91: 0.45 | F91: 5 | H91: 100.00% | J91: 3 | K91: 0.6 | L91: 4 | M91: 1 | N91: 80.00% | O91: 20.00% | P91: 7.800000191 | Q91: 0.52 | R91: 5 | T91: 100.00% | V91: 1.600000024 | W91: 0.27 | X91: 5 | Z91: 100.00% | AB91: 4 | AC91: 0.4 | AD91: 4 | AE91: 1 | AF91: 80.00% | AG91: 20.00% | AH91: 2 | AI91: 8.5 | AJ91: 0.23 | AK91: 2 | AM91: 100.00% | AO91: 0.5 | AP91: 0.1 | AQ91: 2 | AS91: 100.00% | AU91: 3.5 | AV91: 0.24 | AW91: 2 | AY91: 100.00% | BA91: 1 | BB91: 0.17 | BC91: 2 | BE91: 100.00% | BG91: 3.5 | BH91: 0.35 | BI91: 2 | BK91: 100.00% | BM91: 5 | BN91: 10.80000019 | BO91: 0.3 | BP91: 5 | BR91: 100.00% | BT91: 1.399999976 | BU91: 0.35 | BV91: 5 | BX91: 100.00% | BZ91: 4.400000095 | CA91: 0.37 | CB91: 5 | CD91: 100.00% | CF91: 2.400000095 | CG91: 0.3 | CH91: 5 | CJ91: 100.00% | CL91: 2.599999905 | CM91: 0.22 | CN91: 5 | CP91: 100.00%
C92: =SUM(C14:C91) -> 24253
A93: 9999 | B93: 9999 DISTRICT | C93: 23824 | D93: 20.79999924 | E93: 0.58 | F93: 16810 | G93: 7014 | H93: 70.56% | I93: 29.44% | J93: 3.299999952 | K93: 0.67 | L93: 11397 | M93: 12427 | N93: 47.84% | O93: 52.16% | P93: 9.300000191 | Q93: 0.62 | R93: 14181 | S93: 9643 | T93: 59.52% | U93: 40.48% | V93: 2.700000048 | W93: 0.45 | X93: 20372 | Y93: 3452 | Z93: 85.51% | AA93: 14.49% | AB93: 5.400000095 | AC93: 0.54 | AD93: 15894 | AE93: 7930 | AF93: 66.71% | AG93: 33.29% | AH93: =SUM(AH$14:AH91) -> 364 | BM93: =SUM(BM$14:BM91) -> 101
C94: 429
A143: =IFERROR(VALUE(LEFT(B143,4)),"") -> 
A207: =IFERROR(VALUE(LEFT(B207,4)),"") -> 
A271: =IFERROR(VALUE(LEFT(B271,4)),"") -> 

Sheet FIAG9BM-R (hidden)
B1: R-G09-BM-SCHL-ALL
B3: Description: | C3: Reading-Grade 9-BM-SCHL-for All
B4: Student Selection: | C4: Multiple | 2011-2012 Fall, 2011-2012 School Year
B5: Group By Data: | C5: School
B6: Assessments: | C6: Fall 2011 Interim Assessment Test-Grade 9 Reading October 2011 Teacher __________ Period _____
B7: Scores: | C7: Overall Avg Raw Score, Overall Avg % Correct, Standards Avg Raw Score, Standards Avg % Correct
B8: Author Name: | C8: yuwadee wongbundhit
A9: =COLUMN() -> 1 | B9: =COLUMN() -> 2 | C9: =COLUMN() -> 3 | D9: =COLUMN() -> 4 | E9: =COLUMN() -> 5 | F9: =COLUMN() -> 6 | G9: =COLUMN() -> 7 | H9: =COLUMN() -> 8 | I9: =COLUMN() -> 9 | J9: =COLUMN() -> 10 | K9: =COLUMN() -> 11 | L9: =COLUMN() -> 12 | M9: =COLUMN() -> 13 | N9: =COLUMN() -> 14 | O9: =COLUMN() -> 15 | P9: =COLUMN() -> 16 | Q9: =COLUMN() -> 17 | R9: =COLUMN() -> 18 | S9: =COLUMN() -> 19 | T9: =COLUMN() -> 20 | U9: =COLUMN() -> 21 | V9: =COLUMN() -> 22 | W9: =COLUMN() -> 23 | X9: =COLUMN() -> 24 | Y9: =COLUMN() -> 25 | Z9: =COLUMN() -> 26 | AA9: =COLUMN() -> 27 | AB9: =COLUMN() -> 28 | AC9: =COLUMN() -> 29 | AD9: =COLUMN() -> 30 | AE9: =COLUMN() -> 31
B10: Total Row(s): 89 Generated on Nov-11-2011 by yuwadee wongbundhit | C10: Fall 2011 Interim Assessment Test-Grade 9 Reading October 2011 Teacher __________ Period _____
C11: Total # students | D11: Overall (57 pts max) | F11: LA.910.1--LA.910.1.6: Benchmark LA.910.1.6.3 | H11: LA.910.1--LA.910.1.6: Benchmark LA.910.1.6.8 | J11: LA.910.1--LA.910.1.6: Benchmark LA.910.1.6.9 | L11: LA.910.1--LA.910.1.7: Benchmark LA.910.1.7.2 | N11: LA.910.1--LA.910.1.7: Benchmark LA.910.1.7.3 | P11: LA.910.1--LA.910.1.7: Benchmark LA.910.1.7.4 | R11: LA.910.1--LA.910.1.7: Benchmark LA.910.1.7.5 | T11: LA.910.1--LA.910.1.7: Benchmark LA.910.1.7.7 | V11: LA.910.2--LA.910.2.1: Benchmark LA.910.2.1.5 | X11: LA.910.2--LA.910.2.1: Benchmark LA.910.2.1.7 | Z11: LA.910.2--LA.910.2.2: Benchmark LA.910.2.2.1 | AB11: LA.910.6--LA.910.6.1: Benchmark LA.910.6.1.1 | AD11: LA.910.6--LA.910.6.2: Benchmark LA.910.6.2.2
D12: Avg Raw Score | E12: Avg % Correct | F12: Avg Raw Score | G12: Avg % Correct | H12: Avg Raw Score | I12: Avg % Correct | J12: Avg Raw Score | K12: Avg % Correct | L12: Avg Raw Score | M12: Avg % Correct | N12: Avg Raw Score | O12: Avg % Correct | P12: Avg Raw Score | Q12: Avg % Correct | R12: Avg Raw Score | S12: Avg % Correct | T12: Avg Raw Score | U12: Avg % Correct | V12: Avg Raw Score | W12: Avg % Correct | X12: Avg Raw Score | Y12: Avg % Correct | Z12: Avg Raw Score | AA12: Avg % Correct | AB12: Avg Raw Score | AC12: Avg % Correct | AD12: Avg Raw Score | AE12: Avg % Correct
B13: School Name
A14: =IFERROR(VALUE(LEFT(B14,4)),"") -> 6040 | B14: 6040 Doctors Charter School Of Miami Shores | C14: 97 | D14: 38.79999924 | E14: 0.68 | F14: 3.599999905 | G14: 0.73 | H14: 2.299999952 | I14: 0.59 | J14: 3.200000048 | K14: 0.79 | L14: 2.599999905 | M14: 0.65 | N14: 3.799999952 | O14: 0.77 | P14: 3.299999952 | Q14: 0.66 | R14: 2.900000095 | S14: 0.72 | T14: 2.700000048 | U14: 0.68 | V14: 1.700000048 | W14: 0.58 | X14: 2.700000048 | Y14: 0.55 | Z14: 2.900000095 | AA14: 0.72 | AB14: 3 | AC14: 0.74 | AD14: 4 | AE14: 0.66
A15: =IFERROR(VALUE(LEFT(B15,4)),"") -> 7007 | B15: 7007 International Studies Charter High School | C15: 85 | D15: 37 | E15: 0.65 | F15: 3.5 | G15: 0.69 | H15: 2.099999905 | I15: 0.53 | J15: 2.900000095 | K15: 0.73 | L15: 2.5 | M15: 0.63 | N15: 3.599999905 | O15: 0.71 | P15: 3.400000095 | Q15: 0.67 | R15: 2.799999952 | S15: 0.71 | T15: 2.5 | U15: 0.64 | V15: 1.399999976 | W15: 0.48 | X15: 2.700000048 | Y15: 0.53 | Z15: 2.900000095 | AA15: 0.73 | AB15: 2.799999952 | AC15: 0.7 | AD15: 3.799999952 | AE15: 0.64
A16: 7009 | B16: 7009 Doral Performing Arts Academy | C16: 66 | D16: 37.09999847 | E16: 0.65 | F16: 3.400000095 | G16: 0.68 | H16: 2.099999905 | I16: 0.52 | J16: 3.099999905 | K16: 0.77 | L16: 2.599999905 | M16: 0.66 | N16: 3.400000095 | O16: 0.68 | P16: 3.299999952 | Q16: 0.67 | R16: 2.599999905 | S16: 0.65 | T16: 2.599999905 | U16: 0.65 | V16: 1.5 | W16: 0.51 | X16: 2.700000048 | Y16: 0.53 | Z16: 2.900000095 | AA16: 0.72 | AB16: 3 | AC16: 0.75 | AD16: 3.900000095 | AE16: 0.65
A17: 7011 | B17: 7011 American Senior High School | C17: 507 | D17: 31.39999962 | E17: 0.55 | F17: 2.900000095 | G17: 0.58 | H17: 1.899999976 | I17: 0.49 | J17: 2.700000048 | K17: 0.66 | L17: 2.200000048 | M17: 0.55 | N17: 3 | O17: 0.6 | P17: 2.799999952 | Q17: 0.57 | R17: 2.299999952 | S17: 0.56 | T17: 2.299999952 | U17: 0.57 | V17: 1.200000048 | W17: 0.4 | X17: 2.099999905 | Y17: 0.41 | Z17: 2.400000095 | AA17: 0.6 | AB17: 2.5 | AC17: 0.62 | AD17: 3.200000048 | AE17: 0.54
A18: 7014 | B18: 7014 Mater Performing Arts & Entertainment Academy | C18: 94 | D18: 39.79999924 | E18: 0.7 | F18: 3.599999905 | G18: 0.73 | H18: 2.299999952 | I18: 0.58 | J18: 3.099999905 | K18: 0.78 | L18: 3 | M18: 0.76 | N18: 3.799999952 | O18: 0.75 | P18: 3.599999905 | Q18: 0.71 | R18: 3 | S18: 0.75 | T18: 2.700000048 | U18: 0.68 | V18: 1.5 | W18: 0.51 | X18: 2.900000095 | Y18: 0.57 | Z18: 3.200000048 | AA18: 0.8 | AB18: 3 | AC18: 0.74 | AD18: 4 | AE18: 0.67
A19: 7015 | B19: 7015 Life Skills Center Miami-dade County | C19: 26 | D19: 22.89999962 | E19: 0.4 | F19: 1.799999952 | G19: 0.35 | H19: 1.200000048 | I19: 0.29 | J19: 2.299999952 | K19: 0.58 | L19: 1.299999952 | M19: 0.33 | N19: 2.099999905 | O19: 0.42 | P19: 1.899999976 | Q19: 0.38 | R19: 1.399999976 | S19: 0.36 | T19: 1.700000048 | U19: 0.43 | V19: 0.6999999881 | W19: 0.24 | X19: 1.5 | Y19: 0.3 | Z19: 1.700000048 | AA19: 0.43 | AB19: 2.400000095 | AC19: 0.61 | AD19: 2.799999952 | AE19: 0.47
A20: 7018 | B20: 7018 Mater Academy Lakes High School | C20: 276 | D20: 33.5 | E20: 0.59 | F20: 3.099999905 | G20: 0.62 | H20: 1.899999976 | I20: 0.49 | J20: 2.799999952 | K20: 0.7 | L20: 2.200000048 | M20: 0.55 | N20: 3.299999952 | O20: 0.65 | P20: 3 | Q20: 0.6 | R20: 2.5 | S20: 0.63 | T20: 2.400000095 | U20: 0.59 | V20: 1.200000048 | W20: 0.4 | X20: 2.099999905 | Y20: 0.43 | Z20: 2.599999905 | AA20: 0.66 | AB20: 2.700000048 | AC20: 0.68 | AD20: 3.599999905 | AE20: 0.6
A21: 7020 | B21: 7020 Doral Academy High School | C21: 400 | D21: 33.5 | E21: 0.59 | F21: 3.099999905 | G21: 0.61 | H21: 2 | I21: 0.5 | J21: 2.799999952 | K21: 0.69 | L21: 2.400000095 | M21: 0.6 | N21: 3.200000048 | O21: 0.64 | P21: 3 | Q21: 0.6 | R21: 2.5 | S21: 0.62 | T21: 2.299999952 | U21: 0.58 | V21: 1.200000048 | W21: 0.4 | X21: 2.400000095 | Y21: 0.47 | Z21: 2.599999905 | AA21: 0.65 | AB21: 2.599999905 | AC21: 0.65 | AD21: 3.5 | AE21: 0.59
A22: 7022 | B22: 7022 Academy Of Arts And Minds | C22: 92 | D22: 30.10000038 | E22: 0.53 | F22: 2.799999952 | G22: 0.55 | H22: 1.799999952 | I22: 0.46 | J22: 2.5 | K22: 0.63 | L22: 2.099999905 | M22: 0.52 | N22: 2.799999952 | O22: 0.55 | P22: 2.700000048 | Q22: 0.55 | R22: 2.299999952 | S22: 0.56 | T22: 2 | U22: 0.51 | V22: 1.399999976 | W22: 0.45 | X22: 2.400000095 | Y22: 0.48 | Z22: 2.200000048 | AA22: 0.56 | AB22: 2.200000048 | AC22: 0.55 | AD22: 2.900000095 | AE22: 0.49
A23: 7024 | B23: 7024 Mater Academy HS of International Studies | C23: 50 | D23: 36.70000076 | E23: 0.64 | F23: 3.299999952 | G23: 0.67 | H23: 2.099999905 | I23: 0.51 | J23: 3.099999905 | K23: 0.77 | L23: 2.799999952 | M23: 0.69 | N23: 3.5 | O23: 0.7 | P23: 3.400000095 | Q23: 0.67 | R23: 2.5 | S23: 0.63 | T23: 2.700000048 | U23: 0.68 | V23: 1.5 | W23: 0.51 | X23: 2.700000048 | Y23: 0.54 | Z23: 2.900000095 | AA23: 0.72 | AB23: 2.700000048 | AC23: 0.68 | AD23: 3.5 | AE23: 0.58
A24: 7029 | B24: 7029 Terra Environmental Institute | C24: 515 | D24: 41.79999924 | E24: 0.73 | F24: 3.900000095 | G24: 0.78 | H24: 2.599999905 | I24: 0.66 | J24: 3.400000095 | K24: 0.84 | L24: 2.900000095 | M24: 0.73 | N24: 3.900000095 | O24: 0.79 | P24: 3.900000095 | Q24: 0.78 | R24: 3 | S24: 0.75 | T24: 2.900000095 | U24: 0.72 | V24: 1.700000048 | W24: 0.58 | X24: 3.099999905 | Y24: 0.62 | Z24: 3.200000048 | AA24: 0.8 | AB24: 3.099999905 | AC24: 0.77 | AD24: 4.199999809 | AE24: 0.7
A25: 7033 | B25: 7033 Law Enforcement Officers Memorial High | C25: 138 | D25: 38.5 | E25: 0.68 | F25: 3.599999905 | G25: 0.72 | H25: 2.5 | I25: 0.62 | J25: 3.200000048 | K25: 0.8 | L25: 2.900000095 | M25: 0.72 | N25: 3.599999905 | O25: 0.72 | P25: 3.5 | Q25: 0.69 | R25: 2.799999952 | S25: 0.69 | T25: 2.5 | U25: 0.64 | V25: 1.600000024 | W25: 0.52 | X25: 2.700000048 | Y25: 0.54 | Z25: 3 | AA25: 0.74 | AB25: 2.799999952 | AC25: 0.69 | AD25: 3.900000095 | AE25: 0.65
A26: 7034 | B26: 7034 Somerset Academy Charter High South Campus | C26: 13 | D26: 32.59999847 | E26: 0.57 | F26: 3.799999952 | G26: 0.75 | H26: 1.700000048 | I26: 0.42 | J26: 2.400000095 | K26: 0.6 | L26: 2.599999905 | M26: 0.65 | N26: 2.799999952 | O26: 0.55 | P26: 2.799999952 | Q26: 0.55 | R26: 2.5 | S26: 0.63 | T26: 2.400000095 | U26: 0.6 | V26: 1.5 | W26: 0.49 | X26: 2.099999905 | Y26: 0.42 | Z26: 2.200000048 | AA26: 0.56 | AB26: 2.599999905 | AC26: 0.65 | AD26: 3.299999952 | AE26: 0.55
A27: 7036 | B27: 7036 Lawrence Academy Senior High Charter School | C27: 14 | D27: 26.60000038 | E27: 0.47 | F27: 1.899999976 | G27: 0.39 | H27: 1.5 | I27: 0.38 | J27: 1.899999976 | K27: 0.48 | L27: 1.799999952 | M27: 0.45 | N27: 2.900000095 | O27: 0.59 | P27: 2.099999905 | Q27: 0.43 | R27: 1.899999976 | S27: 0.46 | T27: 2.200000048 | U27: 0.55 | V27: 1.100000024 | W27: 0.38 | X27: 1.899999976 | Y27: 0.37 | Z27: 2.200000048 | AA27: 0.55 | AB27: 2.400000095 | AC27: 0.61 | AD27: 2.700000048 | AE27: 0.45
A28: 7037 | B28: 7037 Mater Academy East Charter High School | C28: 94 | D28: 31.20000076 | E28: 0.55 | F28: 3 | G28: 0.6 | H28: 1.600000024 | I28: 0.39 | J28: 2.900000095 | K28: 0.71 | L28: 2.299999952 | M28: 0.58 | N28: 3 | O28: 0.59 | P28: 2.599999905 | Q28: 0.53 | R28: 2.299999952 | S28: 0.56 | T28: 2.299999952 | U28: 0.57 | V28: 1.399999976 | W28: 0.45 | X28: 2.200000048 | Y28: 0.44 | Z28: 2 | AA28: 0.51 | AB28: 2.5 | AC28: 0.63 | AD28: 3.200000048 | AE28: 0.54
A29: 7042 | B29: 7042 Somerset Academy Charter High School | C29: 118 | D29: 34.59999847 | E29: 0.61 | F29: 3.099999905 | G29: 0.61 | H29: 2.099999905 | I29: 0.52 | J29: 2.799999952 | K29: 0.69 | L29: 2.5 | M29: 0.63 | N29: 3.400000095 | O29: 0.68 | P29: 3 | Q29: 0.6 | R29: 2.400000095 | S29: 0.61 | T29: 2.299999952 | U29: 0.58 | V29: 1.600000024 | W29: 0.53 | X29: 2.299999952 | Y29: 0.46 | Z29: 2.799999952 | AA29: 0.69 | AB29: 2.700000048 | AC29: 0.68 | AD29: 3.700000048 | AE29: 0.61
A30: 7048 | B30: 7048 Alonzo Andtracy Mourning High (Biscanye Bay) | C30: 454 | D30: 36.59999847 | E30: 0.64 | F30: 3.299999952 | G30: 0.66 | H30: 2.299999952 | I30: 0.59 | J30: 3 | K30: 0.76 | L30: 2.700000048 | M30: 0.67 | N30: 3.400000095 | O30: 0.69 | P30: 3.299999952 | Q30: 0.66 | R30: 2.599999905 | S30: 0.65 | T30: 2.5 | U30: 0.63 | V30: 1.5 | W30: 0.49 | X30: 2.400000095 | Y30: 0.49 | Z30: 2.900000095 | AA30: 0.71 | AB30: 2.700000048 | AC30: 0.69 | AD30: 3.799999952 | AE30: 0.64
A31: 7049 | B31: 7049 Westland Hialeah Senior | C31: 501 | D31: 25.39999962 | E31: 0.45 | F31: 2.200000048 | G31: 0.45 | H31: 1.399999976 | I31: 0.36 | J31: 2.099999905 | K31: 0.53 | L31: 1.799999952 | M31: 0.45 | N31: 2.400000095 | O31: 0.48 | P31: 2.200000048 | Q31: 0.43 | R31: 1.899999976 | S31: 0.48 | T31: 1.899999976 | U31: 0.46 | V31: 1 | W31: 0.34 | X31: 1.700000048 | Y31: 0.34 | Z31: 1.799999952 | AA31: 0.46 | AB31: 2.200000048 | AC31: 0.55 | AD31: 2.700000048 | AE31: 0.45
A32: 7050 | B32: 7050 Keys Gate Charter High School | C32: 1 | D32: 44 | E32: 0.77 | F32: 4 | G32: 0.8 | H32: 4 | I32: 1 | J32: 3 | K32: 0.75 | L32: 3 | M32: 0.75 | N32: 5 | O32: 1 | P32: 4 | Q32: 0.8 | R32: 3 | S32: 0.75 | T32: 3 | U32: 0.75 | V32: 2 | W32: 0.67 | X32: 3 | Y32: 0.6 | Z32: 3 | AA32: 0.75 | AB32: 3 | AC32: 0.75 | AD32: 4 | AE32: 0.67
A33: 7051 | B33: 7051 G Holmes Braddock Senior High | C33: 777 | D33: 33.09999847 | E33: 0.58 | F33: 3 | G33: 0.61 | H33: 1.899999976 | I33: 0.48 | J33: 2.700000048 | K33: 0.68 | L33: 2.400000095 | M33: 0.59 | N33: 3.099999905 | O33: 0.63 | P33: 3 | Q33: 0.6 | R33: 2.5 | S33: 0.62 | T33: 2.299999952 | U33: 0.59 | V33: 1.399999976 | W33: 0.46 | X33: 2.299999952 | Y33: 0.46 | Z33: 2.5 | AA33: 0.63 | AB33: 2.599999905 | AC33: 0.66 | AD33: 3.400000095 | AE33: 0.56
A34: 7053 | B34: 7053 Pinecrest Preparatory Academy Charter HS | C34: 122 | D34: 31.29999924 | E34: 0.55 | F34: 2.900000095 | G34: 0.58 | H34: 1.799999952 | I34: 0.44 | J34: 2.599999905 | K34: 0.65 | L34: 2.299999952 | M34: 0.58 | N34: 3.099999905 | O34: 0.62 | P34: 2.700000048 | Q34: 0.55 | R34: 2.299999952 | S34: 0.57 | T34: 2.400000095 | U34: 0.59 | V34: 1.200000048 | W34: 0.4 | X34: 1.899999976 | Y34: 0.38 | Z34: 2.400000095 | AA34: 0.59 | AB34: 2.400000095 | AC34: 0.6 | AD34: 3.400000095 | AE34: 0.56
A35: 7054 | B35: 7054 Excelsior Charter High School | C35: 44 | D35: 29.20000076 | E35: 0.51 | F35: 2.599999905 | G35: 0.53 | H35: 1.299999952 | I35: 0.34 | J35: 2.5 | K35: 0.63 | L35: 2.400000095 | M35: 0.61 | N35: 2.799999952 | O35: 0.55 | P35: 2.799999952 | Q35: 0.55 | R35: 2.299999952 | S35: 0.56 | T35: 2.299999952 | U35: 0.57 | V35: 1.299999952 | W35: 0.45 | X35: 1.899999976 | Y35: 0.39 | Z35: 2.099999905 | AA35: 0.53 | AB35: 2.099999905 | AC35: 0.52 | AD35: 2.799999952 | AE35: 0.46
A36: 7055 | B36: 7055 Young Women's Preparatory Academy | C36: 45 | D36: 44.40000153 | E36: 0.78 | F36: 4 | G36: 0.8 | H36: 2.599999905 | I36: 0.65 | J36: 3.599999905 | K36: 0.89 | L36: 3.200000048 | M36: 0.79 | N36: 4.400000095 | O36: 0.88 | P36: 4.400000095 | Q36: 0.88 | R36: 3.200000048 | S36: 0.79 | T36: 3.200000048 | U36: 0.79 | V36: 2 | W36: 0.65 | X36: 3.200000048 | Y36: 0.64 | Z36: 3.599999905 | AA36: 0.89 | AB36: 3.200000048 | AC36: 0.79 | AD36: 4.099999905 | AE36: 0.68
A37: 7056 | B37: 7056 Young Men's Preparatory High School | C37: 37 | D37: 27.5 | E37: 0.48 | F37: 2.799999952 | G37: 0.56 | H37: 1.799999952 | I37: 0.45 | J37: 2.5 | K37: 0.63 | L37: 1.899999976 | M37: 0.47 | N37: 2.5 | O37: 0.5 | P37: 2.5 | Q37: 0.5 | R37: 2.200000048 | S37: 0.56 | T37: 1.899999976 | U37: 0.47 | V37: 0.8000000119 | W37: 0.28 | X37: 1.600000024 | Y37: 0.32 | Z37: 1.799999952 | AA37: 0.46 | AB37: 2.299999952 | AC37: 0.57 | AD37: 2.900000095 | AE37: 0.48
A38: 7058 | B38: 7058 Miami Community Charter High | C38: 33 | D38: 28.5 | E38: 0.5 | F38: 2.599999905 | G38: 0.53 | H38: 1.5 | I38: 0.36 | J38: 2.5 | K38: 0.62 | L38: 2.200000048 | M38: 0.55 | N38: 2.900000095 | O38: 0.59 | P38: 2.599999905 | Q38: 0.53 | R38: 2.299999952 | S38: 0.57 | T38: 1.899999976 | U38: 0.47 | V38: 1 | W38: 0.34 | X38: 1.799999952 | Y38: 0.35 | Z38: 2 | AA38: 0.51 | AB38: 2.400000095 | AC38: 0.6 | AD38: 2.799999952 | AE38: 0.46
A39: 7059 | B39: 7059 Miami Arts Charter | C39: 83 | D39: 38 | E39: 0.67 | F39: 3.299999952 | G39: 0.67 | H39: 2.200000048 | I39: 0.55 | J39: 3.099999905 | K39: 0.78 | L39: 2.599999905 | M39: 0.64 | N39: 3.599999905 | O39: 0.73 | P39: 3.5 | Q39: 0.69 | R39: 2.799999952 | S39: 0.71 | T39: 2.599999905 | U39: 0.65 | V39: 1.600000024 | W39: 0.53 | X39: 2.599999905 | Y39: 0.53 | Z39: 3 | AA39: 0.76 | AB39: 3 | AC39: 0.75 | AD39: 4 | AE39: 0.67
A40: 7062 | B40: 7062 Mavericks High Of North Miami Dade County | C40: 31 | D40: 17.39999962 | E40: 0.31 | F40: 1.5 | G40: 0.3 | H40: 1.200000048 | I40: 0.29 | J40: 1.299999952 | K40: 0.33 | L40: 1.200000048 | M40: 0.3 | N40: 1.600000024 | O40: 0.32 | P40: 1.600000024 | Q40: 0.33 | R40: 1.100000024 | S40: 0.28 | T40: 1.5 | U40: 0.39 | V40: 0.8999999762 | W40: 0.29 | X40: 1.100000024 | Y40: 0.23 | Z40: 1.200000048 | AA40: 0.31 | AB40: 1.399999976 | AC40: 0.35 | AD40: 1.700000048 | AE40: 0.29
A41: 7065 | B41: 7065 Mavericks High Of South Miami Dade County | C41: 42 | D41: 23.5 | E41: 0.41 | F41: 2 | G41: 0.4 | H41: 1.600000024 | I41: 0.4 | J41: 1.899999976 | K41: 0.48 | L41: 1.600000024 | M41: 0.4 | N41: 2.099999905 | O41: 0.42 | P41: 1.899999976 | Q41: 0.39 | R41: 1.799999952 | S41: 0.45 | T41: 1.799999952 | U41: 0.45 | V41: 0.8999999762 | W41: 0.29 | X41: 1.899999976 | Y41: 0.38 | Z41: 1.399999976 | AA41: 0.35 | AB41: 2.200000048 | AC41: 0.55 | AD41: 2.400000095 | AE41: 0.4
A42: 7067 | B42: 7067 Florida High School Of Accelerated Learning- | C42: 24 | D42: 14.10000038 | E42: 0.25 | F42: 1.399999976 | G42: 0.28 | H42: 0.6999999881 | I42: 0.18 | J42: 1.399999976 | K42: 0.35 | L42: 1.200000048 | M42: 0.29 | N42: 1.399999976 | O42: 0.28 | P42: 0.8000000119 | Q42: 0.17 | R42: 1 | S42: 0.26 | T42: 0.8000000119 | U42: 0.21 | V42: 0.5 | W42: 0.18 | X42: 1.5 | Y42: 0.29 | Z42: 0.8000000119 | AA42: 0.19 | AB42: 1.100000024 | AC42: 0.28 | AD42: 1.399999976 | AE42: 0.24
A43: 7068 | B43: 7068 North Gardens High School | C43: 27 | D43: 20.10000038 | E43: 0.35 | F43: 2 | G43: 0.4 | H43: 1.200000048 | I43: 0.31 | J43: 1.799999952 | K43: 0.44 | L43: 1.600000024 | M43: 0.39 | N43: 2 | O43: 0.41 | P43: 1.5 | Q43: 0.3 | R43: 1.5 | S43: 0.38 | T43: 1.200000048 | U43: 0.31 | V43: 0.6000000238 | W43: 0.2 | X43: 1.600000024 | Y43: 0.31 | Z43: 1.100000024 | AA43: 0.28 | AB43: 1.799999952 | AC43: 0.45 | AD43: 2.200000048 | AE43: 0.36
A44: 7069 | B44: 7069 North Park High School | C44: 20 | D44: 19.10000038 | E44: 0.33 | F44: 1.399999976 | G44: 0.28 | H44: 1 | I44: 0.24 | J44: 1.600000024 | K44: 0.39 | L44: 1.399999976 | M44: 0.35 | N44: 1.5 | O44: 0.29 | P44: 1.700000048 | Q44: 0.34 | R44: 1.600000024 | S44: 0.4 | T44: 1.5 | U44: 0.38 | V44: 1 | W44: 0.31 | X44: 1.5 | Y44: 0.3 | Z44: 0.8999999762 | AA44: 0.22 | AB44: 1.899999976 | AC44: 0.46 | AD44: 2.299999952 | AE44: 0.38
A45: 7071 | B45: 7071 Coral Gables Senior High School | C45: 865 | D45: 31.60000038 | E45: 0.55 | F45: 2.799999952 | G45: 0.57 | H45: 1.899999976 | I45: 0.47 | J45: 2.700000048 | K45: 0.67 | L45: 2.299999952 | M45: 0.58 | N45: 3 | O45: 0.6 | P45: 2.799999952 | Q45: 0.56 | R45: 2.299999952 | S45: 0.58 | T45: 2.299999952 | U45: 0.56 | V45: 1.200000048 | W45: 0.39 | X45: 2.099999905 | Y45: 0.43 | Z45: 2.400000095 | AA45: 0.6 | AB45: 2.5 | AC45: 0.62 | AD45: 3.299999952 | AE45: 0.55
A46: 7081 | B46: 7081 DASH | C46: 118 | D46: 44.20000076 | E46: 0.77 | F46: 4.199999809 | G46: 0.83 | H46: 2.599999905 | I46: 0.65 | J46: 3.5 | K46: 0.87 | L46: 3.099999905 | M46: 0.76 | N46: 4 | O46: 0.8 | P46: 4.199999809 | Q46: 0.83 | R46: 3.200000048 | S46: 0.81 | T46: 3 | U46: 0.76 | V46: 2 | W46: 0.68 | X46: 3.599999905 | Y46: 0.71 | Z46: 3.400000095 | AA46: 0.86 | AB46: 3.200000048 | AC46: 0.79 | AD46: 4.199999809 | AE46: 0.7
A47: 7101 | B47: 7101 Coral Reef Senior High School | C47: 859 | D47: 40.90000153 | E47: 0.72 | F47: 3.700000048 | G47: 0.75 | H47: 2.599999905 | I47: 0.66 | J47: 3.299999952 | K47: 0.83 | L47: 2.799999952 | M47: 0.71 | N47: 3.900000095 | O47: 0.77 | P47: 3.799999952 | Q47: 0.75 | R47: 3 | S47: 0.74 | T47: 2.799999952 | U47: 0.69 | V47: 1.700000048 | W47: 0.56 | X47: 3 | Y47: 0.61 | Z47: 3.099999905 | AA47: 0.79 | AB47: 3 | AC47: 0.76 | AD47: 4.099999905 | AE47: 0.67
A48: 7111 | B48: 7111 Hialeah Senior high | C48: 730 | D48: 29.39999962 | E48: 0.52 | F48: 2.799999952 | G48: 0.55 | H48: 1.600000024 | I48: 0.41 | J48: 2.5 | K48: 0.61 | L48: 2.099999905 | M48: 0.52 | N48: 2.799999952 | O48: 0.57 | P48: 2.5 | Q48: 0.51 | R48: 2.099999905 | S48: 0.53 | T48: 2.099999905 | U48: 0.51 | V48: 1.200000048 | W48: 0.41 | X48: 2.099999905 | Y48: 0.41 | Z48: 2.200000048 | AA48: 0.55 | AB48: 2.400000095 | AC48: 0.59 | AD48: 3 | AE48: 0.5
A49: 7121 | B49: 7121 John A. Ferguson Senior High School | C49: 1052 | D49: 34.5 | E49: 0.61 | F49: 3.099999905 | G49: 0.62 | H49: 2.099999905 | I49: 0.52 | J49: 2.900000095 | K49: 0.71 | L49: 2.5 | M49: 0.62 | N49: 3.299999952 | O49: 0.67 | P49: 3 | Q49: 0.61 | R49: 2.5 | S49: 0.62 | T49: 2.400000095 | U49: 0.61 | V49: 1.399999976 | W49: 0.48 | X49: 2.400000095 | Y49: 0.49 | Z49: 2.599999905 | AA49: 0.66 | AB49: 2.700000048 | AC49: 0.67 | AD49: 3.5 | AE49: 0.58
A50: 7131 | B50: 7131 Hialeah-Miami Lakes Senior High | C50: 456 | D50: 30 | E50: 0.53 | F50: 2.700000048 | G50: 0.54 | H50: 1.799999952 | I50: 0.44 | J50: 2.5 | K50: 0.62 | L50: 2.099999905 | M50: 0.52 | N50: 3 | O50: 0.59 | P50: 2.799999952 | Q50: 0.56 | R50: 2.200000048 | S50: 0.54 | T50: 2.200000048 | U50: 0.55 | V50: 1.299999952 | W50: 0.42 | X50: 2 | Y50: 0.39 | Z50: 2.099999905 | AA50: 0.54 | AB50: 2.400000095 | AC50: 0.59 | AD50: 3.099999905 | AE50: 0.52
A51: 7141 | B51: 7141 Dr. Michael M. Krop Senior High School | C51: 752 | D51: 33.20000076 | E51: 0.58 | F51: 2.900000095 | G51: 0.58 | H51: 2.099999905 | I51: 0.51 | J51: 2.799999952 | K51: 0.7 | L51: 2.400000095 | M51: 0.6 | N51: 3.200000048 | O51: 0.63 | P51: 3 | Q51: 0.61 | R51: 2.400000095 | S51: 0.6 | T51: 2.299999952 | U51: 0.58 | V51: 1.399999976 | W51: 0.46 | X51: 2.400000095 | Y51: 0.47 | Z51: 2.5 | AA51: 0.63 | AB51: 2.5 | AC51: 0.63 | AD51: 3.400000095 | AE51: 0.56
A52: 7151 | B52: 7151 Homestead Sr. High School | C52: 530 | D52: 27.79999924 | E52: 0.49 | F52: 2.5 | G52: 0.5 | H52: 1.600000024 | I52: 0.39 | J52: 2.5 | K52: 0.62 | L52: 1.799999952 | M52: 0.46 | N52: 2.799999952 | O52: 0.56 | P52: 2.5 | Q52: 0.49 | R52: 2 | S52: 0.49 | T52: 2 | U52: 0.51 | V52: 1.200000048 | W52: 0.41 | X52: 1.799999952 | Y52: 0.36 | Z52: 2.099999905 | AA52: 0.52 | AB52: 2.299999952 | AC52: 0.56 | AD52: 2.700000048 | AE52: 0.45
A53: 7160 | B53: 7160 Mater Academy High | C53: 434 | D53: 35.29999924 | E53: 0.62 | F53: 3.400000095 | G53: 0.67 | H53: 2.099999905 | I53: 0.51 | J53: 3 | K53: 0.75 | L53: 2.599999905 | M53: 0.64 | N53: 3.299999952 | O53: 0.66 | P53: 3.200000048 | Q53: 0.65 | R53: 2.5 | S53: 0.62 | T53: 2.5 | U53: 0.62 | V53: 1.399999976 | W53: 0.47 | X53: 2.400000095 | Y53: 0.47 | Z53: 2.700000048 | AA53: 0.68 | AB53: 2.700000048 | AC53: 0.68 | AD53: 3.599999905 | AE53: 0.6
A54: 7161 | B54: 7161 MAST Academy | C54: 143 | D54: 44.59999847 | E54: 0.78 | F54: 4.099999905 | G54: 0.81 | H54: 3.099999905 | I54: 0.77 | J54: 3.5 | K54: 0.88 | L54: 3.200000048 | M54: 0.79 | N54: 4.099999905 | O54: 0.82 | P54: 4.199999809 | Q54: 0.84 | R54: 3.200000048 | S54: 0.81 | T54: 3.099999905 | U54: 0.77 | V54: 1.899999976 | W54: 0.63 | X54: 3.299999952 | Y54: 0.66 | Z54: 3.400000095 | AA54: 0.85 | AB54: 3.099999905 | AC54: 0.77 | AD54: 4.5 | AE54: 0.75
A55: 7171 | B55: 7171 M.A.S.T At Homestead | C55: 171 | D55: 38 | E55: 0.67 | F55: 3.5 | G55: 0.7 | H55: 2.400000095 | I55: 0.6 | J55: 3.200000048 | K55: 0.8 | L55: 2.700000048 | M55: 0.68 | N55: 3.599999905 | O55: 0.72 | P55: 3.5 | Q55: 0.7 | R55: 2.700000048 | S55: 0.67 | T55: 2.700000048 | U55: 0.67 | V55: 1.600000024 | W55: 0.52 | X55: 2.700000048 | Y55: 0.54 | Z55: 2.900000095 | AA55: 0.71 | AB55: 2.799999952 | AC55: 0.7 | AD55: 3.799999952 | AE55: 0.64
A56: 7191 | B56: 7191 Hialeah Gardens High School | C56: 701 | D56: 31.79999924 | E56: 0.56 | F56: 2.900000095 | G56: 0.59 | H56: 1.899999976 | I56: 0.47 | J56: 2.599999905 | K56: 0.65 | L56: 2.299999952 | M56: 0.57 | N56: 3.099999905 | O56: 0.61 | P56: 2.900000095 | Q56: 0.58 | R56: 2.299999952 | S56: 0.58 | T56: 2.299999952 | U56: 0.57 | V56: 1.299999952 | W56: 0.44 | X56: 2.200000048 | Y56: 0.43 | Z56: 2.400000095 | AA56: 0.59 | AB56: 2.5 | AC56: 0.62 | AD56: 3.200000048 | AE56: 0.54
A57: 7201 | B57: 7201 Miami Beach Senior high School | C57: 538 | D57: 33.20000076 | E57: 0.58 | F57: 2.900000095 | G57: 0.58 | H57: 2 | I57: 0.51 | J57: 2.799999952 | K57: 0.69 | L57: 2.299999952 | M57: 0.58 | N57: 3.200000048 | O57: 0.64 | P57: 3 | Q57: 0.6 | R57: 2.5 | S57: 0.61 | T57: 2.299999952 | U57: 0.58 | V57: 1.399999976 | W57: 0.46 | X57: 2.299999952 | Y57: 0.45 | Z57: 2.5 | AA57: 0.62 | AB57: 2.5 | AC57: 0.64 | AD57: 3.5 | AE57: 0.58
A58: 7231 | B58: 7231 Miami Carol City Sr. High | C58: 497 | D58: 29.10000038 | E58: 0.51 | F58: 2.700000048 | G58: 0.54 | H58: 1.700000048 | I58: 0.43 | J58: 2.599999905 | K58: 0.64 | L58: 2 | M58: 0.49 | N58: 2.900000095 | O58: 0.57 | P58: 2.599999905 | Q58: 0.52 | R58: 2 | S58: 0.5 | T58: 2.099999905 | U58: 0.52 | V58: 1.200000048 | W58: 0.41 | X58: 1.899999976 | Y58: 0.37 | Z58: 2.200000048 | AA58: 0.55 | AB58: 2.400000095 | AC58: 0.59 | AD58: 3 | AE58: 0.5
A59: 7241 | B59: 7241 Ronald W. Reagan/Doral Senior High | C59: 520 | D59: 35.5 | E59: 0.62 | F59: 3.200000048 | G59: 0.64 | H59: 2.099999905 | I59: 0.52 | J59: 2.900000095 | K59: 0.72 | L59: 2.599999905 | M59: 0.64 | N59: 3.299999952 | O59: 0.67 | P59: 3.200000048 | Q59: 0.65 | R59: 2.599999905 | S59: 0.64 | T59: 2.5 | U59: 0.63 | V59: 1.399999976 | W59: 0.48 | X59: 2.599999905 | Y59: 0.53 | Z59: 2.799999952 | AA59: 0.71 | AB59: 2.700000048 | AC59: 0.66 | AD59: 3.599999905 | AE59: 0.59
A60: 7251 | B60: 7251 Miami Central Senior High | C60: 489 | D60: 27.60000038 | E60: 0.48 | F60: 2.599999905 | G60: 0.52 | H60: 1.700000048 | I60: 0.44 | J60: 2.299999952 | K60: 0.58 | L60: 2 | M60: 0.49 | N60: 2.700000048 | O60: 0.55 | P60: 2.400000095 | Q60: 0.48 | R60: 2 | S60: 0.51 | T60: 2 | U60: 0.51 | V60: 1.100000024 | W60: 0.37 | X60: 1.799999952 | Y60: 0.36 | Z60: 1.899999976 | AA60: 0.48 | AB60: 2.099999905 | AC60: 0.53 | AD60: 2.799999952 | AE60: 0.46
A61: 7262 | B61: 7262 City of Hialeah Education Academy | C61: 63 | D61: 34.40000153 | E61: 0.6 | F61: 3.200000048 | G61: 0.64 | H61: 2.200000048 | I61: 0.54 | J61: 2.900000095 | K61: 0.72 | L61: 2.200000048 | M61: 0.55 | N61: 3.099999905 | O61: 0.62 | P61: 3.299999952 | Q61: 0.66 | R61: 2.400000095 | S61: 0.6 | T61: 2.5 | U61: 0.62 | V61: 1.600000024 | W61: 0.54 | X61: 2.400000095 | Y61: 0.48 | Z61: 2.700000048 | AA61: 0.67 | AB61: 2.5 | AC61: 0.62 | AD61: 3.400000095 | AE61: 0.57
A62: 7265 | B62: 7265 Archimedean Upper Conservatory | C62: 62 | D62: 35.40000153 | E62: 0.62 | F62: 3.099999905 | G62: 0.62 | H62: 2.299999952 | I62: 0.57 | J62: 2.900000095 | K62: 0.72 | L62: 2.799999952 | M62: 0.7 | N62: 3.299999952 | O62: 0.66 | P62: 2.900000095 | Q62: 0.58 | R62: 2.599999905 | S62: 0.65 | T62: 2.599999905 | U62: 0.65 | V62: 1.5 | W62: 0.51 | X62: 2.799999952 | Y62: 0.55 | Z62: 2.599999905 | AA62: 0.66 | AB62: 2.400000095 | AC62: 0.59 | AD62: 3.5 | AE62: 0.59
A63: 7271 | B63: 7271 Miami Coral Park Senior High School | C63: 629 | D63: 31.70000076 | E63: 0.56 | F63: 2.900000095 | G63: 0.58 | H63: 1.799999952 | I63: 0.45 | J63: 2.599999905 | K63: 0.66 | L63: 2.299999952 | M63: 0.56 | N63: 3.099999905 | O63: 0.63 | P63: 2.700000048 | Q63: 0.55 | R63: 2.299999952 | S63: 0.58 | T63: 2.200000048 | U63: 0.56 | V63: 1.299999952 | W63: 0.43 | X63: 2.099999905 | Y63: 0.43 | Z63: 2.400000095 | AA63: 0.6 | AB63: 2.599999905 | AC63: 0.64 | AD63: 3.299999952 | AE63: 0.55
A64: 7291 | B64: 7291 Jose Marti | C64: 51 | D64: 37.5 | E64: 0.66 | F64: 3.400000095 | G64: 0.68 | H64: 2.5 | I64: 0.61 | J64: 3 | K64: 0.75 | L64: 2.799999952 | M64: 0.7 | N64: 3.5 | O64: 0.71 | P64: 3.400000095 | Q64: 0.67 | R64: 2.799999952 | S64: 0.71 | T64: 2.599999905 | U64: 0.64 | V64: 1.5 | W64: 0.49 | X64: 2.900000095 | Y64: 0.58 | Z64: 2.799999952 | AA64: 0.71 | AB64: 2.700000048 | AC64: 0.67 | AD64: 3.700000048 | AE64: 0.62
A65: 7301 | B65: 7301 Miami Edison Senior High | C65: 239 | D65: 26.60000038 | E65: 0.47 | F65: 2.5 | G65: 0.5 | H65: 1.600000024 | I65: 0.4 | J65: 2.200000048 | K65: 0.56 | L65: 1.799999952 | M65: 0.46 | N65: 2.599999905 | O65: 0.52 | P65: 2.400000095 | Q65: 0.48 | R65: 1.899999976 | S65: 0.46 | T65: 1.899999976 | U65: 0.46 | V65: 1.100000024 | W65: 0.37 | X65: 1.700000048 | Y65: 0.34 | Z65: 2 | AA65: 0.5 | AB65: 2.200000048 | AC65: 0.56 | AD65: 2.700000048 | AE65: 0.45
A66: 7341 | B66: 7341 Miami Jackson Senior High | C66: 308 | D66: 29.39999962 | E66: 0.52 | F66: 2.799999952 | G66: 0.55 | H66: 1.700000048 | I66: 0.42 | J66: 2.5 | K66: 0.64 | L66: 2 | M66: 0.51 | N66: 3 | O66: 0.6 | P66: 2.599999905 | Q66: 0.52 | R66: 2 | S66: 0.51 | T66: 2 | U66: 0.5 | V66: 1.200000048 | W66: 0.39 | X66: 1.899999976 | Y66: 0.39 | Z66: 2.099999905 | AA66: 0.54 | AB66: 2.400000095 | AC66: 0.6 | AD66: 3.099999905 | AE66: 0.51
A67: 7351 | B67: 7351 Arthur And Polly Mays 6-12 Conservatory Of Th | C67: 84 | D67: 33.20000076 | E67: 0.58 | F67: 3.5 | G67: 0.69 | H67: 2 | I67: 0.5 | J67: 2.799999952 | K67: 0.7 | L67: 2.200000048 | M67: 0.54 | N67: 3.200000048 | O67: 0.63 | P67: 3 | Q67: 0.61 | R67: 2.400000095 | S67: 0.59 | T67: 2.400000095 | U67: 0.6 | V67: 1.399999976 | W67: 0.46 | X67: 2 | Y67: 0.39 | Z67: 2.5 | AA67: 0.63 | AB67: 2.5 | AC67: 0.63 | AD67: 3.5 | AE67: 0.58
A68: 7361 | B68: 7361 Miami Killian Senior High | C68: 566 | D68: 32.29999924 | E68: 0.57 | F68: 3 | G68: 0.61 | H68: 1.899999976 | I68: 0.47 | J68: 2.799999952 | K68: 0.69 | L68: 2.299999952 | M68: 0.57 | N68: 3.099999905 | O68: 0.62 | P68: 2.900000095 | Q68: 0.57 | R68: 2.299999952 | S68: 0.58 | T68: 2.200000048 | U68: 0.55 | V68: 1.299999952 | W68: 0.42 | X68: 2.299999952 | Y68: 0.47 | Z68: 2.400000095 | AA68: 0.59 | AB68: 2.5 | AC68: 0.63 | AD68: 3.400000095 | AE68: 0.56
A69: 7371 | B69: 7371 Robert Morgan Education Center | C69: 646 | D69: 37.79999924 | E69: 0.66 | F69: 3.400000095 | G69: 0.69 | H69: 2.299999952 | I69: 0.59 | J69: 3.099999905 | K69: 0.78 | L69: 2.700000048 | M69: 0.67 | N69: 3.700000048 | O69: 0.73 | P69: 3.400000095 | Q69: 0.69 | R69: 2.700000048 | S69: 0.69 | T69: 2.599999905 | U69: 0.66 | V69: 1.5 | W69: 0.51 | X69: 2.599999905 | Y69: 0.53 | Z69: 3 | AA69: 0.74 | AB69: 2.900000095 | AC69: 0.71 | AD69: 3.700000048 | AE69: 0.62
A70: 7381 | B70: 7381 Miami Norland Senior High | C70: 359 | D70: 29 | E70: 0.51 | F70: 2.5 | G70: 0.51 | H70: 1.700000048 | I70: 0.42 | J70: 2.599999905 | K70: 0.65 | L70: 1.899999976 | M70: 0.48 | N70: 3 | O70: 0.6 | P70: 2.599999905 | Q70: 0.51 | R70: 2.099999905 | S70: 0.53 | T70: 2.099999905 | U70: 0.52 | V70: 1.200000048 | W70: 0.4 | X70: 1.799999952 | Y70: 0.37 | Z70: 2.200000048 | AA70: 0.56 | AB70: 2.400000095 | AC70: 0.59 | AD70: 2.900000095 | AE70: 0.48
A71: 7391 | B71: 7391 Miami Lakes Educational Center | C71: 348 | D71: 37.09999847 | E71: 0.65 | F71: 3.400000095 | G71: 0.69 | H71: 2.200000048 | I71: 0.56 | J71: 3.099999905 | K71: 0.78 | L71: 2.700000048 | M71: 0.67 | N71: 3.599999905 | O71: 0.71 | P71: 3.299999952 | Q71: 0.65 | R71: 2.599999905 | S71: 0.66 | T71: 2.599999905 | U71: 0.64 | V71: 1.5 | W71: 0.52 | X71: 2.5 | Y71: 0.5 | Z71: 2.799999952 | AA71: 0.71 | AB71: 2.900000095 | AC71: 0.72 | AD71: 3.799999952 | AE71: 0.64
A72: 7411 | B72: 7411 Miami Northwestern Senior | C72: 311 | D72: 29.89999962 | E72: 0.52 | F72: 2.900000095 | G72: 0.57 | H72: 1.799999952 | I72: 0.45 | J72: 2.599999905 | K72: 0.64 | L72: 2.099999905 | M72: 0.53 | N72: 3.099999905 | O72: 0.61 | P72: 2.599999905 | Q72: 0.52 | R72: 2 | S72: 0.51 | T72: 2.099999905 | U72: 0.54 | V72: 1.200000048 | W72: 0.39 | X72: 1.899999976 | Y72: 0.38 | Z72: 2.200000048 | AA72: 0.56 | AB72: 2.400000095 | AC72: 0.61 | AD72: 3 | AE72: 0.49
A73: 7431 | B73: 7431 Miami Palmetto Sr High | C73: 654 | D73: 36.20000076 | E73: 0.63 | F73: 3.200000048 | G73: 0.64 | H73: 2.299999952 | I73: 0.57 | J73: 3 | K73: 0.75 | L73: 2.5 | M73: 0.63 | N73: 3.400000095 | O73: 0.69 | P73: 3.299999952 | Q73: 0.66 | R73: 2.599999905 | S73: 0.65 | T73: 2.599999905 | U73: 0.64 | V73: 1.5 | W73: 0.51 | X73: 2.5 | Y73: 0.5 | Z73: 2.799999952 | AA73: 0.71 | AB73: 2.799999952 | AC73: 0.69 | AD73: 3.599999905 | AE73: 0.61
A74: 7461 | B74: 7461 Miami Senior High | C74: 690 | D74: 25.79999924 | E74: 0.45 | F74: 2.299999952 | G74: 0.46 | H74: 1.399999976 | I74: 0.35 | J74: 2.299999952 | K74: 0.56 | L74: 1.700000048 | M74: 0.43 | N74: 2.5 | O74: 0.5 | P74: 2.299999952 | Q74: 0.45 | R74: 1.899999976 | S74: 0.48 | T74: 1.899999976 | U74: 0.47 | V74: 1 | W74: 0.33 | X74: 1.600000024 | Y74: 0.32 | Z74: 1.899999976 | AA74: 0.48 | AB74: 2.299999952 | AC74: 0.57 | AD74: 2.799999952 | AE74: 0.47
A75: 7511 | B75: 7511 Miami Springs Senior High | C75: 496 | D75: 31.20000076 | E75: 0.55 | F75: 2.900000095 | G75: 0.58 | H75: 1.799999952 | I75: 0.46 | J75: 2.599999905 | K75: 0.65 | L75: 2.200000048 | M75: 0.54 | N75: 3.099999905 | O75: 0.61 | P75: 2.799999952 | Q75: 0.55 | R75: 2.299999952 | S75: 0.58 | T75: 2.200000048 | U75: 0.54 | V75: 1.299999952 | W75: 0.44 | X75: 2.299999952 | Y75: 0.46 | Z75: 2.299999952 | AA75: 0.57 | AB75: 2.400000095 | AC75: 0.61 | AD75: 3.099999905 | AE75: 0.52
A76: 7531 | B76: 7531 Miami SunSET Senior | C76: 444 | D76: 32.09999847 | E76: 0.56 | F76: 3 | G76: 0.6 | H76: 1.899999976 | I76: 0.48 | J76: 2.599999905 | K76: 0.64 | L76: 2.299999952 | M76: 0.58 | N76: 3.099999905 | O76: 0.62 | P76: 2.799999952 | Q76: 0.56 | R76: 2.299999952 | S76: 0.58 | T76: 2.299999952 | U76: 0.58 | V76: 1.299999952 | W76: 0.44 | X76: 2.299999952 | Y76: 0.45 | Z76: 2.400000095 | AA76: 0.6 | AB76: 2.5 | AC76: 0.63 | AD76: 3.299999952 | AE76: 0.54
A77: 7541 | B77: 7541 North Miami Beach Sr. | C77: 484 | D77: 30.20000076 | E77: 0.53 | F77: 2.599999905 | G77: 0.52 | H77: 1.799999952 | I77: 0.44 | J77: 2.5 | K77: 0.63 | L77: 2.099999905 | M77: 0.53 | N77: 3 | O77: 0.6 | P77: 2.700000048 | Q77: 0.55 | R77: 2.299999952 | S77: 0.56 | T77: 2.200000048 | U77: 0.54 | V77: 1.200000048 | W77: 0.4 | X77: 2 | Y77: 0.41 | Z77: 2.200000048 | AA77: 0.56 | AB77: 2.400000095 | AC77: 0.61 | AD77: 3.200000048 | AE77: 0.53
A78: 7571 | B78: 7571 International Studies Preparatory Academy | C78: 64 | D78: 39.40000153 | E78: 0.69 | F78: 3.5 | G78: 0.7 | H78: 2.200000048 | I78: 0.55 | J78: 3.200000048 | K78: 0.8 | L78: 2.900000095 | M78: 0.71 | N78: 3.799999952 | O78: 0.77 | P78: 3.5 | Q78: 0.71 | R78: 3 | S78: 0.76 | T78: 3 | U78: 0.74 | V78: 1.5 | W78: 0.5 | X78: 2.799999952 | Y78: 0.55 | Z78: 3.299999952 | AA78: 0.82 | AB78: 3 | AC78: 0.75 | AD78: 3.799999952 | AE78: 0.63
A79: =IFERROR(VALUE(LEFT(B79,4)),"") -> 7581 | B79: 7581 IPreparatory Academy | C79: 55 | D79: 43.70000076 | E79: 0.77 | F79: 4.099999905 | G79: 0.82 | H79: 2.700000048 | I79: 0.68 | J79: 3.5 | K79: 0.87 | L79: 3.099999905 | M79: 0.78 | N79: 4.099999905 | O79: 0.83 | P79: 4.199999809 | Q79: 0.83 | R79: 3.099999905 | S79: 0.79 | T79: 3 | U79: 0.74 | V79: 1.799999952 | W79: 0.59 | X79: 3.200000048 | Y79: 0.64 | Z79: 3.299999952 | AA79: 0.83 | AB79: 3.099999905 | AC79: 0.77 | AD79: 4.5 | AE79: 0.74
A80: 7591 | B80: 7591 North Miami Senior High School | C80: 668 | D80: 29.5 | E80: 0.52 | F80: 2.700000048 | G80: 0.54 | H80: 1.700000048 | I80: 0.43 | J80: 2.5 | K80: 0.62 | L80: 2 | M80: 0.5 | N80: 2.900000095 | O80: 0.59 | P80: 2.700000048 | Q80: 0.54 | R80: 2.099999905 | S80: 0.52 | T80: 2.099999905 | U80: 0.53 | V80: 1.200000048 | W80: 0.42 | X80: 1.899999976 | Y80: 0.37 | Z80: 2.099999905 | AA80: 0.52 | AB80: 2.400000095 | AC80: 0.61 | AD80: 3.099999905 | AE80: 0.51
A81: 7601 | B81: 7601 Turner Tech | C81: 406 | D81: 37.20000076 | E81: 0.65 | F81: 3.299999952 | G81: 0.66 | H81: 2.400000095 | I81: 0.59 | J81: 3.099999905 | K81: 0.78 | L81: 2.599999905 | M81: 0.65 | N81: 3.700000048 | O81: 0.74 | P81: 3.400000095 | Q81: 0.67 | R81: 2.700000048 | S81: 0.68 | T81: 2.5 | U81: 0.64 | V81: 1.5 | W81: 0.49 | X81: 2.5 | Y81: 0.49 | Z81: 2.900000095 | AA81: 0.72 | AB81: 2.900000095 | AC81: 0.72 | AD81: 3.700000048 | AE81: 0.62
A82: 7631 | B82: 7631 MacArthur South Senior High | C82: 26 | D82: 16.89999962 | E82: 0.3 | F82: 1.5 | G82: 0.3 | H82: 1.100000024 | I82: 0.28 | J82: 1.799999952 | K82: 0.46 | L82: 1.100000024 | M82: 0.28 | N82: 1.399999976 | O82: 0.28 | P82: 1.100000024 | Q82: 0.22 | R82: 1.5 | S82: 0.37 | T82: 1 | U82: 0.25 | V82: 0.6999999881 | W82: 0.24 | X82: 1 | Y82: 0.21 | Z82: 1.100000024 | AA82: 0.28 | AB82: 1.600000024 | AC82: 0.39 | AD82: 1.899999976 | AE82: 0.31
A83: 7701 | B83: 7701 South Dade Senior | C83: 806 | D83: 29 | E83: 0.51 | F83: 2.599999905 | G83: 0.52 | H83: 1.700000048 | I83: 0.42 | J83: 2.5 | K83: 0.61 | L83: 2 | M83: 0.51 | N83: 2.900000095 | O83: 0.58 | P83: 2.599999905 | Q83: 0.52 | R83: 2.099999905 | S83: 0.51 | T83: 2.200000048 | U83: 0.54 | V83: 1.100000024 | W83: 0.38 | X83: 1.799999952 | Y83: 0.36 | Z83: 2.099999905 | AA83: 0.53 | AB83: 2.400000095 | AC83: 0.6 | AD83: 3 | AE83: 0.51
A84: 7721 | B84: 7721 South Miami Senior High | C84: 606 | D84: 27.10000038 | E84: 0.48 | F84: 2.400000095 | G84: 0.48 | H84: 1.600000024 | I84: 0.39 | J84: 2.200000048 | K84: 0.56 | L84: 1.899999976 | M84: 0.48 | N84: 2.599999905 | O84: 0.52 | P84: 2.299999952 | Q84: 0.45 | R84: 2 | S84: 0.5 | T84: 2 | U84: 0.5 | V84: 1 | W84: 0.35 | X84: 1.899999976 | Y84: 0.38 | Z84: 2.099999905 | AA84: 0.52 | AB84: 2.299999952 | AC84: 0.57 | AD84: 2.799999952 | AE84: 0.47
A85: 7731 | B85: 7731 Miami Southridge Senior High | C85: 512 | D85: 31.10000038 | E85: 0.55 | F85: 2.900000095 | G85: 0.58 | H85: 1.899999976 | I85: 0.47 | J85: 2.700000048 | K85: 0.67 | L85: 2.099999905 | M85: 0.52 | N85: 3.099999905 | O85: 0.61 | P85: 2.799999952 | Q85: 0.56 | R85: 2.099999905 | S85: 0.54 | T85: 2.200000048 | U85: 0.56 | V85: 1.299999952 | W85: 0.44 | X85: 2.099999905 | Y85: 0.43 | Z85: 2.400000095 | AA85: 0.6 | AB85: 2.400000095 | AC85: 0.59 | AD85: 3.099999905 | AE85: 0.52
A86: 7741 | B86: 7741 Southwest Miami High School | C86: 830 | D86: 32.20000076 | E86: 0.56 | F86: 2.900000095 | G86: 0.58 | H86: 1.899999976 | I86: 0.48 | J86: 2.599999905 | K86: 0.66 | L86: 2.299999952 | M86: 0.57 | N86: 3.200000048 | O86: 0.63 | P86: 2.900000095 | Q86: 0.59 | R86: 2.400000095 | S86: 0.59 | T86: 2.299999952 | U86: 0.57 | V86: 1.299999952 | W86: 0.43 | X86: 2.200000048 | Y86: 0.44 | Z86: 2.5 | AA86: 0.63 | AB86: 2.5 | AC86: 0.63 | AD86: 3.200000048 | AE86: 0.53
A87: 7751 | B87: 7751 Barbara Goleman High School | C87: 498 | D87: 31.70000076 | E87: 0.56 | F87: 2.900000095 | G87: 0.58 | H87: 1.899999976 | I87: 0.47 | J87: 2.599999905 | K87: 0.65 | L87: 2.099999905 | M87: 0.53 | N87: 3.099999905 | O87: 0.63 | P87: 2.799999952 | Q87: 0.57 | R87: 2.400000095 | S87: 0.59 | T87: 2.299999952 | U87: 0.58 | V87: 1.299999952 | W87: 0.42 | X87: 2.099999905 | Y87: 0.42 | Z87: 2.299999952 | AA87: 0.58 | AB87: 2.5 | AC87: 0.63 | AD87: 3.299999952 | AE87: 0.56
A88: 7781 | B88: 7781 Felix Varela Senior High School | C88: 772 | D88: 33.5 | E88: 0.59 | F88: 3.099999905 | G88: 0.63 | H88: 2 | I88: 0.49 | J88: 2.799999952 | K88: 0.69 | L88: 2.400000095 | M88: 0.61 | N88: 3.200000048 | O88: 0.65 | P88: 3 | Q88: 0.59 | R88: 2.400000095 | S88: 0.61 | T88: 2.299999952 | U88: 0.58 | V88: 1.299999952 | W88: 0.44 | X88: 2.400000095 | Y88: 0.48 | Z88: 2.5 | AA88: 0.62 | AB88: 2.599999905 | AC88: 0.65 | AD88: 3.400000095 | AE88: 0.57
A89: 7791 | B89: 7791 Booker T. Washington Senior High School | C89: 203 | D89: 28.70000076 | E89: 0.5 | F89: 2.700000048 | G89: 0.54 | H89: 1.799999952 | I89: 0.45 | J89: 2.599999905 | K89: 0.66 | L89: 2 | M89: 0.49 | N89: 2.799999952 | O89: 0.56 | P89: 2.5 | Q89: 0.49 | R89: 1.899999976 | S89: 0.48 | T89: 2 | U89: 0.49 | V89: 1.100000024 | W89: 0.37 | X89: 1.899999976 | Y89: 0.38 | Z89: 2 | AA89: 0.5 | AB89: 2.400000095 | AC89: 0.61 | AD89: 3 | AE89: 0.5
